Workbook

Sheet MENU
J1: PM
E2: =CHOOSE(MATCH(Objeto,{"PM","PO"}),"PLANILHA MÚLTIPLA ","PLANILHA ORÇAMENTÁRIA ")& Versao -> PLANILHA MÚLTIPLA v3.0.5 | J2: v3.0.5
O3: 1
O4: 1
J5: Proposto
E6: DADOS DO CONTRATO | G6: NOVIDADES DA VERSÃO | J6: Licitado
J7: PLE
B8: =IF($O$3<>2,"DOCUMENTAÇÃO DA PROPOSTA","PROPOSTA: Para visualizar/preencher esta seção, altere o TIPO DE ORÇAMENTO para 'Proposto'") -> DOCUMENTAÇÃO DA PROPOSTA | J8: BM | L8: LEGENDA:
L9: Cores das células:
C10: =IF(TIPOORCAMENTO<>"Proposto",""," BDI ") -> BDI | E10: =IF(TIPOORCAMENTO<>"Proposto",""," ORÇAMENTO ") -> ORÇAMENTO | G10: =IF(TIPOORCAMENTO<>"Proposto","","MEMÓRIA DE CÁLCULO / PLQ") -> MEMÓRIA DE CÁLCULO / PLQ | N10: Fundo amarelo: células para preencher
C12: =IF(TIPOORCAMENTO<>"Proposto",""," QCI ") -> QCI | E12: =IF(TIPOORCAMENTO<>"Proposto","","CRONOGRAMA FÍSICO-FINANCEIRO") -> CRONOGRAMA FÍSICO-FINANCEIRO | N12: Fundo azul: células para seleção de opções
C14: =IF(TIPOORCAMENTO<>"Proposto","","Obs: Composições e Cotações devem ser preenchidas diretamente no arquivo Referência "&IF(ISBLANK(Import.DataBase),"mm-aaaa",TEXT(Import.DataBase,"mm-aaaa"))&".xls.") -> Obs: Composições e Cotações devem ser preenchidas diretamente no arquivo Referência 01-2022.xls.
L15: Cores dos botões:
B16: =IF($O$3<>2,"PÓS-LICITADO: Para visualizar/preencher esta seção, altere o TIPO DE ORÇAMENTO para 'Licitado'","RESULTADO DO PROCESSO LICITATÓRIO") -> PÓS-LICITADO: Para visualizar/preencher esta seção, altere o TIPO DE ORÇAMENTO para 'Licitado' | N16: Fundo azul: navegação entre abas
C18: =IF(TIPOORCAMENTO<>"Licitado",""," ORÇAMENTO ") ->  | E18: =IF(TIPOORCAMENTO<>"Licitado",""," QCI ") ->  | G18: =IF(TIPOORCAMENTO<>"Licitado","","CRONOGRAMA FÍSICO-FINANCEIRO") ->  | N18: Fundo laranja: execução de macro
B20: =IF($O$3<>2,"ACOMPANHAMENTO: Para visualizar/preencher esta seção, altere o TIPO DE ORÇAMENTO para 'Licitado'","ACOMPANHAMENTO DO EMPREENDIMENTO") -> ACOMPANHAMENTO: Para visualizar/preencher esta seção, altere o TIPO DE ORÇAMENTO para 'Licitado'
C22: =IF(OR(TIPOORCAMENTO<>"Licitado",ACOMPANHAMENTO<>"PLE"),"","PLAN. DE LEVANT. DE EVENTOS - PLE") ->  | E22: =IF(TIPOORCAMENTO<>"Licitado",""," RRE ") ->  | G22: =IF(OR(TIPOORCAMENTO<>"Licitado",ACOMPANHAMENTO<>"BM"),""," BOLETIM DE MEDIÇÃO - BM ") -> 
E24: =IF(TIPOORCAMENTO<>"Licitado","","OF. DE SOLICITAÇÃO DE DESBLOQUEIO") -> 

Sheet DADOS
E1: A. DOCUMENTAÇÃO DA PROPOSTA | L1: Sub-Itens de Investimento
J2: Itens de Investimento | K2: Unidades habitacionais | L2: =COUNTA(K:K)-1 -> 3 | M2: Equipamentos comunitários | N2: =COUNTA(M:M)-1 -> 6 | O2: Pavimentação | P2: =COUNTA(O:O)-1 -> 6 | Q2: Drenagem | R2: =COUNTA(Q:Q)-1 -> 6 | S2: Abastecimento de água | T2: =COUNTA(S:S)-1 -> 11 | U2: Esgotamento sanitário | V2: =COUNTA(U:U)-1 -> 8 | W2: Energia elétrica e iluminação pública | X2: =COUNTA(W:W)-1 -> 4 | Y2: Coleta e tratamento de resíduos sólidos | Z2: =COUNTA(Y:Y)-1 -> 6 | AA2: Contenção e estabilização de encostas | AB2: =COUNTA(AA:AA)-1 -> 2 | AC2: Regularização fundiária | AD2: =COUNTA(AC:AC)-1 -> 2 | AE2: Aquisição de terreno | AF2: =COUNTA(AE:AE)-1 -> 2 | AG2: Aquisição de equipamentos e insumos | AH2: =COUNTA(AG:AG)-1 -> 1 | AI2: Elaboração de estudos e projetos | AJ2: =COUNTA(AI:AI)-1 -> 1 | AK2: Instrumentos e ações em planejamento e gestão pública | AL2: =COUNTA(AK:AK)-1 -> 1 | AM2: Ações complementares às obras | AN2: =COUNTA(AM:AM)-1 -> 3 | AO2: Gerenciamento | AP2: =COUNTA(AO:AO)-1 -> 1 | AQ2: Trabalho social | AR2: =COUNTA(AQ:AQ)-1 -> 4
E3: Dados do Contrato (Inicial) | J3: Unidades habitacionais | K3: Aquisição | L3: un | M3: Convivência comunitária, assistência social e/ou comunitária | N3: m² | O3: Capeamento de vias | P3: m² | Q3: Obras de microdrenagem | R3: m | S3: Captação subterrânea | T3: m³/s | U3: Ligações domiciliares e/ou intradomiciliares | V3: un | W3: Iluminação pública - luminárias | X3: un | Y3: Acondicionamento | Z3: un | AA3: Estabilização de taludes | AB3: m² | AC3: Desapropriacões/Indenizações | AD3: m² | AE3: Aquisição de terreno | AF3: m² | AG3: Aquisição de equipamentos e insumos | AH3: un | AI3: Elaboração de estudos e projetos | AJ3: un | AK3: Instrumentos e ações em planejamento e gestão pública | AL3: un | AM3: Avaliação pós intervenção | AN3: un | AO3: Gerenciamento | AP3: %CT | AQ3: Projeto de Trabalho Social Preliminar | AR3: nº fam
E4: Fonte de recursos: | F4: (SELECIONAR) | J4: Equipamentos comunitários | K4: Construção | L4: un | M4: Educação e cultura | N4: m² | O4: Recapeamento de vias | P4: m² | Q4: Desassoreamento de cursos de água | R4: m | S4: Captação superficial | T4: m³/s | U4: Rede coletora e/ou condominial | V4: m | W4: Ligações domiciliares | X4: un | Y4: Aterro sanitário e/ou disposição final | Z4: m³ | AA4: Obras complementares a ações de redução de risco e/ou contenções | AB4: m² | AC4: Projeto de Regularização Fundiária | AD4: m² | AE4: Benfeitorias | AF4: m² | AM4: Demolições | AN4: un | AQ4: Projeto de Trabalho Social | AR4: nº fam
E5: Proponente/Tomador: | F5: Prefeitura Municipal de Balneário Camboriú | J5: Pavimentação | K5: Reforma e/ou melhoria | L5: un | M5: Esportes | N5: m² | O5: Obras de artes especiais | P5: m | Q5: Canalização de cursos de água | R5: m | S5: Estação de bombeamento de água bruta | T5: m³/s | U5: Coletor tronco e/ou interceptores | V5: m | W5: Linhas de distribuição - baixa tensão | X5: m | Y5: Erradicação de lixões | Z5: m³ | AM5: Plano de Reassentamento e medidas compensatórias | AN5: un | AQ5: Plano de Desenvolvimento Socioterritorial | AR5: nº fam
E6: Município/UF: | F6: Balneário Camboriú/SC | J6: Drenagem | M6: Lazer e turismo | N6: m² | O6: Pavimentação de calçadas | P6: m² | Q6: Recomposição de vegetação ciliar, renaturalização de cursos de água ou restauração de margens | R6: m² | S6: Adução | T6: m | U6: Emissário | V6: m | W6: Linhas de transmissão - alta tensão | X6: m | Y6: Sistema de coleta seletiva tradicional, transporte e/ou equipamentos | Z6: un | AQ6: Plano de Gestão Condominial | AR6: nº fam
E7: Nº da Operação (0000000-00): | J7: Abastecimento de água | M7: Saúde | N7: m² | O7: Pavimentação de vias | P7: m² | Q7: Reservatório de amortecimento de cheias | R7: m³ | S7: Estação de Tratamento de Água (ETA) | T7: m³/s | U7: Estação Elevatória | V7: m³/s | Y7: Tratamento local | Z7: un
E8: Nº do SICONV (000000): | J8: Esgotamento sanitário | M8: Segurança pública | N8: m² | O8: Sinalização | P8: m² | Q8: Estação de Bombeamento | R8: m³/s | S8: Estação de bombeamento de água tratada | T8: m³/s | U8: Estação de Tratamento de Esgoto (ETE) | V8: m³/s | Y8: Usinas de reciclagem | Z8: m²
E9: =IF(F4="FGTS","Valor de Financiamento Contratado (R$):","Valor do Repasse Contratado (R$):") -> Valor do Repasse Contratado (R$): | J9: Energia elétrica e iluminação pública | S9: Linha de recalque | T9: m | U9: Sistema simplificado de tratamento | V9: m³/s
E10: Valor de Contrapartida Contratada (R$): | J10: Coleta e tratamento de resíduos sólidos | S10: Reservação | T10: m³ | U10: Unidades sanitárias | V10: un
E11: % mínimo de Contrapartida: | J11: Contenção e estabilização de encostas | S11: Rede de distribuição | T11: m
E12: R$ mínimo de Contrapartida (se houver): | J12: Regularização fundiária | S12: Ligações domiciliares e/ou intradomiciliares | T12: un
E13: % máximo de Contrapartida: | J13: Aquisição de terreno | S13: Sistema simplificado de abastecimento | T13: m
J14: Aquisição de equipamentos e insumos
E15: Dados do Empreendimento e Orçamento | J15: Elaboração de estudos e projetos
E16: Nome/apelido: | F16: QUADRA COBERTA - C.E.M. GIOVANIA DE ALMEIDA | J16: Instrumentos e ações em planejamento e gestão pública
E17: Descrição do Objeto do Lote / CTEF: | F17: Rua: Higino João Pio, S/N - Estaleirinho | J17: Ações complementares às obras
E18: Regime previdenciário previsto para a obra: | F18: NÃO DESONERADO | J18: Gerenciamento
E19: Data base do Orçamento: | F19: 2022-01-01 | J19: Trabalho social
E21: Responsável pelo Orçamento
E22: Nome: | F22: Rafael Calistro Borba
E23: CREA/CAU: | F23: CREA-SC 093.243-9
E24: ART/RRT:
E25: Data do preenchimento: | F25: =TODAY() -> 2022-03-30
E27: Responsável pelo Tomador (Prefeito, no caso de Municípios)
E28: Nome: | F28: Fabricio José Satiro de Oliveira
E29: Cargo: | F29: Prefeito Municipal
E32: B. RESULTADO DO PROCESSO LICITATÓRIO
E34: Licitação
E35: Data de emissão dos documentos de licitação:
E36: Nº do CTEF (contrato com empresa):
E37: Nome da empresa:
E38: CNPJ da empresa:
E39: Regime de execução do CTEF: | F39: (SELECIONAR)
E40: Data base do CTEF:
E43: C. ACOMPANHAMENTO DO EMPREENDIMENTO
E45: Dados da obra
E46: Data do Início da Obra:
E47: Data de fechamento do RRE: | F47: =TODAY() -> 2022-03-30
E49: Responsável pela Fiscalização
E50: Nome:
E51: Profissão:
E52: CREA/CAU (para obras/projetos):
E53: ART/RRT (para obras/projetos):
E56: D. ACOMPANHAMENTO CAIXA
E58: Responsável Gerencial
E59: Nome:
E60: Função:

Sheet NOVO
B3: Novidades da Versão
A6: V3.0.0
B7: GERAL
C8: =IF(D8<>"","▪","") -> ▪ | D8: Lançamento: Adequação à Portaria 424/2016. Acompanhamento por Eventos.
C9: =IF(D9<>"","▪","") -> 
A10: V3.0.1
B11: GERAL
C12: =IF(D12<>"","▪","") -> ▪ | D12: Ajustes de formatações.
B13: PO
C14: =IF(D14<>"","▪","") -> ▪ | D14: Correção da aplicação do BDI não desonerado.
C15: =IF(D15<>"","▪","") -> ▪ | D15: Inclusão de coluna exclusiva "Preço Unitário Edital", para o Modo 'Orçamento Licitado'.
A17: V3.0.2
B18: GERAL
C19: =IF(D19<>"","▪","") -> ▪ | D19: Ajustes de formatações.
C20: =IF(D20<>"","▪","") -> ▪ | D20: Correção do Problema de Guias ocultas no BROFFICE.
B21: ORÇAMENTO
C22: =IF(D22<>"","▪","") -> ▪ | D22: Ampliada obtenção de dados da Planilha Referência de 20.000 para 65.536 linhas.
B23: CRONOGRAMA
C24: =IF(D24<>"","▪","") -> ▪ | D24: Correção na formulação do total acumulado por Repasse, CP e Outros
B25: QCI
C26: =IF(D26<>"","▪","") -> ▪ | D26: Correção na formulação do arredondamento no rateio dos valores do QCI.
B27: RRE
C28: =IF(D28<>"","▪","") -> ▪ | D28: Correção na formulação do total por Repasse, CP e Outros.
A30: V3.0.3
B31: GERAL
C32: =IF(D32<>"","▪","") -> ▪ | D32: Correção do Problema de Guias ocultas no BROFFICE.
B33: CÁLCULO
C34: =IF(D34<>"","▪","") -> ▪ | D34: Corrigida lentidão e travamento ao incluir e excluir frentes.
A37: V3.0.4
B38: BDI
C39: =IF(D39<>"","▪","") -> ▪ | D39: Correção da CPRB que exibia 4,5% mesmo quando não desonerado.
B40: CRONOGRAMA
C41: =IF(D41<>"","▪","") -> ▪ | D41: Correção da distribuição de Repasse, CP e Outros para as metas manuais.
B42: QCI
C43: =IF(D43<>"","▪","") -> ▪ | D43: Adicionado botão para adotar a CP do QCI como CP do contrato (zera saldo a reprogramar de CP).
A45: V3.0.5
B46: GERAL
C47: =IF(D47<>"","▪","") -> ▪ | D47: Corrigido modo de Cálculo da Planilha para Automático.

Sheet BDI
E1: MIN | F1: MED | G1: MAX | O1: ="Quadro de Composição do BDI" -> Quadro de Composição do BDI | R1: Grau de Sigilo
A2: Construção e Reforma de Edifícios | B2: AC | C2: =CONCATENATE(A2,"-",B2) -> Construção e Reforma de Edifícios-AC | E2: 0.03 | F2: 0.04 | G2: 0.055 | R2: #PUBLICO
A3: =A2 -> Construção e Reforma de Edifícios | B3: SG | C3: Construção e Reforma de Edifícios-SG | E3: 0.008 | F3: 0.008 | G3: 0.01
A4: =A3 -> Construção e Reforma de Edifícios | B4: R | C4: Construção e Reforma de Edifícios-R | E4: 0.0097 | F4: 0.0127 | G4: 0.0127 | J4: Nº OPERAÇÃO | L4: Nº SICONV | N4: PROPONENTE / TOMADOR
A5: =A4 -> Construção e Reforma de Edifícios | B5: DF | C5: Construção e Reforma de Edifícios-DF | E5: 0.0059 | F5: 0.0123 | G5: 0.0139 | J5: =Import.CR -> 0 | L5: =Import.SICONV -> 0 | N5: =Import.Proponente -> Prefeitura Municipal de Balneário Camboriú
A6: =A5 -> Construção e Reforma de Edifícios | B6: L | C6: Construção e Reforma de Edifícios-L | E6: 0.0616 | F6: 0.074 | G6: 0.0896 | I6: FILTRO
A7: =A6 -> Construção e Reforma de Edifícios | B7: BDI PAD | C7: Construção e Reforma de Edifícios-BDI PAD | E7: 0.2034 | F7: 0.2212 | G7: 0.25 | J7: APELIDO DO EMPREENDIMENTO / DESCRIÇÃO DO LOTE
A8: Construção de Praças Urbanas, Rodovias, Ferrovias e recapeamento e pavimentação de vias urbanas | B8: AC | C8: Construção de Praças Urbanas, Rodovias, Ferrovias e recapeamento e pavimentação de vias urbanas-AC | E8: 0.038 | F8: 0.0401 | G8: 0.0467 | J8: =Import.Apelido&" / "&Import.DescLote -> QUADRA COBERTA - C.E.M. GIOVANIA DE ALMEIDA / Rua: Higino João Pio, S/N - Estaleirinho
A9: Construção de Praças Urbanas, Rodovias, Ferrovias e recapeamento e pavimentação de vias urbanas | B9: SG | C9: Construção de Praças Urbanas, Rodovias, Ferrovias e recapeamento e pavimentação de vias urbanas-SG | E9: 0.0032 | F9: 0.004 | G9: 0.0074
A10: Construção de Praças Urbanas, Rodovias, Ferrovias e recapeamento e pavimentação de vias urbanas | B10: R | C10: Construção de Praças Urbanas, Rodovias, Ferrovias e recapeamento e pavimentação de vias urbanas-R | E10: 0.005 | F10: 0.0056 | G10: 0.0097 | J10: Conforme legislação tributária municipal, definir estimativa de percentual da base de cálculo para o ISS: | R10: 1
A11: Construção de Praças Urbanas, Rodovias, Ferrovias e recapeamento e pavimentação de vias urbanas | B11: DF | C11: Construção de Praças Urbanas, Rodovias, Ferrovias e recapeamento e pavimentação de vias urbanas-DF | E11: 0.0102 | F11: 0.0111 | G11: 0.0121 | I11: ↓ | J11: Sobre a base de cálculo, definir a respectiva alíquota do ISS (entre 2% e 5%): | R11: 0.025
A12: Construção de Praças Urbanas, Rodovias, Ferrovias e recapeamento e pavimentação de vias urbanas | B12: L | C12: Construção de Praças Urbanas, Rodovias, Ferrovias e recapeamento e pavimentação de vias urbanas-L | E12: 0.0664 | F12: 0.073 | G12: 0.0869 | I12: F
A13: Construção de Praças Urbanas, Rodovias, Ferrovias e recapeamento e pavimentação de vias urbanas | B13: BDI PAD | C13: Construção de Praças Urbanas, Rodovias, Ferrovias e recapeamento e pavimentação de vias urbanas-BDI PAD | E13: 0.196 | F13: 0.2097 | G13: 0.2423 | I13: F
A14: Construção de Redes de Abastecimento de Água, Coleta de Esgoto | B14: AC | C14: Construção de Redes de Abastecimento de Água, Coleta de Esgoto-AC | E14: 0.0343 | F14: 0.0493 | G14: 0.0671 | I14: F | J14: BDI 1
A15: =A14 -> Construção de Redes de Abastecimento de Água, Coleta de Esgoto | B15: SG | C15: Construção de Redes de Abastecimento de Água, Coleta de Esgoto-SG | E15: 0.0028 | F15: 0.0049 | G15: 0.0075 | I15: F
A16: =A15 -> Construção de Redes de Abastecimento de Água, Coleta de Esgoto | B16: R | C16: Construção de Redes de Abastecimento de Água, Coleta de Esgoto-R | E16: 0.01 | F16: 0.0139 | G16: 0.0174 | I16: F | J16: TIPO DE OBRA
A17: =A16 -> Construção de Redes de Abastecimento de Água, Coleta de Esgoto | B17: DF | C17: Construção de Redes de Abastecimento de Água, Coleta de Esgoto-DF | E17: 0.0094 | F17: 0.0099 | G17: 0.0117 | I17: F | J17: Construção e Reforma de Edifícios
A18: =A17 -> Construção de Redes de Abastecimento de Água, Coleta de Esgoto | B18: L | C18: Construção de Redes de Abastecimento de Água, Coleta de Esgoto-L | E18: 0.0674 | F18: 0.0804 | G18: 0.094 | I18: F
A19: =A18 -> Construção de Redes de Abastecimento de Água, Coleta de Esgoto | B19: BDI PAD | C19: Construção de Redes de Abastecimento de Água, Coleta de Esgoto-BDI PAD | E19: 0.2076 | F19: 0.2418 | G19: 0.2644 | I19: F | J19: Itens | R19: Siglas | S19: % Adotado | U19: Situação | X19: 1º Quartil | Y19: Médio | Z19: 3º Quartil
A20: Construção e Manutenção de Estações e Redes de Distribuição de Energia Elétrica | B20: AC | C20: Construção e Manutenção de Estações e Redes de Distribuição de Energia Elétrica-AC | E20: 0.0529 | F20: 0.0592 | G20: 0.0793 | I20: F
A21: =A20 -> Construção e Manutenção de Estações e Redes de Distribuição de Energia Elétrica | B21: SG | C21: Construção e Manutenção de Estações e Redes de Distribuição de Energia Elétrica-SG | E21: 0.0025 | F21: 0.0051 | G21: 0.0056 | I21: F | J21: =IF($J$17=$A$146,"Encargos Sociais incidentes sobre a mão de obra","Administração Central") -> Administração Central | R21: =IF($J17=$A$146,"K1","AC") -> AC | S21: 0.035 | U21: - | X21: =VLOOKUP(CONCATENATE(J17,"-",R21),$C$2:$G$136,3,FALSE) -> 0.03 | Y21: =VLOOKUP(CONCATENATE(J17,"-",R21),$C$2:$G$136,4,FALSE) -> 0.04 | Z21: =VLOOKUP(CONCATENATE(J17,"-",R21),$C$2:$G$136,5,FALSE) -> 0.055
A22: =A21 -> Construção e Manutenção de Estações e Redes de Distribuição de Energia Elétrica | B22: R | C22: Construção e Manutenção de Estações e Redes de Distribuição de Energia Elétrica-R | E22: 0.01 | F22: 0.0148 | G22: 0.0197 | I22: F | J22: =IF($J$17=$A$146,"Administração Central da empresa ou consultoria - overhead","Seguro e Garantia") -> Seguro e Garantia | R22: =IF($J17=$A$146,"K2","SG") -> SG | S22: 0.008 | U22: - | X22: =VLOOKUP(CONCATENATE(J17,"-",R22),$C$2:$G$136,3,FALSE) -> 0.008 | Y22: =VLOOKUP(CONCATENATE(J17,"-",R22),$C$2:$G$136,4,FALSE) -> 0.008 | Z22: =VLOOKUP(CONCATENATE(J17,"-",R22),$C$2:$G$136,5,FALSE) -> 0.01
A23: =A22 -> Construção e Manutenção de Estações e Redes de Distribuição de Energia Elétrica | B23: DF | C23: Construção e Manutenção de Estações e Redes de Distribuição de Energia Elétrica-DF | E23: 0.0101 | F23: 0.0107 | G23: 0.0111 | I23: F | J23: =IF($J$17=$A$146,"","Risco") -> Risco | R23: =IF($J17=$A$146,"","R") -> R | S23: 0.01 | U23: - | X23: =VLOOKUP(CONCATENATE(J17,"-",R23),$C$2:$G$136,3,FALSE) -> 0.0097 | Y23: =VLOOKUP(CONCATENATE(J17,"-",R23),$C$2:$G$136,4,FALSE) -> 0.0127 | Z23: =VLOOKUP(CONCATENATE(J17,"-",R23),$C$2:$G$136,5,FALSE) -> 0.0127
A24: =A23 -> Construção e Manutenção de Estações e Redes de Distribuição de Energia Elétrica | B24: L | C24: Construção e Manutenção de Estações e Redes de Distribuição de Energia Elétrica-L | E24: 0.08 | F24: 0.0831 | G24: 0.0951 | I24: F | J24: =IF($J$17=$A$146,"","Despesas Financeiras") -> Despesas Financeiras | R24: =IF($J17=$A$146,"","DF") -> DF | S24: 0.0061 | U24: - | X24: =VLOOKUP(CONCATENATE(J17,"-",R24),$C$2:$G$136,3,FALSE) -> 0.0059 | Y24: =VLOOKUP(CONCATENATE(J17,"-",R24),$C$2:$G$136,4,FALSE) -> 0.0123 | Z24: =VLOOKUP(CONCATENATE(J17,"-",R24),$C$2:$G$136,5,FALSE) -> 0.0139
A25: =A24 -> Construção e Manutenção de Estações e Redes de Distribuição de Energia Elétrica | B25: BDI PAD | C25: Construção e Manutenção de Estações e Redes de Distribuição de Energia Elétrica-BDI PAD | E25: 0.24 | F25: 0.2584 | G25: 0.2786 | I25: F | J25: =IF($J$17=$A$146,"Margem bruta da empresa de consultoria","Lucro") -> Lucro | R25: =IF($J17=$A$146,"K3","L") -> L | S25: 0.066 | U25: - | X25: =VLOOKUP(CONCATENATE(J17,"-",R25),$C$2:$G$136,3,FALSE) -> 0.0616 | Y25: =VLOOKUP(CONCATENATE(J17,"-",R25),$C$2:$G$136,4,FALSE) -> 0.074 | Z25: =VLOOKUP(CONCATENATE(J17,"-",R25),$C$2:$G$136,5,FALSE) -> 0.0896
A26: Obras Portuárias, Marítimas e Fluviais | B26: AC | C26: Obras Portuárias, Marítimas e Fluviais-AC | E26: 0.04 | F26: 0.0552 | G26: 0.0785 | I26: F | J26: Tributos (impostos COFINS 3%, e PIS 0,65%) | R26: CP | S26: 0.0365 | U26: - | X26: 0.0365 | Y26: 0.0365 | Z26: 0.0365
A27: =A26 -> Obras Portuárias, Marítimas e Fluviais | B27: SG | C27: Obras Portuárias, Marítimas e Fluviais-SG | E27: 0.0081 | F27: 0.0122 | G27: 0.0199 | I27: F | J27: Tributos (ISS, variável de acordo com o município) | R27: ISS | S27: =IF(AND($J17<>$A$145,COUNTA(OFFSET(S20,1,0,6))>0),$R$11*$R$10,0) -> 0.025 | U27: - | X27: 0 | Y27: 0.025 | Z27: 0.05
A28: =A27 -> Obras Portuárias, Marítimas e Fluviais | B28: R | C28: Obras Portuárias, Marítimas e Fluviais-R | E28: 0.0146 | F28: 0.0232 | G28: 0.0316 | I28: F | J28: Tributos (Contribuição Previdenciária sobre a Receita Bruta - 0% ou 4,5% - Desoneração) | R28: CPRB | S28: =IF(BDI.Opcao<>"Desonerado",0,IF(AND($J17<>$A$145,COUNTA(OFFSET(S20,1,0,6))>0),4.5%,0%)) -> 0 | U28: - | X28: 0 | Y28: 0.045 | Z28: 0.045
A29: =A28 -> Obras Portuárias, Marítimas e Fluviais | B29: DF | C29: Obras Portuárias, Marítimas e Fluviais-DF | E29: 0.0094 | F29: 0.0102 | G29: 0.0133 | I29: F | J29: BDI SEM desoneração (Fórmula Acórdão TCU) | R29: BDI PAD | S29: =IF($J17=$A$145,0,ROUND((((1+S21+S22+S23)*(1+S24)*(1+S25)/(1-(S26+S27)))-1),4)) -> 0.2034 | U29: =IF(OR($J$17=$A$146,$J$17=$A$145,AND(S29>=X29,S29<=Z29)),"OK","FORA DO INTERVALO") -> OK | X29: =IF($J17=$A$145,0,VLOOKUP(CONCATENATE($J17,"-",$R29),$C$2:$G$136,3,FALSE)) -> 0.2034 | Y29: =IF($J17=$A$145,0,VLOOKUP(CONCATENATE($J17,"-",$R29),$C$2:$G$136,4,FALSE)) -> 0.2212 | Z29: =IF($J17=$A$145,0,VLOOKUP(CONCATENATE($J17,"-",$R29),$C$2:$G$136,5,FALSE)) -> 0.25
A30: =A29 -> Obras Portuárias, Marítimas e Fluviais | B30: L | C30: Obras Portuárias, Marítimas e Fluviais-L | E30: 0.0714 | F30: 0.084 | G30: 0.1043 | I30: F | J30: BDI COM desoneração | R30: BDI DES | S30: =IF($J17=$A$145,0,ROUND((((1+S21+S22+S23)*(1+S24)*(1+S25)/(1-(S26+S27+S28)))-1),4)) -> 0.2034
A31: =A30 -> Obras Portuárias, Marítimas e Fluviais | B31: BDI PAD | C31: Obras Portuárias, Marítimas e Fluviais-BDI PAD | E31: 0.228 | F31: 0.2748 | G31: 0.3095 | I31: F
A32: Fornecimento de Materiais e Equipamentos (aquisição indireta - em conjunto com licitação de obras) | B32: AC | C32: Fornecimento de Materiais e Equipamentos (aquisição indireta - em conjunto com licitação de obras)-AC | E32: 0.015 | F32: 0.0345 | G32: 0.0449 | I32: F | J32: =IF(U29<>"ok","X","") ->  | K32: =IF(U29<>"ok","Anexo: Relatório Técnico Circunstanciado justificando a adoção do percentual de cada parcela do BDI.","") -> 
A33: =A32 -> Fornecimento de Materiais e Equipamentos (aquisição indireta - em conjunto com licitação de obras) | B33: SG | C33: Fornecimento de Materiais e Equipamentos (aquisição indireta - em conjunto com licitação de obras)-SG | E33: 0.003 | F33: 0.0048 | G33: 0.0082 | I33: F
A34: =A33 -> Fornecimento de Materiais e Equipamentos (aquisição indireta - em conjunto com licitação de obras) | B34: R | C34: Fornecimento de Materiais e Equipamentos (aquisição indireta - em conjunto com licitação de obras)-R | E34: 0.0056 | F34: 0.0085 | G34: 0.0089 | I34: F | J34: Os valores de BDI foram calculados com o emprego da fórmula:
A35: =A34 -> Fornecimento de Materiais e Equipamentos (aquisição indireta - em conjunto com licitação de obras) | B35: DF | C35: Fornecimento de Materiais e Equipamentos (aquisição indireta - em conjunto com licitação de obras)-DF | E35: 0.0085 | F35: 0.0085 | G35: 0.0111 | I35: F | M35: BDI = | N35: =IF($J17=$A$146,"(1+K1+K2)*(1+K3)","(1+AC + S + R + G)*(1 + DF)*(1+L)") -> (1+AC + S + R + G)*(1 + DF)*(1+L) | Q35: - 1
A36: =A35 -> Fornecimento de Materiais e Equipamentos (aquisição indireta - em conjunto com licitação de obras) | B36: L | C36: Fornecimento de Materiais e Equipamentos (aquisição indireta - em conjunto com licitação de obras)-L | E36: 0.035 | F36: 0.0511 | G36: 0.0622 | I36: F | N36: (1-CP-ISS-CRPB)
A37: =A36 -> Fornecimento de Materiais e Equipamentos (aquisição indireta - em conjunto com licitação de obras) | B37: BDI PAD | C37: Fornecimento de Materiais e Equipamentos (aquisição indireta - em conjunto com licitação de obras)-BDI PAD | E37: 0.111 | F37: 0.1402 | G37: 0.168 | I37: F
A38: Fornecimento de Materiais e Equipamentos (aquisição direta) | B38: AC | C38: Fornecimento de Materiais e Equipamentos (aquisição direta)-AC | E38: - | F38: - | G38: - | I38: F | J38: =CONCATENATE("Declaro para os devidos fins que, conforme legislação tributária municipal, a base de cálculo deste tipo de obra corresponde à ",$R$10*100,"%, com a respectiva alíquota de ",$R$11*100,"%.") -> Declaro para os devidos fins que, conforme legislação tributária municipal, a base de cálculo deste tipo de obra corresponde à 100%, com a respectiva alíquota de 2,5%.
A39: Fornecimento de Materiais e Equipamentos (aquisição direta) | B39: SG | C39: Fornecimento de Materiais e Equipamentos (aquisição direta)-SG | E39: - | F39: - | G39: - | I39: F
A40: Fornecimento de Materiais e Equipamentos (aquisição direta) | B40: R | C40: Fornecimento de Materiais e Equipamentos (aquisição direta)-R | E40: - | F40: - | G40: - | I40: F | J40: =CONCATENATE("Declaro para os devidos fins que o regime de Contribuição Previdenciária sobre a Receita Bruta adotado para elaboração do orçamento foi ",IF(DESONERACAO="Sim","COM","SEM")," Desoneração, e que esta é a alternativa mais adequada para a Administração Pública.") -> Declaro para os devidos fins que o regime de Contribuição Previdenciária sobre a Receita Bruta adotado para elaboração do orçamento foi SEM Desoneração, e que esta é a alternativa mais adequada para a Administração Pública.
A41: Fornecimento de Materiais e Equipamentos (aquisição direta) | B41: DF | C41: Fornecimento de Materiais e Equipamentos (aquisição direta)-DF | E41: - | F41: - | G41: - | I41: F
A42: Fornecimento de Materiais e Equipamentos (aquisição direta) | B42: L | C42: Fornecimento de Materiais e Equipamentos (aquisição direta)-L | E42: - | F42: - | G42: - | I42: F | J42: Observações:
A43: Fornecimento de Materiais e Equipamentos (aquisição direta) | B43: BDI PAD | C43: Fornecimento de Materiais e Equipamentos (aquisição direta)-BDI PAD | E43: - | F43: - | G43: - | I43: F
A44: Estudos e Projetos, Planos e Gerenciamento e outros correlatos | B44: K1 | C44: Estudos e Projetos, Planos e Gerenciamento e outros correlatos-K1 | E44: - | F44: - | G44: - | I44: F
A45: =A44 -> Estudos e Projetos, Planos e Gerenciamento e outros correlatos | B45: K2 | C45: Estudos e Projetos, Planos e Gerenciamento e outros correlatos-K2 | E45: - | F45: 0.2 | G45: - | I45: F | J45: =Import.Município -> Balneário Camboriú/SC | P45: =DADOS!$F$25 -> 2022-03-30
A46: =A45 -> Estudos e Projetos, Planos e Gerenciamento e outros correlatos | C46: Estudos e Projetos, Planos e Gerenciamento e outros correlatos- | E46: - | F46: - | G46: - | I46: F | J46: Local | P46: Data
A47: =A46 -> Estudos e Projetos, Planos e Gerenciamento e outros correlatos | C47: Estudos e Projetos, Planos e Gerenciamento e outros correlatos- | E47: - | F47: - | G47: - | I47: F
A48: =A47 -> Estudos e Projetos, Planos e Gerenciamento e outros correlatos | B48: K3 | C48: Estudos e Projetos, Planos e Gerenciamento e outros correlatos-K3 | E48: - | F48: 0.12 | G48: - | I48: F
A49: =A48 -> Estudos e Projetos, Planos e Gerenciamento e outros correlatos | B49: BDI PAD | C49: Estudos e Projetos, Planos e Gerenciamento e outros correlatos-BDI PAD | E49: - | F49: - | G49: - | I49: F | J49: Responsável Técnico
I50: F | J50: Nome: | K50: =Import.RespOrçamento -> Rafael Calistro Borba
I51: F | J51: CREA/CAU: | K51: CREA-SC 093.243-9
I52: F | J52: ART/RRT: | K52: 0
I53: F
I54: =IF($S$69=0,"","F") -> F | J54: BDI 2
I55: =IF($S$69=0,"","F") -> F
I56: F | J56: TIPO DE OBRA
I57: F | J57: Fornecimento de Materiais e Equipamentos (aquisição indireta - em conjunto com licitação de obras)
I58: F
I59: F | J59: Itens | R59: Siglas | S59: % Adotado | U59: Situação | X59: 1º Quartil | Y59: Médio | Z59: 3º Quartil
I60: F
I61: F | J61: =IF($J$17=$A$146,"Encargos Sociais incidentes sobre a mão de obra","Administração Central") -> Administração Central | R61: =IF($J57=$A$146,"K1","AC") -> AC | S61: 0.022 | U61: - | X61: =VLOOKUP(CONCATENATE(J57,"-",R61),$C$2:$G$136,3,FALSE) -> 0.015 | Y61: =VLOOKUP(CONCATENATE(J57,"-",R61),$C$2:$G$136,4,FALSE) -> 0.0345 | Z61: =VLOOKUP(CONCATENATE(J57,"-",R61),$C$2:$G$136,5,FALSE) -> 0.0449
I62: F | J62: =IF($J$17=$A$146,"Administração Central da empresa ou consultoria - overhead","Seguro e Garantia") -> Seguro e Garantia | R62: =IF($J57=$A$146,"K2","SG") -> SG | S62: 0.004 | U62: - | X62: =VLOOKUP(CONCATENATE(J57,"-",R62),$C$2:$G$136,3,FALSE) -> 0.003 | Y62: =VLOOKUP(CONCATENATE(J57,"-",R62),$C$2:$G$136,4,FALSE) -> 0.0048 | Z62: =VLOOKUP(CONCATENATE(J57,"-",R62),$C$2:$G$136,5,FALSE) -> 0.0082
I63: F | J63: =IF($J$17=$A$146,"","Risco") -> Risco | R63: =IF($J57=$A$146,"","R") -> R | S63: 0.007 | U63: - | X63: =VLOOKUP(CONCATENATE(J57,"-",R63),$C$2:$G$136,3,FALSE) -> 0.0056 | Y63: =VLOOKUP(CONCATENATE(J57,"-",R63),$C$2:$G$136,4,FALSE) -> 0.0085 | Z63: =VLOOKUP(CONCATENATE(J57,"-",R63),$C$2:$G$136,5,FALSE) -> 0.0089
I64: F | J64: =IF($J$17=$A$146,"","Despesas Financeiras") -> Despesas Financeiras | R64: =IF($J57=$A$146,"","DF") -> DF | S64: 0.0085 | U64: - | X64: =VLOOKUP(CONCATENATE(J57,"-",R64),$C$2:$G$136,3,FALSE) -> 0.0085 | Y64: =VLOOKUP(CONCATENATE(J57,"-",R64),$C$2:$G$136,4,FALSE) -> 0.0085 | Z64: =VLOOKUP(CONCATENATE(J57,"-",R64),$C$2:$G$136,5,FALSE) -> 0.0111
I65: F | J65: =IF($J$17=$A$146,"Margem bruta da empresa de consultoria","Lucro") -> Lucro | R65: =IF($J57=$A$146,"K3","L") -> L | S65: 0.04 | U65: - | X65: =VLOOKUP(CONCATENATE(J57,"-",R65),$C$2:$G$136,3,FALSE) -> 0.035 | Y65: =VLOOKUP(CONCATENATE(J57,"-",R65),$C$2:$G$136,4,FALSE) -> 0.0511 | Z65: =VLOOKUP(CONCATENATE(J57,"-",R65),$C$2:$G$136,5,FALSE) -> 0.0622
I66: F | J66: Tributos (impostos COFINS 3%, e PIS 0,65%) | R66: CP | S66: 0.0365 | U66: - | X66: 0.0365 | Y66: 0.0365 | Z66: 0.0365
I67: F | J67: Tributos (ISS, variável de acordo com o município) | R67: ISS | S67: =IF(AND($J57<>$A$145,COUNTA(OFFSET(S60,1,0,6))>0),$R$11*$R$10,0) -> 0.025 | U67: - | X67: 0 | Y67: 0.025 | Z67: 0.05
I68: F | J68: Tributos (Contribuição Previdenciária sobre a Receita Bruta - 0% ou 4,5% - Desoneração) | R68: CPRB | S68: =IF(BDI.Opcao<>"Desonerado",0,IF(AND($J57<>$A$145,COUNTA(OFFSET(S60,1,0,6))>0),4.5%,0%)) -> 0 | U68: - | X68: 0 | Y68: 0.045 | Z68: 0.045
I69: F | J69: BDI SEM desoneração (Fórmula Acórdão TCU) | R69: BDI PAD | S69: =IF($J57=$A$145,0,ROUND((((1+S61+S62+S63)*(1+S64)*(1+S65)/(1-(S66+S67)))-1),4)) -> 0.1545 | U69: =IF(OR($J$17=$A$146,$J$17=$A$145,AND(S69>=X69,S69<=Z69)),"OK","FORA DO INTERVALO") -> OK | X69: =IF($J57=$A$145,0,VLOOKUP(CONCATENATE($J57,"-",$R69),$C$2:$G$136,3,FALSE)) -> 0.111 | Y69: =IF($J57=$A$145,0,VLOOKUP(CONCATENATE($J57,"-",$R69),$C$2:$G$136,4,FALSE)) -> 0.1402 | Z69: =IF($J57=$A$145,0,VLOOKUP(CONCATENATE($J57,"-",$R69),$C$2:$G$136,5,FALSE)) -> 0.168
I70: F | J70: BDI COM desoneração | R70: BDI DES | S70: =IF($J57=$A$145,0,ROUND((((1+S61+S62+S63)*(1+S64)*(1+S65)/(1-(S66+S67+S68)))-1),4)) -> 0.1545
I71: F
I72: F | J72: =IF(U69<>"ok","X","") ->  | K72: =IF(U69<>"ok","Anexo: Relatório Técnico Circunstanciado justificando a adoção do percentual de cada parcela do BDI.","") -> 
I73: F
I74: F | J74: Os valores de BDI foram calculados com o emprego da fórmula:
I75: F | M75: BDI = | N75: =IF($J57=$A$146,"(1+K1+K2)*(1+K3)","(1+AC + S + R + G)*(1 + DF)*(1+L)") -> (1+AC + S + R + G)*(1 + DF)*(1+L) | Q75: - 1
I76: F | N76: (1-CP-ISS-CRPB)
I77: F
I78: F | J78: =CONCATENATE("Declaro para os devidos fins que, conforme legislação tributária municipal, a base de cálculo deste tipo de obra corresponde à ",$R$10*100,"%, com a respectiva alíquota de ",$R$11*100,"%.") -> Declaro para os devidos fins que, conforme legislação tributária municipal, a base de cálculo deste tipo de obra corresponde à 100%, com a respectiva alíquota de 2,5%.
I79: F
I80: F | J80: =CONCATENATE("Declaro para os devidos fins que o regime de Contribuição Previdenciária sobre a Receita Bruta adotado para elaboração do orçamento foi ",IF(DESONERACAO="Sim","COM","SEM")," Desoneração, e que esta é a alternativa mais adequada para a Administração Pública.") -> Declaro para os devidos fins que o regime de Contribuição Previdenciária sobre a Receita Bruta adotado para elaboração do orçamento foi SEM Desoneração, e que esta é a alternativa mais adequada para a Administração Pública.
I81: F
I82: F | J82: Observações:
I83: F
I84: F
I85: F | J85: =Import.Município -> Balneário Camboriú/SC | P85: =DADOS!$F$25 -> 2022-03-30
I86: F | J86: Local | P86: Data
I87: F
I88: F
I89: F | J89: Responsável Técnico
I90: F | J90: Nome: | K90: =Import.RespOrçamento -> Rafael Calistro Borba
I91: F | J91: CREA/CAU: | K91: CREA-SC 093.243-9
I92: F | J92: ART/RRT: | K92: 0
I93: F
I94: =IF($S$109=0,"","F") ->  | J94: BDI 3
I95: =IF($S$109=0,"","F") -> 
J96: TIPO DE OBRA
J97: (SELECIONAR)
J99: Itens | R99: Siglas | S99: % Adotado | U99: Situação | X99: 1º Quartil | Y99: Médio | Z99: 3º Quartil
J101: =IF($J$17=$A$146,"Encargos Sociais incidentes sobre a mão de obra","Administração Central") -> Administração Central | R101: =IF($J97=$A$146,"K1","AC") -> AC | U101: - | X101: =VLOOKUP(CONCATENATE(J97,"-",R101),$C$2:$G$136,3,FALSE) ->  | Y101: =VLOOKUP(CONCATENATE(J97,"-",R101),$C$2:$G$136,4,FALSE) ->  | Z101: =VLOOKUP(CONCATENATE(J97,"-",R101),$C$2:$G$136,5,FALSE) -> 
J102: =IF($J$17=$A$146,"Administração Central da empresa ou consultoria - overhead","Seguro e Garantia") -> Seguro e Garantia | R102: =IF($J97=$A$146,"K2","SG") -> SG | U102: - | X102: =VLOOKUP(CONCATENATE(J97,"-",R102),$C$2:$G$136,3,FALSE) ->  | Y102: =VLOOKUP(CONCATENATE(J97,"-",R102),$C$2:$G$136,4,FALSE) ->  | Z102: =VLOOKUP(CONCATENATE(J97,"-",R102),$C$2:$G$136,5,FALSE) -> 
J103: =IF($J$17=$A$146,"","Risco") -> Risco | R103: =IF($J97=$A$146,"","R") -> R | U103: - | X103: =VLOOKUP(CONCATENATE(J97,"-",R103),$C$2:$G$136,3,FALSE) ->  | Y103: =VLOOKUP(CONCATENATE(J97,"-",R103),$C$2:$G$136,4,FALSE) ->  | Z103: =VLOOKUP(CONCATENATE(J97,"-",R103),$C$2:$G$136,5,FALSE) -> 
J104: =IF($J$17=$A$146,"","Despesas Financeiras") -> Despesas Financeiras | R104: =IF($J97=$A$146,"","DF") -> DF | U104: - | X104: =VLOOKUP(CONCATENATE(J97,"-",R104),$C$2:$G$136,3,FALSE) ->  | Y104: =VLOOKUP(CONCATENATE(J97,"-",R104),$C$2:$G$136,4,FALSE) ->  | Z104: =VLOOKUP(CONCATENATE(J97,"-",R104),$C$2:$G$136,5,FALSE) -> 
J105: =IF($J$17=$A$146,"Margem bruta da empresa de consultoria","Lucro") -> Lucro | R105: =IF($J97=$A$146,"K3","L") -> L | U105: - | X105: =VLOOKUP(CONCATENATE(J97,"-",R105),$C$2:$G$136,3,FALSE) ->  | Y105: =VLOOKUP(CONCATENATE(J97,"-",R105),$C$2:$G$136,4,FALSE) ->  | Z105: =VLOOKUP(CONCATENATE(J97,"-",R105),$C$2:$G$136,5,FALSE) -> 
J106: Tributos (impostos COFINS 3%, e PIS 0,65%) | R106: CP | U106: - | X106: 0.0365 | Y106: 0.0365 | Z106: 0.0365
J107: Tributos (ISS, variável de acordo com o município) | R107: ISS | S107: =IF(AND($J97<>$A$145,COUNTA(OFFSET(S100,1,0,6))>0),$R$11*$R$10,0) -> 0 | U107: - | X107: 0 | Y107: 0.025 | Z107: 0.05
J108: Tributos (Contribuição Previdenciária sobre a Receita Bruta - 0% ou 4,5% - Desoneração) | R108: CPRB | S108: =IF(BDI.Opcao<>"Desonerado",0,IF(AND($J97<>$A$145,COUNTA(OFFSET(S100,1,0,6))>0),4.5%,0%)) -> 0 | U108: - | X108: 0 | Y108: 0.045 | Z108: 0.045
J109: BDI SEM desoneração (Fórmula Acórdão TCU) | R109: BDI PAD | S109: =IF($J97=$A$145,0,ROUND((((1+S101+S102+S103)*(1+S104)*(1+S105)/(1-(S106+S107)))-1),4)) -> 0 | U109: =IF(OR($J$17=$A$146,$J$17=$A$145,AND(S109>=X109,S109<=Z109)),"OK","FORA DO INTERVALO") ->  | X109: =IF($J97=$A$145,0,VLOOKUP(CONCATENATE($J97,"-",$R109),$C$2:$G$136,3,FALSE)) ->  | Y109: =IF($J97=$A$145,0,VLOOKUP(CONCATENATE($J97,"-",$R109),$C$2:$G$136,4,FALSE)) ->  | Z109: =IF($J97=$A$145,0,VLOOKUP(CONCATENATE($J97,"-",$R109),$C$2:$G$136,5,FALSE)) -> 
J110: BDI COM desoneração | R110: BDI DES | S110: =IF($J97=$A$145,0,ROUND((((1+S101+S102+S103)*(1+S104)*(1+S105)/(1-(S106+S107+S108)))-1),4)) -> 0
J112: =IF(U109<>"ok","X","") ->  | K112: =IF(U109<>"ok","Anexo: Relatório Técnico Circunstanciado justificando a adoção do percentual de cada parcela do BDI.","") -> 
J114: Os valores de BDI foram calculados com o emprego da fórmula:
M115: BDI = | N115: =IF($J97=$A$146,"(1+K1+K2)*(1+K3)","(1+AC + S + R + G)*(1 + DF)*(1+L)") -> (1+AC + S + R + G)*(1 + DF)*(1+L) | Q115: - 1
N116: (1-CP-ISS-CRPB)
J118: =CONCATENATE("Declaro para os devidos fins que, conforme legislação tributária municipal, a base de cálculo deste tipo de obra corresponde à ",$R$10*100,"%, com a respectiva alíquota de ",$R$11*100,"%.") -> Declaro para os devidos fins que, conforme legislação tributária municipal, a base de cálculo deste tipo de obra corresponde à 100%, com a respectiva alíquota de 2,5%.
J120: =CONCATENATE("Declaro para os devidos fins que o regime de Contribuição Previdenciária sobre a Receita Bruta adotado para elaboração do orçamento foi ",IF(DESONERACAO="Sim","COM","SEM")," Desoneração, e que esta é a alternativa mais adequada para a Administração Pública.") -> Declaro para os devidos fins que o regime de Contribuição Previdenciária sobre a Receita Bruta adotado para elaboração do orçamento foi SEM Desoneração, e que esta é a alternativa mais adequada para a Administração Pública.
J122: Observações:
J125: =Import.Município -> Balneário Camboriú/SC | P125: =DADOS!$F$25 -> 2022-03-30
J126: Local | P126: Data
J129: Responsável Técnico
J130: Nome: | K130: =Import.RespOrçamento -> Rafael Calistro Borba
J131: CREA/CAU: | K131: CREA-SC 093.243-9
J132: ART/RRT: | K132: 0
A138: (SELECIONAR)
A139: Construção e Reforma de Edifícios
A140: Construção de Praças Urbanas, Rodovias, Ferrovias e recapeamento e pavimentação de vias urbanas
A141: Construção de Redes de Abastecimento de Água, Coleta de Esgoto
A142: Construção e Manutenção de Estações e Redes de Distribuição de Energia Elétrica
A143: Obras Portuárias, Marítimas e Fluviais
A144: Fornecimento de Materiais e Equipamentos (aquisição indireta - em conjunto com licitação de obras)
A145: Fornecimento de Materiais e Equipamentos (aquisição direta)
A146: Estudos e Projetos, Planos e Gerenciamento e outros correlatos

Sheet ORÇAMENTO
R1: PO - PLANILHA ORÇAMENTÁRIA | X1: Grau de Sigilo
D2: LOTE | E2: Meta | F2: Nível 2 | G2: Nível 3 | H2: Nível 4 | I2: Serviço | R2: =IF(TIPOORCAMENTO="licitado","Orçamento Licitado","Orçamento Base para Licitação")&" - "&import.recurso -> Orçamento Base para Licitação - (SELECIONAR) | X2: #PUBLICO
A4: Nmax | F4: BDI 1 | G4: BDI 2 | H4: BDI 3 | I4: 0 | O4: Nº OPERAÇÃO | Q4: Nº SICONV | R4: PROPONENTE / TOMADOR | S4: APELIDO DO EMPREENDIMENTO
A5: =MAX($C$15:$C$90) -> 3 | F5: =IF(BDI.Opcao="DESONERADO",BDI!$S$30,BDI!$S$29) -> 0.2034 | G5: =IF(BDI.Opcao="DESONERADO",BDI!$S$70,BDI!$S$69) -> 0.1545 | H5: =IF(BDI.Opcao="DESONERADO",BDI!$S$110,BDI!$S$109) -> 0 | O5: =Import.CR -> 0 | Q5: =Import.SICONV -> 0 | R5: =Import.Proponente -> Prefeitura Municipal de Balneário Camboriú | S5: =Import.Apelido -> QUADRA COBERTA - C.E.M. GIOVANIA DE ALMEIDA | AE5: Arredondamento
O7: LOCALIDADE SINAPI | Q7: DATA BASE | R7: =IF(TIPOORCAMENTO="Licitado","NOME DA EMPRESA","DESCRIÇÃO DO LOTE") -> DESCRIÇÃO DO LOTE | S7: =IF(TIPOORCAMENTO="Licitado","REGIME DE EXECUÇÃO","MUNICÍPIO / UF") -> MUNICÍPIO / UF | V7: =IF(TIPOORCAMENTO="Licitado","","BDI 1") -> BDI 1 | W7: =IF(TIPOORCAMENTO="Licitado","","BDI 2") -> BDI 2 | X7: =IF(TIPOORCAMENTO="Licitado","Nº CTEF","BDI 3") -> BDI 3 | AE7: Quantidade | AF7: TRUE | AJ7: QUANTIDADES: ACOMP. POR BM | AL7: PREÇO UNITÁRIO LICITADO
F8: =IF(LEN(INFO("release"))>5,"'Referência "&Excel_BuiltIn_Database&".xls'#Banco.$a5:$a$65536","'[Referência "&Excel_BuiltIn_Database&".xls]Banco'!$a5:$a$65536") -> '[Referência 01-2022.xls]Banco'!$a5:$a$65536 | L8: FILTRO | O8: =IF(ISERROR(INDIRECT($F$9)),"(N/D: 'Referência "&Excel_BuiltIn_Database&".xls)",INDIRECT($F$9)) -> FLORIANOPOLIS | Q8: =TEXT(Import.DataBase,"mm-aa")&IF(DESONERACAO="Sim"," (DES.)"," (N DES.)") -> 01-22 (N DES.) | R8: =IF(TIPOORCAMENTO="Licitado",Import.empresa,Import.DescLote) -> Rua: Higino João Pio, S/N - Estaleirinho | S8: =IF(TIPOORCAMENTO="Licitado",Import.RegimeExecução,Import.Município) -> Balneário Camboriú/SC | V8: =IF(TIPOORCAMENTO="Licitado","",TEXT(F5,"0,00%")) -> 20,34% | W8: =IF(TIPOORCAMENTO="Licitado","",TEXT(G5,"0,00%")) -> 15,45% | X8: =IF(TIPOORCAMENTO="Licitado",Import.CTEF,TEXT(H5,"0,00%")) -> 0,00% | Y8: RECURSO | Z8: SGL RECURSO | AE8: Custo Unitáro | AF8: TRUE
F9: =IF(LEN(INFO("release"))>5,"'Referência "&Excel_BuiltIn_Database&".xls'#Banco.$d$3","'[Referência "&Excel_BuiltIn_Database&".xls]Banco'!$d$3") -> '[Referência 01-2022.xls]Banco'!$d$3 | AE9: BDI | AF9: TRUE
AC10: ERRO GERAL | AE10: Preço Unitário | AF10: TRUE
AC11: =IF(COUNTIF($AC$15:OFFSET($AC$90,-1,0),"DESCRIÇÃO")+COUNTIF($AC$15:OFFSET($AC$90,-1,0),"UNIDADE")+COUNTIF($AC$15:OFFSET($AC$90,-1,0),"SEM VALOR")>0,"NÃO OK","OK") -> OK | AE11: Preço Total | AF11: TRUE
AA12: Valores não Arredondados | AJ12: ↓ | AL12: ↓
A13: Nível E | B13: Save Nivel | C13: Nível C | D13: Altura | E13: n1 | F13: n2 | G13: n3 | H13: n4 | I13: n5 | J13: Czero | K13: Cnível | L13: ↓ | M13: Nível | N13: Nível Corrigido | O13: Item | P13: Fonte | Q13: Código | R13: Descrição | S13: Unidade | T13: Quantidade | U13: =IF(TIPOORCAMENTO="Licitado","","Custo Unitário (sem BDI) (R$)") -> Custo Unitário (sem BDI) (R$) | V13: =IF(TIPOORCAMENTO="Licitado","","BDI (%)") -> BDI (%) | W13: Preço Unitário (com BDI) (R$) | X13: Preço Total (R$) | Y13: ↓ | Z13: ↓ | AA13: Contrapartida (R$) | AB13: Outros (R$) | AC13: Erro de Dados | AD13: Lista Crono | AE13: Concatenação Fonte-Código | AF13: BancoDesloc | AG13: Custo Unitário Referência (R$) | AH13: =IF(TIPOORCAMENTO="LICITADO","Valor BDI Edital","Valor BDI") -> Valor BDI | AJ13: Quantidade | AL13: Preço Unitário (com BDI) (R$) | AM13: Preço Total Licit. (R$) | AN13: Preço Unitário Edital (R$)
A14: =CHOOSE(1+LOG(1+2*(ORÇAMENTO.Nivel="Meta")+4*(ORÇAMENTO.Nivel="Nível 2")+8*(ORÇAMENTO.Nivel="Nível 3")+16*(ORÇAMENTO.Nivel="Nível 4")+32*(ORÇAMENTO.Nivel="Serviço"),2),0,1,2,3,4,"S") -> S | B14: =IF(OR(C14="s",C14=0),OFFSET(B14,-1,0),C14) -> Save Nivel | C14: =IF(OFFSET(C14,-1,0)="L",1,IF(OFFSET(C14,-1,0)=1,2,IF(OR(A14="s",A14=0),"S",IF(AND(OFFSET(C14,-1,0)=2,A14=4),3,IF(AND(OR(OFFSET(C14,-1,0)="s",OFFSET(C14,-1,0)=0),A14<>"s",A14>OFFSET(B14,-1,0)),OFFSET(B14,-1,0),A14))))) -> S | D14: =IF(OR(C14="S",C14=0),0,IF(ISERROR(K14),J14,SMALL(J14:K14,1))) -> 0 | E14: =IF($C14=1,OFFSET(E14,-1,0)+MAX(1,COUNTIF(QCI!$A$13:$A$24,OFFSET(ORÇAMENTO!E14,-1,0))),OFFSET(E14,-1,0)) -> n1 | F14: =IF($C14=1,0,IF($C14=2,OFFSET(F14,-1,0)+1,OFFSET(F14,-1,0))) -> n2 | G14: =IF(AND($C14<=2,$C14<>0),0,IF($C14=3,OFFSET(G14,-1,0)+1,OFFSET(G14,-1,0))) -> n3 | H14: =IF(AND($C14<=3,$C14<>0),0,IF($C14=4,OFFSET(H14,-1,0)+1,OFFSET(H14,-1,0))) -> n4 | I14: =IF(AND($C14<=4,$C14<>0),0,IF(AND($C14="S",$X14>0),OFFSET(I14,-1,0)+1,OFFSET(I14,-1,0))) -> n5 | J14: =IF(OR($C14="S",$C14=0),0,MATCH(0,OFFSET($D14,1,$C14,ROW($C$90)-ROW($C14)),0)) -> 0 | K14: =IF(OR($C14="S",$C14=0),0,MATCH(OFFSET($D14,0,$C14)+IF($C14<>1,1,COUNTIF(QCI!$A$13:$A$24,ORÇAMENTO!E14)),OFFSET($D14,1,$C14,ROW($C$90)-ROW($C14)),0)) -> 0 | L14: =IF(OR($X14>0,$C14=1,$C14=2,$C14=3,$C14=4),"F","") ->  | M14: Serviço | N14: =CHOOSE(1+LOG(1+2*(C14=1)+4*(C14=2)+8*(C14=3)+16*(C14=4)+32*(C14="S"),2),"","Meta","Nível 2","Nível 3","Nível 4","Serviço") -> Serviço | O14: =IF(OR($C14=0,$L14=""),"-",CONCATENATE(E14&".",IF(AND($A$5>=2,$C14>=2),F14&".",""),IF(AND($A$5>=3,$C14>=3),G14&".",""),IF(AND($A$5>=4,$C14>=4),H14&".",""),IF($C14="S",I14&".",""))) -> - | P14: SINAPI | R14: =IF($C14="S",REFERENCIA.Descricao,"(digite a descrição aqui)") -> (Sem Código) | S14: =REFERENCIA.Unidade -> - | T14: =OFFSET(CÁLCULO!H$15,ROW($T14)-ROW(T$15),0) -> 0 | V14: BDI 1 | W14: =IF($C14="S",ROUND(IF(TIPOORCAMENTO="Proposto",ORÇAMENTO.CustoUnitario*(1+$AH14),ORÇAMENTO.PrecoUnitarioLicitado),15-13*$AF$10),0) -> 0 | X14: =IF($C14="S",VTOTAL1,IF($C14=0,0,ROUND(SomaAgrup,15-13*$AF$11))) -> 0 | Y14: RA | Z14: =IF(AND($C14="S",$X14>0),IF(ISBLANK($Y14),"RA",LEFT($Y14,2)),"") ->  | AA14: =IF($C14="S",IF($Z14="CP",$X14,IF($Z14="RA",(($X14)*QCI!$AA$3),0)),SomaAgrup) -> 0 | AB14: =IF($C14="S",IF($Z14="OU",ROUND($X14,2),0),SomaAgrup) -> 0 | AC14: =IF($N14="","",IF(ORÇAMENTO.Descricao="","DESCRIÇÃO",IF(AND($C14="S",ORÇAMENTO.Unidade=""),"UNIDADE",IF($X14<0,"VALOR NEGATIVO",IF(OR(AND(TIPOORCAMENTO="Proposto",$AG14<>"",$AG14>0,ORÇAMENTO.CustoUnitario>$AG14),AND(TIPOORCAMENTO="LICITADO",ORÇAMENTO.PrecoUnitarioLicitado>$AN14)),"ACIMA REF.",""))))) ->  | AD14: =IF(C14<=CRONO.NivelExibicao,MAX($AD$15:OFFSET(AD14,-1,0))+IF($C14<>1,1,MAX(1,COUNTIF(QCI!$A$13:$A$24,OFFSET($E14,-1,0)))),"") ->  | AE14: =IF(AND($C14="S",ORÇAMENTO.CodBarra<>""),IF(ORÇAMENTO.Fonte="",ORÇAMENTO.CodBarra,CONCATENATE(ORÇAMENTO.Fonte," ",ORÇAMENTO.CodBarra))) -> FALSE | AF14: =IF(ISERROR(INDIRECT(ORÇAMENTO.BancoRef)),"(abra o arquivo 'Referência "&Excel_BuiltIn_Database&".xls)",IF(OR($C14<>"S",ORÇAMENTO.CodBarra=""),"(Sem Código)",IF(ISERROR(MATCH($AE14,INDIRECT(ORÇAMENTO.BancoRef),0)),"(Código não identificado nas referências)",MATCH($AE14,INDIRECT(ORÇAMENTO.BancoRef),0)))) -> (Sem Código) | AG14: =ROUND(IF(DESONERACAO="sim",REFERENCIA.Desonerado,REFERENCIA.NaoDesonerado),2) -> 0 | AH14: =ROUND(IF(ISNUMBER(ORÇAMENTO.OpcaoBDI),ORÇAMENTO.OpcaoBDI,IF(LEFT(ORÇAMENTO.OpcaoBDI,3)="BDI",HLOOKUP(ORÇAMENTO.OpcaoBDI,$F$4:$H$5,2,FALSE),0)),15-11*$AF$9) -> 0.2034 | AM14: =$X14 -> 0 | AN14: =ROUND(ORÇAMENTO.CustoUnitario*(1+$AH14),2) -> 0
A15: 0 | C15: L | D15: =COUNTA(OFFSET(D15,1,0):D$90) -> 74 | E15: 0 | L15: F | M15: =IF(TIPOORCAMENTO="LICITADO","CTEF","LOTE") -> LOTE | N15: =IF(TIPOORCAMENTO="LICITADO","CTEF","LOTE") -> LOTE | O15: =Import.DescLote -> Rua: Higino João Pio, S/N - Estaleirinho | X15: =SUMIF(OFFSET($C15,1,0,ROW(X90)-ROW(X15)-1),"S",OFFSET(X15,1,0,ROW(X90)-ROW(X15)-1)) -> 1338708.88 | Z15: =IF(AND($C15="S",$X15>0),LEFT($Y15,2),"") ->  | AA15: =SUMIF(OFFSET($C15,1,0,ROW(AA90)-ROW(AA15)-1),"S",OFFSET(AA15,1,0,ROW(AA90)-ROW(AA15)-1)) -> 1338708.88 | AB15: =SUMIF(OFFSET($C15,1,0,ROW(AB90)-ROW(AB15)-1),"S",OFFSET(AB15,1,0,ROW(AB90)-ROW(AB15)-1)) -> 0 | AM15: 1338708.88
A16: =CHOOSE(1+LOG(1+2*(ORÇAMENTO.Nivel="Meta")+4*(ORÇAMENTO.Nivel="Nível 2")+8*(ORÇAMENTO.Nivel="Nível 3")+16*(ORÇAMENTO.Nivel="Nível 4")+32*(ORÇAMENTO.Nivel="Serviço"),2),0,1,2,3,4,"S") -> 1 | B16: =IF(OR(C16="s",C16=0),OFFSET(B16,-1,0),C16) -> 1 | C16: =IF(OFFSET(C16,-1,0)="L",1,IF(OFFSET(C16,-1,0)=1,2,IF(OR(A16="s",A16=0),"S",IF(AND(OFFSET(C16,-1,0)=2,A16=4),3,IF(AND(OR(OFFSET(C16,-1,0)="s",OFFSET(C16,-1,0)=0),A16<>"s",A16>OFFSET(B16,-1,0)),OFFSET(B16,-1,0),A16))))) -> 1 | D16: =IF(OR(C16="S",C16=0),0,IF(ISERROR(K16),J16,SMALL(J16:K16,1))) -> 74 | E16: =IF($C16=1,OFFSET(E16,-1,0)+MAX(1,COUNTIF(QCI!$A$13:$A$24,OFFSET(ORÇAMENTO!E16,-1,0))),OFFSET(E16,-1,0)) -> 1 | F16: =IF($C16=1,0,IF($C16=2,OFFSET(F16,-1,0)+1,OFFSET(F16,-1,0))) -> 0 | G16: =IF(AND($C16<=2,$C16<>0),0,IF($C16=3,OFFSET(G16,-1,0)+1,OFFSET(G16,-1,0))) -> 0 | H16: =IF(AND($C16<=3,$C16<>0),0,IF($C16=4,OFFSET(H16,-1,0)+1,OFFSET(H16,-1,0))) -> 0 | I16: =IF(AND($C16<=4,$C16<>0),0,IF(AND($C16="S",$X16>0),OFFSET(I16,-1,0)+1,OFFSET(I16,-1,0))) -> 0 | J16: =IF(OR($C16="S",$C16=0),0,MATCH(0,OFFSET($D16,1,$C16,ROW($C$90)-ROW($C16)),0)) -> 74 | K16: =IF(OR($C16="S",$C16=0),0,MATCH(OFFSET($D16,0,$C16)+IF($C16<>1,1,COUNTIF(QCI!$A$13:$A$24,ORÇAMENTO!E16)),OFFSET($D16,1,$C16,ROW($C$90)-ROW($C16)),0)) ->  | L16: =IF(OR($X16>0,$C16=1,$C16=2,$C16=3,$C16=4),"F","") -> F | M16: Meta | N16: =CHOOSE(1+LOG(1+2*(C16=1)+4*(C16=2)+8*(C16=3)+16*(C16=4)+32*(C16="S"),2),"","Meta","Nível 2","Nível 3","Nível 4","Serviço") -> Meta | O16: =IF(OR($C16=0,$L16=""),"-",CONCATENATE(E16&".",IF(AND($A$5>=2,$C16>=2),F16&".",""),IF(AND($A$5>=3,$C16>=3),G16&".",""),IF(AND($A$5>=4,$C16>=4),H16&".",""),IF($C16="S",I16&".",""))) -> 1. | P16: SINAPI | R16: SERVIÇOS INICIAIS | S16: =REFERENCIA.Unidade -> - | T16: =OFFSET(CÁLCULO!H$15,ROW($T16)-ROW(T$15),0) -> 0 | V16: BDI 1 | W16: =IF($C16="S",ROUND(IF(TIPOORCAMENTO="Proposto",ORÇAMENTO.CustoUnitario*(1+$AH16),ORÇAMENTO.PrecoUnitarioLicitado),15-13*$AF$10),0) -> 0 | X16: =IF($C16="S",VTOTAL1,IF($C16=0,0,ROUND(SomaAgrup,15-13*$AF$11))) -> 1338708.88 | Y16: RA | Z16: =IF(AND($C16="S",$X16>0),IF(ISBLANK($Y16),"RA",LEFT($Y16,2)),"") ->  | AA16: =IF($C16="S",IF($Z16="CP",$X16,IF($Z16="RA",(($X16)*QCI!$AA$3),0)),SomaAgrup) -> 1338708.88 | AB16: =IF($C16="S",IF($Z16="OU",ROUND($X16,2),0),SomaAgrup) -> 0 | AC16: =IF($N16="","",IF(ORÇAMENTO.Descricao="","DESCRIÇÃO",IF(AND($C16="S",ORÇAMENTO.Unidade=""),"UNIDADE",IF($X16<0,"VALOR NEGATIVO",IF(OR(AND(TIPOORCAMENTO="Proposto",$AG16<>"",$AG16>0,ORÇAMENTO.CustoUnitario>$AG16),AND(TIPOORCAMENTO="LICITADO",ORÇAMENTO.PrecoUnitarioLicitado>$AN16)),"ACIMA REF.",""))))) ->  | AD16: =IF(C16<=CRONO.NivelExibicao,MAX($AD$15:OFFSET(AD16,-1,0))+IF($C16<>1,1,MAX(1,COUNTIF(QCI!$A$13:$A$24,OFFSET($E16,-1,0)))),"") -> 1 | AE16: =IF(AND($C16="S",ORÇAMENTO.CodBarra<>""),IF(ORÇAMENTO.Fonte="",ORÇAMENTO.CodBarra,CONCATENATE(ORÇAMENTO.Fonte," ",ORÇAMENTO.CodBarra))) -> FALSE | AF16: =IF(ISERROR(INDIRECT(ORÇAMENTO.BancoRef)),"(abra o arquivo 'Referência "&Excel_BuiltIn_Database&".xls)",IF(OR($C16<>"S",ORÇAMENTO.CodBarra=""),"(Sem Código)",IF(ISERROR(MATCH($AE16,INDIRECT(ORÇAMENTO.BancoRef),0)),"(Código não identificado nas referências)",MATCH($AE16,INDIRECT(ORÇAMENTO.BancoRef),0)))) -> (Sem Código) | AG16: =ROUND(IF(DESONERACAO="sim",REFERENCIA.Desonerado,REFERENCIA.NaoDesonerado),2) -> 0 | AH16: =ROUND(IF(ISNUMBER(ORÇAMENTO.OpcaoBDI),ORÇAMENTO.OpcaoBDI,IF(LEFT(ORÇAMENTO.OpcaoBDI,3)="BDI",HLOOKUP(ORÇAMENTO.OpcaoBDI,$F$4:$H$5,2,FALSE),0)),15-11*$AF$9) -> 0.2034 | AM16: 1338708.88 | AN16: =ROUND(ORÇAMENTO.CustoUnitario*(1+$AH16),2) -> 0
A17: 2 | B17: 2 | C17: 2 | D17: 4 | E17: =IF($C17=1,OFFSET(E17,-1,0)+MAX(1,COUNTIF(QCI!$A$13:$A$24,OFFSET(ORÇAMENTO!E17,-1,0))),OFFSET(E17,-1,0)) -> 1 | F17: 1 | G17: 0 | H17: 0 | I17: 0 | J17: =IF(OR($C17="S",$C17=0),0,MATCH(0,OFFSET($D17,1,$C17,ROW($C$90)-ROW($C17)),0)) -> 73 | K17: =IF(OR($C17="S",$C17=0),0,MATCH(OFFSET($D17,0,$C17)+IF($C17<>1,1,COUNTIF(QCI!$A$13:$A$24,ORÇAMENTO!E17)),OFFSET($D17,1,$C17,ROW($C$90)-ROW($C17)),0)) -> 4 | L17: F | M17: Nível 2 | N17: Nível 2 | O17: 1.1. | P17: SINAPI | R17: SERVIÇOS INICIAIS | S17: - | T17: =OFFSET(CÁLCULO!H$15,ROW($T17)-ROW(T$15),0) -> 0 | V17: BDI 1 | W17: =IF($C17="S",ROUND(IF(TIPOORCAMENTO="Proposto",ORÇAMENTO.CustoUnitario*(1+$AH17),ORÇAMENTO.PrecoUnitarioLicitado),15-13*$AF$10),0) -> 0 | X17: 14379.79 | Y17: RA | AA17: =IF($C17="S",IF($Z17="CP",$X17,IF($Z17="RA",(($X17)*QCI!$AA$3),0)),SomaAgrup) -> 14379.79 | AB17: 0 | AC17: =IF($N17="","",IF(ORÇAMENTO.Descricao="","DESCRIÇÃO",IF(AND($C17="S",ORÇAMENTO.Unidade=""),"UNIDADE",IF($X17<0,"VALOR NEGATIVO",IF(OR(AND(TIPOORCAMENTO="Proposto",$AG17<>"",$AG17>0,ORÇAMENTO.CustoUnitario>$AG17),AND(TIPOORCAMENTO="LICITADO",ORÇAMENTO.PrecoUnitarioLicitado>$AN17)),"ACIMA REF.",""))))) ->  | AD17: =IF(C17<=CRONO.NivelExibicao,MAX($AD$15:OFFSET(AD17,-1,0))+IF($C17<>1,1,MAX(1,COUNTIF(QCI!$A$13:$A$24,OFFSET($E17,-1,0)))),"") -> 2 | AE17: =IF(AND($C17="S",ORÇAMENTO.CodBarra<>""),IF(ORÇAMENTO.Fonte="",ORÇAMENTO.CodBarra,CONCATENATE(ORÇAMENTO.Fonte," ",ORÇAMENTO.CodBarra))) -> FALSE | AF17: =IF(ISERROR(INDIRECT(ORÇAMENTO.BancoRef)),"(abra o arquivo 'Referência "&Excel_BuiltIn_Database&".xls)",IF(OR($C17<>"S",ORÇAMENTO.CodBarra=""),"(Sem Código)",IF(ISERROR(MATCH($AE17,INDIRECT(ORÇAMENTO.BancoRef),0)),"(Código não identificado nas referências)",MATCH($AE17,INDIRECT(ORÇAMENTO.BancoRef),0)))) -> (Sem Código) | AG17: 0 | AH17: 0.2034 | AM17: 14379.79 | AN17: 0
A18: S | B18: 2 | C18: S | D18: 0 | E18: =IF($C18=1,OFFSET(E18,-1,0)+MAX(1,COUNTIF(QCI!$A$13:$A$24,OFFSET(ORÇAMENTO!E18,-1,0))),OFFSET(E18,-1,0)) -> 1 | F18: 1 | G18: 0 | H18: 0 | I18: 1 | J18: =IF(OR($C18="S",$C18=0),0,MATCH(0,OFFSET($D18,1,$C18,ROW($C$90)-ROW($C18)),0)) -> 0 | K18: =IF(OR($C18="S",$C18=0),0,MATCH(OFFSET($D18,0,$C18)+IF($C18<>1,1,COUNTIF(QCI!$A$13:$A$24,ORÇAMENTO!E18)),OFFSET($D18,1,$C18,ROW($C$90)-ROW($C18)),0)) -> 0 | L18: F | M18: Serviço | N18: Serviço | O18: 1.1.0.1. | P18: Composição | Q18: 06 | R18: =IF($C18="S",REFERENCIA.Descricao,"(digite a descrição aqui)") -> PLACA DE OBRA EM CHAPA DE AÇO GALVANIZADO (REF. SINAPI-C 74209/14 DE 01/20220) | S18: UN | T18: =OFFSET(CÁLCULO!H$15,ROW($T18)-ROW(T$15),0) -> 3 | U18: =AG18 -> 330.27 | V18: BDI 1 | W18: =IF($C18="S",ROUND(IF(TIPOORCAMENTO="Proposto",ORÇAMENTO.CustoUnitario*(1+$AH18),ORÇAMENTO.PrecoUnitarioLicitado),15-13*$AF$10),0) -> 397.45 | X18: 1192.35 | Y18: RA | Z18: RA | AA18: =IF($C18="S",IF($Z18="CP",$X18,IF($Z18="RA",(($X18)*QCI!$AA$3),0)),SomaAgrup) -> 1192.35 | AB18: 0 | AC18: =IF($N18="","",IF(ORÇAMENTO.Descricao="","DESCRIÇÃO",IF(AND($C18="S",ORÇAMENTO.Unidade=""),"UNIDADE",IF($X18<0,"VALOR NEGATIVO",IF(OR(AND(TIPOORCAMENTO="Proposto",$AG18<>"",$AG18>0,ORÇAMENTO.CustoUnitario>$AG18),AND(TIPOORCAMENTO="LICITADO",ORÇAMENTO.PrecoUnitarioLicitado>$AN18)),"ACIMA REF.",""))))) ->  | AD18: =IF(C18<=CRONO.NivelExibicao,MAX($AD$15:OFFSET(AD18,-1,0))+IF($C18<>1,1,MAX(1,COUNTIF(QCI!$A$13:$A$24,OFFSET($E18,-1,0)))),"") ->  | AE18: =IF(AND($C18="S",ORÇAMENTO.CodBarra<>""),IF(ORÇAMENTO.Fonte="",ORÇAMENTO.CodBarra,CONCATENATE(ORÇAMENTO.Fonte," ",ORÇAMENTO.CodBarra))) -> Composição 06 | AF18: =IF(ISERROR(INDIRECT(ORÇAMENTO.BancoRef)),"(abra o arquivo 'Referência "&Excel_BuiltIn_Database&".xls)",IF(OR($C18<>"S",ORÇAMENTO.CodBarra=""),"(Sem Código)",IF(ISERROR(MATCH($AE18,INDIRECT(ORÇAMENTO.BancoRef),0)),"(Código não identificado nas referências)",MATCH($AE18,INDIRECT(ORÇAMENTO.BancoRef),0)))) -> 7 | AG18: 330.27 | AH18: 0.2034 | AM18: 1192.35 | AN18: 397.45
A19: =CHOOSE(1+LOG(1+2*(ORÇAMENTO.Nivel="Meta")+4*(ORÇAMENTO.Nivel="Nível 2")+8*(ORÇAMENTO.Nivel="Nível 3")+16*(ORÇAMENTO.Nivel="Nível 4")+32*(ORÇAMENTO.Nivel="Serviço"),2),0,1,2,3,4,"S") -> S | B19: =IF(OR(C19="s",C19=0),OFFSET(B19,-1,0),C19) -> 2 | C19: =IF(OFFSET(C19,-1,0)="L",1,IF(OFFSET(C19,-1,0)=1,2,IF(OR(A19="s",A19=0),"S",IF(AND(OFFSET(C19,-1,0)=2,A19=4),3,IF(AND(OR(OFFSET(C19,-1,0)="s",OFFSET(C19,-1,0)=0),A19<>"s",A19>OFFSET(B19,-1,0)),OFFSET(B19,-1,0),A19))))) -> S | D19: =IF(OR(C19="S",C19=0),0,IF(ISERROR(K19),J19,SMALL(J19:K19,1))) -> 0 | E19: =IF($C19=1,OFFSET(E19,-1,0)+MAX(1,COUNTIF(QCI!$A$13:$A$24,OFFSET(ORÇAMENTO!E19,-1,0))),OFFSET(E19,-1,0)) -> 1 | F19: =IF($C19=1,0,IF($C19=2,OFFSET(F19,-1,0)+1,OFFSET(F19,-1,0))) -> 1 | G19: =IF(AND($C19<=2,$C19<>0),0,IF($C19=3,OFFSET(G19,-1,0)+1,OFFSET(G19,-1,0))) -> 0 | H19: =IF(AND($C19<=3,$C19<>0),0,IF($C19=4,OFFSET(H19,-1,0)+1,OFFSET(H19,-1,0))) -> 0 | I19: =IF(AND($C19<=4,$C19<>0),0,IF(AND($C19="S",$X19>0),OFFSET(I19,-1,0)+1,OFFSET(I19,-1,0))) -> 2 | J19: =IF(OR($C19="S",$C19=0),0,MATCH(0,OFFSET($D19,1,$C19,ROW($C$90)-ROW($C19)),0)) -> 0 | K19: =IF(OR($C19="S",$C19=0),0,MATCH(OFFSET($D19,0,$C19)+IF($C19<>1,1,COUNTIF(QCI!$A$13:$A$24,ORÇAMENTO!E19)),OFFSET($D19,1,$C19,ROW($C$90)-ROW($C19)),0)) -> 0 | L19: =IF(OR($X19>0,$C19=1,$C19=2,$C19=3,$C19=4),"F","") -> F | M19: Serviço | N19: =CHOOSE(1+LOG(1+2*(C19=1)+4*(C19=2)+8*(C19=3)+16*(C19=4)+32*(C19="S"),2),"","Meta","Nível 2","Nível 3","Nível 4","Serviço") -> Serviço | O19: =IF(OR($C19=0,$L19=""),"-",CONCATENATE(E19&".",IF(AND($A$5>=2,$C19>=2),F19&".",""),IF(AND($A$5>=3,$C19>=3),G19&".",""),IF(AND($A$5>=4,$C19>=4),H19&".",""),IF($C19="S",I19&".",""))) -> 1.1.0.2. | P19: DEINFRA | Q19: 42522 | R19: =IF($C19="S",REFERENCIA.Descricao,"(digite a descrição aqui)") -> SONDAGEM A PERCUSSAO | S19: =REFERENCIA.Unidade -> M | T19: =OFFSET(CÁLCULO!H$15,ROW($T19)-ROW(T$15),0) -> 60 | U19: 63.9 | V19: BDI 1 | W19: =IF($C19="S",ROUND(IF(TIPOORCAMENTO="Proposto",ORÇAMENTO.CustoUnitario*(1+$AH19),ORÇAMENTO.PrecoUnitarioLicitado),15-13*$AF$10),0) -> 76.9 | X19: =IF($C19="S",VTOTAL1,IF($C19=0,0,ROUND(SomaAgrup,15-13*$AF$11))) -> 4614 | Y19: RA | Z19: =IF(AND($C19="S",$X19>0),IF(ISBLANK($Y19),"RA",LEFT($Y19,2)),"") -> RA | AA19: =IF($C19="S",IF($Z19="CP",$X19,IF($Z19="RA",(($X19)*QCI!$AA$3),0)),SomaAgrup) -> 4614 | AB19: =IF($C19="S",IF($Z19="OU",ROUND($X19,2),0),SomaAgrup) -> 0 | AC19: =IF($N19="","",IF(ORÇAMENTO.Descricao="","DESCRIÇÃO",IF(AND($C19="S",ORÇAMENTO.Unidade=""),"UNIDADE",IF($X19<0,"VALOR NEGATIVO",IF(OR(AND(TIPOORCAMENTO="Proposto",$AG19<>"",$AG19>0,ORÇAMENTO.CustoUnitario>$AG19),AND(TIPOORCAMENTO="LICITADO",ORÇAMENTO.PrecoUnitarioLicitado>$AN19)),"ACIMA REF.",""))))) ->  | AD19: =IF(C19<=CRONO.NivelExibicao,MAX($AD$15:OFFSET(AD19,-1,0))+IF($C19<>1,1,MAX(1,COUNTIF(QCI!$A$13:$A$24,OFFSET($E19,-1,0)))),"") ->  | AE19: =IF(AND($C19="S",ORÇAMENTO.CodBarra<>""),IF(ORÇAMENTO.Fonte="",ORÇAMENTO.CodBarra,CONCATENATE(ORÇAMENTO.Fonte," ",ORÇAMENTO.CodBarra))) -> DEINFRA 42522 | AF19: =IF(ISERROR(INDIRECT(ORÇAMENTO.BancoRef)),"(abra o arquivo 'Referência "&Excel_BuiltIn_Database&".xls)",IF(OR($C19<>"S",ORÇAMENTO.CodBarra=""),"(Sem Código)",IF(ISERROR(MATCH($AE19,INDIRECT(ORÇAMENTO.BancoRef),0)),"(Código não identificado nas referências)",MATCH($AE19,INDIRECT(ORÇAMENTO.BancoRef),0)))) -> 12428 | AG19: =ROUND(IF(DESONERACAO="sim",REFERENCIA.Desonerado,REFERENCIA.NaoDesonerado),2) -> 63.9 | AH19: =ROUND(IF(ISNUMBER(ORÇAMENTO.OpcaoBDI),ORÇAMENTO.OpcaoBDI,IF(LEFT(ORÇAMENTO.OpcaoBDI,3)="BDI",HLOOKUP(ORÇAMENTO.OpcaoBDI,$F$4:$H$5,2,FALSE),0)),15-11*$AF$9) -> 0.2034 | AM19: 4614 | AN19: =ROUND(ORÇAMENTO.CustoUnitario*(1+$AH19),2) -> 76.9
A20: =CHOOSE(1+LOG(1+2*(ORÇAMENTO.Nivel="Meta")+4*(ORÇAMENTO.Nivel="Nível 2")+8*(ORÇAMENTO.Nivel="Nível 3")+16*(ORÇAMENTO.Nivel="Nível 4")+32*(ORÇAMENTO.Nivel="Serviço"),2),0,1,2,3,4,"S") -> S | B20: =IF(OR(C20="s",C20=0),OFFSET(B20,-1,0),C20) -> 2 | C20: =IF(OFFSET(C20,-1,0)="L",1,IF(OFFSET(C20,-1,0)=1,2,IF(OR(A20="s",A20=0),"S",IF(AND(OFFSET(C20,-1,0)=2,A20=4),3,IF(AND(OR(OFFSET(C20,-1,0)="s",OFFSET(C20,-1,0)=0),A20<>"s",A20>OFFSET(B20,-1,0)),OFFSET(B20,-1,0),A20))))) -> S | D20: =IF(OR(C20="S",C20=0),0,IF(ISERROR(K20),J20,SMALL(J20:K20,1))) -> 0 | E20: =IF($C20=1,OFFSET(E20,-1,0)+MAX(1,COUNTIF(QCI!$A$13:$A$24,OFFSET(ORÇAMENTO!E20,-1,0))),OFFSET(E20,-1,0)) -> 1 | F20: =IF($C20=1,0,IF($C20=2,OFFSET(F20,-1,0)+1,OFFSET(F20,-1,0))) -> 1 | G20: =IF(AND($C20<=2,$C20<>0),0,IF($C20=3,OFFSET(G20,-1,0)+1,OFFSET(G20,-1,0))) -> 0 | H20: =IF(AND($C20<=3,$C20<>0),0,IF($C20=4,OFFSET(H20,-1,0)+1,OFFSET(H20,-1,0))) -> 0 | I20: =IF(AND($C20<=4,$C20<>0),0,IF(AND($C20="S",$X20>0),OFFSET(I20,-1,0)+1,OFFSET(I20,-1,0))) -> 3 | J20: =IF(OR($C20="S",$C20=0),0,MATCH(0,OFFSET($D20,1,$C20,ROW($C$90)-ROW($C20)),0)) -> 0 | K20: =IF(OR($C20="S",$C20=0),0,MATCH(OFFSET($D20,0,$C20)+IF($C20<>1,1,COUNTIF(QCI!$A$13:$A$24,ORÇAMENTO!E20)),OFFSET($D20,1,$C20,ROW($C$90)-ROW($C20)),0)) -> 0 | L20: =IF(OR($X20>0,$C20=1,$C20=2,$C20=3,$C20=4),"F","") -> F | M20: Serviço | N20: =CHOOSE(1+LOG(1+2*(C20=1)+4*(C20=2)+8*(C20=3)+16*(C20=4)+32*(C20="S"),2),"","Meta","Nível 2","Nível 3","Nível 4","Serviço") -> Serviço | O20: =IF(OR($C20=0,$L20=""),"-",CONCATENATE(E20&".",IF(AND($A$5>=2,$C20>=2),F20&".",""),IF(AND($A$5>=3,$C20>=3),G20&".",""),IF(AND($A$5>=4,$C20>=4),H20&".",""),IF($C20="S",I20&".",""))) -> 1.1.0.3. | P20: SINAPI | Q20: 99059 | R20: =IF($C20="S",REFERENCIA.Descricao,"(digite a descrição aqui)") -> LOCACAO CONVENCIONAL DE OBRA, UTILIZANDO GABARITO DE TÁBUAS CORRIDAS PONTALETADAS A CADA 2,00M - 2 UTILIZAÇÕES. AF_10/2018 | S20: =REFERENCIA.Unidade -> M | T20: =OFFSET(CÁLCULO!H$15,ROW($T20)-ROW(T$15),0) -> 128 | U20: 55.66 | V20: BDI 1 | W20: =IF($C20="S",ROUND(IF(TIPOORCAMENTO="Proposto",ORÇAMENTO.CustoUnitario*(1+$AH20),ORÇAMENTO.PrecoUnitarioLicitado),15-13*$AF$10),0) -> 66.98 | X20: =IF($C20="S",VTOTAL1,IF($C20=0,0,ROUND(SomaAgrup,15-13*$AF$11))) -> 8573.44 | Y20: RA | Z20: =IF(AND($C20="S",$X20>0),IF(ISBLANK($Y20),"RA",LEFT($Y20,2)),"") -> RA | AA20: =IF($C20="S",IF($Z20="CP",$X20,IF($Z20="RA",(($X20)*QCI!$AA$3),0)),SomaAgrup) -> 8573.44 | AB20: =IF($C20="S",IF($Z20="OU",ROUND($X20,2),0),SomaAgrup) -> 0 | AC20: =IF($N20="","",IF(ORÇAMENTO.Descricao="","DESCRIÇÃO",IF(AND($C20="S",ORÇAMENTO.Unidade=""),"UNIDADE",IF($X20<0,"VALOR NEGATIVO",IF(OR(AND(TIPOORCAMENTO="Proposto",$AG20<>"",$AG20>0,ORÇAMENTO.CustoUnitario>$AG20),AND(TIPOORCAMENTO="LICITADO",ORÇAMENTO.PrecoUnitarioLicitado>$AN20)),"ACIMA REF.",""))))) ->  | AD20: =IF(C20<=CRONO.NivelExibicao,MAX($AD$15:OFFSET(AD20,-1,0))+IF($C20<>1,1,MAX(1,COUNTIF(QCI!$A$13:$A$24,OFFSET($E20,-1,0)))),"") ->  | AE20: =IF(AND($C20="S",ORÇAMENTO.CodBarra<>""),IF(ORÇAMENTO.Fonte="",ORÇAMENTO.CodBarra,CONCATENATE(ORÇAMENTO.Fonte," ",ORÇAMENTO.CodBarra))) -> SINAPI 99059 | AF20: =IF(ISERROR(INDIRECT(ORÇAMENTO.BancoRef)),"(abra o arquivo 'Referência "&Excel_BuiltIn_Database&".xls)",IF(OR($C20<>"S",ORÇAMENTO.CodBarra=""),"(Sem Código)",IF(ISERROR(MATCH($AE20,INDIRECT(ORÇAMENTO.BancoRef),0)),"(Código não identificado nas referências)",MATCH($AE20,INDIRECT(ORÇAMENTO.BancoRef),0)))) -> 6569 | AG20: =ROUND(IF(DESONERACAO="sim",REFERENCIA.Desonerado,REFERENCIA.NaoDesonerado),2) -> 55.66 | AH20: =ROUND(IF(ISNUMBER(ORÇAMENTO.OpcaoBDI),ORÇAMENTO.OpcaoBDI,IF(LEFT(ORÇAMENTO.OpcaoBDI,3)="BDI",HLOOKUP(ORÇAMENTO.OpcaoBDI,$F$4:$H$5,2,FALSE),0)),15-11*$AF$9) -> 0.2034 | AM20: 8573.44 | AN20: =ROUND(ORÇAMENTO.CustoUnitario*(1+$AH20),2) -> 66.98
A21: =CHOOSE(1+LOG(1+2*(ORÇAMENTO.Nivel="Meta")+4*(ORÇAMENTO.Nivel="Nível 2")+8*(ORÇAMENTO.Nivel="Nível 3")+16*(ORÇAMENTO.Nivel="Nível 4")+32*(ORÇAMENTO.Nivel="Serviço"),2),0,1,2,3,4,"S") -> 2 | B21: =IF(OR(C21="s",C21=0),OFFSET(B21,-1,0),C21) -> 2 | C21: =IF(OFFSET(C21,-1,0)="L",1,IF(OFFSET(C21,-1,0)=1,2,IF(OR(A21="s",A21=0),"S",IF(AND(OFFSET(C21,-1,0)=2,A21=4),3,IF(AND(OR(OFFSET(C21,-1,0)="s",OFFSET(C21,-1,0)=0),A21<>"s",A21>OFFSET(B21,-1,0)),OFFSET(B21,-1,0),A21))))) -> 2 | D21: =IF(OR(C21="S",C21=0),0,IF(ISERROR(K21),J21,SMALL(J21:K21,1))) -> 3 | E21: =IF($C21=1,OFFSET(E21,-1,0)+MAX(1,COUNTIF(QCI!$A$13:$A$24,OFFSET(ORÇAMENTO!E21,-1,0))),OFFSET(E21,-1,0)) -> 1 | F21: =IF($C21=1,0,IF($C21=2,OFFSET(F21,-1,0)+1,OFFSET(F21,-1,0))) -> 2 | G21: =IF(AND($C21<=2,$C21<>0),0,IF($C21=3,OFFSET(G21,-1,0)+1,OFFSET(G21,-1,0))) -> 0 | H21: =IF(AND($C21<=3,$C21<>0),0,IF($C21=4,OFFSET(H21,-1,0)+1,OFFSET(H21,-1,0))) -> 0 | I21: =IF(AND($C21<=4,$C21<>0),0,IF(AND($C21="S",$X21>0),OFFSET(I21,-1,0)+1,OFFSET(I21,-1,0))) -> 0 | J21: =IF(OR($C21="S",$C21=0),0,MATCH(0,OFFSET($D21,1,$C21,ROW($C$90)-ROW($C21)),0)) -> 69 | K21: =IF(OR($C21="S",$C21=0),0,MATCH(OFFSET($D21,0,$C21)+IF($C21<>1,1,COUNTIF(QCI!$A$13:$A$24,ORÇAMENTO!E21)),OFFSET($D21,1,$C21,ROW($C$90)-ROW($C21)),0)) -> 3 | L21: =IF(OR($X21>0,$C21=1,$C21=2,$C21=3,$C21=4),"F","") -> F | M21: Nível 2 | N21: =CHOOSE(1+LOG(1+2*(C21=1)+4*(C21=2)+8*(C21=3)+16*(C21=4)+32*(C21="S"),2),"","Meta","Nível 2","Nível 3","Nível 4","Serviço") -> Nível 2 | O21: =IF(OR($C21=0,$L21=""),"-",CONCATENATE(E21&".",IF(AND($A$5>=2,$C21>=2),F21&".",""),IF(AND($A$5>=3,$C21>=3),G21&".",""),IF(AND($A$5>=4,$C21>=4),H21&".",""),IF($C21="S",I21&".",""))) -> 1.2. | P21: SINAPI | R21: DEMOLIÇÃO | S21: =REFERENCIA.Unidade -> - | T21: =OFFSET(CÁLCULO!H$15,ROW($T21)-ROW(T$15),0) -> 0 | U21: 0 | V21: BDI 1 | W21: =IF($C21="S",ROUND(IF(TIPOORCAMENTO="Proposto",ORÇAMENTO.CustoUnitario*(1+$AH21),ORÇAMENTO.PrecoUnitarioLicitado),15-13*$AF$10),0) -> 0 | X21: =IF($C21="S",VTOTAL1,IF($C21=0,0,ROUND(SomaAgrup,15-13*$AF$11))) -> 893.62 | Y21: RA | Z21: =IF(AND($C21="S",$X21>0),IF(ISBLANK($Y21),"RA",LEFT($Y21,2)),"") ->  | AA21: =IF($C21="S",IF($Z21="CP",$X21,IF($Z21="RA",(($X21)*QCI!$AA$3),0)),SomaAgrup) -> 893.62 | AB21: =IF($C21="S",IF($Z21="OU",ROUND($X21,2),0),SomaAgrup) -> 0 | AC21: =IF($N21="","",IF(ORÇAMENTO.Descricao="","DESCRIÇÃO",IF(AND($C21="S",ORÇAMENTO.Unidade=""),"UNIDADE",IF($X21<0,"VALOR NEGATIVO",IF(OR(AND(TIPOORCAMENTO="Proposto",$AG21<>"",$AG21>0,ORÇAMENTO.CustoUnitario>$AG21),AND(TIPOORCAMENTO="LICITADO",ORÇAMENTO.PrecoUnitarioLicitado>$AN21)),"ACIMA REF.",""))))) ->  | AD21: =IF(C21<=CRONO.NivelExibicao,MAX($AD$15:OFFSET(AD21,-1,0))+IF($C21<>1,1,MAX(1,COUNTIF(QCI!$A$13:$A$24,OFFSET($E21,-1,0)))),"") -> 3 | AE21: =IF(AND($C21="S",ORÇAMENTO.CodBarra<>""),IF(ORÇAMENTO.Fonte="",ORÇAMENTO.CodBarra,CONCATENATE(ORÇAMENTO.Fonte," ",ORÇAMENTO.CodBarra))) -> FALSE | AF21: =IF(ISERROR(INDIRECT(ORÇAMENTO.BancoRef)),"(abra o arquivo 'Referência "&Excel_BuiltIn_Database&".xls)",IF(OR($C21<>"S",ORÇAMENTO.CodBarra=""),"(Sem Código)",IF(ISERROR(MATCH($AE21,INDIRECT(ORÇAMENTO.BancoRef),0)),"(Código não identificado nas referências)",MATCH($AE21,INDIRECT(ORÇAMENTO.BancoRef),0)))) -> (Sem Código) | AG21: =ROUND(IF(DESONERACAO="sim",REFERENCIA.Desonerado,REFERENCIA.NaoDesonerado),2) -> 0 | AH21: =ROUND(IF(ISNUMBER(ORÇAMENTO.OpcaoBDI),ORÇAMENTO.OpcaoBDI,IF(LEFT(ORÇAMENTO.OpcaoBDI,3)="BDI",HLOOKUP(ORÇAMENTO.OpcaoBDI,$F$4:$H$5,2,FALSE),0)),15-11*$AF$9) -> 0.2034 | AM21: 893.62 | AN21: =ROUND(ORÇAMENTO.CustoUnitario*(1+$AH21),2) -> 0
A22: =CHOOSE(1+LOG(1+2*(ORÇAMENTO.Nivel="Meta")+4*(ORÇAMENTO.Nivel="Nível 2")+8*(ORÇAMENTO.Nivel="Nível 3")+16*(ORÇAMENTO.Nivel="Nível 4")+32*(ORÇAMENTO.Nivel="Serviço"),2),0,1,2,3,4,"S") -> S | B22: 2 | C22: S | D22: 0 | E22: =IF($C22=1,OFFSET(E22,-1,0)+MAX(1,COUNTIF(QCI!$A$13:$A$24,OFFSET(ORÇAMENTO!E22,-1,0))),OFFSET(E22,-1,0)) -> 1 | F22: 2 | G22: 0 | H22: 0 | I22: 1 | J22: =IF(OR($C22="S",$C22=0),0,MATCH(0,OFFSET($D22,1,$C22,ROW($C$90)-ROW($C22)),0)) -> 0 | K22: =IF(OR($C22="S",$C22=0),0,MATCH(OFFSET($D22,0,$C22)+IF($C22<>1,1,COUNTIF(QCI!$A$13:$A$24,ORÇAMENTO!E22)),OFFSET($D22,1,$C22,ROW($C$90)-ROW($C22)),0)) -> 0 | L22: F | M22: Serviço | N22: Serviço | O22: 1.2.0.1. | P22: SINAPI | Q22: 97629 | R22: =IF($C22="S",REFERENCIA.Descricao,"(digite a descrição aqui)") -> DEMOLIÇÃO DE LAJES, DE FORMA MECANIZADA COM MARTELETE, SEM REAPROVEITAMENTO. AF_12/2017 | S22: =REFERENCIA.Unidade -> M3 | T22: =OFFSET(CÁLCULO!H$15,ROW($T22)-ROW(T$15),0) -> 5.83 | U22: 120.88 | V22: BDI 1 | W22: =IF($C22="S",ROUND(IF(TIPOORCAMENTO="Proposto",ORÇAMENTO.CustoUnitario*(1+$AH22),ORÇAMENTO.PrecoUnitarioLicitado),15-13*$AF$10),0) -> 145.47 | X22: =IF($C22="S",VTOTAL1,IF($C22=0,0,ROUND(SomaAgrup,15-13*$AF$11))) -> 848.09 | Y22: RA | Z22: RA | AA22: =IF($C22="S",IF($Z22="CP",$X22,IF($Z22="RA",(($X22)*QCI!$AA$3),0)),SomaAgrup) -> 848.09 | AB22: =IF($C22="S",IF($Z22="OU",ROUND($X22,2),0),SomaAgrup) -> 0 | AC22: =IF($N22="","",IF(ORÇAMENTO.Descricao="","DESCRIÇÃO",IF(AND($C22="S",ORÇAMENTO.Unidade=""),"UNIDADE",IF($X22<0,"VALOR NEGATIVO",IF(OR(AND(TIPOORCAMENTO="Proposto",$AG22<>"",$AG22>0,ORÇAMENTO.CustoUnitario>$AG22),AND(TIPOORCAMENTO="LICITADO",ORÇAMENTO.PrecoUnitarioLicitado>$AN22)),"ACIMA REF.",""))))) ->  | AD22: =IF(C22<=CRONO.NivelExibicao,MAX($AD$15:OFFSET(AD22,-1,0))+IF($C22<>1,1,MAX(1,COUNTIF(QCI!$A$13:$A$24,OFFSET($E22,-1,0)))),"") ->  | AE22: =IF(AND($C22="S",ORÇAMENTO.CodBarra<>""),IF(ORÇAMENTO.Fonte="",ORÇAMENTO.CodBarra,CONCATENATE(ORÇAMENTO.Fonte," ",ORÇAMENTO.CodBarra))) -> SINAPI 97629 | AF22: =IF(ISERROR(INDIRECT(ORÇAMENTO.BancoRef)),"(abra o arquivo 'Referência "&Excel_BuiltIn_Database&".xls)",IF(OR($C22<>"S",ORÇAMENTO.CodBarra=""),"(Sem Código)",IF(ISERROR(MATCH($AE22,INDIRECT(ORÇAMENTO.BancoRef),0)),"(Código não identificado nas referências)",MATCH($AE22,INDIRECT(ORÇAMENTO.BancoRef),0)))) -> 6531 | AG22: =ROUND(IF(DESONERACAO="sim",REFERENCIA.Desonerado,REFERENCIA.NaoDesonerado),2) -> 120.88 | AH22: =ROUND(IF(ISNUMBER(ORÇAMENTO.OpcaoBDI),ORÇAMENTO.OpcaoBDI,IF(LEFT(ORÇAMENTO.OpcaoBDI,3)="BDI",HLOOKUP(ORÇAMENTO.OpcaoBDI,$F$4:$H$5,2,FALSE),0)),15-11*$AF$9) -> 0.2034 | AM22: 848.09 | AN22: =ROUND(ORÇAMENTO.CustoUnitario*(1+$AH22),2) -> 145.47
A23: =CHOOSE(1+LOG(1+2*(ORÇAMENTO.Nivel="Meta")+4*(ORÇAMENTO.Nivel="Nível 2")+8*(ORÇAMENTO.Nivel="Nível 3")+16*(ORÇAMENTO.Nivel="Nível 4")+32*(ORÇAMENTO.Nivel="Serviço"),2),0,1,2,3,4,"S") -> S | B23: 2 | C23: S | D23: 0 | E23: =IF($C23=1,OFFSET(E23,-1,0)+MAX(1,COUNTIF(QCI!$A$13:$A$24,OFFSET(ORÇAMENTO!E23,-1,0))),OFFSET(E23,-1,0)) -> 1 | F23: 2 | G23: 0 | H23: 0 | I23: 2 | J23: =IF(OR($C23="S",$C23=0),0,MATCH(0,OFFSET($D23,1,$C23,ROW($C$90)-ROW($C23)),0)) -> 0 | K23: =IF(OR($C23="S",$C23=0),0,MATCH(OFFSET($D23,0,$C23)+IF($C23<>1,1,COUNTIF(QCI!$A$13:$A$24,ORÇAMENTO!E23)),OFFSET($D23,1,$C23,ROW($C$90)-ROW($C23)),0)) -> 0 | L23: F | M23: Serviço | N23: Serviço | O23: 1.2.0.2. | P23: SINAPI | Q23: 100982 | R23: =IF($C23="S",REFERENCIA.Descricao,"(digite a descrição aqui)") -> CARGA, MANOBRA E DESCARGA DE ENTULHO EM CAMINHÃO BASCULANTE 10 M³ - CARGA COM ESCAVADEIRA HIDRÁULICA (CAÇAMBA DE 0,80 M³ / 111 HP) E DESCARGA LIVRE (UNIDADE: M3). AF_07/2020 | S23: =REFERENCIA.Unidade -> M3 | T23: =OFFSET(CÁLCULO!H$15,ROW($T23)-ROW(T$15),0) -> 5.83 | U23: 6.49 | V23: BDI 1 | W23: =IF($C23="S",ROUND(IF(TIPOORCAMENTO="Proposto",ORÇAMENTO.CustoUnitario*(1+$AH23),ORÇAMENTO.PrecoUnitarioLicitado),15-13*$AF$10),0) -> 7.81 | X23: =IF($C23="S",VTOTAL1,IF($C23=0,0,ROUND(SomaAgrup,15-13*$AF$11))) -> 45.53 | Y23: RA | Z23: RA | AA23: =IF($C23="S",IF($Z23="CP",$X23,IF($Z23="RA",(($X23)*QCI!$AA$3),0)),SomaAgrup) -> 45.53 | AB23: =IF($C23="S",IF($Z23="OU",ROUND($X23,2),0),SomaAgrup) -> 0 | AC23: =IF($N23="","",IF(ORÇAMENTO.Descricao="","DESCRIÇÃO",IF(AND($C23="S",ORÇAMENTO.Unidade=""),"UNIDADE",IF($X23<0,"VALOR NEGATIVO",IF(OR(AND(TIPOORCAMENTO="Proposto",$AG23<>"",$AG23>0,ORÇAMENTO.CustoUnitario>$AG23),AND(TIPOORCAMENTO="LICITADO",ORÇAMENTO.PrecoUnitarioLicitado>$AN23)),"ACIMA REF.",""))))) ->  | AD23: =IF(C23<=CRONO.NivelExibicao,MAX($AD$15:OFFSET(AD23,-1,0))+IF($C23<>1,1,MAX(1,COUNTIF(QCI!$A$13:$A$24,OFFSET($E23,-1,0)))),"") ->  | AE23: =IF(AND($C23="S",ORÇAMENTO.CodBarra<>""),IF(ORÇAMENTO.Fonte="",ORÇAMENTO.CodBarra,CONCATENATE(ORÇAMENTO.Fonte," ",ORÇAMENTO.CodBarra))) -> SINAPI 100982 | AF23: =IF(ISERROR(INDIRECT(ORÇAMENTO.BancoRef)),"(abra o arquivo 'Referência "&Excel_BuiltIn_Database&".xls)",IF(OR($C23<>"S",ORÇAMENTO.CodBarra=""),"(Sem Código)",IF(ISERROR(MATCH($AE23,INDIRECT(ORÇAMENTO.BancoRef),0)),"(Código não identificado nas referências)",MATCH($AE23,INDIRECT(ORÇAMENTO.BancoRef),0)))) -> 6651 | AG23: =ROUND(IF(DESONERACAO="sim",REFERENCIA.Desonerado,REFERENCIA.NaoDesonerado),2) -> 6.49 | AH23: =ROUND(IF(ISNUMBER(ORÇAMENTO.OpcaoBDI),ORÇAMENTO.OpcaoBDI,IF(LEFT(ORÇAMENTO.OpcaoBDI,3)="BDI",HLOOKUP(ORÇAMENTO.OpcaoBDI,$F$4:$H$5,2,FALSE),0)),15-11*$AF$9) -> 0.2034 | AM23: 45.53 | AN23: =ROUND(ORÇAMENTO.CustoUnitario*(1+$AH23),2) -> 7.81
A24: 2 | B24: 2 | C24: 2 | D24: 4 | E24: =IF($C24=1,OFFSET(E24,-1,0)+MAX(1,COUNTIF(QCI!$A$13:$A$24,OFFSET(ORÇAMENTO!E24,-1,0))),OFFSET(E24,-1,0)) -> 1 | F24: 3 | G24: 0 | H24: 0 | I24: 0 | J24: =IF(OR($C24="S",$C24=0),0,MATCH(0,OFFSET($D24,1,$C24,ROW($C$90)-ROW($C24)),0)) -> 66 | K24: =IF(OR($C24="S",$C24=0),0,MATCH(OFFSET($D24,0,$C24)+IF($C24<>1,1,COUNTIF(QCI!$A$13:$A$24,ORÇAMENTO!E24)),OFFSET($D24,1,$C24,ROW($C$90)-ROW($C24)),0)) -> 4 | L24: F | M24: Nível 2 | N24: Nível 2 | O24: 1.3. | P24: SINAPI | R24: MOVIMENTAÇÃO DE TERRA | S24: - | T24: =OFFSET(CÁLCULO!H$15,ROW($T24)-ROW(T$15),0) -> 0 | U24: 0 | V24: BDI 1 | W24: =IF($C24="S",ROUND(IF(TIPOORCAMENTO="Proposto",ORÇAMENTO.CustoUnitario*(1+$AH24),ORÇAMENTO.PrecoUnitarioLicitado),15-13*$AF$10),0) -> 0 | X24: 2350.56 | Y24: RA | AA24: =IF($C24="S",IF($Z24="CP",$X24,IF($Z24="RA",(($X24)*QCI!$AA$3),0)),SomaAgrup) -> 2350.56 | AB24: 0 | AC24: =IF($N24="","",IF(ORÇAMENTO.Descricao="","DESCRIÇÃO",IF(AND($C24="S",ORÇAMENTO.Unidade=""),"UNIDADE",IF($X24<0,"VALOR NEGATIVO",IF(OR(AND(TIPOORCAMENTO="Proposto",$AG24<>"",$AG24>0,ORÇAMENTO.CustoUnitario>$AG24),AND(TIPOORCAMENTO="LICITADO",ORÇAMENTO.PrecoUnitarioLicitado>$AN24)),"ACIMA REF.",""))))) ->  | AD24: =IF(C24<=CRONO.NivelExibicao,MAX($AD$15:OFFSET(AD24,-1,0))+IF($C24<>1,1,MAX(1,COUNTIF(QCI!$A$13:$A$24,OFFSET($E24,-1,0)))),"") -> 4 | AE24: =IF(AND($C24="S",ORÇAMENTO.CodBarra<>""),IF(ORÇAMENTO.Fonte="",ORÇAMENTO.CodBarra,CONCATENATE(ORÇAMENTO.Fonte," ",ORÇAMENTO.CodBarra))) -> FALSE | AF24: =IF(ISERROR(INDIRECT(ORÇAMENTO.BancoRef)),"(abra o arquivo 'Referência "&Excel_BuiltIn_Database&".xls)",IF(OR($C24<>"S",ORÇAMENTO.CodBarra=""),"(Sem Código)",IF(ISERROR(MATCH($AE24,INDIRECT(ORÇAMENTO.BancoRef),0)),"(Código não identificado nas referências)",MATCH($AE24,INDIRECT(ORÇAMENTO.BancoRef),0)))) -> (Sem Código) | AG24: 0 | AH24: 0.2034 | AM24: 2350.56 | AN24: 0
A25: S | B25: 2 | C25: S | D25: 0 | E25: =IF($C25=1,OFFSET(E25,-1,0)+MAX(1,COUNTIF(QCI!$A$13:$A$24,OFFSET(ORÇAMENTO!E25,-1,0))),OFFSET(E25,-1,0)) -> 1 | F25: 3 | G25: 0 | H25: 0 | I25: 1 | J25: =IF(OR($C25="S",$C25=0),0,MATCH(0,OFFSET($D25,1,$C25,ROW($C$90)-ROW($C25)),0)) -> 0 | K25: =IF(OR($C25="S",$C25=0),0,MATCH(OFFSET($D25,0,$C25)+IF($C25<>1,1,COUNTIF(QCI!$A$13:$A$24,ORÇAMENTO!E25)),OFFSET($D25,1,$C25,ROW($C$90)-ROW($C25)),0)) -> 0 | L25: F | M25: Serviço | N25: Serviço | O25: 1.3.0.1. | P25: SINAPI | Q25: 90082 | R25: =IF($C25="S",REFERENCIA.Descricao,"(digite a descrição aqui)") -> ESCAVAÇÃO MECANIZADA DE VALA COM PROF. ATÉ 1,5 M (MÉDIA MONTANTE E JUSANTE/UMA COMPOSIÇÃO POR TRECHO), ESCAVADEIRA (0,8 M3), LARG. DE 1,5 M A 2,5 M, EM SOLO DE 1A CATEGORIA, EM LOCAIS COM ALTO NÍVEL DE INTERFERÊNCIA. AF_02/2021 | S25: M3 | T25: =OFFSET(CÁLCULO!H$15,ROW($T25)-ROW(T$15),0) -> 82.45 | U25: 9.74 | V25: BDI 1 | W25: =IF($C25="S",ROUND(IF(TIPOORCAMENTO="Proposto",ORÇAMENTO.CustoUnitario*(1+$AH25),ORÇAMENTO.PrecoUnitarioLicitado),15-13*$AF$10),0) -> 11.72 | X25: 966.31 | Y25: RA | Z25: RA | AA25: =IF($C25="S",IF($Z25="CP",$X25,IF($Z25="RA",(($X25)*QCI!$AA$3),0)),SomaAgrup) -> 966.31 | AB25: 0 | AC25: =IF($N25="","",IF(ORÇAMENTO.Descricao="","DESCRIÇÃO",IF(AND($C25="S",ORÇAMENTO.Unidade=""),"UNIDADE",IF($X25<0,"VALOR NEGATIVO",IF(OR(AND(TIPOORCAMENTO="Proposto",$AG25<>"",$AG25>0,ORÇAMENTO.CustoUnitario>$AG25),AND(TIPOORCAMENTO="LICITADO",ORÇAMENTO.PrecoUnitarioLicitado>$AN25)),"ACIMA REF.",""))))) ->  | AD25: =IF(C25<=CRONO.NivelExibicao,MAX($AD$15:OFFSET(AD25,-1,0))+IF($C25<>1,1,MAX(1,COUNTIF(QCI!$A$13:$A$24,OFFSET($E25,-1,0)))),"") ->  | AE25: =IF(AND($C25="S",ORÇAMENTO.CodBarra<>""),IF(ORÇAMENTO.Fonte="",ORÇAMENTO.CodBarra,CONCATENATE(ORÇAMENTO.Fonte," ",ORÇAMENTO.CodBarra))) -> SINAPI 90082 | AF25: =IF(ISERROR(INDIRECT(ORÇAMENTO.BancoRef)),"(abra o arquivo 'Referência "&Excel_BuiltIn_Database&".xls)",IF(OR($C25<>"S",ORÇAMENTO.CodBarra=""),"(Sem Código)",IF(ISERROR(MATCH($AE25,INDIRECT(ORÇAMENTO.BancoRef),0)),"(Código não identificado nas referências)",MATCH($AE25,INDIRECT(ORÇAMENTO.BancoRef),0)))) -> 5315 | AG25: 9.74 | AH25: 0.2034 | AM25: 966.31 | AN25: 11.72
A26: S | B26: 2 | C26: S | D26: 0 | E26: =IF($C26=1,OFFSET(E26,-1,0)+MAX(1,COUNTIF(QCI!$A$13:$A$24,OFFSET(ORÇAMENTO!E26,-1,0))),OFFSET(E26,-1,0)) -> 1 | F26: 3 | G26: 0 | H26: 0 | I26: 2 | J26: =IF(OR($C26="S",$C26=0),0,MATCH(0,OFFSET($D26,1,$C26,ROW($C$90)-ROW($C26)),0)) -> 0 | K26: =IF(OR($C26="S",$C26=0),0,MATCH(OFFSET($D26,0,$C26)+IF($C26<>1,1,COUNTIF(QCI!$A$13:$A$24,ORÇAMENTO!E26)),OFFSET($D26,1,$C26,ROW($C$90)-ROW($C26)),0)) -> 0 | L26: F | M26: Serviço | N26: Serviço | O26: 1.3.0.2. | P26: SINAPI | Q26: 93382 | R26: =IF($C26="S",REFERENCIA.Descricao,"(digite a descrição aqui)") -> REATERRO MANUAL DE VALAS COM COMPACTAÇÃO MECANIZADA. AF_04/2016 | S26: M3 | T26: =OFFSET(CÁLCULO!H$15,ROW($T26)-ROW(T$15),0) -> 26.34 | U26: 31.06 | V26: BDI 1 | W26: =IF($C26="S",ROUND(IF(TIPOORCAMENTO="Proposto",ORÇAMENTO.CustoUnitario*(1+$AH26),ORÇAMENTO.PrecoUnitarioLicitado),15-13*$AF$10),0) -> 37.38 | X26: 984.59 | Y26: RA | Z26: RA | AA26: =IF($C26="S",IF($Z26="CP",$X26,IF($Z26="RA",(($X26)*QCI!$AA$3),0)),SomaAgrup) -> 984.59 | AB26: 0 | AC26: =IF($N26="","",IF(ORÇAMENTO.Descricao="","DESCRIÇÃO",IF(AND($C26="S",ORÇAMENTO.Unidade=""),"UNIDADE",IF($X26<0,"VALOR NEGATIVO",IF(OR(AND(TIPOORCAMENTO="Proposto",$AG26<>"",$AG26>0,ORÇAMENTO.CustoUnitario>$AG26),AND(TIPOORCAMENTO="LICITADO",ORÇAMENTO.PrecoUnitarioLicitado>$AN26)),"ACIMA REF.",""))))) ->  | AD26: =IF(C26<=CRONO.NivelExibicao,MAX($AD$15:OFFSET(AD26,-1,0))+IF($C26<>1,1,MAX(1,COUNTIF(QCI!$A$13:$A$24,OFFSET($E26,-1,0)))),"") ->  | AE26: =IF(AND($C26="S",ORÇAMENTO.CodBarra<>""),IF(ORÇAMENTO.Fonte="",ORÇAMENTO.CodBarra,CONCATENATE(ORÇAMENTO.Fonte," ",ORÇAMENTO.CodBarra))) -> SINAPI 93382 | AF26: =IF(ISERROR(INDIRECT(ORÇAMENTO.BancoRef)),"(abra o arquivo 'Referência "&Excel_BuiltIn_Database&".xls)",IF(OR($C26<>"S",ORÇAMENTO.CodBarra=""),"(Sem Código)",IF(ISERROR(MATCH($AE26,INDIRECT(ORÇAMENTO.BancoRef),0)),"(Código não identificado nas referências)",MATCH($AE26,INDIRECT(ORÇAMENTO.BancoRef),0)))) -> 5436 | AG26: 31.06 | AH26: 0.2034 | AM26: 984.59 | AN26: 37.38
A27: S | B27: 2 | C27: S | D27: 0 | E27: =IF($C27=1,OFFSET(E27,-1,0)+MAX(1,COUNTIF(QCI!$A$13:$A$24,OFFSET(ORÇAMENTO!E27,-1,0))),OFFSET(E27,-1,0)) -> 1 | F27: 3 | G27: 0 | H27: 0 | I27: 3 | J27: =IF(OR($C27="S",$C27=0),0,MATCH(0,OFFSET($D27,1,$C27,ROW($C$90)-ROW($C27)),0)) -> 0 | K27: =IF(OR($C27="S",$C27=0),0,MATCH(OFFSET($D27,0,$C27)+IF($C27<>1,1,COUNTIF(QCI!$A$13:$A$24,ORÇAMENTO!E27)),OFFSET($D27,1,$C27,ROW($C$90)-ROW($C27)),0)) -> 0 | L27: F | M27: Serviço | N27: Serviço | O27: 1.3.0.3. | P27: SINAPI | Q27: 96624 | R27: LASTRO COM MATERIAL GRANULAR, ESPESSURA DE *10 CM* | S27: M3 | T27: =OFFSET(CÁLCULO!H$15,ROW($T27)-ROW(T$15),0) -> 2.59 | U27: 128.23 | V27: BDI 1 | W27: =IF($C27="S",ROUND(IF(TIPOORCAMENTO="Proposto",ORÇAMENTO.CustoUnitario*(1+$AH27),ORÇAMENTO.PrecoUnitarioLicitado),15-13*$AF$10),0) -> 154.31 | X27: 399.66 | Y27: RA | Z27: RA | AA27: =IF($C27="S",IF($Z27="CP",$X27,IF($Z27="RA",(($X27)*QCI!$AA$3),0)),SomaAgrup) -> 399.66 | AB27: 0 | AC27: =IF($N27="","",IF(ORÇAMENTO.Descricao="","DESCRIÇÃO",IF(AND($C27="S",ORÇAMENTO.Unidade=""),"UNIDADE",IF($X27<0,"VALOR NEGATIVO",IF(OR(AND(TIPOORCAMENTO="Proposto",$AG27<>"",$AG27>0,ORÇAMENTO.CustoUnitario>$AG27),AND(TIPOORCAMENTO="LICITADO",ORÇAMENTO.PrecoUnitarioLicitado>$AN27)),"ACIMA REF.",""))))) ->  | AD27: =IF(C27<=CRONO.NivelExibicao,MAX($AD$15:OFFSET(AD27,-1,0))+IF($C27<>1,1,MAX(1,COUNTIF(QCI!$A$13:$A$24,OFFSET($E27,-1,0)))),"") ->  | AE27: =IF(AND($C27="S",ORÇAMENTO.CodBarra<>""),IF(ORÇAMENTO.Fonte="",ORÇAMENTO.CodBarra,CONCATENATE(ORÇAMENTO.Fonte," ",ORÇAMENTO.CodBarra))) -> SINAPI 96624 | AF27: =IF(ISERROR(INDIRECT(ORÇAMENTO.BancoRef)),"(abra o arquivo 'Referência "&Excel_BuiltIn_Database&".xls)",IF(OR($C27<>"S",ORÇAMENTO.CodBarra=""),"(Sem Código)",IF(ISERROR(MATCH($AE27,INDIRECT(ORÇAMENTO.BancoRef),0)),"(Código não identificado nas referências)",MATCH($AE27,INDIRECT(ORÇAMENTO.BancoRef),0)))) -> 2163 | AG27: 128.23 | AH27: 0.2034 | AM27: 399.66 | AN27: 154.31
A28: 2 | B28: 2 | C28: 2 | D28: 12 | E28: =IF($C28=1,OFFSET(E28,-1,0)+MAX(1,COUNTIF(QCI!$A$13:$A$24,OFFSET(ORÇAMENTO!E28,-1,0))),OFFSET(E28,-1,0)) -> 1 | F28: 4 | G28: 0 | H28: 0 | I28: 0 | J28: =IF(OR($C28="S",$C28=0),0,MATCH(0,OFFSET($D28,1,$C28,ROW($C$90)-ROW($C28)),0)) -> 62 | K28: =IF(OR($C28="S",$C28=0),0,MATCH(OFFSET($D28,0,$C28)+IF($C28<>1,1,COUNTIF(QCI!$A$13:$A$24,ORÇAMENTO!E28)),OFFSET($D28,1,$C28,ROW($C$90)-ROW($C28)),0)) -> 12 | L28: F | M28: Nível 2 | N28: Nível 2 | O28: 1.4. | P28: SINAPI | R28: INFRAESTRUTURA | S28: - | T28: =OFFSET(CÁLCULO!H$15,ROW($T28)-ROW(T$15),0) -> 0 | U28: 0 | V28: BDI 1 | W28: =IF($C28="S",ROUND(IF(TIPOORCAMENTO="Proposto",ORÇAMENTO.CustoUnitario*(1+$AH28),ORÇAMENTO.PrecoUnitarioLicitado),15-13*$AF$10),0) -> 0 | X28: 83660.49 | Y28: RA | AA28: =IF($C28="S",IF($Z28="CP",$X28,IF($Z28="RA",(($X28)*QCI!$AA$3),0)),SomaAgrup) -> 83660.49 | AB28: 0 | AC28: =IF($N28="","",IF(ORÇAMENTO.Descricao="","DESCRIÇÃO",IF(AND($C28="S",ORÇAMENTO.Unidade=""),"UNIDADE",IF($X28<0,"VALOR NEGATIVO",IF(OR(AND(TIPOORCAMENTO="Proposto",$AG28<>"",$AG28>0,ORÇAMENTO.CustoUnitario>$AG28),AND(TIPOORCAMENTO="LICITADO",ORÇAMENTO.PrecoUnitarioLicitado>$AN28)),"ACIMA REF.",""))))) ->  | AD28: =IF(C28<=CRONO.NivelExibicao,MAX($AD$15:OFFSET(AD28,-1,0))+IF($C28<>1,1,MAX(1,COUNTIF(QCI!$A$13:$A$24,OFFSET($E28,-1,0)))),"") -> 5 | AE28: =IF(AND($C28="S",ORÇAMENTO.CodBarra<>""),IF(ORÇAMENTO.Fonte="",ORÇAMENTO.CodBarra,CONCATENATE(ORÇAMENTO.Fonte," ",ORÇAMENTO.CodBarra))) -> FALSE | AF28: =IF(ISERROR(INDIRECT(ORÇAMENTO.BancoRef)),"(abra o arquivo 'Referência "&Excel_BuiltIn_Database&".xls)",IF(OR($C28<>"S",ORÇAMENTO.CodBarra=""),"(Sem Código)",IF(ISERROR(MATCH($AE28,INDIRECT(ORÇAMENTO.BancoRef),0)),"(Código não identificado nas referências)",MATCH($AE28,INDIRECT(ORÇAMENTO.BancoRef),0)))) -> (Sem Código) | AG28: 0 | AH28: 0.2034 | AM28: 83660.49 | AN28: 0
A29: 3 | B29: 3 | C29: 3 | D29: 6 | E29: =IF($C29=1,OFFSET(E29,-1,0)+MAX(1,COUNTIF(QCI!$A$13:$A$24,OFFSET(ORÇAMENTO!E29,-1,0))),OFFSET(E29,-1,0)) -> 1 | F29: 4 | G29: 1 | H29: 0 | I29: 0 | J29: =IF(OR($C29="S",$C29=0),0,MATCH(0,OFFSET($D29,1,$C29,ROW($C$90)-ROW($C29)),0)) -> 11 | K29: =IF(OR($C29="S",$C29=0),0,MATCH(OFFSET($D29,0,$C29)+IF($C29<>1,1,COUNTIF(QCI!$A$13:$A$24,ORÇAMENTO!E29)),OFFSET($D29,1,$C29,ROW($C$90)-ROW($C29)),0)) -> 6 | L29: F | M29: Nível 3 | N29: Nível 3 | O29: 1.4.1. | P29: SINAPI | R29: Sapatas e pilaretes | S29: - | T29: =OFFSET(CÁLCULO!H$15,ROW($T29)-ROW(T$15),0) -> 0 | U29: 0 | V29: BDI 1 | W29: =IF($C29="S",ROUND(IF(TIPOORCAMENTO="Proposto",ORÇAMENTO.CustoUnitario*(1+$AH29),ORÇAMENTO.PrecoUnitarioLicitado),15-13*$AF$10),0) -> 0 | X29: 54488.12 | Y29: RA | AA29: =IF($C29="S",IF($Z29="CP",$X29,IF($Z29="RA",(($X29)*QCI!$AA$3),0)),SomaAgrup) -> 54488.12 | AB29: 0 | AC29: =IF($N29="","",IF(ORÇAMENTO.Descricao="","DESCRIÇÃO",IF(AND($C29="S",ORÇAMENTO.Unidade=""),"UNIDADE",IF($X29<0,"VALOR NEGATIVO",IF(OR(AND(TIPOORCAMENTO="Proposto",$AG29<>"",$AG29>0,ORÇAMENTO.CustoUnitario>$AG29),AND(TIPOORCAMENTO="LICITADO",ORÇAMENTO.PrecoUnitarioLicitado>$AN29)),"ACIMA REF.",""))))) ->  | AD29: =IF(C29<=CRONO.NivelExibicao,MAX($AD$15:OFFSET(AD29,-1,0))+IF($C29<>1,1,MAX(1,COUNTIF(QCI!$A$13:$A$24,OFFSET($E29,-1,0)))),"") ->  | AE29: =IF(AND($C29="S",ORÇAMENTO.CodBarra<>""),IF(ORÇAMENTO.Fonte="",ORÇAMENTO.CodBarra,CONCATENATE(ORÇAMENTO.Fonte," ",ORÇAMENTO.CodBarra))) -> FALSE | AF29: =IF(ISERROR(INDIRECT(ORÇAMENTO.BancoRef)),"(abra o arquivo 'Referência "&Excel_BuiltIn_Database&".xls)",IF(OR($C29<>"S",ORÇAMENTO.CodBarra=""),"(Sem Código)",IF(ISERROR(MATCH($AE29,INDIRECT(ORÇAMENTO.BancoRef),0)),"(Código não identificado nas referências)",MATCH($AE29,INDIRECT(ORÇAMENTO.BancoRef),0)))) -> (Sem Código) | AG29: 0 | AH29: 0.2034 | AM29: 54488.12 | AN29: 0
A30: S | B30: 3 | C30: S | D30: 0 | E30: =IF($C30=1,OFFSET(E30,-1,0)+MAX(1,COUNTIF(QCI!$A$13:$A$24,OFFSET(ORÇAMENTO!E30,-1,0))),OFFSET(E30,-1,0)) -> 1 | F30: 4 | G30: 1 | H30: 0 | I30: 1 | J30: =IF(OR($C30="S",$C30=0),0,MATCH(0,OFFSET($D30,1,$C30,ROW($C$90)-ROW($C30)),0)) -> 0 | K30: =IF(OR($C30="S",$C30=0),0,MATCH(OFFSET($D30,0,$C30)+IF($C30<>1,1,COUNTIF(QCI!$A$13:$A$24,ORÇAMENTO!E30)),OFFSET($D30,1,$C30,ROW($C$90)-ROW($C30)),0)) -> 0 | L30: F | M30: Serviço | N30: Serviço | O30: 1.4.1.1. | P30: Composição | Q30: 09 | R30: =IF($C30="S",REFERENCIA.Descricao,"(digite a descrição aqui)") -> CONCRETAGEM DE SAPATAS, FCK 25 MPA, COM USO DE JERICA  LANÇAMENTO, ADENSAMENTO E ACABAMENTO. AF_06/2017 (REF SINAPI-C 96556) | S30: M3 | T30: =OFFSET(CÁLCULO!H$15,ROW($T30)-ROW(T$15),0) -> 19.4 | U30: 553.72 | V30: BDI 1 | W30: =IF($C30="S",ROUND(IF(TIPOORCAMENTO="Proposto",ORÇAMENTO.CustoUnitario*(1+$AH30),ORÇAMENTO.PrecoUnitarioLicitado),15-13*$AF$10),0) -> 666.35 | X30: 12927.19 | Y30: RA | Z30: RA | AA30: =IF($C30="S",IF($Z30="CP",$X30,IF($Z30="RA",(($X30)*QCI!$AA$3),0)),SomaAgrup) -> 12927.19 | AB30: 0 | AC30: =IF($N30="","",IF(ORÇAMENTO.Descricao="","DESCRIÇÃO",IF(AND($C30="S",ORÇAMENTO.Unidade=""),"UNIDADE",IF($X30<0,"VALOR NEGATIVO",IF(OR(AND(TIPOORCAMENTO="Proposto",$AG30<>"",$AG30>0,ORÇAMENTO.CustoUnitario>$AG30),AND(TIPOORCAMENTO="LICITADO",ORÇAMENTO.PrecoUnitarioLicitado>$AN30)),"ACIMA REF.",""))))) ->  | AD30: =IF(C30<=CRONO.NivelExibicao,MAX($AD$15:OFFSET(AD30,-1,0))+IF($C30<>1,1,MAX(1,COUNTIF(QCI!$A$13:$A$24,OFFSET($E30,-1,0)))),"") ->  | AE30: =IF(AND($C30="S",ORÇAMENTO.CodBarra<>""),IF(ORÇAMENTO.Fonte="",ORÇAMENTO.CodBarra,CONCATENATE(ORÇAMENTO.Fonte," ",ORÇAMENTO.CodBarra))) -> Composição 09 | AF30: =IF(ISERROR(INDIRECT(ORÇAMENTO.BancoRef)),"(abra o arquivo 'Referência "&Excel_BuiltIn_Database&".xls)",IF(OR($C30<>"S",ORÇAMENTO.CodBarra=""),"(Sem Código)",IF(ISERROR(MATCH($AE30,INDIRECT(ORÇAMENTO.BancoRef),0)),"(Código não identificado nas referências)",MATCH($AE30,INDIRECT(ORÇAMENTO.BancoRef),0)))) -> 10 | AG30: 553.72 | AH30: 0.2034 | AM30: 12927.19 | AN30: 666.35
A31: =CHOOSE(1+LOG(1+2*(ORÇAMENTO.Nivel="Meta")+4*(ORÇAMENTO.Nivel="Nível 2")+8*(ORÇAMENTO.Nivel="Nível 3")+16*(ORÇAMENTO.Nivel="Nível 4")+32*(ORÇAMENTO.Nivel="Serviço"),2),0,1,2,3,4,"S") -> S | B31: 3 | C31: S | D31: 0 | E31: =IF($C31=1,OFFSET(E31,-1,0)+MAX(1,COUNTIF(QCI!$A$13:$A$24,OFFSET(ORÇAMENTO!E31,-1,0))),OFFSET(E31,-1,0)) -> 1 | F31: 4 | G31: 1 | H31: 0 | I31: 2 | J31: =IF(OR($C31="S",$C31=0),0,MATCH(0,OFFSET($D31,1,$C31,ROW($C$90)-ROW($C31)),0)) -> 0 | K31: =IF(OR($C31="S",$C31=0),0,MATCH(OFFSET($D31,0,$C31)+IF($C31<>1,1,COUNTIF(QCI!$A$13:$A$24,ORÇAMENTO!E31)),OFFSET($D31,1,$C31,ROW($C$90)-ROW($C31)),0)) -> 0 | L31: F | M31: Serviço | N31: Serviço | O31: 1.4.1.2. | P31: SINAPI | Q31: 96545 | R31: =IF($C31="S",REFERENCIA.Descricao,"(digite a descrição aqui)") -> ARMAÇÃO DE BLOCO, VIGA BALDRAME OU SAPATA UTILIZANDO AÇO CA-50 DE 8 MM - MONTAGEM. AF_06/2017 | S31: =REFERENCIA.Unidade -> KG | T31: =OFFSET(CÁLCULO!H$15,ROW($T31)-ROW(T$15),0) -> 160.4 | U31: 17.92 | V31: BDI 1 | W31: =IF($C31="S",ROUND(IF(TIPOORCAMENTO="Proposto",ORÇAMENTO.CustoUnitario*(1+$AH31),ORÇAMENTO.PrecoUnitarioLicitado),15-13*$AF$10),0) -> 21.56 | X31: 3458.22 | Y31: RA | Z31: RA | AA31: =IF($C31="S",IF($Z31="CP",$X31,IF($Z31="RA",(($X31)*QCI!$AA$3),0)),SomaAgrup) -> 3458.22 | AB31: 0 | AC31: =IF($N31="","",IF(ORÇAMENTO.Descricao="","DESCRIÇÃO",IF(AND($C31="S",ORÇAMENTO.Unidade=""),"UNIDADE",IF($X31<0,"VALOR NEGATIVO",IF(OR(AND(TIPOORCAMENTO="Proposto",$AG31<>"",$AG31>0,ORÇAMENTO.CustoUnitario>$AG31),AND(TIPOORCAMENTO="LICITADO",ORÇAMENTO.PrecoUnitarioLicitado>$AN31)),"ACIMA REF.",""))))) ->  | AD31: =IF(C31<=CRONO.NivelExibicao,MAX($AD$15:OFFSET(AD31,-1,0))+IF($C31<>1,1,MAX(1,COUNTIF(QCI!$A$13:$A$24,OFFSET($E31,-1,0)))),"") ->  | AE31: =IF(AND($C31="S",ORÇAMENTO.CodBarra<>""),IF(ORÇAMENTO.Fonte="",ORÇAMENTO.CodBarra,CONCATENATE(ORÇAMENTO.Fonte," ",ORÇAMENTO.CodBarra))) -> SINAPI 96545 | AF31: =IF(ISERROR(INDIRECT(ORÇAMENTO.BancoRef)),"(abra o arquivo 'Referência "&Excel_BuiltIn_Database&".xls)",IF(OR($C31<>"S",ORÇAMENTO.CodBarra=""),"(Sem Código)",IF(ISERROR(MATCH($AE31,INDIRECT(ORÇAMENTO.BancoRef),0)),"(Código não identificado nas referências)",MATCH($AE31,INDIRECT(ORÇAMENTO.BancoRef),0)))) -> 2504 | AG31: =ROUND(IF(DESONERACAO="sim",REFERENCIA.Desonerado,REFERENCIA.NaoDesonerado),2) -> 17.92 | AH31: 0.2034 | AM31: 3458.22 | AN31: =ROUND(ORÇAMENTO.CustoUnitario*(1+$AH31),2) -> 21.56
A32: S | B32: 3 | C32: S | D32: 0 | E32: =IF($C32=1,OFFSET(E32,-1,0)+MAX(1,COUNTIF(QCI!$A$13:$A$24,OFFSET(ORÇAMENTO!E32,-1,0))),OFFSET(E32,-1,0)) -> 1 | F32: 4 | G32: 1 | H32: 0 | I32: 3 | J32: =IF(OR($C32="S",$C32=0),0,MATCH(0,OFFSET($D32,1,$C32,ROW($C$90)-ROW($C32)),0)) -> 0 | K32: =IF(OR($C32="S",$C32=0),0,MATCH(OFFSET($D32,0,$C32)+IF($C32<>1,1,COUNTIF(QCI!$A$13:$A$24,ORÇAMENTO!E32)),OFFSET($D32,1,$C32,ROW($C$90)-ROW($C32)),0)) -> 0 | L32: F | M32: Serviço | N32: Serviço | O32: 1.4.1.3. | P32: SINAPI | Q32: 96546 | R32: =IF($C32="S",REFERENCIA.Descricao,"(digite a descrição aqui)") -> ARMAÇÃO DE BLOCO, VIGA BALDRAME OU SAPATA UTILIZANDO AÇO CA-50 DE 10 MM - MONTAGEM. AF_06/2017 | S32: KG | T32: =OFFSET(CÁLCULO!H$15,ROW($T32)-ROW(T$15),0) -> 636.4 | U32: =AG32 -> 15.96 | V32: BDI 1 | W32: =IF($C32="S",ROUND(IF(TIPOORCAMENTO="Proposto",ORÇAMENTO.CustoUnitario*(1+$AH32),ORÇAMENTO.PrecoUnitarioLicitado),15-13*$AF$10),0) -> 19.21 | X32: 12225.24 | Y32: RA | Z32: RA | AA32: =IF($C32="S",IF($Z32="CP",$X32,IF($Z32="RA",(($X32)*QCI!$AA$3),0)),SomaAgrup) -> 12225.24 | AB32: 0 | AC32: =IF($N32="","",IF(ORÇAMENTO.Descricao="","DESCRIÇÃO",IF(AND($C32="S",ORÇAMENTO.Unidade=""),"UNIDADE",IF($X32<0,"VALOR NEGATIVO",IF(OR(AND(TIPOORCAMENTO="Proposto",$AG32<>"",$AG32>0,ORÇAMENTO.CustoUnitario>$AG32),AND(TIPOORCAMENTO="LICITADO",ORÇAMENTO.PrecoUnitarioLicitado>$AN32)),"ACIMA REF.",""))))) ->  | AD32: =IF(C32<=CRONO.NivelExibicao,MAX($AD$15:OFFSET(AD32,-1,0))+IF($C32<>1,1,MAX(1,COUNTIF(QCI!$A$13:$A$24,OFFSET($E32,-1,0)))),"") ->  | AE32: =IF(AND($C32="S",ORÇAMENTO.CodBarra<>""),IF(ORÇAMENTO.Fonte="",ORÇAMENTO.CodBarra,CONCATENATE(ORÇAMENTO.Fonte," ",ORÇAMENTO.CodBarra))) -> SINAPI 96546 | AF32: =IF(ISERROR(INDIRECT(ORÇAMENTO.BancoRef)),"(abra o arquivo 'Referência "&Excel_BuiltIn_Database&".xls)",IF(OR($C32<>"S",ORÇAMENTO.CodBarra=""),"(Sem Código)",IF(ISERROR(MATCH($AE32,INDIRECT(ORÇAMENTO.BancoRef),0)),"(Código não identificado nas referências)",MATCH($AE32,INDIRECT(ORÇAMENTO.BancoRef),0)))) -> 2505 | AG32: 15.96 | AH32: 0.2034 | AM32: 12225.24 | AN32: 19.21
A33: S | B33: 3 | C33: S | D33: 0 | E33: =IF($C33=1,OFFSET(E33,-1,0)+MAX(1,COUNTIF(QCI!$A$13:$A$24,OFFSET(ORÇAMENTO!E33,-1,0))),OFFSET(E33,-1,0)) -> 1 | F33: 4 | G33: 1 | H33: 0 | I33: 4 | J33: =IF(OR($C33="S",$C33=0),0,MATCH(0,OFFSET($D33,1,$C33,ROW($C$90)-ROW($C33)),0)) -> 0 | K33: =IF(OR($C33="S",$C33=0),0,MATCH(OFFSET($D33,0,$C33)+IF($C33<>1,1,COUNTIF(QCI!$A$13:$A$24,ORÇAMENTO!E33)),OFFSET($D33,1,$C33,ROW($C$90)-ROW($C33)),0)) -> 0 | L33: F | M33: Serviço | N33: Serviço | O33: 1.4.1.4. | P33: SINAPI | Q33: 96543 | R33: =IF($C33="S",REFERENCIA.Descricao,"(digite a descrição aqui)") -> ARMAÇÃO DE BLOCO, VIGA BALDRAME E SAPATA UTILIZANDO AÇO CA-60 DE 5 MM - MONTAGEM. AF_06/2017 | S33: KG | T33: =OFFSET(CÁLCULO!H$15,ROW($T33)-ROW(T$15),0) -> 345.9 | U33: 20.61 | V33: BDI 1 | W33: =IF($C33="S",ROUND(IF(TIPOORCAMENTO="Proposto",ORÇAMENTO.CustoUnitario*(1+$AH33),ORÇAMENTO.PrecoUnitarioLicitado),15-13*$AF$10),0) -> 24.8 | X33: 8578.32 | Y33: RA | Z33: RA | AA33: =IF($C33="S",IF($Z33="CP",$X33,IF($Z33="RA",(($X33)*QCI!$AA$3),0)),SomaAgrup) -> 8578.32 | AB33: 0 | AC33: =IF($N33="","",IF(ORÇAMENTO.Descricao="","DESCRIÇÃO",IF(AND($C33="S",ORÇAMENTO.Unidade=""),"UNIDADE",IF($X33<0,"VALOR NEGATIVO",IF(OR(AND(TIPOORCAMENTO="Proposto",$AG33<>"",$AG33>0,ORÇAMENTO.CustoUnitario>$AG33),AND(TIPOORCAMENTO="LICITADO",ORÇAMENTO.PrecoUnitarioLicitado>$AN33)),"ACIMA REF.",""))))) ->  | AD33: =IF(C33<=CRONO.NivelExibicao,MAX($AD$15:OFFSET(AD33,-1,0))+IF($C33<>1,1,MAX(1,COUNTIF(QCI!$A$13:$A$24,OFFSET($E33,-1,0)))),"") ->  | AE33: =IF(AND($C33="S",ORÇAMENTO.CodBarra<>""),IF(ORÇAMENTO.Fonte="",ORÇAMENTO.CodBarra,CONCATENATE(ORÇAMENTO.Fonte," ",ORÇAMENTO.CodBarra))) -> SINAPI 96543 | AF33: =IF(ISERROR(INDIRECT(ORÇAMENTO.BancoRef)),"(abra o arquivo 'Referência "&Excel_BuiltIn_Database&".xls)",IF(OR($C33<>"S",ORÇAMENTO.CodBarra=""),"(Sem Código)",IF(ISERROR(MATCH($AE33,INDIRECT(ORÇAMENTO.BancoRef),0)),"(Código não identificado nas referências)",MATCH($AE33,INDIRECT(ORÇAMENTO.BancoRef),0)))) -> 2304 | AG33: 20.61 | AH33: 0.2034 | AM33: 8578.32 | AN33: 24.8
A34: S | B34: 3 | C34: S | D34: 0 | E34: =IF($C34=1,OFFSET(E34,-1,0)+MAX(1,COUNTIF(QCI!$A$13:$A$24,OFFSET(ORÇAMENTO!E34,-1,0))),OFFSET(E34,-1,0)) -> 1 | F34: 4 | G34: 1 | H34: 0 | I34: 5 | J34: =IF(OR($C34="S",$C34=0),0,MATCH(0,OFFSET($D34,1,$C34,ROW($C$90)-ROW($C34)),0)) -> 0 | K34: =IF(OR($C34="S",$C34=0),0,MATCH(OFFSET($D34,0,$C34)+IF($C34<>1,1,COUNTIF(QCI!$A$13:$A$24,ORÇAMENTO!E34)),OFFSET($D34,1,$C34,ROW($C$90)-ROW($C34)),0)) -> 0 | L34: F | M34: Serviço | N34: Serviço | O34: 1.4.1.5. | P34: Composição | Q34: 08 | R34: =IF($C34="S",REFERENCIA.Descricao,"(digite a descrição aqui)") -> FABRICAÇÃO, MONTAGEM E DESMONTAGEM DE FÔRMA PARA SAPATA, EM MADEIRA SERRADA, E=25 MM, 1 UTILIZAÇÃO. AF_06/2017 (REF SINAPI-C 96529) | S34: M2 | T34: =OFFSET(CÁLCULO!H$15,ROW($T34)-ROW(T$15),0) -> 93.6 | U34: 153.58 | V34: BDI 1 | W34: =IF($C34="S",ROUND(IF(TIPOORCAMENTO="Proposto",ORÇAMENTO.CustoUnitario*(1+$AH34),ORÇAMENTO.PrecoUnitarioLicitado),15-13*$AF$10),0) -> 184.82 | X34: 17299.15 | Y34: RA | Z34: RA | AA34: =IF($C34="S",IF($Z34="CP",$X34,IF($Z34="RA",(($X34)*QCI!$AA$3),0)),SomaAgrup) -> 17299.15 | AB34: 0 | AC34: =IF($N34="","",IF(ORÇAMENTO.Descricao="","DESCRIÇÃO",IF(AND($C34="S",ORÇAMENTO.Unidade=""),"UNIDADE",IF($X34<0,"VALOR NEGATIVO",IF(OR(AND(TIPOORCAMENTO="Proposto",$AG34<>"",$AG34>0,ORÇAMENTO.CustoUnitario>$AG34),AND(TIPOORCAMENTO="LICITADO",ORÇAMENTO.PrecoUnitarioLicitado>$AN34)),"ACIMA REF.",""))))) ->  | AD34: =IF(C34<=CRONO.NivelExibicao,MAX($AD$15:OFFSET(AD34,-1,0))+IF($C34<>1,1,MAX(1,COUNTIF(QCI!$A$13:$A$24,OFFSET($E34,-1,0)))),"") ->  | AE34: =IF(AND($C34="S",ORÇAMENTO.CodBarra<>""),IF(ORÇAMENTO.Fonte="",ORÇAMENTO.CodBarra,CONCATENATE(ORÇAMENTO.Fonte," ",ORÇAMENTO.CodBarra))) -> Composição 08 | AF34: =IF(ISERROR(INDIRECT(ORÇAMENTO.BancoRef)),"(abra o arquivo 'Referência "&Excel_BuiltIn_Database&".xls)",IF(OR($C34<>"S",ORÇAMENTO.CodBarra=""),"(Sem Código)",IF(ISERROR(MATCH($AE34,INDIRECT(ORÇAMENTO.BancoRef),0)),"(Código não identificado nas referências)",MATCH($AE34,INDIRECT(ORÇAMENTO.BancoRef),0)))) -> 9 | AG34: 153.58 | AH34: 0.2034 | AM34: 17299.15 | AN34: 184.82
A35: =CHOOSE(1+LOG(1+2*(ORÇAMENTO.Nivel="Meta")+4*(ORÇAMENTO.Nivel="Nível 2")+8*(ORÇAMENTO.Nivel="Nível 3")+16*(ORÇAMENTO.Nivel="Nível 4")+32*(ORÇAMENTO.Nivel="Serviço"),2),0,1,2,3,4,"S") -> 3 | B35: 3 | C35: 3 | D35: 5 | E35: =IF($C35=1,OFFSET(E35,-1,0)+MAX(1,COUNTIF(QCI!$A$13:$A$24,OFFSET(ORÇAMENTO!E35,-1,0))),OFFSET(E35,-1,0)) -> 1 | F35: 4 | G35: 2 | H35: 0 | I35: 0 | J35: =IF(OR($C35="S",$C35=0),0,MATCH(0,OFFSET($D35,1,$C35,ROW($C$90)-ROW($C35)),0)) -> 5 | K35: =IF(OR($C35="S",$C35=0),0,MATCH(OFFSET($D35,0,$C35)+IF($C35<>1,1,COUNTIF(QCI!$A$13:$A$24,ORÇAMENTO!E35)),OFFSET($D35,1,$C35,ROW($C$90)-ROW($C35)),0)) ->  | L35: F | M35: Nível 3 | N35: Nível 3 | O35: 1.4.2. | P35: SINAPI | R35: Vigas de baldrame em concreto armado | S35: =REFERENCIA.Unidade -> - | T35: =OFFSET(CÁLCULO!H$15,ROW($T35)-ROW(T$15),0) -> 0 | U35: 0 | V35: BDI 1 | W35: =IF($C35="S",ROUND(IF(TIPOORCAMENTO="Proposto",ORÇAMENTO.CustoUnitario*(1+$AH35),ORÇAMENTO.PrecoUnitarioLicitado),15-13*$AF$10),0) -> 0 | X35: 29172.37 | Y35: RA | AA35: =IF($C35="S",IF($Z35="CP",$X35,IF($Z35="RA",(($X35)*QCI!$AA$3),0)),SomaAgrup) -> 29172.37 | AB35: 0 | AC35: =IF($N35="","",IF(ORÇAMENTO.Descricao="","DESCRIÇÃO",IF(AND($C35="S",ORÇAMENTO.Unidade=""),"UNIDADE",IF($X35<0,"VALOR NEGATIVO",IF(OR(AND(TIPOORCAMENTO="Proposto",$AG35<>"",$AG35>0,ORÇAMENTO.CustoUnitario>$AG35),AND(TIPOORCAMENTO="LICITADO",ORÇAMENTO.PrecoUnitarioLicitado>$AN35)),"ACIMA REF.",""))))) ->  | AD35: =IF(C35<=CRONO.NivelExibicao,MAX($AD$15:OFFSET(AD35,-1,0))+IF($C35<>1,1,MAX(1,COUNTIF(QCI!$A$13:$A$24,OFFSET($E35,-1,0)))),"") ->  | AE35: =IF(AND($C35="S",ORÇAMENTO.CodBarra<>""),IF(ORÇAMENTO.Fonte="",ORÇAMENTO.CodBarra,CONCATENATE(ORÇAMENTO.Fonte," ",ORÇAMENTO.CodBarra))) -> FALSE | AF35: =IF(ISERROR(INDIRECT(ORÇAMENTO.BancoRef)),"(abra o arquivo 'Referência "&Excel_BuiltIn_Database&".xls)",IF(OR($C35<>"S",ORÇAMENTO.CodBarra=""),"(Sem Código)",IF(ISERROR(MATCH($AE35,INDIRECT(ORÇAMENTO.BancoRef),0)),"(Código não identificado nas referências)",MATCH($AE35,INDIRECT(ORÇAMENTO.BancoRef),0)))) -> (Sem Código) | AG35: =ROUND(IF(DESONERACAO="sim",REFERENCIA.Desonerado,REFERENCIA.NaoDesonerado),2) -> 0 | AH35: 0.2034 | AM35: 29172.37 | AN35: =ROUND(ORÇAMENTO.CustoUnitario*(1+$AH35),2) -> 0
A36: S | B36: 3 | C36: S | D36: 0 | E36: =IF($C36=1,OFFSET(E36,-1,0)+MAX(1,COUNTIF(QCI!$A$13:$A$24,OFFSET(ORÇAMENTO!E36,-1,0))),OFFSET(E36,-1,0)) -> 1 | F36: 4 | G36: 2 | H36: 0 | I36: 1 | J36: =IF(OR($C36="S",$C36=0),0,MATCH(0,OFFSET($D36,1,$C36,ROW($C$90)-ROW($C36)),0)) -> 0 | K36: =IF(OR($C36="S",$C36=0),0,MATCH(OFFSET($D36,0,$C36)+IF($C36<>1,1,COUNTIF(QCI!$A$13:$A$24,ORÇAMENTO!E36)),OFFSET($D36,1,$C36,ROW($C$90)-ROW($C36)),0)) -> 0 | L36: F | M36: Serviço | N36: Serviço | O36: 1.4.2.1. | P36: Composição | Q36: 04 | R36: =IF($C36="S",REFERENCIA.Descricao,"(digite a descrição aqui)") -> CONCRETAGEM DE BLOCOS DE COROAMENTO E VIGAS BALDRAME, FCK 25 MPA, COM USO DE JERICA – LANÇAMENTO, ADENSAMENTO E ACABAMENTO | S36: M3 | T36: =OFFSET(CÁLCULO!H$15,ROW($T36)-ROW(T$15),0) -> 12.7 | U36: 550.52 | V36: BDI 1 | W36: =IF($C36="S",ROUND(IF(TIPOORCAMENTO="Proposto",ORÇAMENTO.CustoUnitario*(1+$AH36),ORÇAMENTO.PrecoUnitarioLicitado),15-13*$AF$10),0) -> 662.5 | X36: 8413.75 | Y36: RA | Z36: RA | AA36: =IF($C36="S",IF($Z36="CP",$X36,IF($Z36="RA",(($X36)*QCI!$AA$3),0)),SomaAgrup) -> 8413.75 | AB36: 0 | AC36: =IF($N36="","",IF(ORÇAMENTO.Descricao="","DESCRIÇÃO",IF(AND($C36="S",ORÇAMENTO.Unidade=""),"UNIDADE",IF($X36<0,"VALOR NEGATIVO",IF(OR(AND(TIPOORCAMENTO="Proposto",$AG36<>"",$AG36>0,ORÇAMENTO.CustoUnitario>$AG36),AND(TIPOORCAMENTO="LICITADO",ORÇAMENTO.PrecoUnitarioLicitado>$AN36)),"ACIMA REF.",""))))) ->  | AD36: =IF(C36<=CRONO.NivelExibicao,MAX($AD$15:OFFSET(AD36,-1,0))+IF($C36<>1,1,MAX(1,COUNTIF(QCI!$A$13:$A$24,OFFSET($E36,-1,0)))),"") ->  | AE36: =IF(AND($C36="S",ORÇAMENTO.CodBarra<>""),IF(ORÇAMENTO.Fonte="",ORÇAMENTO.CodBarra,CONCATENATE(ORÇAMENTO.Fonte," ",ORÇAMENTO.CodBarra))) -> Composição 04 | AF36: =IF(ISERROR(INDIRECT(ORÇAMENTO.BancoRef)),"(abra o arquivo 'Referência "&Excel_BuiltIn_Database&".xls)",IF(OR($C36<>"S",ORÇAMENTO.CodBarra=""),"(Sem Código)",IF(ISERROR(MATCH($AE36,INDIRECT(ORÇAMENTO.BancoRef),0)),"(Código não identificado nas referências)",MATCH($AE36,INDIRECT(ORÇAMENTO.BancoRef),0)))) -> 5 | AG36: 550.52 | AH36: 0.2034 | AM36: 8413.75 | AN36: 662.5
A37: S | B37: 3 | C37: S | D37: 0 | E37: =IF($C37=1,OFFSET(E37,-1,0)+MAX(1,COUNTIF(QCI!$A$13:$A$24,OFFSET(ORÇAMENTO!E37,-1,0))),OFFSET(E37,-1,0)) -> 1 | F37: 4 | G37: 2 | H37: 0 | I37: 2 | J37: =IF(OR($C37="S",$C37=0),0,MATCH(0,OFFSET($D37,1,$C37,ROW($C$90)-ROW($C37)),0)) -> 0 | K37: =IF(OR($C37="S",$C37=0),0,MATCH(OFFSET($D37,0,$C37)+IF($C37<>1,1,COUNTIF(QCI!$A$13:$A$24,ORÇAMENTO!E37)),OFFSET($D37,1,$C37,ROW($C$90)-ROW($C37)),0)) -> 0 | L37: F | M37: Serviço | N37: Serviço | O37: 1.4.2.2. | P37: SINAPI | Q37: 92775 | R37: =IF($C37="S",REFERENCIA.Descricao,"(digite a descrição aqui)") -> ARMAÇÃO DE PILAR OU VIGA DE UMA ESTRUTURA CONVENCIONAL DE CONCRETO ARMADO EM UMA EDIFICAÇÃO TÉRREA OU SOBRADO UTILIZANDO AÇO CA-60 DE 5,0 MM - MONTAGEM. AF_12/2015 | S37: KG | T37: =OFFSET(CÁLCULO!H$15,ROW($T37)-ROW(T$15),0) -> 129.1 | U37: 20.78 | V37: BDI 1 | W37: =IF($C37="S",ROUND(IF(TIPOORCAMENTO="Proposto",ORÇAMENTO.CustoUnitario*(1+$AH37),ORÇAMENTO.PrecoUnitarioLicitado),15-13*$AF$10),0) -> 25.01 | X37: 3228.79 | Y37: RA | Z37: RA | AA37: =IF($C37="S",IF($Z37="CP",$X37,IF($Z37="RA",(($X37)*QCI!$AA$3),0)),SomaAgrup) -> 3228.79 | AB37: 0 | AC37: =IF($N37="","",IF(ORÇAMENTO.Descricao="","DESCRIÇÃO",IF(AND($C37="S",ORÇAMENTO.Unidade=""),"UNIDADE",IF($X37<0,"VALOR NEGATIVO",IF(OR(AND(TIPOORCAMENTO="Proposto",$AG37<>"",$AG37>0,ORÇAMENTO.CustoUnitario>$AG37),AND(TIPOORCAMENTO="LICITADO",ORÇAMENTO.PrecoUnitarioLicitado>$AN37)),"ACIMA REF.",""))))) ->  | AD37: =IF(C37<=CRONO.NivelExibicao,MAX($AD$15:OFFSET(AD37,-1,0))+IF($C37<>1,1,MAX(1,COUNTIF(QCI!$A$13:$A$24,OFFSET($E37,-1,0)))),"") ->  | AE37: =IF(AND($C37="S",ORÇAMENTO.CodBarra<>""),IF(ORÇAMENTO.Fonte="",ORÇAMENTO.CodBarra,CONCATENATE(ORÇAMENTO.Fonte," ",ORÇAMENTO.CodBarra))) -> SINAPI 92775 | AF37: =IF(ISERROR(INDIRECT(ORÇAMENTO.BancoRef)),"(abra o arquivo 'Referência "&Excel_BuiltIn_Database&".xls)",IF(OR($C37<>"S",ORÇAMENTO.CodBarra=""),"(Sem Código)",IF(ISERROR(MATCH($AE37,INDIRECT(ORÇAMENTO.BancoRef),0)),"(Código não identificado nas referências)",MATCH($AE37,INDIRECT(ORÇAMENTO.BancoRef),0)))) -> 2429 | AG37: 20.78 | AH37: 0.2034 | AM37: 3228.79 | AN37: 25.01
A38: S | B38: 3 | C38: S | D38: 0 | E38: =IF($C38=1,OFFSET(E38,-1,0)+MAX(1,COUNTIF(QCI!$A$13:$A$24,OFFSET(ORÇAMENTO!E38,-1,0))),OFFSET(E38,-1,0)) -> 1 | F38: 4 | G38: 2 | H38: 0 | I38: 3 | J38: =IF(OR($C38="S",$C38=0),0,MATCH(0,OFFSET($D38,1,$C38,ROW($C$90)-ROW($C38)),0)) -> 0 | K38: =IF(OR($C38="S",$C38=0),0,MATCH(OFFSET($D38,0,$C38)+IF($C38<>1,1,COUNTIF(QCI!$A$13:$A$24,ORÇAMENTO!E38)),OFFSET($D38,1,$C38,ROW($C$90)-ROW($C38)),0)) -> 0 | L38: F | M38: Serviço | N38: Serviço | O38: 1.4.2.3. | P38: SINAPI | Q38: 92778 | R38: =IF($C38="S",REFERENCIA.Descricao,"(digite a descrição aqui)") -> ARMAÇÃO DE PILAR OU VIGA DE UMA ESTRUTURA CONVENCIONAL DE CONCRETO ARMADO EM UMA EDIFICAÇÃO TÉRREA OU SOBRADO UTILIZANDO AÇO CA-50 DE 10,0 MM - MONTAGEM. AF_12/2015 | S38: KG | T38: =OFFSET(CÁLCULO!H$15,ROW($T38)-ROW(T$15),0) -> 343.2 | U38: =AG38 -> 15.88 | V38: BDI 1 | W38: =IF($C38="S",ROUND(IF(TIPOORCAMENTO="Proposto",ORÇAMENTO.CustoUnitario*(1+$AH38),ORÇAMENTO.PrecoUnitarioLicitado),15-13*$AF$10),0) -> 19.11 | X38: 6558.55 | Y38: RA | Z38: RA | AA38: =IF($C38="S",IF($Z38="CP",$X38,IF($Z38="RA",(($X38)*QCI!$AA$3),0)),SomaAgrup) -> 6558.55 | AB38: 0 | AC38: =IF($N38="","",IF(ORÇAMENTO.Descricao="","DESCRIÇÃO",IF(AND($C38="S",ORÇAMENTO.Unidade=""),"UNIDADE",IF($X38<0,"VALOR NEGATIVO",IF(OR(AND(TIPOORCAMENTO="Proposto",$AG38<>"",$AG38>0,ORÇAMENTO.CustoUnitario>$AG38),AND(TIPOORCAMENTO="LICITADO",ORÇAMENTO.PrecoUnitarioLicitado>$AN38)),"ACIMA REF.",""))))) ->  | AD38: =IF(C38<=CRONO.NivelExibicao,MAX($AD$15:OFFSET(AD38,-1,0))+IF($C38<>1,1,MAX(1,COUNTIF(QCI!$A$13:$A$24,OFFSET($E38,-1,0)))),"") ->  | AE38: =IF(AND($C38="S",ORÇAMENTO.CodBarra<>""),IF(ORÇAMENTO.Fonte="",ORÇAMENTO.CodBarra,CONCATENATE(ORÇAMENTO.Fonte," ",ORÇAMENTO.CodBarra))) -> SINAPI 92778 | AF38: =IF(ISERROR(INDIRECT(ORÇAMENTO.BancoRef)),"(abra o arquivo 'Referência "&Excel_BuiltIn_Database&".xls)",IF(OR($C38<>"S",ORÇAMENTO.CodBarra=""),"(Sem Código)",IF(ISERROR(MATCH($AE38,INDIRECT(ORÇAMENTO.BancoRef),0)),"(Código não identificado nas referências)",MATCH($AE38,INDIRECT(ORÇAMENTO.BancoRef),0)))) -> 2432 | AG38: 15.88 | AH38: 0.2034 | AM38: 6558.55 | AN38: 19.11
A39: S | B39: 3 | C39: S | D39: 0 | E39: =IF($C39=1,OFFSET(E39,-1,0)+MAX(1,COUNTIF(QCI!$A$13:$A$24,OFFSET(ORÇAMENTO!E39,-1,0))),OFFSET(E39,-1,0)) -> 1 | F39: 4 | G39: 2 | H39: 0 | I39: 4 | J39: =IF(OR($C39="S",$C39=0),0,MATCH(0,OFFSET($D39,1,$C39,ROW($C$90)-ROW($C39)),0)) -> 0 | K39: =IF(OR($C39="S",$C39=0),0,MATCH(OFFSET($D39,0,$C39)+IF($C39<>1,1,COUNTIF(QCI!$A$13:$A$24,ORÇAMENTO!E39)),OFFSET($D39,1,$C39,ROW($C$90)-ROW($C39)),0)) -> 0 | L39: F | M39: Serviço | N39: Serviço | O39: 1.4.2.4. | P39: Composição | Q39: 01 | R39: =IF($C39="S",REFERENCIA.Descricao,"(digite a descrição aqui)") -> FABRICAÇÃO, MONTAGEM E DESMONTAGEM DE FÔRMA P/ VIGA BALDRAME, EM MADEIRA SERRADA E=25MM (REF SINAPI -C 96536) | S39: M2 | T39: =OFFSET(CÁLCULO!H$15,ROW($T39)-ROW(T$15),0) -> 152.4 | U39: 59.82 | V39: BDI 1 | W39: =IF($C39="S",ROUND(IF(TIPOORCAMENTO="Proposto",ORÇAMENTO.CustoUnitario*(1+$AH39),ORÇAMENTO.PrecoUnitarioLicitado),15-13*$AF$10),0) -> 71.99 | X39: 10971.28 | Y39: RA | Z39: RA | AA39: =IF($C39="S",IF($Z39="CP",$X39,IF($Z39="RA",(($X39)*QCI!$AA$3),0)),SomaAgrup) -> 10971.28 | AB39: 0 | AC39: =IF($N39="","",IF(ORÇAMENTO.Descricao="","DESCRIÇÃO",IF(AND($C39="S",ORÇAMENTO.Unidade=""),"UNIDADE",IF($X39<0,"VALOR NEGATIVO",IF(OR(AND(TIPOORCAMENTO="Proposto",$AG39<>"",$AG39>0,ORÇAMENTO.CustoUnitario>$AG39),AND(TIPOORCAMENTO="LICITADO",ORÇAMENTO.PrecoUnitarioLicitado>$AN39)),"ACIMA REF.",""))))) ->  | AD39: =IF(C39<=CRONO.NivelExibicao,MAX($AD$15:OFFSET(AD39,-1,0))+IF($C39<>1,1,MAX(1,COUNTIF(QCI!$A$13:$A$24,OFFSET($E39,-1,0)))),"") ->  | AE39: =IF(AND($C39="S",ORÇAMENTO.CodBarra<>""),IF(ORÇAMENTO.Fonte="",ORÇAMENTO.CodBarra,CONCATENATE(ORÇAMENTO.Fonte," ",ORÇAMENTO.CodBarra))) -> Composição 01 | AF39: =IF(ISERROR(INDIRECT(ORÇAMENTO.BancoRef)),"(abra o arquivo 'Referência "&Excel_BuiltIn_Database&".xls)",IF(OR($C39<>"S",ORÇAMENTO.CodBarra=""),"(Sem Código)",IF(ISERROR(MATCH($AE39,INDIRECT(ORÇAMENTO.BancoRef),0)),"(Código não identificado nas referências)",MATCH($AE39,INDIRECT(ORÇAMENTO.BancoRef),0)))) -> 3 | AG39: 59.82 | AH39: 0.2034 | AM39: 10971.28 | AN39: 71.99
A40: 2 | B40: 2 | C40: 2 | D40: 4 | E40: =IF($C40=1,OFFSET(E40,-1,0)+MAX(1,COUNTIF(QCI!$A$13:$A$24,OFFSET(ORÇAMENTO!E40,-1,0))),OFFSET(E40,-1,0)) -> 1 | F40: 5 | G40: 0 | H40: 0 | I40: 0 | J40: =IF(OR($C40="S",$C40=0),0,MATCH(0,OFFSET($D40,1,$C40,ROW($C$90)-ROW($C40)),0)) -> 50 | K40: =IF(OR($C40="S",$C40=0),0,MATCH(OFFSET($D40,0,$C40)+IF($C40<>1,1,COUNTIF(QCI!$A$13:$A$24,ORÇAMENTO!E40)),OFFSET($D40,1,$C40,ROW($C$90)-ROW($C40)),0)) -> 4 | L40: F | M40: Nível 2 | N40: Nível 2 | O40: 1.5. | P40: SINAPI | R40: SUPERESTRUTURA | S40: - | T40: =OFFSET(CÁLCULO!H$15,ROW($T40)-ROW(T$15),0) -> 0 | U40: 0 | V40: BDI 1 | W40: =IF($C40="S",ROUND(IF(TIPOORCAMENTO="Proposto",ORÇAMENTO.CustoUnitario*(1+$AH40),ORÇAMENTO.PrecoUnitarioLicitado),15-13*$AF$10),0) -> 0 | X40: 701799.01 | Y40: RA | AA40: =IF($C40="S",IF($Z40="CP",$X40,IF($Z40="RA",(($X40)*QCI!$AA$3),0)),SomaAgrup) -> 701799.01 | AB40: 0 | AC40: =IF($N40="","",IF(ORÇAMENTO.Descricao="","DESCRIÇÃO",IF(AND($C40="S",ORÇAMENTO.Unidade=""),"UNIDADE",IF($X40<0,"VALOR NEGATIVO",IF(OR(AND(TIPOORCAMENTO="Proposto",$AG40<>"",$AG40>0,ORÇAMENTO.CustoUnitario>$AG40),AND(TIPOORCAMENTO="LICITADO",ORÇAMENTO.PrecoUnitarioLicitado>$AN40)),"ACIMA REF.",""))))) ->  | AD40: =IF(C40<=CRONO.NivelExibicao,MAX($AD$15:OFFSET(AD40,-1,0))+IF($C40<>1,1,MAX(1,COUNTIF(QCI!$A$13:$A$24,OFFSET($E40,-1,0)))),"") -> 6 | AE40: =IF(AND($C40="S",ORÇAMENTO.CodBarra<>""),IF(ORÇAMENTO.Fonte="",ORÇAMENTO.CodBarra,CONCATENATE(ORÇAMENTO.Fonte," ",ORÇAMENTO.CodBarra))) -> FALSE | AF40: =IF(ISERROR(INDIRECT(ORÇAMENTO.BancoRef)),"(abra o arquivo 'Referência "&Excel_BuiltIn_Database&".xls)",IF(OR($C40<>"S",ORÇAMENTO.CodBarra=""),"(Sem Código)",IF(ISERROR(MATCH($AE40,INDIRECT(ORÇAMENTO.BancoRef),0)),"(Código não identificado nas referências)",MATCH($AE40,INDIRECT(ORÇAMENTO.BancoRef),0)))) -> (Sem Código) | AG40: 0 | AH40: 0.2034 | AM40: 701799.01 | AN40: 0
A41: S | B41: 2 | C41: S | D41: 0 | E41: =IF($C41=1,OFFSET(E41,-1,0)+MAX(1,COUNTIF(QCI!$A$13:$A$24,OFFSET(ORÇAMENTO!E41,-1,0))),OFFSET(E41,-1,0)) -> 1 | F41: 5 | G41: 0 | H41: 0 | I41: 1 | J41: =IF(OR($C41="S",$C41=0),0,MATCH(0,OFFSET($D41,1,$C41,ROW($C$90)-ROW($C41)),0)) -> 0 | K41: =IF(OR($C41="S",$C41=0),0,MATCH(OFFSET($D41,0,$C41)+IF($C41<>1,1,COUNTIF(QCI!$A$13:$A$24,ORÇAMENTO!E41)),OFFSET($D41,1,$C41,ROW($C$90)-ROW($C41)),0)) -> 0 | L41: F | M41: Serviço | N41: Serviço | O41: 1.5.0.1. | P41: SINAPI | Q41: 100765 | R41: =IF($C41="S",REFERENCIA.Descricao,"(digite a descrição aqui)") -> PILAR METÁLICO PERFIL LAMINADO/SOLDADO EM AÇO ESTRUTURAL, COM CONEXÕES PARAFUSADAS, INCLUSOS MÃO DE OBRA, TRANSPORTE E IÇAMENTO UTILIZANDO GUINDASTE - FORNECIMENTO E INSTALAÇÃO. AF_01/2020_P | S41: KG | T41: =OFFSET(CÁLCULO!H$15,ROW($T41)-ROW(T$15),0) -> 7071.74 | U41: 17.95 | V41: BDI 1 | W41: =IF($C41="S",ROUND(IF(TIPOORCAMENTO="Proposto",ORÇAMENTO.CustoUnitario*(1+$AH41),ORÇAMENTO.PrecoUnitarioLicitado),15-13*$AF$10),0) -> 21.6 | X41: 152749.58 | Y41: RA | Z41: RA | AA41: =IF($C41="S",IF($Z41="CP",$X41,IF($Z41="RA",(($X41)*QCI!$AA$3),0)),SomaAgrup) -> 152749.58 | AB41: 0 | AC41: =IF($N41="","",IF(ORÇAMENTO.Descricao="","DESCRIÇÃO",IF(AND($C41="S",ORÇAMENTO.Unidade=""),"UNIDADE",IF($X41<0,"VALOR NEGATIVO",IF(OR(AND(TIPOORCAMENTO="Proposto",$AG41<>"",$AG41>0,ORÇAMENTO.CustoUnitario>$AG41),AND(TIPOORCAMENTO="LICITADO",ORÇAMENTO.PrecoUnitarioLicitado>$AN41)),"ACIMA REF.",""))))) ->  | AD41: =IF(C41<=CRONO.NivelExibicao,MAX($AD$15:OFFSET(AD41,-1,0))+IF($C41<>1,1,MAX(1,COUNTIF(QCI!$A$13:$A$24,OFFSET($E41,-1,0)))),"") ->  | AE41: =IF(AND($C41="S",ORÇAMENTO.CodBarra<>""),IF(ORÇAMENTO.Fonte="",ORÇAMENTO.CodBarra,CONCATENATE(ORÇAMENTO.Fonte," ",ORÇAMENTO.CodBarra))) -> SINAPI 100765 | AF41: =IF(ISERROR(INDIRECT(ORÇAMENTO.BancoRef)),"(abra o arquivo 'Referência "&Excel_BuiltIn_Database&".xls)",IF(OR($C41<>"S",ORÇAMENTO.CodBarra=""),"(Sem Código)",IF(ISERROR(MATCH($AE41,INDIRECT(ORÇAMENTO.BancoRef),0)),"(Código não identificado nas referências)",MATCH($AE41,INDIRECT(ORÇAMENTO.BancoRef),0)))) -> 2671 | AG41: 17.95 | AH41: 0.2034 | AM41: 152749.58 | AN41: 21.6
A42: S | B42: 2 | C42: S | D42: 0 | E42: =IF($C42=1,OFFSET(E42,-1,0)+MAX(1,COUNTIF(QCI!$A$13:$A$24,OFFSET(ORÇAMENTO!E42,-1,0))),OFFSET(E42,-1,0)) -> 1 | F42: 5 | G42: 0 | H42: 0 | I42: 2 | J42: =IF(OR($C42="S",$C42=0),0,MATCH(0,OFFSET($D42,1,$C42,ROW($C$90)-ROW($C42)),0)) -> 0 | K42: =IF(OR($C42="S",$C42=0),0,MATCH(OFFSET($D42,0,$C42)+IF($C42<>1,1,COUNTIF(QCI!$A$13:$A$24,ORÇAMENTO!E42)),OFFSET($D42,1,$C42,ROW($C$90)-ROW($C42)),0)) -> 0 | L42: F | M42: Serviço | N42: Serviço | O42: 1.5.0.2. | P42: SINAPI | Q42: 100763 | R42: =IF($C42="S",REFERENCIA.Descricao,"(digite a descrição aqui)") -> VIGA METÁLICA EM PERFIL LAMINADO OU SOLDADO EM AÇO ESTRUTURAL, COM CONEXÕES PARAFUSADAS, INCLUSOS MÃO DE OBRA, TRANSPORTE E IÇAMENTO UTILIZANDO GUINDASTE - FORNECIMENTO E INSTALAÇÃO. AF_01/2020_P | S42: KG | T42: =OFFSET(CÁLCULO!H$15,ROW($T42)-ROW(T$15),0) -> 18322.91 | U42: 18.2 | V42: BDI 1 | W42: =IF($C42="S",ROUND(IF(TIPOORCAMENTO="Proposto",ORÇAMENTO.CustoUnitario*(1+$AH42),ORÇAMENTO.PrecoUnitarioLicitado),15-13*$AF$10),0) -> 21.9 | X42: 401271.73 | Y42: RA | Z42: RA | AA42: =IF($C42="S",IF($Z42="CP",$X42,IF($Z42="RA",(($X42)*QCI!$AA$3),0)),SomaAgrup) -> 401271.73 | AB42: 0 | AC42: =IF($N42="","",IF(ORÇAMENTO.Descricao="","DESCRIÇÃO",IF(AND($C42="S",ORÇAMENTO.Unidade=""),"UNIDADE",IF($X42<0,"VALOR NEGATIVO",IF(OR(AND(TIPOORCAMENTO="Proposto",$AG42<>"",$AG42>0,ORÇAMENTO.CustoUnitario>$AG42),AND(TIPOORCAMENTO="LICITADO",ORÇAMENTO.PrecoUnitarioLicitado>$AN42)),"ACIMA REF.",""))))) ->  | AD42: =IF(C42<=CRONO.NivelExibicao,MAX($AD$15:OFFSET(AD42,-1,0))+IF($C42<>1,1,MAX(1,COUNTIF(QCI!$A$13:$A$24,OFFSET($E42,-1,0)))),"") ->  | AE42: =IF(AND($C42="S",ORÇAMENTO.CodBarra<>""),IF(ORÇAMENTO.Fonte="",ORÇAMENTO.CodBarra,CONCATENATE(ORÇAMENTO.Fonte," ",ORÇAMENTO.CodBarra))) -> SINAPI 100763 | AF42: =IF(ISERROR(INDIRECT(ORÇAMENTO.BancoRef)),"(abra o arquivo 'Referência "&Excel_BuiltIn_Database&".xls)",IF(OR($C42<>"S",ORÇAMENTO.CodBarra=""),"(Sem Código)",IF(ISERROR(MATCH($AE42,INDIRECT(ORÇAMENTO.BancoRef),0)),"(Código não identificado nas referências)",MATCH($AE42,INDIRECT(ORÇAMENTO.BancoRef),0)))) -> 2669 | AG42: 18.2 | AH42: 0.2034 | AM42: 401271.73 | AN42: 21.9
A43: =CHOOSE(1+LOG(1+2*(ORÇAMENTO.Nivel="Meta")+4*(ORÇAMENTO.Nivel="Nível 2")+8*(ORÇAMENTO.Nivel="Nível 3")+16*(ORÇAMENTO.Nivel="Nível 4")+32*(ORÇAMENTO.Nivel="Serviço"),2),0,1,2,3,4,"S") -> S | B43: 2 | C43: S | D43: 0 | E43: =IF($C43=1,OFFSET(E43,-1,0)+MAX(1,COUNTIF(QCI!$A$13:$A$24,OFFSET(ORÇAMENTO!E43,-1,0))),OFFSET(E43,-1,0)) -> 1 | F43: 5 | G43: 0 | H43: 0 | I43: 3 | J43: =IF(OR($C43="S",$C43=0),0,MATCH(0,OFFSET($D43,1,$C43,ROW($C$90)-ROW($C43)),0)) -> 0 | K43: =IF(OR($C43="S",$C43=0),0,MATCH(OFFSET($D43,0,$C43)+IF($C43<>1,1,COUNTIF(QCI!$A$13:$A$24,ORÇAMENTO!E43)),OFFSET($D43,1,$C43,ROW($C$90)-ROW($C43)),0)) -> 0 | L43: F | M43: Serviço | N43: Serviço | O43: 1.5.0.3. | P43: SINAPI | Q43: 100767 | R43: =IF($C43="S",REFERENCIA.Descricao,"(digite a descrição aqui)") -> CONTRAVENTAMENTO COM CANTONEIRAS DE AÇO, ABAS IGUAIS, COM CONEXÕES PARAFUSADAS, INCLUSOS MÃO DE OBRA, TRANSPORTE E IÇAMENTO UTILIZANDO TALHA MANUAL, PARA EDIFÍCIOS DE ATÉ 2 PAVIMENTOS - FORNECIMENTO E INSTALAÇÃO. AF_01/2020_P | S43: =REFERENCIA.Unidade -> KG | T43: =OFFSET(CÁLCULO!H$15,ROW($T43)-ROW(T$15),0) -> 6841.56 | U43: 17.95 | V43: BDI 1 | W43: =IF($C43="S",ROUND(IF(TIPOORCAMENTO="Proposto",ORÇAMENTO.CustoUnitario*(1+$AH43),ORÇAMENTO.PrecoUnitarioLicitado),15-13*$AF$10),0) -> 21.6 | X43: 147777.7 | Y43: RA | Z43: RA | AA43: =IF($C43="S",IF($Z43="CP",$X43,IF($Z43="RA",(($X43)*QCI!$AA$3),0)),SomaAgrup) -> 147777.7 | AB43: 0 | AC43: =IF($N43="","",IF(ORÇAMENTO.Descricao="","DESCRIÇÃO",IF(AND($C43="S",ORÇAMENTO.Unidade=""),"UNIDADE",IF($X43<0,"VALOR NEGATIVO",IF(OR(AND(TIPOORCAMENTO="Proposto",$AG43<>"",$AG43>0,ORÇAMENTO.CustoUnitario>$AG43),AND(TIPOORCAMENTO="LICITADO",ORÇAMENTO.PrecoUnitarioLicitado>$AN43)),"ACIMA REF.",""))))) ->  | AD43: =IF(C43<=CRONO.NivelExibicao,MAX($AD$15:OFFSET(AD43,-1,0))+IF($C43<>1,1,MAX(1,COUNTIF(QCI!$A$13:$A$24,OFFSET($E43,-1,0)))),"") ->  | AE43: =IF(AND($C43="S",ORÇAMENTO.CodBarra<>""),IF(ORÇAMENTO.Fonte="",ORÇAMENTO.CodBarra,CONCATENATE(ORÇAMENTO.Fonte," ",ORÇAMENTO.CodBarra))) -> SINAPI 100767 | AF43: =IF(ISERROR(INDIRECT(ORÇAMENTO.BancoRef)),"(abra o arquivo 'Referência "&Excel_BuiltIn_Database&".xls)",IF(OR($C43<>"S",ORÇAMENTO.CodBarra=""),"(Sem Código)",IF(ISERROR(MATCH($AE43,INDIRECT(ORÇAMENTO.BancoRef),0)),"(Código não identificado nas referências)",MATCH($AE43,INDIRECT(ORÇAMENTO.BancoRef),0)))) -> 2673 | AG43: =ROUND(IF(DESONERACAO="sim",REFERENCIA.Desonerado,REFERENCIA.NaoDesonerado),2) -> 17.95 | AH43: 0.2034 | AM43: 147777.7 | AN43: =ROUND(ORÇAMENTO.CustoUnitario*(1+$AH43),2) -> 21.6
A44: 2 | B44: 2 | C44: 2 | D44: 2 | E44: =IF($C44=1,OFFSET(E44,-1,0)+MAX(1,COUNTIF(QCI!$A$13:$A$24,OFFSET(ORÇAMENTO!E44,-1,0))),OFFSET(E44,-1,0)) -> 1 | F44: 6 | G44: 0 | H44: 0 | I44: 0 | J44: =IF(OR($C44="S",$C44=0),0,MATCH(0,OFFSET($D44,1,$C44,ROW($C$90)-ROW($C44)),0)) -> 46 | K44: =IF(OR($C44="S",$C44=0),0,MATCH(OFFSET($D44,0,$C44)+IF($C44<>1,1,COUNTIF(QCI!$A$13:$A$24,ORÇAMENTO!E44)),OFFSET($D44,1,$C44,ROW($C$90)-ROW($C44)),0)) -> 2 | L44: F | M44: Nível 2 | N44: Nível 2 | O44: 1.6. | P44: SINAPI | R44: IMPERMEABILIZAÇÃO | S44: =REFERENCIA.Unidade -> - | T44: =OFFSET(CÁLCULO!H$15,ROW($T44)-ROW(T$15),0) -> 0 | U44: 0 | V44: BDI 1 | W44: =IF($C44="S",ROUND(IF(TIPOORCAMENTO="Proposto",ORÇAMENTO.CustoUnitario*(1+$AH44),ORÇAMENTO.PrecoUnitarioLicitado),15-13*$AF$10),0) -> 0 | X44: 687.24 | Y44: RA | AA44: =IF($C44="S",IF($Z44="CP",$X44,IF($Z44="RA",(($X44)*QCI!$AA$3),0)),SomaAgrup) -> 687.24 | AB44: 0 | AC44: =IF($N44="","",IF(ORÇAMENTO.Descricao="","DESCRIÇÃO",IF(AND($C44="S",ORÇAMENTO.Unidade=""),"UNIDADE",IF($X44<0,"VALOR NEGATIVO",IF(OR(AND(TIPOORCAMENTO="Proposto",$AG44<>"",$AG44>0,ORÇAMENTO.CustoUnitario>$AG44),AND(TIPOORCAMENTO="LICITADO",ORÇAMENTO.PrecoUnitarioLicitado>$AN44)),"ACIMA REF.",""))))) ->  | AD44: =IF(C44<=CRONO.NivelExibicao,MAX($AD$15:OFFSET(AD44,-1,0))+IF($C44<>1,1,MAX(1,COUNTIF(QCI!$A$13:$A$24,OFFSET($E44,-1,0)))),"") -> 7 | AE44: =IF(AND($C44="S",ORÇAMENTO.CodBarra<>""),IF(ORÇAMENTO.Fonte="",ORÇAMENTO.CodBarra,CONCATENATE(ORÇAMENTO.Fonte," ",ORÇAMENTO.CodBarra))) -> FALSE | AF44: =IF(ISERROR(INDIRECT(ORÇAMENTO.BancoRef)),"(abra o arquivo 'Referência "&Excel_BuiltIn_Database&".xls)",IF(OR($C44<>"S",ORÇAMENTO.CodBarra=""),"(Sem Código)",IF(ISERROR(MATCH($AE44,INDIRECT(ORÇAMENTO.BancoRef),0)),"(Código não identificado nas referências)",MATCH($AE44,INDIRECT(ORÇAMENTO.BancoRef),0)))) -> (Sem Código) | AG44: =ROUND(IF(DESONERACAO="sim",REFERENCIA.Desonerado,REFERENCIA.NaoDesonerado),2) -> 0 | AH44: 0.2034 | AM44: 687.24 | AN44: 0
A45: S | B45: 2 | C45: S | D45: 0 | E45: =IF($C45=1,OFFSET(E45,-1,0)+MAX(1,COUNTIF(QCI!$A$13:$A$24,OFFSET(ORÇAMENTO!E45,-1,0))),OFFSET(E45,-1,0)) -> 1 | F45: 6 | G45: 0 | H45: 0 | I45: 1 | J45: =IF(OR($C45="S",$C45=0),0,MATCH(0,OFFSET($D45,1,$C45,ROW($C$90)-ROW($C45)),0)) -> 0 | K45: =IF(OR($C45="S",$C45=0),0,MATCH(OFFSET($D45,0,$C45)+IF($C45<>1,1,COUNTIF(QCI!$A$13:$A$24,ORÇAMENTO!E45)),OFFSET($D45,1,$C45,ROW($C$90)-ROW($C45)),0)) -> 0 | L45: F | M45: Serviço | N45: Serviço | O45: 1.6.0.1. | P45: SINAPI | Q45: 98557 | R45: =IF($C45="S",REFERENCIA.Descricao,"(digite a descrição aqui)") -> IMPERMEABILIZAÇÃO DE SUPERFÍCIE COM EMULSÃO ASFÁLTICA, 2 DEMÃOS AF_06/2018 | S45: =REFERENCIA.Unidade -> M2 | T45: =OFFSET(CÁLCULO!H$15,ROW($T45)-ROW(T$15),0) -> 14.84 | U45: 38.48 | V45: BDI 1 | W45: =IF($C45="S",ROUND(IF(TIPOORCAMENTO="Proposto",ORÇAMENTO.CustoUnitario*(1+$AH45),ORÇAMENTO.PrecoUnitarioLicitado),15-13*$AF$10),0) -> 46.31 | X45: 687.24 | Y45: RA | Z45: RA | AA45: =IF($C45="S",IF($Z45="CP",$X45,IF($Z45="RA",(($X45)*QCI!$AA$3),0)),SomaAgrup) -> 687.24 | AB45: 0 | AC45: =IF($N45="","",IF(ORÇAMENTO.Descricao="","DESCRIÇÃO",IF(AND($C45="S",ORÇAMENTO.Unidade=""),"UNIDADE",IF($X45<0,"VALOR NEGATIVO",IF(OR(AND(TIPOORCAMENTO="Proposto",$AG45<>"",$AG45>0,ORÇAMENTO.CustoUnitario>$AG45),AND(TIPOORCAMENTO="LICITADO",ORÇAMENTO.PrecoUnitarioLicitado>$AN45)),"ACIMA REF.",""))))) ->  | AD45: =IF(C45<=CRONO.NivelExibicao,MAX($AD$15:OFFSET(AD45,-1,0))+IF($C45<>1,1,MAX(1,COUNTIF(QCI!$A$13:$A$24,OFFSET($E45,-1,0)))),"") ->  | AE45: =IF(AND($C45="S",ORÇAMENTO.CodBarra<>""),IF(ORÇAMENTO.Fonte="",ORÇAMENTO.CodBarra,CONCATENATE(ORÇAMENTO.Fonte," ",ORÇAMENTO.CodBarra))) -> SINAPI 98557 | AF45: =IF(ISERROR(INDIRECT(ORÇAMENTO.BancoRef)),"(abra o arquivo 'Referência "&Excel_BuiltIn_Database&".xls)",IF(OR($C45<>"S",ORÇAMENTO.CodBarra=""),"(Sem Código)",IF(ISERROR(MATCH($AE45,INDIRECT(ORÇAMENTO.BancoRef),0)),"(Código não identificado nas referências)",MATCH($AE45,INDIRECT(ORÇAMENTO.BancoRef),0)))) -> 2696 | AG45: =ROUND(IF(DESONERACAO="sim",REFERENCIA.Desonerado,REFERENCIA.NaoDesonerado),2) -> 38.48 | AH45: 0.2034 | AM45: 687.24 | AN45: 46.31
A46: 2 | B46: 2 | C46: 2 | D46: 2 | E46: =IF($C46=1,OFFSET(E46,-1,0)+MAX(1,COUNTIF(QCI!$A$13:$A$24,OFFSET(ORÇAMENTO!E46,-1,0))),OFFSET(E46,-1,0)) -> 1 | F46: 7 | G46: 0 | H46: 0 | I46: 0 | J46: =IF(OR($C46="S",$C46=0),0,MATCH(0,OFFSET($D46,1,$C46,ROW($C$90)-ROW($C46)),0)) -> 44 | K46: =IF(OR($C46="S",$C46=0),0,MATCH(OFFSET($D46,0,$C46)+IF($C46<>1,1,COUNTIF(QCI!$A$13:$A$24,ORÇAMENTO!E46)),OFFSET($D46,1,$C46,ROW($C$90)-ROW($C46)),0)) -> 2 | L46: F | M46: Nível 2 | N46: Nível 2 | O46: 1.7. | P46: SINAPI | R46: PAREDES | S46: =REFERENCIA.Unidade -> - | T46: =OFFSET(CÁLCULO!H$15,ROW($T46)-ROW(T$15),0) -> 0 | U46: 0 | V46: BDI 1 | W46: =IF($C46="S",ROUND(IF(TIPOORCAMENTO="Proposto",ORÇAMENTO.CustoUnitario*(1+$AH46),ORÇAMENTO.PrecoUnitarioLicitado),15-13*$AF$10),0) -> 0 | X46: 365.54 | Y46: RA | AA46: =IF($C46="S",IF($Z46="CP",$X46,IF($Z46="RA",(($X46)*QCI!$AA$3),0)),SomaAgrup) -> 365.54 | AB46: 0 | AC46: =IF($N46="","",IF(ORÇAMENTO.Descricao="","DESCRIÇÃO",IF(AND($C46="S",ORÇAMENTO.Unidade=""),"UNIDADE",IF($X46<0,"VALOR NEGATIVO",IF(OR(AND(TIPOORCAMENTO="Proposto",$AG46<>"",$AG46>0,ORÇAMENTO.CustoUnitario>$AG46),AND(TIPOORCAMENTO="LICITADO",ORÇAMENTO.PrecoUnitarioLicitado>$AN46)),"ACIMA REF.",""))))) ->  | AD46: =IF(C46<=CRONO.NivelExibicao,MAX($AD$15:OFFSET(AD46,-1,0))+IF($C46<>1,1,MAX(1,COUNTIF(QCI!$A$13:$A$24,OFFSET($E46,-1,0)))),"") -> 8 | AE46: =IF(AND($C46="S",ORÇAMENTO.CodBarra<>""),IF(ORÇAMENTO.Fonte="",ORÇAMENTO.CodBarra,CONCATENATE(ORÇAMENTO.Fonte," ",ORÇAMENTO.CodBarra))) -> FALSE | AF46: =IF(ISERROR(INDIRECT(ORÇAMENTO.BancoRef)),"(abra o arquivo 'Referência "&Excel_BuiltIn_Database&".xls)",IF(OR($C46<>"S",ORÇAMENTO.CodBarra=""),"(Sem Código)",IF(ISERROR(MATCH($AE46,INDIRECT(ORÇAMENTO.BancoRef),0)),"(Código não identificado nas referências)",MATCH($AE46,INDIRECT(ORÇAMENTO.BancoRef),0)))) -> (Sem Código) | AG46: =ROUND(IF(DESONERACAO="sim",REFERENCIA.Desonerado,REFERENCIA.NaoDesonerado),2) -> 0 | AH46: 0.2034 | AM46: 365.54 | AN46: 0
A47: S | B47: 2 | C47: S | D47: 0 | E47: =IF($C47=1,OFFSET(E47,-1,0)+MAX(1,COUNTIF(QCI!$A$13:$A$24,OFFSET(ORÇAMENTO!E47,-1,0))),OFFSET(E47,-1,0)) -> 1 | F47: 7 | G47: 0 | H47: 0 | I47: 1 | J47: =IF(OR($C47="S",$C47=0),0,MATCH(0,OFFSET($D47,1,$C47,ROW($C$90)-ROW($C47)),0)) -> 0 | K47: =IF(OR($C47="S",$C47=0),0,MATCH(OFFSET($D47,0,$C47)+IF($C47<>1,1,COUNTIF(QCI!$A$13:$A$24,ORÇAMENTO!E47)),OFFSET($D47,1,$C47,ROW($C$90)-ROW($C47)),0)) -> 0 | L47: F | M47: Serviço | N47: Serviço | O47: 1.7.0.1. | P47: SINAPI | Q47: 103330 | R47: =IF($C47="S",REFERENCIA.Descricao,"(digite a descrição aqui)") -> ALVENARIA DE VEDAÇÃO DE BLOCOS CERÂMICOS FURADOS NA HORIZONTAL DE 11,5X19X19 CM (ESPESSURA 11,5 CM) E ARGAMASSA DE ASSENTAMENTO COM PREPARO EM BETONEIRA. AF_12/2021 | S47: =REFERENCIA.Unidade -> M2 | T47: =OFFSET(CÁLCULO!H$15,ROW($T47)-ROW(T$15),0) -> 3.2 | U47: 94.92 | V47: BDI 1 | W47: =IF($C47="S",ROUND(IF(TIPOORCAMENTO="Proposto",ORÇAMENTO.CustoUnitario*(1+$AH47),ORÇAMENTO.PrecoUnitarioLicitado),15-13*$AF$10),0) -> 114.23 | X47: 365.54 | Y47: RA | Z47: RA | AA47: =IF($C47="S",IF($Z47="CP",$X47,IF($Z47="RA",(($X47)*QCI!$AA$3),0)),SomaAgrup) -> 365.54 | AB47: 0 | AC47: =IF($N47="","",IF(ORÇAMENTO.Descricao="","DESCRIÇÃO",IF(AND($C47="S",ORÇAMENTO.Unidade=""),"UNIDADE",IF($X47<0,"VALOR NEGATIVO",IF(OR(AND(TIPOORCAMENTO="Proposto",$AG47<>"",$AG47>0,ORÇAMENTO.CustoUnitario>$AG47),AND(TIPOORCAMENTO="LICITADO",ORÇAMENTO.PrecoUnitarioLicitado>$AN47)),"ACIMA REF.",""))))) ->  | AD47: =IF(C47<=CRONO.NivelExibicao,MAX($AD$15:OFFSET(AD47,-1,0))+IF($C47<>1,1,MAX(1,COUNTIF(QCI!$A$13:$A$24,OFFSET($E47,-1,0)))),"") ->  | AE47: =IF(AND($C47="S",ORÇAMENTO.CodBarra<>""),IF(ORÇAMENTO.Fonte="",ORÇAMENTO.CodBarra,CONCATENATE(ORÇAMENTO.Fonte," ",ORÇAMENTO.CodBarra))) -> SINAPI 103330 | AF47: =IF(ISERROR(INDIRECT(ORÇAMENTO.BancoRef)),"(abra o arquivo 'Referência "&Excel_BuiltIn_Database&".xls)",IF(OR($C47<>"S",ORÇAMENTO.CodBarra=""),"(Sem Código)",IF(ISERROR(MATCH($AE47,INDIRECT(ORÇAMENTO.BancoRef),0)),"(Código não identificado nas referências)",MATCH($AE47,INDIRECT(ORÇAMENTO.BancoRef),0)))) -> 5462 | AG47: =ROUND(IF(DESONERACAO="sim",REFERENCIA.Desonerado,REFERENCIA.NaoDesonerado),2) -> 94.92 | AH47: 0.2034 | AM47: 365.54 | AN47: 114.23
A48: 2 | B48: 2 | C48: 2 | D48: 3 | E48: =IF($C48=1,OFFSET(E48,-1,0)+MAX(1,COUNTIF(QCI!$A$13:$A$24,OFFSET(ORÇAMENTO!E48,-1,0))),OFFSET(E48,-1,0)) -> 1 | F48: 8 | G48: 0 | H48: 0 | I48: 0 | J48: =IF(OR($C48="S",$C48=0),0,MATCH(0,OFFSET($D48,1,$C48,ROW($C$90)-ROW($C48)),0)) -> 42 | K48: =IF(OR($C48="S",$C48=0),0,MATCH(OFFSET($D48,0,$C48)+IF($C48<>1,1,COUNTIF(QCI!$A$13:$A$24,ORÇAMENTO!E48)),OFFSET($D48,1,$C48,ROW($C$90)-ROW($C48)),0)) -> 3 | L48: F | M48: Nível 2 | N48: Nível 2 | O48: 1.8. | P48: SINAPI | R48: REVESTIMENTOS | S48: =REFERENCIA.Unidade -> - | T48: =OFFSET(CÁLCULO!H$15,ROW($T48)-ROW(T$15),0) -> 0 | U48: 0 | V48: BDI 1 | W48: =IF($C48="S",ROUND(IF(TIPOORCAMENTO="Proposto",ORÇAMENTO.CustoUnitario*(1+$AH48),ORÇAMENTO.PrecoUnitarioLicitado),15-13*$AF$10),0) -> 0 | X48: 176.06 | Y48: RA | AA48: =IF($C48="S",IF($Z48="CP",$X48,IF($Z48="RA",(($X48)*QCI!$AA$3),0)),SomaAgrup) -> 176.06 | AB48: 0 | AC48: =IF($N48="","",IF(ORÇAMENTO.Descricao="","DESCRIÇÃO",IF(AND($C48="S",ORÇAMENTO.Unidade=""),"UNIDADE",IF($X48<0,"VALOR NEGATIVO",IF(OR(AND(TIPOORCAMENTO="Proposto",$AG48<>"",$AG48>0,ORÇAMENTO.CustoUnitario>$AG48),AND(TIPOORCAMENTO="LICITADO",ORÇAMENTO.PrecoUnitarioLicitado>$AN48)),"ACIMA REF.",""))))) ->  | AD48: =IF(C48<=CRONO.NivelExibicao,MAX($AD$15:OFFSET(AD48,-1,0))+IF($C48<>1,1,MAX(1,COUNTIF(QCI!$A$13:$A$24,OFFSET($E48,-1,0)))),"") -> 9 | AE48: =IF(AND($C48="S",ORÇAMENTO.CodBarra<>""),IF(ORÇAMENTO.Fonte="",ORÇAMENTO.CodBarra,CONCATENATE(ORÇAMENTO.Fonte," ",ORÇAMENTO.CodBarra))) -> FALSE | AF48: =IF(ISERROR(INDIRECT(ORÇAMENTO.BancoRef)),"(abra o arquivo 'Referência "&Excel_BuiltIn_Database&".xls)",IF(OR($C48<>"S",ORÇAMENTO.CodBarra=""),"(Sem Código)",IF(ISERROR(MATCH($AE48,INDIRECT(ORÇAMENTO.BancoRef),0)),"(Código não identificado nas referências)",MATCH($AE48,INDIRECT(ORÇAMENTO.BancoRef),0)))) -> (Sem Código) | AG48: =ROUND(IF(DESONERACAO="sim",REFERENCIA.Desonerado,REFERENCIA.NaoDesonerado),2) -> 0 | AH48: 0.2034 | AM48: 176.06 | AN48: 0
A49: S | B49: 2 | C49: S | D49: 0 | E49: =IF($C49=1,OFFSET(E49,-1,0)+MAX(1,COUNTIF(QCI!$A$13:$A$24,OFFSET(ORÇAMENTO!E49,-1,0))),OFFSET(E49,-1,0)) -> 1 | F49: 8 | G49: 0 | H49: 0 | I49: 1 | J49: =IF(OR($C49="S",$C49=0),0,MATCH(0,OFFSET($D49,1,$C49,ROW($C$90)-ROW($C49)),0)) -> 0 | K49: =IF(OR($C49="S",$C49=0),0,MATCH(OFFSET($D49,0,$C49)+IF($C49<>1,1,COUNTIF(QCI!$A$13:$A$24,ORÇAMENTO!E49)),OFFSET($D49,1,$C49,ROW($C$90)-ROW($C49)),0)) -> 0 | L49: F | M49: Serviço | N49: Serviço | O49: 1.8.0.1. | P49: SINAPI | Q49: 87879 | R49: =IF($C49="S",REFERENCIA.Descricao,"(digite a descrição aqui)") -> CHAPISCO APLICADO EM ALVENARIAS E ESTRUTURAS DE CONCRETO INTERNAS, COM COLHER DE PEDREIRO. ARGAMASSA TRAÇO 1:3 COM PREPARO EM BETONEIRA 400L. AF_06/2014 | S49: =REFERENCIA.Unidade -> M2 | T49: =OFFSET(CÁLCULO!H$15,ROW($T49)-ROW(T$15),0) -> 7.18 | U49: 3.96 | V49: BDI 1 | W49: =IF($C49="S",ROUND(IF(TIPOORCAMENTO="Proposto",ORÇAMENTO.CustoUnitario*(1+$AH49),ORÇAMENTO.PrecoUnitarioLicitado),15-13*$AF$10),0) -> 4.77 | X49: 34.25 | Y49: RA | Z49: RA | AA49: =IF($C49="S",IF($Z49="CP",$X49,IF($Z49="RA",(($X49)*QCI!$AA$3),0)),SomaAgrup) -> 34.25 | AB49: 0 | AC49: =IF($N49="","",IF(ORÇAMENTO.Descricao="","DESCRIÇÃO",IF(AND($C49="S",ORÇAMENTO.Unidade=""),"UNIDADE",IF($X49<0,"VALOR NEGATIVO",IF(OR(AND(TIPOORCAMENTO="Proposto",$AG49<>"",$AG49>0,ORÇAMENTO.CustoUnitario>$AG49),AND(TIPOORCAMENTO="LICITADO",ORÇAMENTO.PrecoUnitarioLicitado>$AN49)),"ACIMA REF.",""))))) ->  | AD49: =IF(C49<=CRONO.NivelExibicao,MAX($AD$15:OFFSET(AD49,-1,0))+IF($C49<>1,1,MAX(1,COUNTIF(QCI!$A$13:$A$24,OFFSET($E49,-1,0)))),"") ->  | AE49: =IF(AND($C49="S",ORÇAMENTO.CodBarra<>""),IF(ORÇAMENTO.Fonte="",ORÇAMENTO.CodBarra,CONCATENATE(ORÇAMENTO.Fonte," ",ORÇAMENTO.CodBarra))) -> SINAPI 87879 | AF49: =IF(ISERROR(INDIRECT(ORÇAMENTO.BancoRef)),"(abra o arquivo 'Referência "&Excel_BuiltIn_Database&".xls)",IF(OR($C49<>"S",ORÇAMENTO.CodBarra=""),"(Sem Código)",IF(ISERROR(MATCH($AE49,INDIRECT(ORÇAMENTO.BancoRef),0)),"(Código não identificado nas referências)",MATCH($AE49,INDIRECT(ORÇAMENTO.BancoRef),0)))) -> 6020 | AG49: =ROUND(IF(DESONERACAO="sim",REFERENCIA.Desonerado,REFERENCIA.NaoDesonerado),2) -> 3.96 | AH49: 0.2034 | AM49: 34.25 | AN49: 4.77
A50: S | B50: 2 | C50: S | D50: 0 | E50: =IF($C50=1,OFFSET(E50,-1,0)+MAX(1,COUNTIF(QCI!$A$13:$A$24,OFFSET(ORÇAMENTO!E50,-1,0))),OFFSET(E50,-1,0)) -> 1 | F50: 8 | G50: 0 | H50: 0 | I50: 2 | J50: =IF(OR($C50="S",$C50=0),0,MATCH(0,OFFSET($D50,1,$C50,ROW($C$90)-ROW($C50)),0)) -> 0 | K50: =IF(OR($C50="S",$C50=0),0,MATCH(OFFSET($D50,0,$C50)+IF($C50<>1,1,COUNTIF(QCI!$A$13:$A$24,ORÇAMENTO!E50)),OFFSET($D50,1,$C50,ROW($C$90)-ROW($C50)),0)) -> 0 | L50: F | M50: Serviço | N50: Serviço | O50: 1.8.0.2. | P50: SINAPI | Q50: 87553 | R50: =IF($C50="S",REFERENCIA.Descricao,"(digite a descrição aqui)") -> EMBOÇO, PARA RECEBIMENTO DE CERÂMICA, EM ARGAMASSA TRAÇO 1:2:8, PREPARO MECÂNICO COM BETONEIRA 400L, APLICADO MANUALMENTE EM FACES INTERNAS DE PAREDES, PARA AMBIENTE COM ÁREA MAIOR QUE 10M2, ESPESSURA DE 10MM, COM EXECUÇÃO DE TALISCAS. AF_06/2014 | S50: =REFERENCIA.Unidade -> M2 | T50: =OFFSET(CÁLCULO!H$15,ROW($T50)-ROW(T$15),0) -> 7.18 | U50: 16.41 | V50: BDI 1 | W50: =IF($C50="S",ROUND(IF(TIPOORCAMENTO="Proposto",ORÇAMENTO.CustoUnitario*(1+$AH50),ORÇAMENTO.PrecoUnitarioLicitado),15-13*$AF$10),0) -> 19.75 | X50: 141.81 | Y50: RA | Z50: RA | AA50: =IF($C50="S",IF($Z50="CP",$X50,IF($Z50="RA",(($X50)*QCI!$AA$3),0)),SomaAgrup) -> 141.81 | AB50: 0 | AC50: =IF($N50="","",IF(ORÇAMENTO.Descricao="","DESCRIÇÃO",IF(AND($C50="S",ORÇAMENTO.Unidade=""),"UNIDADE",IF($X50<0,"VALOR NEGATIVO",IF(OR(AND(TIPOORCAMENTO="Proposto",$AG50<>"",$AG50>0,ORÇAMENTO.CustoUnitario>$AG50),AND(TIPOORCAMENTO="LICITADO",ORÇAMENTO.PrecoUnitarioLicitado>$AN50)),"ACIMA REF.",""))))) ->  | AD50: =IF(C50<=CRONO.NivelExibicao,MAX($AD$15:OFFSET(AD50,-1,0))+IF($C50<>1,1,MAX(1,COUNTIF(QCI!$A$13:$A$24,OFFSET($E50,-1,0)))),"") ->  | AE50: =IF(AND($C50="S",ORÇAMENTO.CodBarra<>""),IF(ORÇAMENTO.Fonte="",ORÇAMENTO.CodBarra,CONCATENATE(ORÇAMENTO.Fonte," ",ORÇAMENTO.CodBarra))) -> SINAPI 87553 | AF50: =IF(ISERROR(INDIRECT(ORÇAMENTO.BancoRef)),"(abra o arquivo 'Referência "&Excel_BuiltIn_Database&".xls)",IF(OR($C50<>"S",ORÇAMENTO.CodBarra=""),"(Sem Código)",IF(ISERROR(MATCH($AE50,INDIRECT(ORÇAMENTO.BancoRef),0)),"(Código não identificado nas referências)",MATCH($AE50,INDIRECT(ORÇAMENTO.BancoRef),0)))) -> 6094 | AG50: =ROUND(IF(DESONERACAO="sim",REFERENCIA.Desonerado,REFERENCIA.NaoDesonerado),2) -> 16.41 | AH50: 0.2034 | AM50: 141.81 | AN50: 19.75
A51: 2 | B51: 2 | C51: 2 | D51: 2 | E51: =IF($C51=1,OFFSET(E51,-1,0)+MAX(1,COUNTIF(QCI!$A$13:$A$24,OFFSET(ORÇAMENTO!E51,-1,0))),OFFSET(E51,-1,0)) -> 1 | F51: 9 | G51: 0 | H51: 0 | I51: 0 | J51: =IF(OR($C51="S",$C51=0),0,MATCH(0,OFFSET($D51,1,$C51,ROW($C$90)-ROW($C51)),0)) -> 39 | K51: =IF(OR($C51="S",$C51=0),0,MATCH(OFFSET($D51,0,$C51)+IF($C51<>1,1,COUNTIF(QCI!$A$13:$A$24,ORÇAMENTO!E51)),OFFSET($D51,1,$C51,ROW($C$90)-ROW($C51)),0)) -> 2 | L51: F | M51: Nível 2 | N51: Nível 2 | O51: 1.9. | P51: SINAPI | R51: PAVIMENTAÇÃO | S51: =REFERENCIA.Unidade -> - | T51: =OFFSET(CÁLCULO!H$15,ROW($T51)-ROW(T$15),0) -> 0 | U51: 0 | V51: BDI 1 | W51: =IF($C51="S",ROUND(IF(TIPOORCAMENTO="Proposto",ORÇAMENTO.CustoUnitario*(1+$AH51),ORÇAMENTO.PrecoUnitarioLicitado),15-13*$AF$10),0) -> 0 | X51: 29864 | Y51: RA | AA51: =IF($C51="S",IF($Z51="CP",$X51,IF($Z51="RA",(($X51)*QCI!$AA$3),0)),SomaAgrup) -> 29864 | AB51: 0 | AC51: =IF($N51="","",IF(ORÇAMENTO.Descricao="","DESCRIÇÃO",IF(AND($C51="S",ORÇAMENTO.Unidade=""),"UNIDADE",IF($X51<0,"VALOR NEGATIVO",IF(OR(AND(TIPOORCAMENTO="Proposto",$AG51<>"",$AG51>0,ORÇAMENTO.CustoUnitario>$AG51),AND(TIPOORCAMENTO="LICITADO",ORÇAMENTO.PrecoUnitarioLicitado>$AN51)),"ACIMA REF.",""))))) ->  | AD51: =IF(C51<=CRONO.NivelExibicao,MAX($AD$15:OFFSET(AD51,-1,0))+IF($C51<>1,1,MAX(1,COUNTIF(QCI!$A$13:$A$24,OFFSET($E51,-1,0)))),"") -> 10 | AE51: =IF(AND($C51="S",ORÇAMENTO.CodBarra<>""),IF(ORÇAMENTO.Fonte="",ORÇAMENTO.CodBarra,CONCATENATE(ORÇAMENTO.Fonte," ",ORÇAMENTO.CodBarra))) -> FALSE | AF51: =IF(ISERROR(INDIRECT(ORÇAMENTO.BancoRef)),"(abra o arquivo 'Referência "&Excel_BuiltIn_Database&".xls)",IF(OR($C51<>"S",ORÇAMENTO.CodBarra=""),"(Sem Código)",IF(ISERROR(MATCH($AE51,INDIRECT(ORÇAMENTO.BancoRef),0)),"(Código não identificado nas referências)",MATCH($AE51,INDIRECT(ORÇAMENTO.BancoRef),0)))) -> (Sem Código) | AG51: =ROUND(IF(DESONERACAO="sim",REFERENCIA.Desonerado,REFERENCIA.NaoDesonerado),2) -> 0 | AH51: 0.2034 | AM51: 29864 | AN51: 0
A52: S | B52: 2 | C52: S | D52: 0 | E52: =IF($C52=1,OFFSET(E52,-1,0)+MAX(1,COUNTIF(QCI!$A$13:$A$24,OFFSET(ORÇAMENTO!E52,-1,0))),OFFSET(E52,-1,0)) -> 1 | F52: 9 | G52: 0 | H52: 0 | I52: 1 | J52: =IF(OR($C52="S",$C52=0),0,MATCH(0,OFFSET($D52,1,$C52,ROW($C$90)-ROW($C52)),0)) -> 0 | K52: =IF(OR($C52="S",$C52=0),0,MATCH(OFFSET($D52,0,$C52)+IF($C52<>1,1,COUNTIF(QCI!$A$13:$A$24,ORÇAMENTO!E52)),OFFSET($D52,1,$C52,ROW($C$90)-ROW($C52)),0)) -> 0 | L52: F | M52: Serviço | N52: Serviço | O52: 1.9.0.1. | P52: SINAPI | Q52: 88478 | R52: =IF($C52="S",REFERENCIA.Descricao,"(digite a descrição aqui)") -> CONTRAPISO COM ARGAMASSA AUTONIVELANTE, APLICADO SOBRE LAJE, ADERIDO, ESPESSURA 4CM. AF_07/2021 | S52: =REFERENCIA.Unidade -> M2 | T52: =OFFSET(CÁLCULO!H$15,ROW($T52)-ROW(T$15),0) -> 800 | U52: 31.02 | V52: BDI 1 | W52: =IF($C52="S",ROUND(IF(TIPOORCAMENTO="Proposto",ORÇAMENTO.CustoUnitario*(1+$AH52),ORÇAMENTO.PrecoUnitarioLicitado),15-13*$AF$10),0) -> 37.33 | X52: 29864 | Y52: RA | Z52: RA | AA52: =IF($C52="S",IF($Z52="CP",$X52,IF($Z52="RA",(($X52)*QCI!$AA$3),0)),SomaAgrup) -> 29864 | AB52: 0 | AC52: =IF($N52="","",IF(ORÇAMENTO.Descricao="","DESCRIÇÃO",IF(AND($C52="S",ORÇAMENTO.Unidade=""),"UNIDADE",IF($X52<0,"VALOR NEGATIVO",IF(OR(AND(TIPOORCAMENTO="Proposto",$AG52<>"",$AG52>0,ORÇAMENTO.CustoUnitario>$AG52),AND(TIPOORCAMENTO="LICITADO",ORÇAMENTO.PrecoUnitarioLicitado>$AN52)),"ACIMA REF.",""))))) ->  | AD52: =IF(C52<=CRONO.NivelExibicao,MAX($AD$15:OFFSET(AD52,-1,0))+IF($C52<>1,1,MAX(1,COUNTIF(QCI!$A$13:$A$24,OFFSET($E52,-1,0)))),"") ->  | AE52: =IF(AND($C52="S",ORÇAMENTO.CodBarra<>""),IF(ORÇAMENTO.Fonte="",ORÇAMENTO.CodBarra,CONCATENATE(ORÇAMENTO.Fonte," ",ORÇAMENTO.CodBarra))) -> SINAPI 88478 | AF52: =IF(ISERROR(INDIRECT(ORÇAMENTO.BancoRef)),"(abra o arquivo 'Referência "&Excel_BuiltIn_Database&".xls)",IF(OR($C52<>"S",ORÇAMENTO.CodBarra=""),"(Sem Código)",IF(ISERROR(MATCH($AE52,INDIRECT(ORÇAMENTO.BancoRef),0)),"(Código não identificado nas referências)",MATCH($AE52,INDIRECT(ORÇAMENTO.BancoRef),0)))) -> 5994 | AG52: =ROUND(IF(DESONERACAO="sim",REFERENCIA.Desonerado,REFERENCIA.NaoDesonerado),2) -> 31.02 | AH52: 0.2034 | AM52: 29864 | AN52: 37.33
A53: =CHOOSE(1+LOG(1+2*(ORÇAMENTO.Nivel="Meta")+4*(ORÇAMENTO.Nivel="Nível 2")+8*(ORÇAMENTO.Nivel="Nível 3")+16*(ORÇAMENTO.Nivel="Nível 4")+32*(ORÇAMENTO.Nivel="Serviço"),2),0,1,2,3,4,"S") -> 2 | B53: =IF(OR(C53="s",C53=0),OFFSET(B53,-1,0),C53) -> 2 | C53: =IF(OFFSET(C53,-1,0)="L",1,IF(OFFSET(C53,-1,0)=1,2,IF(OR(A53="s",A53=0),"S",IF(AND(OFFSET(C53,-1,0)=2,A53=4),3,IF(AND(OR(OFFSET(C53,-1,0)="s",OFFSET(C53,-1,0)=0),A53<>"s",A53>OFFSET(B53,-1,0)),OFFSET(B53,-1,0),A53))))) -> 2 | D53: =IF(OR(C53="S",C53=0),0,IF(ISERROR(K53),J53,SMALL(J53:K53,1))) -> 6 | E53: =IF($C53=1,OFFSET(E53,-1,0)+MAX(1,COUNTIF(QCI!$A$13:$A$24,OFFSET(ORÇAMENTO!E53,-1,0))),OFFSET(E53,-1,0)) -> 1 | F53: =IF($C53=1,0,IF($C53=2,OFFSET(F53,-1,0)+1,OFFSET(F53,-1,0))) -> 10 | G53: =IF(AND($C53<=2,$C53<>0),0,IF($C53=3,OFFSET(G53,-1,0)+1,OFFSET(G53,-1,0))) -> 0 | H53: =IF(AND($C53<=3,$C53<>0),0,IF($C53=4,OFFSET(H53,-1,0)+1,OFFSET(H53,-1,0))) -> 0 | I53: =IF(AND($C53<=4,$C53<>0),0,IF(AND($C53="S",$X53>0),OFFSET(I53,-1,0)+1,OFFSET(I53,-1,0))) -> 0 | J53: =IF(OR($C53="S",$C53=0),0,MATCH(0,OFFSET($D53,1,$C53,ROW($C$90)-ROW($C53)),0)) -> 37 | K53: =IF(OR($C53="S",$C53=0),0,MATCH(OFFSET($D53,0,$C53)+IF($C53<>1,1,COUNTIF(QCI!$A$13:$A$24,ORÇAMENTO!E53)),OFFSET($D53,1,$C53,ROW($C$90)-ROW($C53)),0)) -> 6 | L53: =IF(OR($X53>0,$C53=1,$C53=2,$C53=3,$C53=4),"F","") -> F | M53: Nível 2 | N53: =CHOOSE(1+LOG(1+2*(C53=1)+4*(C53=2)+8*(C53=3)+16*(C53=4)+32*(C53="S"),2),"","Meta","Nível 2","Nível 3","Nível 4","Serviço") -> Nível 2 | O53: =IF(OR($C53=0,$L53=""),"-",CONCATENATE(E53&".",IF(AND($A$5>=2,$C53>=2),F53&".",""),IF(AND($A$5>=3,$C53>=3),G53&".",""),IF(AND($A$5>=4,$C53>=4),H53&".",""),IF($C53="S",I53&".",""))) -> 1.10. | P53: SINAPI | R53: COBERTURA | S53: =REFERENCIA.Unidade -> - | T53: =OFFSET(CÁLCULO!H$15,ROW($T53)-ROW(T$15),0) -> 0 | U53: 0 | V53: BDI 1 | W53: =IF($C53="S",ROUND(IF(TIPOORCAMENTO="Proposto",ORÇAMENTO.CustoUnitario*(1+$AH53),ORÇAMENTO.PrecoUnitarioLicitado),15-13*$AF$10),0) -> 0 | X53: =IF($C53="S",VTOTAL1,IF($C53=0,0,ROUND(SomaAgrup,15-13*$AF$11))) -> 408117.14 | Y53: RA | Z53: =IF(AND($C53="S",$X53>0),IF(ISBLANK($Y53),"RA",LEFT($Y53,2)),"") ->  | AA53: =IF($C53="S",IF($Z53="CP",$X53,IF($Z53="RA",(($X53)*QCI!$AA$3),0)),SomaAgrup) -> 408117.14 | AB53: =IF($C53="S",IF($Z53="OU",ROUND($X53,2),0),SomaAgrup) -> 0 | AC53: =IF($N53="","",IF(ORÇAMENTO.Descricao="","DESCRIÇÃO",IF(AND($C53="S",ORÇAMENTO.Unidade=""),"UNIDADE",IF($X53<0,"VALOR NEGATIVO",IF(OR(AND(TIPOORCAMENTO="Proposto",$AG53<>"",$AG53>0,ORÇAMENTO.CustoUnitario>$AG53),AND(TIPOORCAMENTO="LICITADO",ORÇAMENTO.PrecoUnitarioLicitado>$AN53)),"ACIMA REF.",""))))) ->  | AD53: =IF(C53<=CRONO.NivelExibicao,MAX($AD$15:OFFSET(AD53,-1,0))+IF($C53<>1,1,MAX(1,COUNTIF(QCI!$A$13:$A$24,OFFSET($E53,-1,0)))),"") -> 11 | AE53: =IF(AND($C53="S",ORÇAMENTO.CodBarra<>""),IF(ORÇAMENTO.Fonte="",ORÇAMENTO.CodBarra,CONCATENATE(ORÇAMENTO.Fonte," ",ORÇAMENTO.CodBarra))) -> FALSE | AF53: =IF(ISERROR(INDIRECT(ORÇAMENTO.BancoRef)),"(abra o arquivo 'Referência "&Excel_BuiltIn_Database&".xls)",IF(OR($C53<>"S",ORÇAMENTO.CodBarra=""),"(Sem Código)",IF(ISERROR(MATCH($AE53,INDIRECT(ORÇAMENTO.BancoRef),0)),"(Código não identificado nas referências)",MATCH($AE53,INDIRECT(ORÇAMENTO.BancoRef),0)))) -> (Sem Código) | AG53: =ROUND(IF(DESONERACAO="sim",REFERENCIA.Desonerado,REFERENCIA.NaoDesonerado),2) -> 0 | AH53: =ROUND(IF(ISNUMBER(ORÇAMENTO.OpcaoBDI),ORÇAMENTO.OpcaoBDI,IF(LEFT(ORÇAMENTO.OpcaoBDI,3)="BDI",HLOOKUP(ORÇAMENTO.OpcaoBDI,$F$4:$H$5,2,FALSE),0)),15-11*$AF$9) -> 0.2034 | AM53: =$X53 -> 408117.14 | AN53: =ROUND(ORÇAMENTO.CustoUnitario*(1+$AH53),2) -> 0
A54: S | B54: 2 | C54: S | D54: 0 | E54: =IF($C54=1,OFFSET(E54,-1,0)+MAX(1,COUNTIF(QCI!$A$13:$A$24,OFFSET(ORÇAMENTO!E54,-1,0))),OFFSET(E54,-1,0)) -> 1 | F54: 10 | G54: 0 | H54: 0 | I54: 1 | J54: =IF(OR($C54="S",$C54=0),0,MATCH(0,OFFSET($D54,1,$C54,ROW($C$90)-ROW($C54)),0)) -> 0 | K54: =IF(OR($C54="S",$C54=0),0,MATCH(OFFSET($D54,0,$C54)+IF($C54<>1,1,COUNTIF(QCI!$A$13:$A$24,ORÇAMENTO!E54)),OFFSET($D54,1,$C54,ROW($C$90)-ROW($C54)),0)) -> 0 | L54: F | M54: Serviço | N54: Serviço | O54: 1.10.0.1. | P54: SINAPI | Q54: 100763 | R54: =IF($C54="S",REFERENCIA.Descricao,"(digite a descrição aqui)") -> VIGA METÁLICA EM PERFIL LAMINADO OU SOLDADO EM AÇO ESTRUTURAL, COM CONEXÕES PARAFUSADAS, INCLUSOS MÃO DE OBRA, TRANSPORTE E IÇAMENTO UTILIZANDO GUINDASTE - FORNECIMENTO E INSTALAÇÃO. AF_01/2020_P | S54: KG | T54: =OFFSET(CÁLCULO!H$15,ROW($T54)-ROW(T$15),0) -> 9896.83 | U54: =AG54 -> 18.2 | V54: BDI 1 | W54: =IF($C54="S",ROUND(IF(TIPOORCAMENTO="Proposto",ORÇAMENTO.CustoUnitario*(1+$AH54),ORÇAMENTO.PrecoUnitarioLicitado),15-13*$AF$10),0) -> 21.9 | X54: 216740.58 | Y54: RA | Z54: RA | AA54: =IF($C54="S",IF($Z54="CP",$X54,IF($Z54="RA",(($X54)*QCI!$AA$3),0)),SomaAgrup) -> 216740.58 | AB54: 0 | AC54: =IF($N54="","",IF(ORÇAMENTO.Descricao="","DESCRIÇÃO",IF(AND($C54="S",ORÇAMENTO.Unidade=""),"UNIDADE",IF($X54<0,"VALOR NEGATIVO",IF(OR(AND(TIPOORCAMENTO="Proposto",$AG54<>"",$AG54>0,ORÇAMENTO.CustoUnitario>$AG54),AND(TIPOORCAMENTO="LICITADO",ORÇAMENTO.PrecoUnitarioLicitado>$AN54)),"ACIMA REF.",""))))) ->  | AD54: =IF(C54<=CRONO.NivelExibicao,MAX($AD$15:OFFSET(AD54,-1,0))+IF($C54<>1,1,MAX(1,COUNTIF(QCI!$A$13:$A$24,OFFSET($E54,-1,0)))),"") ->  | AE54: =IF(AND($C54="S",ORÇAMENTO.CodBarra<>""),IF(ORÇAMENTO.Fonte="",ORÇAMENTO.CodBarra,CONCATENATE(ORÇAMENTO.Fonte," ",ORÇAMENTO.CodBarra))) -> SINAPI 100763 | AF54: =IF(ISERROR(INDIRECT(ORÇAMENTO.BancoRef)),"(abra o arquivo 'Referência "&Excel_BuiltIn_Database&".xls)",IF(OR($C54<>"S",ORÇAMENTO.CodBarra=""),"(Sem Código)",IF(ISERROR(MATCH($AE54,INDIRECT(ORÇAMENTO.BancoRef),0)),"(Código não identificado nas referências)",MATCH($AE54,INDIRECT(ORÇAMENTO.BancoRef),0)))) -> 2669 | AG54: 18.2 | AH54: 0.2034 | AM54: 216740.58 | AN54: 21.9
A55: S | B55: 2 | C55: S | D55: 0 | E55: =IF($C55=1,OFFSET(E55,-1,0)+MAX(1,COUNTIF(QCI!$A$13:$A$24,OFFSET(ORÇAMENTO!E55,-1,0))),OFFSET(E55,-1,0)) -> 1 | F55: 10 | G55: 0 | H55: 0 | I55: 2 | J55: =IF(OR($C55="S",$C55=0),0,MATCH(0,OFFSET($D55,1,$C55,ROW($C$90)-ROW($C55)),0)) -> 0 | K55: =IF(OR($C55="S",$C55=0),0,MATCH(OFFSET($D55,0,$C55)+IF($C55<>1,1,COUNTIF(QCI!$A$13:$A$24,ORÇAMENTO!E55)),OFFSET($D55,1,$C55,ROW($C$90)-ROW($C55)),0)) -> 0 | L55: F | M55: Serviço | N55: Serviço | O55: 1.10.0.2. | P55: SINAPI | Q55: 94213 | R55: =IF($C55="S",REFERENCIA.Descricao,"(digite a descrição aqui)") -> TELHAMENTO COM TELHA DE AÇO/ALUMÍNIO E = 0,5 MM, COM ATÉ 2 ÁGUAS, INCLUSO IÇAMENTO. AF_07/2019 | S55: M2 | T55: =OFFSET(CÁLCULO!H$15,ROW($T55)-ROW(T$15),0) -> 792 | U55: 95.56 | V55: BDI 1 | W55: =IF($C55="S",ROUND(IF(TIPOORCAMENTO="Proposto",ORÇAMENTO.CustoUnitario*(1+$AH55),ORÇAMENTO.PrecoUnitarioLicitado),15-13*$AF$10),0) -> 115 | X55: 91080 | Y55: RA | Z55: RA | AA55: =IF($C55="S",IF($Z55="CP",$X55,IF($Z55="RA",(($X55)*QCI!$AA$3),0)),SomaAgrup) -> 91080 | AB55: 0 | AC55: =IF($N55="","",IF(ORÇAMENTO.Descricao="","DESCRIÇÃO",IF(AND($C55="S",ORÇAMENTO.Unidade=""),"UNIDADE",IF($X55<0,"VALOR NEGATIVO",IF(OR(AND(TIPOORCAMENTO="Proposto",$AG55<>"",$AG55>0,ORÇAMENTO.CustoUnitario>$AG55),AND(TIPOORCAMENTO="LICITADO",ORÇAMENTO.PrecoUnitarioLicitado>$AN55)),"ACIMA REF.",""))))) ->  | AD55: =IF(C55<=CRONO.NivelExibicao,MAX($AD$15:OFFSET(AD55,-1,0))+IF($C55<>1,1,MAX(1,COUNTIF(QCI!$A$13:$A$24,OFFSET($E55,-1,0)))),"") ->  | AE55: =IF(AND($C55="S",ORÇAMENTO.CodBarra<>""),IF(ORÇAMENTO.Fonte="",ORÇAMENTO.CodBarra,CONCATENATE(ORÇAMENTO.Fonte," ",ORÇAMENTO.CodBarra))) -> SINAPI 94213 | AF55: =IF(ISERROR(INDIRECT(ORÇAMENTO.BancoRef)),"(abra o arquivo 'Referência "&Excel_BuiltIn_Database&".xls)",IF(OR($C55<>"S",ORÇAMENTO.CodBarra=""),"(Sem Código)",IF(ISERROR(MATCH($AE55,INDIRECT(ORÇAMENTO.BancoRef),0)),"(Código não identificado nas referências)",MATCH($AE55,INDIRECT(ORÇAMENTO.BancoRef),0)))) -> 1358 | AG55: 95.56 | AH55: 0.2034 | AM55: 91080 | AN55: 115
A56: S | B56: 2 | C56: S | D56: 0 | E56: =IF($C56=1,OFFSET(E56,-1,0)+MAX(1,COUNTIF(QCI!$A$13:$A$24,OFFSET(ORÇAMENTO!E56,-1,0))),OFFSET(E56,-1,0)) -> 1 | F56: 10 | G56: 0 | H56: 0 | I56: 3 | J56: =IF(OR($C56="S",$C56=0),0,MATCH(0,OFFSET($D56,1,$C56,ROW($C$90)-ROW($C56)),0)) -> 0 | K56: =IF(OR($C56="S",$C56=0),0,MATCH(OFFSET($D56,0,$C56)+IF($C56<>1,1,COUNTIF(QCI!$A$13:$A$24,ORÇAMENTO!E56)),OFFSET($D56,1,$C56,ROW($C$90)-ROW($C56)),0)) -> 0 | L56: F | M56: Serviço | N56: Serviço | O56: 1.10.0.3. | P56: SINAPI | Q56: 100327 | R56: =IF($C56="S",REFERENCIA.Descricao,"(digite a descrição aqui)") -> RUFO EXTERNO/INTERNO EM CHAPA DE AÇO GALVANIZADO NÚMERO 26, CORTE DE 33 CM, INCLUSO IÇAMENTO. AF_07/2019 | S56: M | T56: =OFFSET(CÁLCULO!H$15,ROW($T56)-ROW(T$15),0) -> 39.6 | U56: 64.46 | V56: BDI 1 | W56: =IF($C56="S",ROUND(IF(TIPOORCAMENTO="Proposto",ORÇAMENTO.CustoUnitario*(1+$AH56),ORÇAMENTO.PrecoUnitarioLicitado),15-13*$AF$10),0) -> 77.57 | X56: 3071.77 | Y56: RA | Z56: RA | AA56: =IF($C56="S",IF($Z56="CP",$X56,IF($Z56="RA",(($X56)*QCI!$AA$3),0)),SomaAgrup) -> 3071.77 | AB56: 0 | AC56: =IF($N56="","",IF(ORÇAMENTO.Descricao="","DESCRIÇÃO",IF(AND($C56="S",ORÇAMENTO.Unidade=""),"UNIDADE",IF($X56<0,"VALOR NEGATIVO",IF(OR(AND(TIPOORCAMENTO="Proposto",$AG56<>"",$AG56>0,ORÇAMENTO.CustoUnitario>$AG56),AND(TIPOORCAMENTO="LICITADO",ORÇAMENTO.PrecoUnitarioLicitado>$AN56)),"ACIMA REF.",""))))) ->  | AD56: =IF(C56<=CRONO.NivelExibicao,MAX($AD$15:OFFSET(AD56,-1,0))+IF($C56<>1,1,MAX(1,COUNTIF(QCI!$A$13:$A$24,OFFSET($E56,-1,0)))),"") ->  | AE56: =IF(AND($C56="S",ORÇAMENTO.CodBarra<>""),IF(ORÇAMENTO.Fonte="",ORÇAMENTO.CodBarra,CONCATENATE(ORÇAMENTO.Fonte," ",ORÇAMENTO.CodBarra))) -> SINAPI 100327 | AF56: =IF(ISERROR(INDIRECT(ORÇAMENTO.BancoRef)),"(abra o arquivo 'Referência "&Excel_BuiltIn_Database&".xls)",IF(OR($C56<>"S",ORÇAMENTO.CodBarra=""),"(Sem Código)",IF(ISERROR(MATCH($AE56,INDIRECT(ORÇAMENTO.BancoRef),0)),"(Código não identificado nas referências)",MATCH($AE56,INDIRECT(ORÇAMENTO.BancoRef),0)))) -> 1367 | AG56: 64.46 | AH56: 0.2034 | AM56: 3071.77 | AN56: 77.57
A57: S | B57: 2 | C57: S | D57: 0 | E57: =IF($C57=1,OFFSET(E57,-1,0)+MAX(1,COUNTIF(QCI!$A$13:$A$24,OFFSET(ORÇAMENTO!E57,-1,0))),OFFSET(E57,-1,0)) -> 1 | F57: 10 | G57: 0 | H57: 0 | I57: 4 | J57: =IF(OR($C57="S",$C57=0),0,MATCH(0,OFFSET($D57,1,$C57,ROW($C$90)-ROW($C57)),0)) -> 0 | K57: =IF(OR($C57="S",$C57=0),0,MATCH(OFFSET($D57,0,$C57)+IF($C57<>1,1,COUNTIF(QCI!$A$13:$A$24,ORÇAMENTO!E57)),OFFSET($D57,1,$C57,ROW($C$90)-ROW($C57)),0)) -> 0 | L57: F | M57: Serviço | N57: Serviço | O57: 1.10.0.4. | P57: SINAPI | Q57: 94228 | R57: CALHA EM CHAPA DE AÇO GALVANIZADO NÚMERO 24, DESENVOLVIMENTO DE 60 CM, INCLUSO TRANSPORTE VERTICAL. AF_07/2019 | S57: M | T57: =OFFSET(CÁLCULO!H$15,ROW($T57)-ROW(T$15),0) -> 79.2 | U57: 97.25 | V57: BDI 1 | W57: =IF($C57="S",ROUND(IF(TIPOORCAMENTO="Proposto",ORÇAMENTO.CustoUnitario*(1+$AH57),ORÇAMENTO.PrecoUnitarioLicitado),15-13*$AF$10),0) -> 117.03 | X57: 9268.78 | Y57: RA | Z57: RA | AA57: =IF($C57="S",IF($Z57="CP",$X57,IF($Z57="RA",(($X57)*QCI!$AA$3),0)),SomaAgrup) -> 9268.78 | AB57: 0 | AC57: =IF($N57="","",IF(ORÇAMENTO.Descricao="","DESCRIÇÃO",IF(AND($C57="S",ORÇAMENTO.Unidade=""),"UNIDADE",IF($X57<0,"VALOR NEGATIVO",IF(OR(AND(TIPOORCAMENTO="Proposto",$AG57<>"",$AG57>0,ORÇAMENTO.CustoUnitario>$AG57),AND(TIPOORCAMENTO="LICITADO",ORÇAMENTO.PrecoUnitarioLicitado>$AN57)),"ACIMA REF.",""))))) ->  | AD57: =IF(C57<=CRONO.NivelExibicao,MAX($AD$15:OFFSET(AD57,-1,0))+IF($C57<>1,1,MAX(1,COUNTIF(QCI!$A$13:$A$24,OFFSET($E57,-1,0)))),"") ->  | AE57: =IF(AND($C57="S",ORÇAMENTO.CodBarra<>""),IF(ORÇAMENTO.Fonte="",ORÇAMENTO.CodBarra,CONCATENATE(ORÇAMENTO.Fonte," ",ORÇAMENTO.CodBarra))) -> SINAPI 94228 | AF57: =IF(ISERROR(INDIRECT(ORÇAMENTO.BancoRef)),"(abra o arquivo 'Referência "&Excel_BuiltIn_Database&".xls)",IF(OR($C57<>"S",ORÇAMENTO.CodBarra=""),"(Sem Código)",IF(ISERROR(MATCH($AE57,INDIRECT(ORÇAMENTO.BancoRef),0)),"(Código não identificado nas referências)",MATCH($AE57,INDIRECT(ORÇAMENTO.BancoRef),0)))) -> 1375 | AG57: 97.25 | AH57: 0.2034 | AM57: 9268.78 | AN57: 117.03
A58: =CHOOSE(1+LOG(1+2*(ORÇAMENTO.Nivel="Meta")+4*(ORÇAMENTO.Nivel="Nível 2")+8*(ORÇAMENTO.Nivel="Nível 3")+16*(ORÇAMENTO.Nivel="Nível 4")+32*(ORÇAMENTO.Nivel="Serviço"),2),0,1,2,3,4,"S") -> S | B58: =IF(OR(C58="s",C58=0),OFFSET(B58,-1,0),C58) -> 2 | C58: =IF(OFFSET(C58,-1,0)="L",1,IF(OFFSET(C58,-1,0)=1,2,IF(OR(A58="s",A58=0),"S",IF(AND(OFFSET(C58,-1,0)=2,A58=4),3,IF(AND(OR(OFFSET(C58,-1,0)="s",OFFSET(C58,-1,0)=0),A58<>"s",A58>OFFSET(B58,-1,0)),OFFSET(B58,-1,0),A58))))) -> S | D58: =IF(OR(C58="S",C58=0),0,IF(ISERROR(K58),J58,SMALL(J58:K58,1))) -> 0 | E58: =IF($C58=1,OFFSET(E58,-1,0)+MAX(1,COUNTIF(QCI!$A$13:$A$24,OFFSET(ORÇAMENTO!E58,-1,0))),OFFSET(E58,-1,0)) -> 1 | F58: =IF($C58=1,0,IF($C58=2,OFFSET(F58,-1,0)+1,OFFSET(F58,-1,0))) -> 10 | G58: =IF(AND($C58<=2,$C58<>0),0,IF($C58=3,OFFSET(G58,-1,0)+1,OFFSET(G58,-1,0))) -> 0 | H58: =IF(AND($C58<=3,$C58<>0),0,IF($C58=4,OFFSET(H58,-1,0)+1,OFFSET(H58,-1,0))) -> 0 | I58: =IF(AND($C58<=4,$C58<>0),0,IF(AND($C58="S",$X58>0),OFFSET(I58,-1,0)+1,OFFSET(I58,-1,0))) -> 5 | J58: =IF(OR($C58="S",$C58=0),0,MATCH(0,OFFSET($D58,1,$C58,ROW($C$90)-ROW($C58)),0)) -> 0 | K58: =IF(OR($C58="S",$C58=0),0,MATCH(OFFSET($D58,0,$C58)+IF($C58<>1,1,COUNTIF(QCI!$A$13:$A$24,ORÇAMENTO!E58)),OFFSET($D58,1,$C58,ROW($C$90)-ROW($C58)),0)) -> 0 | L58: =IF(OR($X58>0,$C58=1,$C58=2,$C58=3,$C58=4),"F","") -> F | M58: Serviço | N58: =CHOOSE(1+LOG(1+2*(C58=1)+4*(C58=2)+8*(C58=3)+16*(C58=4)+32*(C58="S"),2),"","Meta","Nível 2","Nível 3","Nível 4","Serviço") -> Serviço | O58: =IF(OR($C58=0,$L58=""),"-",CONCATENATE(E58&".",IF(AND($A$5>=2,$C58>=2),F58&".",""),IF(AND($A$5>=3,$C58>=3),G58&".",""),IF(AND($A$5>=4,$C58>=4),H58&".",""),IF($C58="S",I58&".",""))) -> 1.10.0.5. | P58: Composição | Q58: 11 | R58: =IF($C58="S",REFERENCIA.Descricao,"(digite a descrição aqui)") -> FECHAMENTO LATERAL COM TELHA TRAPEZOIDAL EM AÇO ZINCADO, INCLUSO IÇAMENTO. AF_07/2019 (REF. SINAPI-C 94216) | S58: =REFERENCIA.Unidade -> M2 | T58: =OFFSET(CÁLCULO!H$15,ROW($T58)-ROW(T$15),0) -> 589.32 | U58: 124.02 | V58: BDI 1 | W58: =IF($C58="S",ROUND(IF(TIPOORCAMENTO="Proposto",ORÇAMENTO.CustoUnitario*(1+$AH58),ORÇAMENTO.PrecoUnitarioLicitado),15-13*$AF$10),0) -> 149.25 | X58: =IF($C58="S",VTOTAL1,IF($C58=0,0,ROUND(SomaAgrup,15-13*$AF$11))) -> 87956.01 | Y58: RA | Z58: =IF(AND($C58="S",$X58>0),IF(ISBLANK($Y58),"RA",LEFT($Y58,2)),"") -> RA | AA58: =IF($C58="S",IF($Z58="CP",$X58,IF($Z58="RA",(($X58)*QCI!$AA$3),0)),SomaAgrup) -> 87956.01 | AB58: =IF($C58="S",IF($Z58="OU",ROUND($X58,2),0),SomaAgrup) -> 0 | AC58: =IF($N58="","",IF(ORÇAMENTO.Descricao="","DESCRIÇÃO",IF(AND($C58="S",ORÇAMENTO.Unidade=""),"UNIDADE",IF($X58<0,"VALOR NEGATIVO",IF(OR(AND(TIPOORCAMENTO="Proposto",$AG58<>"",$AG58>0,ORÇAMENTO.CustoUnitario>$AG58),AND(TIPOORCAMENTO="LICITADO",ORÇAMENTO.PrecoUnitarioLicitado>$AN58)),"ACIMA REF.",""))))) ->  | AD58: =IF(C58<=CRONO.NivelExibicao,MAX($AD$15:OFFSET(AD58,-1,0))+IF($C58<>1,1,MAX(1,COUNTIF(QCI!$A$13:$A$24,OFFSET($E58,-1,0)))),"") ->  | AE58: =IF(AND($C58="S",ORÇAMENTO.CodBarra<>""),IF(ORÇAMENTO.Fonte="",ORÇAMENTO.CodBarra,CONCATENATE(ORÇAMENTO.Fonte," ",ORÇAMENTO.CodBarra))) -> Composição 11 | AF58: =IF(ISERROR(INDIRECT(ORÇAMENTO.BancoRef)),"(abra o arquivo 'Referência "&Excel_BuiltIn_Database&".xls)",IF(OR($C58<>"S",ORÇAMENTO.CodBarra=""),"(Sem Código)",IF(ISERROR(MATCH($AE58,INDIRECT(ORÇAMENTO.BancoRef),0)),"(Código não identificado nas referências)",MATCH($AE58,INDIRECT(ORÇAMENTO.BancoRef),0)))) -> 12 | AG58: =ROUND(IF(DESONERACAO="sim",REFERENCIA.Desonerado,REFERENCIA.NaoDesonerado),2) -> 124.02 | AH58: =ROUND(IF(ISNUMBER(ORÇAMENTO.OpcaoBDI),ORÇAMENTO.OpcaoBDI,IF(LEFT(ORÇAMENTO.OpcaoBDI,3)="BDI",HLOOKUP(ORÇAMENTO.OpcaoBDI,$F$4:$H$5,2,FALSE),0)),15-11*$AF$9) -> 0.2034 | AM58: 87956.01 | AN58: =ROUND(ORÇAMENTO.CustoUnitario*(1+$AH58),2) -> 149.25
A59: 2 | B59: 2 | C59: 2 | D59: 2 | E59: =IF($C59=1,OFFSET(E59,-1,0)+MAX(1,COUNTIF(QCI!$A$13:$A$24,OFFSET(ORÇAMENTO!E59,-1,0))),OFFSET(E59,-1,0)) -> 1 | F59: 11 | G59: 0 | H59: 0 | I59: 0 | J59: =IF(OR($C59="S",$C59=0),0,MATCH(0,OFFSET($D59,1,$C59,ROW($C$90)-ROW($C59)),0)) -> 31 | K59: =IF(OR($C59="S",$C59=0),0,MATCH(OFFSET($D59,0,$C59)+IF($C59<>1,1,COUNTIF(QCI!$A$13:$A$24,ORÇAMENTO!E59)),OFFSET($D59,1,$C59,ROW($C$90)-ROW($C59)),0)) -> 2 | L59: F | M59: Nível 2 | N59: Nível 2 | O59: 1.11. | P59: SINAPI | R59: SISTEMA DE PREVENTIVO DE INCÊNCIO | S59: - | T59: =OFFSET(CÁLCULO!H$15,ROW($T59)-ROW(T$15),0) -> 0 | U59: 0 | V59: BDI 1 | W59: =IF($C59="S",ROUND(IF(TIPOORCAMENTO="Proposto",ORÇAMENTO.CustoUnitario*(1+$AH59),ORÇAMENTO.PrecoUnitarioLicitado),15-13*$AF$10),0) -> 0 | X59: 135.84 | Y59: RA | AA59: =IF($C59="S",IF($Z59="CP",$X59,IF($Z59="RA",(($X59)*QCI!$AA$3),0)),SomaAgrup) -> 135.84 | AB59: 0 | AC59: =IF($N59="","",IF(ORÇAMENTO.Descricao="","DESCRIÇÃO",IF(AND($C59="S",ORÇAMENTO.Unidade=""),"UNIDADE",IF($X59<0,"VALOR NEGATIVO",IF(OR(AND(TIPOORCAMENTO="Proposto",$AG59<>"",$AG59>0,ORÇAMENTO.CustoUnitario>$AG59),AND(TIPOORCAMENTO="LICITADO",ORÇAMENTO.PrecoUnitarioLicitado>$AN59)),"ACIMA REF.",""))))) ->  | AD59: =IF(C59<=CRONO.NivelExibicao,MAX($AD$15:OFFSET(AD59,-1,0))+IF($C59<>1,1,MAX(1,COUNTIF(QCI!$A$13:$A$24,OFFSET($E59,-1,0)))),"") -> 12 | AE59: =IF(AND($C59="S",ORÇAMENTO.CodBarra<>""),IF(ORÇAMENTO.Fonte="",ORÇAMENTO.CodBarra,CONCATENATE(ORÇAMENTO.Fonte," ",ORÇAMENTO.CodBarra))) -> FALSE | AF59: =IF(ISERROR(INDIRECT(ORÇAMENTO.BancoRef)),"(abra o arquivo 'Referência "&Excel_BuiltIn_Database&".xls)",IF(OR($C59<>"S",ORÇAMENTO.CodBarra=""),"(Sem Código)",IF(ISERROR(MATCH($AE59,INDIRECT(ORÇAMENTO.BancoRef),0)),"(Código não identificado nas referências)",MATCH($AE59,INDIRECT(ORÇAMENTO.BancoRef),0)))) -> (Sem Código) | AG59: 0 | AH59: 0.2034 | AM59: 135.84 | AN59: 0
A60: S | B60: 2 | C60: S | D60: 0 | E60: =IF($C60=1,OFFSET(E60,-1,0)+MAX(1,COUNTIF(QCI!$A$13:$A$24,OFFSET(ORÇAMENTO!E60,-1,0))),OFFSET(E60,-1,0)) -> 1 | F60: 11 | G60: 0 | H60: 0 | I60: 1 | J60: =IF(OR($C60="S",$C60=0),0,MATCH(0,OFFSET($D60,1,$C60,ROW($C$90)-ROW($C60)),0)) -> 0 | K60: =IF(OR($C60="S",$C60=0),0,MATCH(OFFSET($D60,0,$C60)+IF($C60<>1,1,COUNTIF(QCI!$A$13:$A$24,ORÇAMENTO!E60)),OFFSET($D60,1,$C60,ROW($C$90)-ROW($C60)),0)) -> 0 | L60: F | M60: Serviço | N60: Serviço | O60: 1.11.0.1. | P60: SINAPI | Q60: 97599 | R60: =IF($C60="S",REFERENCIA.Descricao,"(digite a descrição aqui)") -> LUMINÁRIA DE EMERGÊNCIA, COM 30 LÂMPADAS LED DE 2 W, SEM REATOR - FORNECIMENTO E INSTALAÇÃO. AF_02/2020 | S60: UN | T60: =OFFSET(CÁLCULO!H$15,ROW($T60)-ROW(T$15),0) -> 4 | U60: 28.22 | V60: BDI 1 | W60: =IF($C60="S",ROUND(IF(TIPOORCAMENTO="Proposto",ORÇAMENTO.CustoUnitario*(1+$AH60),ORÇAMENTO.PrecoUnitarioLicitado),15-13*$AF$10),0) -> 33.96 | X60: 135.84 | Y60: RA | Z60: RA | AA60: =IF($C60="S",IF($Z60="CP",$X60,IF($Z60="RA",(($X60)*QCI!$AA$3),0)),SomaAgrup) -> 135.84 | AB60: 0 | AC60: =IF($N60="","",IF(ORÇAMENTO.Descricao="","DESCRIÇÃO",IF(AND($C60="S",ORÇAMENTO.Unidade=""),"UNIDADE",IF($X60<0,"VALOR NEGATIVO",IF(OR(AND(TIPOORCAMENTO="Proposto",$AG60<>"",$AG60>0,ORÇAMENTO.CustoUnitario>$AG60),AND(TIPOORCAMENTO="LICITADO",ORÇAMENTO.PrecoUnitarioLicitado>$AN60)),"ACIMA REF.",""))))) ->  | AD60: =IF(C60<=CRONO.NivelExibicao,MAX($AD$15:OFFSET(AD60,-1,0))+IF($C60<>1,1,MAX(1,COUNTIF(QCI!$A$13:$A$24,OFFSET($E60,-1,0)))),"") ->  | AE60: =IF(AND($C60="S",ORÇAMENTO.CodBarra<>""),IF(ORÇAMENTO.Fonte="",ORÇAMENTO.CodBarra,CONCATENATE(ORÇAMENTO.Fonte," ",ORÇAMENTO.CodBarra))) -> SINAPI 97599 | AF60: =IF(ISERROR(INDIRECT(ORÇAMENTO.BancoRef)),"(abra o arquivo 'Referência "&Excel_BuiltIn_Database&".xls)",IF(OR($C60<>"S",ORÇAMENTO.CodBarra=""),"(Sem Código)",IF(ISERROR(MATCH($AE60,INDIRECT(ORÇAMENTO.BancoRef),0)),"(Código não identificado nas referências)",MATCH($AE60,INDIRECT(ORÇAMENTO.BancoRef),0)))) -> 3082 | AG60: 28.22 | AH60: 0.2034 | AM60: 135.84 | AN60: 33.96
A61: 2 | B61: 2 | C61: 2 | D61: 17 | E61: =IF($C61=1,OFFSET(E61,-1,0)+MAX(1,COUNTIF(QCI!$A$13:$A$24,OFFSET(ORÇAMENTO!E61,-1,0))),OFFSET(E61,-1,0)) -> 1 | F61: 12 | G61: 0 | H61: 0 | I61: 0 | J61: =IF(OR($C61="S",$C61=0),0,MATCH(0,OFFSET($D61,1,$C61,ROW($C$90)-ROW($C61)),0)) -> 29 | K61: =IF(OR($C61="S",$C61=0),0,MATCH(OFFSET($D61,0,$C61)+IF($C61<>1,1,COUNTIF(QCI!$A$13:$A$24,ORÇAMENTO!E61)),OFFSET($D61,1,$C61,ROW($C$90)-ROW($C61)),0)) -> 17 | L61: F | M61: Nível 2 | N61: Nível 2 | O61: 1.12. | P61: SINAPI | R61: INSTALAÇÕES ELÉTRICAS | S61: - | T61: =OFFSET(CÁLCULO!H$15,ROW($T61)-ROW(T$15),0) -> 0 | U61: 0 | V61: BDI 1 | W61: =IF($C61="S",ROUND(IF(TIPOORCAMENTO="Proposto",ORÇAMENTO.CustoUnitario*(1+$AH61),ORÇAMENTO.PrecoUnitarioLicitado),15-13*$AF$10),0) -> 0 | X61: 23424.39 | Y61: RA | AA61: =IF($C61="S",IF($Z61="CP",$X61,IF($Z61="RA",(($X61)*QCI!$AA$3),0)),SomaAgrup) -> 23424.39 | AB61: 0 | AC61: =IF($N61="","",IF(ORÇAMENTO.Descricao="","DESCRIÇÃO",IF(AND($C61="S",ORÇAMENTO.Unidade=""),"UNIDADE",IF($X61<0,"VALOR NEGATIVO",IF(OR(AND(TIPOORCAMENTO="Proposto",$AG61<>"",$AG61>0,ORÇAMENTO.CustoUnitario>$AG61),AND(TIPOORCAMENTO="LICITADO",ORÇAMENTO.PrecoUnitarioLicitado>$AN61)),"ACIMA REF.",""))))) ->  | AD61: =IF(C61<=CRONO.NivelExibicao,MAX($AD$15:OFFSET(AD61,-1,0))+IF($C61<>1,1,MAX(1,COUNTIF(QCI!$A$13:$A$24,OFFSET($E61,-1,0)))),"") -> 13 | AE61: =IF(AND($C61="S",ORÇAMENTO.CodBarra<>""),IF(ORÇAMENTO.Fonte="",ORÇAMENTO.CodBarra,CONCATENATE(ORÇAMENTO.Fonte," ",ORÇAMENTO.CodBarra))) -> FALSE | AF61: =IF(ISERROR(INDIRECT(ORÇAMENTO.BancoRef)),"(abra o arquivo 'Referência "&Excel_BuiltIn_Database&".xls)",IF(OR($C61<>"S",ORÇAMENTO.CodBarra=""),"(Sem Código)",IF(ISERROR(MATCH($AE61,INDIRECT(ORÇAMENTO.BancoRef),0)),"(Código não identificado nas referências)",MATCH($AE61,INDIRECT(ORÇAMENTO.BancoRef),0)))) -> (Sem Código) | AG61: 0 | AH61: 0.2034 | AM61: 23424.39 | AN61: 0
A62: =CHOOSE(1+LOG(1+2*(ORÇAMENTO.Nivel="Meta")+4*(ORÇAMENTO.Nivel="Nível 2")+8*(ORÇAMENTO.Nivel="Nível 3")+16*(ORÇAMENTO.Nivel="Nível 4")+32*(ORÇAMENTO.Nivel="Serviço"),2),0,1,2,3,4,"S") -> S | B62: =IF(OR(C62="s",C62=0),OFFSET(B62,-1,0),C62) -> 2 | C62: =IF(OFFSET(C62,-1,0)="L",1,IF(OFFSET(C62,-1,0)=1,2,IF(OR(A62="s",A62=0),"S",IF(AND(OFFSET(C62,-1,0)=2,A62=4),3,IF(AND(OR(OFFSET(C62,-1,0)="s",OFFSET(C62,-1,0)=0),A62<>"s",A62>OFFSET(B62,-1,0)),OFFSET(B62,-1,0),A62))))) -> S | D62: =IF(OR(C62="S",C62=0),0,IF(ISERROR(K62),J62,SMALL(J62:K62,1))) -> 0 | E62: =IF($C62=1,OFFSET(E62,-1,0)+MAX(1,COUNTIF(QCI!$A$13:$A$24,OFFSET(ORÇAMENTO!E62,-1,0))),OFFSET(E62,-1,0)) -> 1 | F62: =IF($C62=1,0,IF($C62=2,OFFSET(F62,-1,0)+1,OFFSET(F62,-1,0))) -> 12 | G62: =IF(AND($C62<=2,$C62<>0),0,IF($C62=3,OFFSET(G62,-1,0)+1,OFFSET(G62,-1,0))) -> 0 | H62: =IF(AND($C62<=3,$C62<>0),0,IF($C62=4,OFFSET(H62,-1,0)+1,OFFSET(H62,-1,0))) -> 0 | I62: =IF(AND($C62<=4,$C62<>0),0,IF(AND($C62="S",$X62>0),OFFSET(I62,-1,0)+1,OFFSET(I62,-1,0))) -> 1 | J62: =IF(OR($C62="S",$C62=0),0,MATCH(0,OFFSET($D62,1,$C62,ROW($C$90)-ROW($C62)),0)) -> 0 | K62: =IF(OR($C62="S",$C62=0),0,MATCH(OFFSET($D62,0,$C62)+IF($C62<>1,1,COUNTIF(QCI!$A$13:$A$24,ORÇAMENTO!E62)),OFFSET($D62,1,$C62,ROW($C$90)-ROW($C62)),0)) -> 0 | L62: =IF(OR($X62>0,$C62=1,$C62=2,$C62=3,$C62=4),"F","") -> F | M62: Serviço | N62: =CHOOSE(1+LOG(1+2*(C62=1)+4*(C62=2)+8*(C62=3)+16*(C62=4)+32*(C62="S"),2),"","Meta","Nível 2","Nível 3","Nível 4","Serviço") -> Serviço | O62: =IF(OR($C62=0,$L62=""),"-",CONCATENATE(E62&".",IF(AND($A$5>=2,$C62>=2),F62&".",""),IF(AND($A$5>=3,$C62>=3),G62&".",""),IF(AND($A$5>=4,$C62>=4),H62&".",""),IF($C62="S",I62&".",""))) -> 1.12.0.1. | P62: SINAPI | Q62: 91834 | R62: =IF($C62="S",REFERENCIA.Descricao,"(digite a descrição aqui)") -> ELETRODUTO FLEXÍVEL CORRUGADO, PVC, DN 25 MM (3/4"), PARA CIRCUITOS TERMINAIS, INSTALADO EM FORRO - FORNECIMENTO E INSTALAÇÃO. AF_12/2015 | S62: =REFERENCIA.Unidade -> M | T62: =OFFSET(CÁLCULO!H$15,ROW($T62)-ROW(T$15),0) -> 0.9 | U62: 9.51 | V62: BDI 1 | W62: =IF($C62="S",ROUND(IF(TIPOORCAMENTO="Proposto",ORÇAMENTO.CustoUnitario*(1+$AH62),ORÇAMENTO.PrecoUnitarioLicitado),15-13*$AF$10),0) -> 11.44 | X62: =IF($C62="S",VTOTAL1,IF($C62=0,0,ROUND(SomaAgrup,15-13*$AF$11))) -> 10.3 | Y62: RA | Z62: =IF(AND($C62="S",$X62>0),IF(ISBLANK($Y62),"RA",LEFT($Y62,2)),"") -> RA | AA62: =IF($C62="S",IF($Z62="CP",$X62,IF($Z62="RA",(($X62)*QCI!$AA$3),0)),SomaAgrup) -> 10.3 | AB62: =IF($C62="S",IF($Z62="OU",ROUND($X62,2),0),SomaAgrup) -> 0 | AC62: =IF($N62="","",IF(ORÇAMENTO.Descricao="","DESCRIÇÃO",IF(AND($C62="S",ORÇAMENTO.Unidade=""),"UNIDADE",IF($X62<0,"VALOR NEGATIVO",IF(OR(AND(TIPOORCAMENTO="Proposto",$AG62<>"",$AG62>0,ORÇAMENTO.CustoUnitario>$AG62),AND(TIPOORCAMENTO="LICITADO",ORÇAMENTO.PrecoUnitarioLicitado>$AN62)),"ACIMA REF.",""))))) ->  | AD62: =IF(C62<=CRONO.NivelExibicao,MAX($AD$15:OFFSET(AD62,-1,0))+IF($C62<>1,1,MAX(1,COUNTIF(QCI!$A$13:$A$24,OFFSET($E62,-1,0)))),"") ->  | AE62: =IF(AND($C62="S",ORÇAMENTO.CodBarra<>""),IF(ORÇAMENTO.Fonte="",ORÇAMENTO.CodBarra,CONCATENATE(ORÇAMENTO.Fonte," ",ORÇAMENTO.CodBarra))) -> SINAPI 91834 | AF62: =IF(ISERROR(INDIRECT(ORÇAMENTO.BancoRef)),"(abra o arquivo 'Referência "&Excel_BuiltIn_Database&".xls)",IF(OR($C62<>"S",ORÇAMENTO.CodBarra=""),"(Sem Código)",IF(ISERROR(MATCH($AE62,INDIRECT(ORÇAMENTO.BancoRef),0)),"(Código não identificado nas referências)",MATCH($AE62,INDIRECT(ORÇAMENTO.BancoRef),0)))) -> 2710 | AG62: =ROUND(IF(DESONERACAO="sim",REFERENCIA.Desonerado,REFERENCIA.NaoDesonerado),2) -> 9.51 | AH62: =ROUND(IF(ISNUMBER(ORÇAMENTO.OpcaoBDI),ORÇAMENTO.OpcaoBDI,IF(LEFT(ORÇAMENTO.OpcaoBDI,3)="BDI",HLOOKUP(ORÇAMENTO.OpcaoBDI,$F$4:$H$5,2,FALSE),0)),15-11*$AF$9) -> 0.2034 | AM62: 10.3 | AN62: =ROUND(ORÇAMENTO.CustoUnitario*(1+$AH62),2) -> 11.44
A63: =CHOOSE(1+LOG(1+2*(ORÇAMENTO.Nivel="Meta")+4*(ORÇAMENTO.Nivel="Nível 2")+8*(ORÇAMENTO.Nivel="Nível 3")+16*(ORÇAMENTO.Nivel="Nível 4")+32*(ORÇAMENTO.Nivel="Serviço"),2),0,1,2,3,4,"S") -> S | B63: =IF(OR(C63="s",C63=0),OFFSET(B63,-1,0),C63) -> 2 | C63: =IF(OFFSET(C63,-1,0)="L",1,IF(OFFSET(C63,-1,0)=1,2,IF(OR(A63="s",A63=0),"S",IF(AND(OFFSET(C63,-1,0)=2,A63=4),3,IF(AND(OR(OFFSET(C63,-1,0)="s",OFFSET(C63,-1,0)=0),A63<>"s",A63>OFFSET(B63,-1,0)),OFFSET(B63,-1,0),A63))))) -> S | D63: =IF(OR(C63="S",C63=0),0,IF(ISERROR(K63),J63,SMALL(J63:K63,1))) -> 0 | E63: =IF($C63=1,OFFSET(E63,-1,0)+MAX(1,COUNTIF(QCI!$A$13:$A$24,OFFSET(ORÇAMENTO!E63,-1,0))),OFFSET(E63,-1,0)) -> 1 | F63: =IF($C63=1,0,IF($C63=2,OFFSET(F63,-1,0)+1,OFFSET(F63,-1,0))) -> 12 | G63: =IF(AND($C63<=2,$C63<>0),0,IF($C63=3,OFFSET(G63,-1,0)+1,OFFSET(G63,-1,0))) -> 0 | H63: =IF(AND($C63<=3,$C63<>0),0,IF($C63=4,OFFSET(H63,-1,0)+1,OFFSET(H63,-1,0))) -> 0 | I63: =IF(AND($C63<=4,$C63<>0),0,IF(AND($C63="S",$X63>0),OFFSET(I63,-1,0)+1,OFFSET(I63,-1,0))) -> 2 | J63: =IF(OR($C63="S",$C63=0),0,MATCH(0,OFFSET($D63,1,$C63,ROW($C$90)-ROW($C63)),0)) -> 0 | K63: =IF(OR($C63="S",$C63=0),0,MATCH(OFFSET($D63,0,$C63)+IF($C63<>1,1,COUNTIF(QCI!$A$13:$A$24,ORÇAMENTO!E63)),OFFSET($D63,1,$C63,ROW($C$90)-ROW($C63)),0)) -> 0 | L63: =IF(OR($X63>0,$C63=1,$C63=2,$C63=3,$C63=4),"F","") -> F | M63: Serviço | N63: =CHOOSE(1+LOG(1+2*(C63=1)+4*(C63=2)+8*(C63=3)+16*(C63=4)+32*(C63="S"),2),"","Meta","Nível 2","Nível 3","Nível 4","Serviço") -> Serviço | O63: =IF(OR($C63=0,$L63=""),"-",CONCATENATE(E63&".",IF(AND($A$5>=2,$C63>=2),F63&".",""),IF(AND($A$5>=3,$C63>=3),G63&".",""),IF(AND($A$5>=4,$C63>=4),H63&".",""),IF($C63="S",I63&".",""))) -> 1.12.0.2. | P63: SINAPI | Q63: 97668 | R63: =IF($C63="S",REFERENCIA.Descricao,"(digite a descrição aqui)") -> ELETRODUTO FLEXÍVEL CORRUGADO, PEAD, DN 63 (2"), PARA REDE ENTERRADA DE DISTRIBUIÇÃO DE ENERGIA ELÉTRICA - FORNECIMENTO E INSTALAÇÃO. AF_12/2021 | S63: =REFERENCIA.Unidade -> M | T63: =OFFSET(CÁLCULO!H$15,ROW($T63)-ROW(T$15),0) -> 11.1 | U63: 13.78 | V63: BDI 1 | W63: =IF($C63="S",ROUND(IF(TIPOORCAMENTO="Proposto",ORÇAMENTO.CustoUnitario*(1+$AH63),ORÇAMENTO.PrecoUnitarioLicitado),15-13*$AF$10),0) -> 16.58 | X63: =IF($C63="S",VTOTAL1,IF($C63=0,0,ROUND(SomaAgrup,15-13*$AF$11))) -> 184.04 | Y63: RA | Z63: =IF(AND($C63="S",$X63>0),IF(ISBLANK($Y63),"RA",LEFT($Y63,2)),"") -> RA | AA63: =IF($C63="S",IF($Z63="CP",$X63,IF($Z63="RA",(($X63)*QCI!$AA$3),0)),SomaAgrup) -> 184.04 | AB63: =IF($C63="S",IF($Z63="OU",ROUND($X63,2),0),SomaAgrup) -> 0 | AC63: =IF($N63="","",IF(ORÇAMENTO.Descricao="","DESCRIÇÃO",IF(AND($C63="S",ORÇAMENTO.Unidade=""),"UNIDADE",IF($X63<0,"VALOR NEGATIVO",IF(OR(AND(TIPOORCAMENTO="Proposto",$AG63<>"",$AG63>0,ORÇAMENTO.CustoUnitario>$AG63),AND(TIPOORCAMENTO="LICITADO",ORÇAMENTO.PrecoUnitarioLicitado>$AN63)),"ACIMA REF.",""))))) ->  | AD63: =IF(C63<=CRONO.NivelExibicao,MAX($AD$15:OFFSET(AD63,-1,0))+IF($C63<>1,1,MAX(1,COUNTIF(QCI!$A$13:$A$24,OFFSET($E63,-1,0)))),"") ->  | AE63: =IF(AND($C63="S",ORÇAMENTO.CodBarra<>""),IF(ORÇAMENTO.Fonte="",ORÇAMENTO.CodBarra,CONCATENATE(ORÇAMENTO.Fonte," ",ORÇAMENTO.CodBarra))) -> SINAPI 97668 | AF63: =IF(ISERROR(INDIRECT(ORÇAMENTO.BancoRef)),"(abra o arquivo 'Referência "&Excel_BuiltIn_Database&".xls)",IF(OR($C63<>"S",ORÇAMENTO.CodBarra=""),"(Sem Código)",IF(ISERROR(MATCH($AE63,INDIRECT(ORÇAMENTO.BancoRef),0)),"(Código não identificado nas referências)",MATCH($AE63,INDIRECT(ORÇAMENTO.BancoRef),0)))) -> 2768 | AG63: =ROUND(IF(DESONERACAO="sim",REFERENCIA.Desonerado,REFERENCIA.NaoDesonerado),2) -> 13.78 | AH63: =ROUND(IF(ISNUMBER(ORÇAMENTO.OpcaoBDI),ORÇAMENTO.OpcaoBDI,IF(LEFT(ORÇAMENTO.OpcaoBDI,3)="BDI",HLOOKUP(ORÇAMENTO.OpcaoBDI,$F$4:$H$5,2,FALSE),0)),15-11*$AF$9) -> 0.2034 | AM63: 184.04 | AN63: =ROUND(ORÇAMENTO.CustoUnitario*(1+$AH63),2) -> 16.58
A64: S | B64: 2 | C64: S | D64: 0 | E64: =IF($C64=1,OFFSET(E64,-1,0)+MAX(1,COUNTIF(QCI!$A$13:$A$24,OFFSET(ORÇAMENTO!E64,-1,0))),OFFSET(E64,-1,0)) -> 1 | F64: 12 | G64: 0 | H64: 0 | I64: 3 | J64: =IF(OR($C64="S",$C64=0),0,MATCH(0,OFFSET($D64,1,$C64,ROW($C$90)-ROW($C64)),0)) -> 0 | K64: =IF(OR($C64="S",$C64=0),0,MATCH(OFFSET($D64,0,$C64)+IF($C64<>1,1,COUNTIF(QCI!$A$13:$A$24,ORÇAMENTO!E64)),OFFSET($D64,1,$C64,ROW($C$90)-ROW($C64)),0)) -> 0 | L64: F | M64: Serviço | N64: Serviço | O64: 1.12.0.3. | P64: SINAPI | Q64: 91864 | R64: =IF($C64="S",REFERENCIA.Descricao,"(digite a descrição aqui)") -> ELETRODUTO RÍGIDO ROSCÁVEL, PVC, DN 32 MM (1"), PARA CIRCUITOS TERMINAIS, INSTALADO EM FORRO - FORNECIMENTO E INSTALAÇÃO. AF_12/2015 | S64: M | T64: =OFFSET(CÁLCULO!H$15,ROW($T64)-ROW(T$15),0) -> 176.8 | U64: 16.6 | V64: BDI 1 | W64: =IF($C64="S",ROUND(IF(TIPOORCAMENTO="Proposto",ORÇAMENTO.CustoUnitario*(1+$AH64),ORÇAMENTO.PrecoUnitarioLicitado),15-13*$AF$10),0) -> 19.98 | X64: 3532.46 | Y64: RA | Z64: RA | AA64: =IF($C64="S",IF($Z64="CP",$X64,IF($Z64="RA",(($X64)*QCI!$AA$3),0)),SomaAgrup) -> 3532.46 | AB64: 0 | AC64: =IF($N64="","",IF(ORÇAMENTO.Descricao="","DESCRIÇÃO",IF(AND($C64="S",ORÇAMENTO.Unidade=""),"UNIDADE",IF($X64<0,"VALOR NEGATIVO",IF(OR(AND(TIPOORCAMENTO="Proposto",$AG64<>"",$AG64>0,ORÇAMENTO.CustoUnitario>$AG64),AND(TIPOORCAMENTO="LICITADO",ORÇAMENTO.PrecoUnitarioLicitado>$AN64)),"ACIMA REF.",""))))) ->  | AD64: =IF(C64<=CRONO.NivelExibicao,MAX($AD$15:OFFSET(AD64,-1,0))+IF($C64<>1,1,MAX(1,COUNTIF(QCI!$A$13:$A$24,OFFSET($E64,-1,0)))),"") ->  | AE64: =IF(AND($C64="S",ORÇAMENTO.CodBarra<>""),IF(ORÇAMENTO.Fonte="",ORÇAMENTO.CodBarra,CONCATENATE(ORÇAMENTO.Fonte," ",ORÇAMENTO.CodBarra))) -> SINAPI 91864 | AF64: =IF(ISERROR(INDIRECT(ORÇAMENTO.BancoRef)),"(abra o arquivo 'Referência "&Excel_BuiltIn_Database&".xls)",IF(OR($C64<>"S",ORÇAMENTO.CodBarra=""),"(Sem Código)",IF(ISERROR(MATCH($AE64,INDIRECT(ORÇAMENTO.BancoRef),0)),"(Código não identificado nas referências)",MATCH($AE64,INDIRECT(ORÇAMENTO.BancoRef),0)))) -> 2737 | AG64: 16.6 | AH64: 0.2034 | AM64: 3532.46 | AN64: 19.98
A65: S | B65: 2 | C65: S | D65: 0 | E65: =IF($C65=1,OFFSET(E65,-1,0)+MAX(1,COUNTIF(QCI!$A$13:$A$24,OFFSET(ORÇAMENTO!E65,-1,0))),OFFSET(E65,-1,0)) -> 1 | F65: 12 | G65: 0 | H65: 0 | I65: 4 | J65: =IF(OR($C65="S",$C65=0),0,MATCH(0,OFFSET($D65,1,$C65,ROW($C$90)-ROW($C65)),0)) -> 0 | K65: =IF(OR($C65="S",$C65=0),0,MATCH(OFFSET($D65,0,$C65)+IF($C65<>1,1,COUNTIF(QCI!$A$13:$A$24,ORÇAMENTO!E65)),OFFSET($D65,1,$C65,ROW($C$90)-ROW($C65)),0)) -> 0 | L65: F | M65: Serviço | N65: Serviço | O65: 1.12.0.4. | P65: SINAPI | Q65: 92023 | R65: =IF($C65="S",REFERENCIA.Descricao,"(digite a descrição aqui)") -> INTERRUPTOR SIMPLES (1 MÓDULO) COM 1 TOMADA DE EMBUTIR 2P+T 10 A, INCLUINDO SUPORTE E PLACA - FORNECIMENTO E INSTALAÇÃO. AF_12/2015 | S65: UN | T65: =OFFSET(CÁLCULO!H$15,ROW($T65)-ROW(T$15),0) -> 1 | U65: 51.22 | V65: BDI 1 | W65: =IF($C65="S",ROUND(IF(TIPOORCAMENTO="Proposto",ORÇAMENTO.CustoUnitario*(1+$AH65),ORÇAMENTO.PrecoUnitarioLicitado),15-13*$AF$10),0) -> 61.64 | X65: 61.64 | Y65: RA | Z65: RA | AA65: =IF($C65="S",IF($Z65="CP",$X65,IF($Z65="RA",(($X65)*QCI!$AA$3),0)),SomaAgrup) -> 61.64 | AB65: 0 | AC65: =IF($N65="","",IF(ORÇAMENTO.Descricao="","DESCRIÇÃO",IF(AND($C65="S",ORÇAMENTO.Unidade=""),"UNIDADE",IF($X65<0,"VALOR NEGATIVO",IF(OR(AND(TIPOORCAMENTO="Proposto",$AG65<>"",$AG65>0,ORÇAMENTO.CustoUnitario>$AG65),AND(TIPOORCAMENTO="LICITADO",ORÇAMENTO.PrecoUnitarioLicitado>$AN65)),"ACIMA REF.",""))))) ->  | AD65: =IF(C65<=CRONO.NivelExibicao,MAX($AD$15:OFFSET(AD65,-1,0))+IF($C65<>1,1,MAX(1,COUNTIF(QCI!$A$13:$A$24,OFFSET($E65,-1,0)))),"") ->  | AE65: =IF(AND($C65="S",ORÇAMENTO.CodBarra<>""),IF(ORÇAMENTO.Fonte="",ORÇAMENTO.CodBarra,CONCATENATE(ORÇAMENTO.Fonte," ",ORÇAMENTO.CodBarra))) -> SINAPI 92023 | AF65: =IF(ISERROR(INDIRECT(ORÇAMENTO.BancoRef)),"(abra o arquivo 'Referência "&Excel_BuiltIn_Database&".xls)",IF(OR($C65<>"S",ORÇAMENTO.CodBarra=""),"(Sem Código)",IF(ISERROR(MATCH($AE65,INDIRECT(ORÇAMENTO.BancoRef),0)),"(Código não identificado nas referências)",MATCH($AE65,INDIRECT(ORÇAMENTO.BancoRef),0)))) -> 3054 | AG65: 51.22 | AH65: 0.2034 | AM65: 61.64 | AN65: 61.64
A66: =CHOOSE(1+LOG(1+2*(ORÇAMENTO.Nivel="Meta")+4*(ORÇAMENTO.Nivel="Nível 2")+8*(ORÇAMENTO.Nivel="Nível 3")+16*(ORÇAMENTO.Nivel="Nível 4")+32*(ORÇAMENTO.Nivel="Serviço"),2),0,1,2,3,4,"S") -> S | B66: 2 | C66: S | D66: 0 | E66: =IF($C66=1,OFFSET(E66,-1,0)+MAX(1,COUNTIF(QCI!$A$13:$A$24,OFFSET(ORÇAMENTO!E66,-1,0))),OFFSET(E66,-1,0)) -> 1 | F66: 12 | G66: 0 | H66: 0 | I66: 5 | J66: =IF(OR($C66="S",$C66=0),0,MATCH(0,OFFSET($D66,1,$C66,ROW($C$90)-ROW($C66)),0)) -> 0 | K66: =IF(OR($C66="S",$C66=0),0,MATCH(OFFSET($D66,0,$C66)+IF($C66<>1,1,COUNTIF(QCI!$A$13:$A$24,ORÇAMENTO!E66)),OFFSET($D66,1,$C66,ROW($C$90)-ROW($C66)),0)) -> 0 | L66: F | M66: Serviço | N66: Serviço | O66: 1.12.0.5. | P66: SINAPI | Q66: 91926 | R66: =IF($C66="S",REFERENCIA.Descricao,"(digite a descrição aqui)") -> CABO DE COBRE FLEXÍVEL ISOLADO, 2,5 MM², ANTI-CHAMA 450/750 V, PARA CIRCUITOS TERMINAIS - FORNECIMENTO E INSTALAÇÃO. AF_12/2015 | S66: =REFERENCIA.Unidade -> M | T66: =OFFSET(CÁLCULO!H$15,ROW($T66)-ROW(T$15),0) -> 521.9 | U66: 4.65 | V66: BDI 1 | W66: =IF($C66="S",ROUND(IF(TIPOORCAMENTO="Proposto",ORÇAMENTO.CustoUnitario*(1+$AH66),ORÇAMENTO.PrecoUnitarioLicitado),15-13*$AF$10),0) -> 5.6 | X66: 2922.64 | Y66: RA | Z66: RA | AA66: =IF($C66="S",IF($Z66="CP",$X66,IF($Z66="RA",(($X66)*QCI!$AA$3),0)),SomaAgrup) -> 2922.64 | AB66: 0 | AC66: =IF($N66="","",IF(ORÇAMENTO.Descricao="","DESCRIÇÃO",IF(AND($C66="S",ORÇAMENTO.Unidade=""),"UNIDADE",IF($X66<0,"VALOR NEGATIVO",IF(OR(AND(TIPOORCAMENTO="Proposto",$AG66<>"",$AG66>0,ORÇAMENTO.CustoUnitario>$AG66),AND(TIPOORCAMENTO="LICITADO",ORÇAMENTO.PrecoUnitarioLicitado>$AN66)),"ACIMA REF.",""))))) ->  | AD66: =IF(C66<=CRONO.NivelExibicao,MAX($AD$15:OFFSET(AD66,-1,0))+IF($C66<>1,1,MAX(1,COUNTIF(QCI!$A$13:$A$24,OFFSET($E66,-1,0)))),"") ->  | AE66: =IF(AND($C66="S",ORÇAMENTO.CodBarra<>""),IF(ORÇAMENTO.Fonte="",ORÇAMENTO.CodBarra,CONCATENATE(ORÇAMENTO.Fonte," ",ORÇAMENTO.CodBarra))) -> SINAPI 91926 | AF66: =IF(ISERROR(INDIRECT(ORÇAMENTO.BancoRef)),"(abra o arquivo 'Referência "&Excel_BuiltIn_Database&".xls)",IF(OR($C66<>"S",ORÇAMENTO.CodBarra=""),"(Sem Código)",IF(ISERROR(MATCH($AE66,INDIRECT(ORÇAMENTO.BancoRef),0)),"(Código não identificado nas referências)",MATCH($AE66,INDIRECT(ORÇAMENTO.BancoRef),0)))) -> 2835 | AG66: =ROUND(IF(DESONERACAO="sim",REFERENCIA.Desonerado,REFERENCIA.NaoDesonerado),2) -> 4.65 | AH66: 0.2034 | AM66: =$X66 -> 2922.64 | AN66: =ROUND(ORÇAMENTO.CustoUnitario*(1+$AH66),2) -> 5.6
A67: S | B67: 2 | C67: S | D67: 0 | E67: =IF($C67=1,OFFSET(E67,-1,0)+MAX(1,COUNTIF(QCI!$A$13:$A$24,OFFSET(ORÇAMENTO!E67,-1,0))),OFFSET(E67,-1,0)) -> 1 | F67: 12 | G67: 0 | H67: 0 | I67: 6 | J67: =IF(OR($C67="S",$C67=0),0,MATCH(0,OFFSET($D67,1,$C67,ROW($C$90)-ROW($C67)),0)) -> 0 | K67: =IF(OR($C67="S",$C67=0),0,MATCH(OFFSET($D67,0,$C67)+IF($C67<>1,1,COUNTIF(QCI!$A$13:$A$24,ORÇAMENTO!E67)),OFFSET($D67,1,$C67,ROW($C$90)-ROW($C67)),0)) -> 0 | L67: F | M67: Serviço | N67: Serviço | O67: 1.12.0.6. | P67: SINAPI | Q67: 91932 | R67: =IF($C67="S",REFERENCIA.Descricao,"(digite a descrição aqui)") -> CABO DE COBRE FLEXÍVEL ISOLADO, 10 MM², ANTI-CHAMA 450/750 V, PARA CIRCUITOS TERMINAIS - FORNECIMENTO E INSTALAÇÃO. AF_12/2015 | S67: M | T67: =OFFSET(CÁLCULO!H$15,ROW($T67)-ROW(T$15),0) -> 33.3 | U67: 16.74 | V67: BDI 1 | W67: =IF($C67="S",ROUND(IF(TIPOORCAMENTO="Proposto",ORÇAMENTO.CustoUnitario*(1+$AH67),ORÇAMENTO.PrecoUnitarioLicitado),15-13*$AF$10),0) -> 20.14 | X67: 670.66 | Y67: RA | Z67: RA | AA67: =IF($C67="S",IF($Z67="CP",$X67,IF($Z67="RA",(($X67)*QCI!$AA$3),0)),SomaAgrup) -> 670.66 | AB67: 0 | AC67: =IF($N67="","",IF(ORÇAMENTO.Descricao="","DESCRIÇÃO",IF(AND($C67="S",ORÇAMENTO.Unidade=""),"UNIDADE",IF($X67<0,"VALOR NEGATIVO",IF(OR(AND(TIPOORCAMENTO="Proposto",$AG67<>"",$AG67>0,ORÇAMENTO.CustoUnitario>$AG67),AND(TIPOORCAMENTO="LICITADO",ORÇAMENTO.PrecoUnitarioLicitado>$AN67)),"ACIMA REF.",""))))) ->  | AD67: =IF(C67<=CRONO.NivelExibicao,MAX($AD$15:OFFSET(AD67,-1,0))+IF($C67<>1,1,MAX(1,COUNTIF(QCI!$A$13:$A$24,OFFSET($E67,-1,0)))),"") ->  | AE67: =IF(AND($C67="S",ORÇAMENTO.CodBarra<>""),IF(ORÇAMENTO.Fonte="",ORÇAMENTO.CodBarra,CONCATENATE(ORÇAMENTO.Fonte," ",ORÇAMENTO.CodBarra))) -> SINAPI 91932 | AF67: =IF(ISERROR(INDIRECT(ORÇAMENTO.BancoRef)),"(abra o arquivo 'Referência "&Excel_BuiltIn_Database&".xls)",IF(OR($C67<>"S",ORÇAMENTO.CodBarra=""),"(Sem Código)",IF(ISERROR(MATCH($AE67,INDIRECT(ORÇAMENTO.BancoRef),0)),"(Código não identificado nas referências)",MATCH($AE67,INDIRECT(ORÇAMENTO.BancoRef),0)))) -> 2841 | AG67: 16.74 | AH67: 0.2034 | AM67: 670.66 | AN67: 20.14
A68: S | B68: 2 | C68: S | D68: 0 | E68: =IF($C68=1,OFFSET(E68,-1,0)+MAX(1,COUNTIF(QCI!$A$13:$A$24,OFFSET(ORÇAMENTO!E68,-1,0))),OFFSET(E68,-1,0)) -> 1 | F68: 12 | G68: 0 | H68: 0 | I68: 7 | J68: =IF(OR($C68="S",$C68=0),0,MATCH(0,OFFSET($D68,1,$C68,ROW($C$90)-ROW($C68)),0)) -> 0 | K68: =IF(OR($C68="S",$C68=0),0,MATCH(OFFSET($D68,0,$C68)+IF($C68<>1,1,COUNTIF(QCI!$A$13:$A$24,ORÇAMENTO!E68)),OFFSET($D68,1,$C68,ROW($C$90)-ROW($C68)),0)) -> 0 | L68: F | M68: Serviço | N68: Serviço | O68: 1.12.0.7. | P68: SINAPI | Q68: 101657 | R68: =IF($C68="S",REFERENCIA.Descricao,"(digite a descrição aqui)") -> LUMINÁRIA DE LED PARA ILUMINAÇÃO PÚBLICA, DE 98 W ATÉ 137 W - FORNECIMENTO E INSTALAÇÃO. AF_08/2020 | S68: UN | T68: =OFFSET(CÁLCULO!H$15,ROW($T68)-ROW(T$15),0) -> 21 | U68: 579.12 | V68: BDI 1 | W68: =IF($C68="S",ROUND(IF(TIPOORCAMENTO="Proposto",ORÇAMENTO.CustoUnitario*(1+$AH68),ORÇAMENTO.PrecoUnitarioLicitado),15-13*$AF$10),0) -> 696.91 | X68: 14635.11 | Y68: RA | Z68: RA | AA68: =IF($C68="S",IF($Z68="CP",$X68,IF($Z68="RA",(($X68)*QCI!$AA$3),0)),SomaAgrup) -> 14635.11 | AB68: 0 | AC68: =IF($N68="","",IF(ORÇAMENTO.Descricao="","DESCRIÇÃO",IF(AND($C68="S",ORÇAMENTO.Unidade=""),"UNIDADE",IF($X68<0,"VALOR NEGATIVO",IF(OR(AND(TIPOORCAMENTO="Proposto",$AG68<>"",$AG68>0,ORÇAMENTO.CustoUnitario>$AG68),AND(TIPOORCAMENTO="LICITADO",ORÇAMENTO.PrecoUnitarioLicitado>$AN68)),"ACIMA REF.",""))))) ->  | AD68: =IF(C68<=CRONO.NivelExibicao,MAX($AD$15:OFFSET(AD68,-1,0))+IF($C68<>1,1,MAX(1,COUNTIF(QCI!$A$13:$A$24,OFFSET($E68,-1,0)))),"") ->  | AE68: =IF(AND($C68="S",ORÇAMENTO.CodBarra<>""),IF(ORÇAMENTO.Fonte="",ORÇAMENTO.CodBarra,CONCATENATE(ORÇAMENTO.Fonte," ",ORÇAMENTO.CodBarra))) -> SINAPI 101657 | AF68: =IF(ISERROR(INDIRECT(ORÇAMENTO.BancoRef)),"(abra o arquivo 'Referência "&Excel_BuiltIn_Database&".xls)",IF(OR($C68<>"S",ORÇAMENTO.CodBarra=""),"(Sem Código)",IF(ISERROR(MATCH($AE68,INDIRECT(ORÇAMENTO.BancoRef),0)),"(Código não identificado nas referências)",MATCH($AE68,INDIRECT(ORÇAMENTO.BancoRef),0)))) -> 3203 | AG68: 579.12 | AH68: 0.2034 | AM68: 14635.11 | AN68: 696.91
A69: =CHOOSE(1+LOG(1+2*(ORÇAMENTO.Nivel="Meta")+4*(ORÇAMENTO.Nivel="Nível 2")+8*(ORÇAMENTO.Nivel="Nível 3")+16*(ORÇAMENTO.Nivel="Nível 4")+32*(ORÇAMENTO.Nivel="Serviço"),2),0,1,2,3,4,"S") -> S | B69: =IF(OR(C69="s",C69=0),OFFSET(B69,-1,0),C69) -> 2 | C69: =IF(OFFSET(C69,-1,0)="L",1,IF(OFFSET(C69,-1,0)=1,2,IF(OR(A69="s",A69=0),"S",IF(AND(OFFSET(C69,-1,0)=2,A69=4),3,IF(AND(OR(OFFSET(C69,-1,0)="s",OFFSET(C69,-1,0)=0),A69<>"s",A69>OFFSET(B69,-1,0)),OFFSET(B69,-1,0),A69))))) -> S | D69: =IF(OR(C69="S",C69=0),0,IF(ISERROR(K69),J69,SMALL(J69:K69,1))) -> 0 | E69: =IF($C69=1,OFFSET(E69,-1,0)+MAX(1,COUNTIF(QCI!$A$13:$A$24,OFFSET(ORÇAMENTO!E69,-1,0))),OFFSET(E69,-1,0)) -> 1 | F69: =IF($C69=1,0,IF($C69=2,OFFSET(F69,-1,0)+1,OFFSET(F69,-1,0))) -> 12 | G69: =IF(AND($C69<=2,$C69<>0),0,IF($C69=3,OFFSET(G69,-1,0)+1,OFFSET(G69,-1,0))) -> 0 | H69: =IF(AND($C69<=3,$C69<>0),0,IF($C69=4,OFFSET(H69,-1,0)+1,OFFSET(H69,-1,0))) -> 0 | I69: =IF(AND($C69<=4,$C69<>0),0,IF(AND($C69="S",$X69>0),OFFSET(I69,-1,0)+1,OFFSET(I69,-1,0))) -> 8 | J69: =IF(OR($C69="S",$C69=0),0,MATCH(0,OFFSET($D69,1,$C69,ROW($C$90)-ROW($C69)),0)) -> 0 | K69: =IF(OR($C69="S",$C69=0),0,MATCH(OFFSET($D69,0,$C69)+IF($C69<>1,1,COUNTIF(QCI!$A$13:$A$24,ORÇAMENTO!E69)),OFFSET($D69,1,$C69,ROW($C$90)-ROW($C69)),0)) -> 0 | L69: =IF(OR($X69>0,$C69=1,$C69=2,$C69=3,$C69=4),"F","") -> F | M69: Serviço | N69: =CHOOSE(1+LOG(1+2*(C69=1)+4*(C69=2)+8*(C69=3)+16*(C69=4)+32*(C69="S"),2),"","Meta","Nível 2","Nível 3","Nível 4","Serviço") -> Serviço | O69: =IF(OR($C69=0,$L69=""),"-",CONCATENATE(E69&".",IF(AND($A$5>=2,$C69>=2),F69&".",""),IF(AND($A$5>=3,$C69>=3),G69&".",""),IF(AND($A$5>=4,$C69>=4),H69&".",""),IF($C69="S",I69&".",""))) -> 1.12.0.8. | P69: SINAPI | Q69: 91940 | R69: =IF($C69="S",REFERENCIA.Descricao,"(digite a descrição aqui)") -> CAIXA RETANGULAR 4" X 2" MÉDIA (1,30 M DO PISO), PVC, INSTALADA EM PAREDE - FORNECIMENTO E INSTALAÇÃO. AF_12/2015 | S69: =REFERENCIA.Unidade -> UN | T69: =OFFSET(CÁLCULO!H$15,ROW($T69)-ROW(T$15),0) -> 2 | U69: 17.32 | V69: BDI 1 | W69: =IF($C69="S",ROUND(IF(TIPOORCAMENTO="Proposto",ORÇAMENTO.CustoUnitario*(1+$AH69),ORÇAMENTO.PrecoUnitarioLicitado),15-13*$AF$10),0) -> 20.84 | X69: =IF($C69="S",VTOTAL1,IF($C69=0,0,ROUND(SomaAgrup,15-13*$AF$11))) -> 41.68 | Y69: RA | Z69: =IF(AND($C69="S",$X69>0),IF(ISBLANK($Y69),"RA",LEFT($Y69,2)),"") -> RA | AA69: =IF($C69="S",IF($Z69="CP",$X69,IF($Z69="RA",(($X69)*QCI!$AA$3),0)),SomaAgrup) -> 41.68 | AB69: =IF($C69="S",IF($Z69="OU",ROUND($X69,2),0),SomaAgrup) -> 0 | AC69: =IF($N69="","",IF(ORÇAMENTO.Descricao="","DESCRIÇÃO",IF(AND($C69="S",ORÇAMENTO.Unidade=""),"UNIDADE",IF($X69<0,"VALOR NEGATIVO",IF(OR(AND(TIPOORCAMENTO="Proposto",$AG69<>"",$AG69>0,ORÇAMENTO.CustoUnitario>$AG69),AND(TIPOORCAMENTO="LICITADO",ORÇAMENTO.PrecoUnitarioLicitado>$AN69)),"ACIMA REF.",""))))) ->  | AD69: =IF(C69<=CRONO.NivelExibicao,MAX($AD$15:OFFSET(AD69,-1,0))+IF($C69<>1,1,MAX(1,COUNTIF(QCI!$A$13:$A$24,OFFSET($E69,-1,0)))),"") ->  | AE69: =IF(AND($C69="S",ORÇAMENTO.CodBarra<>""),IF(ORÇAMENTO.Fonte="",ORÇAMENTO.CodBarra,CONCATENATE(ORÇAMENTO.Fonte," ",ORÇAMENTO.CodBarra))) -> SINAPI 91940 | AF69: =IF(ISERROR(INDIRECT(ORÇAMENTO.BancoRef)),"(abra o arquivo 'Referência "&Excel_BuiltIn_Database&".xls)",IF(OR($C69<>"S",ORÇAMENTO.CodBarra=""),"(Sem Código)",IF(ISERROR(MATCH($AE69,INDIRECT(ORÇAMENTO.BancoRef),0)),"(Código não identificado nas referências)",MATCH($AE69,INDIRECT(ORÇAMENTO.BancoRef),0)))) -> 2868 | AG69: =ROUND(IF(DESONERACAO="sim",REFERENCIA.Desonerado,REFERENCIA.NaoDesonerado),2) -> 17.32 | AH69: =ROUND(IF(ISNUMBER(ORÇAMENTO.OpcaoBDI),ORÇAMENTO.OpcaoBDI,IF(LEFT(ORÇAMENTO.OpcaoBDI,3)="BDI",HLOOKUP(ORÇAMENTO.OpcaoBDI,$F$4:$H$5,2,FALSE),0)),15-11*$AF$9) -> 0.2034 | AM69: 41.68 | AN69: =ROUND(ORÇAMENTO.CustoUnitario*(1+$AH69),2) -> 20.84
A70: S | B70: 2 | C70: S | D70: 0 | E70: =IF($C70=1,OFFSET(E70,-1,0)+MAX(1,COUNTIF(QCI!$A$13:$A$24,OFFSET(ORÇAMENTO!E70,-1,0))),OFFSET(E70,-1,0)) -> 1 | F70: 12 | G70: 0 | H70: 0 | I70: 9 | J70: =IF(OR($C70="S",$C70=0),0,MATCH(0,OFFSET($D70,1,$C70,ROW($C$90)-ROW($C70)),0)) -> 0 | K70: =IF(OR($C70="S",$C70=0),0,MATCH(OFFSET($D70,0,$C70)+IF($C70<>1,1,COUNTIF(QCI!$A$13:$A$24,ORÇAMENTO!E70)),OFFSET($D70,1,$C70,ROW($C$90)-ROW($C70)),0)) -> 0 | L70: F | M70: Serviço | N70: Serviço | O70: 1.12.0.9. | P70: SINAPI | Q70: 91937 | R70: =IF($C70="S",REFERENCIA.Descricao,"(digite a descrição aqui)") -> CAIXA OCTOGONAL 3" X 3", PVC, INSTALADA EM LAJE - FORNECIMENTO E INSTALAÇÃO. AF_12/2015 | S70: UN | T70: =OFFSET(CÁLCULO!H$15,ROW($T70)-ROW(T$15),0) -> 21 | U70: 12.52 | V70: BDI 1 | W70: =IF($C70="S",ROUND(IF(TIPOORCAMENTO="Proposto",ORÇAMENTO.CustoUnitario*(1+$AH70),ORÇAMENTO.PrecoUnitarioLicitado),15-13*$AF$10),0) -> 15.07 | X70: 316.47 | Y70: RA | Z70: RA | AA70: =IF($C70="S",IF($Z70="CP",$X70,IF($Z70="RA",(($X70)*QCI!$AA$3),0)),SomaAgrup) -> 316.47 | AB70: 0 | AC70: =IF($N70="","",IF(ORÇAMENTO.Descricao="","DESCRIÇÃO",IF(AND($C70="S",ORÇAMENTO.Unidade=""),"UNIDADE",IF($X70<0,"VALOR NEGATIVO",IF(OR(AND(TIPOORCAMENTO="Proposto",$AG70<>"",$AG70>0,ORÇAMENTO.CustoUnitario>$AG70),AND(TIPOORCAMENTO="LICITADO",ORÇAMENTO.PrecoUnitarioLicitado>$AN70)),"ACIMA REF.",""))))) ->  | AD70: =IF(C70<=CRONO.NivelExibicao,MAX($AD$15:OFFSET(AD70,-1,0))+IF($C70<>1,1,MAX(1,COUNTIF(QCI!$A$13:$A$24,OFFSET($E70,-1,0)))),"") ->  | AE70: =IF(AND($C70="S",ORÇAMENTO.CodBarra<>""),IF(ORÇAMENTO.Fonte="",ORÇAMENTO.CodBarra,CONCATENATE(ORÇAMENTO.Fonte," ",ORÇAMENTO.CodBarra))) -> SINAPI 91937 | AF70: =IF(ISERROR(INDIRECT(ORÇAMENTO.BancoRef)),"(abra o arquivo 'Referência "&Excel_BuiltIn_Database&".xls)",IF(OR($C70<>"S",ORÇAMENTO.CodBarra=""),"(Sem Código)",IF(ISERROR(MATCH($AE70,INDIRECT(ORÇAMENTO.BancoRef),0)),"(Código não identificado nas referências)",MATCH($AE70,INDIRECT(ORÇAMENTO.BancoRef),0)))) -> 2866 | AG70: 12.52 | AH70: 0.2034 | AM70: 316.47 | AN70: 15.07
A71: S | B71: 2 | C71: S | D71: 0 | E71: =IF($C71=1,OFFSET(E71,-1,0)+MAX(1,COUNTIF(QCI!$A$13:$A$24,OFFSET(ORÇAMENTO!E71,-1,0))),OFFSET(E71,-1,0)) -> 1 | F71: 12 | G71: 0 | H71: 0 | I71: 10 | J71: =IF(OR($C71="S",$C71=0),0,MATCH(0,OFFSET($D71,1,$C71,ROW($C$90)-ROW($C71)),0)) -> 0 | K71: =IF(OR($C71="S",$C71=0),0,MATCH(OFFSET($D71,0,$C71)+IF($C71<>1,1,COUNTIF(QCI!$A$13:$A$24,ORÇAMENTO!E71)),OFFSET($D71,1,$C71,ROW($C$90)-ROW($C71)),0)) -> 0 | L71: F | M71: Serviço | N71: Serviço | O71: 1.12.0.10. | P71: SINAPI | Q71: 97886 | R71: =IF($C71="S",REFERENCIA.Descricao,"(digite a descrição aqui)") -> CAIXA ENTERRADA ELÉTRICA RETANGULAR, EM ALVENARIA COM TIJOLOS CERÂMICOS MACIÇOS, FUNDO COM BRITA, DIMENSÕES INTERNAS: 0,3X0,3X0,3 M. AF_12/2020 | S71: UN | T71: =OFFSET(CÁLCULO!H$15,ROW($T71)-ROW(T$15),0) -> 1 | U71: =AG71 -> 196.96 | V71: BDI 1 | W71: =IF($C71="S",ROUND(IF(TIPOORCAMENTO="Proposto",ORÇAMENTO.CustoUnitario*(1+$AH71),ORÇAMENTO.PrecoUnitarioLicitado),15-13*$AF$10),0) -> 237.02 | X71: 237.02 | Y71: RA | Z71: RA | AA71: =IF($C71="S",IF($Z71="CP",$X71,IF($Z71="RA",(($X71)*QCI!$AA$3),0)),SomaAgrup) -> 237.02 | AB71: 0 | AC71: =IF($N71="","",IF(ORÇAMENTO.Descricao="","DESCRIÇÃO",IF(AND($C71="S",ORÇAMENTO.Unidade=""),"UNIDADE",IF($X71<0,"VALOR NEGATIVO",IF(OR(AND(TIPOORCAMENTO="Proposto",$AG71<>"",$AG71>0,ORÇAMENTO.CustoUnitario>$AG71),AND(TIPOORCAMENTO="LICITADO",ORÇAMENTO.PrecoUnitarioLicitado>$AN71)),"ACIMA REF.",""))))) ->  | AD71: =IF(C71<=CRONO.NivelExibicao,MAX($AD$15:OFFSET(AD71,-1,0))+IF($C71<>1,1,MAX(1,COUNTIF(QCI!$A$13:$A$24,OFFSET($E71,-1,0)))),"") ->  | AE71: =IF(AND($C71="S",ORÇAMENTO.CodBarra<>""),IF(ORÇAMENTO.Fonte="",ORÇAMENTO.CodBarra,CONCATENATE(ORÇAMENTO.Fonte," ",ORÇAMENTO.CodBarra))) -> SINAPI 97886 | AF71: =IF(ISERROR(INDIRECT(ORÇAMENTO.BancoRef)),"(abra o arquivo 'Referência "&Excel_BuiltIn_Database&".xls)",IF(OR($C71<>"S",ORÇAMENTO.CodBarra=""),"(Sem Código)",IF(ISERROR(MATCH($AE71,INDIRECT(ORÇAMENTO.BancoRef),0)),"(Código não identificado nas referências)",MATCH($AE71,INDIRECT(ORÇAMENTO.BancoRef),0)))) -> 2917 | AG71: 196.96 | AH71: 0.2034 | AM71: 237.02 | AN71: 237.02
A72: =CHOOSE(1+LOG(1+2*(ORÇAMENTO.Nivel="Meta")+4*(ORÇAMENTO.Nivel="Nível 2")+8*(ORÇAMENTO.Nivel="Nível 3")+16*(ORÇAMENTO.Nivel="Nível 4")+32*(ORÇAMENTO.Nivel="Serviço"),2),0,1,2,3,4,"S") -> S | B72: 2 | C72: S | D72: 0 | E72: =IF($C72=1,OFFSET(E72,-1,0)+MAX(1,COUNTIF(QCI!$A$13:$A$24,OFFSET(ORÇAMENTO!E72,-1,0))),OFFSET(E72,-1,0)) -> 1 | F72: 12 | G72: 0 | H72: 0 | I72: 11 | J72: =IF(OR($C72="S",$C72=0),0,MATCH(0,OFFSET($D72,1,$C72,ROW($C$90)-ROW($C72)),0)) -> 0 | K72: =IF(OR($C72="S",$C72=0),0,MATCH(OFFSET($D72,0,$C72)+IF($C72<>1,1,COUNTIF(QCI!$A$13:$A$24,ORÇAMENTO!E72)),OFFSET($D72,1,$C72,ROW($C$90)-ROW($C72)),0)) -> 0 | L72: F | M72: Serviço | N72: Serviço | O72: 1.12.0.11. | P72: Composição | Q72: 03 | R72: =IF($C72="S",REFERENCIA.Descricao,"(digite a descrição aqui)") -> TAMPA EM CONCRETO ARMADO 30X30X05 P/ CX INSPEÇÃO (REFERENCIA SINAPI-C 6087) | S72: =REFERENCIA.Unidade -> UND | T72: =OFFSET(CÁLCULO!H$15,ROW($T72)-ROW(T$15),0) -> 1 | U72: 21.93 | V72: BDI 1 | W72: =IF($C72="S",ROUND(IF(TIPOORCAMENTO="Proposto",ORÇAMENTO.CustoUnitario*(1+$AH72),ORÇAMENTO.PrecoUnitarioLicitado),15-13*$AF$10),0) -> 26.39 | X72: 26.39 | Y72: RA | Z72: RA | AA72: =IF($C72="S",IF($Z72="CP",$X72,IF($Z72="RA",(($X72)*QCI!$AA$3),0)),SomaAgrup) -> 26.39 | AB72: 0 | AC72: =IF($N72="","",IF(ORÇAMENTO.Descricao="","DESCRIÇÃO",IF(AND($C72="S",ORÇAMENTO.Unidade=""),"UNIDADE",IF($X72<0,"VALOR NEGATIVO",IF(OR(AND(TIPOORCAMENTO="Proposto",$AG72<>"",$AG72>0,ORÇAMENTO.CustoUnitario>$AG72),AND(TIPOORCAMENTO="LICITADO",ORÇAMENTO.PrecoUnitarioLicitado>$AN72)),"ACIMA REF.",""))))) ->  | AD72: =IF(C72<=CRONO.NivelExibicao,MAX($AD$15:OFFSET(AD72,-1,0))+IF($C72<>1,1,MAX(1,COUNTIF(QCI!$A$13:$A$24,OFFSET($E72,-1,0)))),"") ->  | AE72: =IF(AND($C72="S",ORÇAMENTO.CodBarra<>""),IF(ORÇAMENTO.Fonte="",ORÇAMENTO.CodBarra,CONCATENATE(ORÇAMENTO.Fonte," ",ORÇAMENTO.CodBarra))) -> Composição 03 | AF72: =IF(ISERROR(INDIRECT(ORÇAMENTO.BancoRef)),"(abra o arquivo 'Referência "&Excel_BuiltIn_Database&".xls)",IF(OR($C72<>"S",ORÇAMENTO.CodBarra=""),"(Sem Código)",IF(ISERROR(MATCH($AE72,INDIRECT(ORÇAMENTO.BancoRef),0)),"(Código não identificado nas referências)",MATCH($AE72,INDIRECT(ORÇAMENTO.BancoRef),0)))) -> 4 | AG72: =ROUND(IF(DESONERACAO="sim",REFERENCIA.Desonerado,REFERENCIA.NaoDesonerado),2) -> 21.93 | AH72: 0.2034 | AM72: 26.39 | AN72: =ROUND(ORÇAMENTO.CustoUnitario*(1+$AH72),2) -> 26.39
A73: S | B73: 2 | C73: S | D73: 0 | E73: =IF($C73=1,OFFSET(E73,-1,0)+MAX(1,COUNTIF(QCI!$A$13:$A$24,OFFSET(ORÇAMENTO!E73,-1,0))),OFFSET(E73,-1,0)) -> 1 | F73: 12 | G73: 0 | H73: 0 | I73: 12 | J73: =IF(OR($C73="S",$C73=0),0,MATCH(0,OFFSET($D73,1,$C73,ROW($C$90)-ROW($C73)),0)) -> 0 | K73: =IF(OR($C73="S",$C73=0),0,MATCH(OFFSET($D73,0,$C73)+IF($C73<>1,1,COUNTIF(QCI!$A$13:$A$24,ORÇAMENTO!E73)),OFFSET($D73,1,$C73,ROW($C$90)-ROW($C73)),0)) -> 0 | L73: F | M73: Serviço | N73: Serviço | O73: 1.12.0.12. | P73: SINAPI | Q73: 93654 | R73: =IF($C73="S",REFERENCIA.Descricao,"(digite a descrição aqui)") -> DISJUNTOR MONOPOLAR TIPO DIN, CORRENTE NOMINAL DE 16A - FORNECIMENTO E INSTALAÇÃO. AF_10/2020 | S73: UN | T73: =OFFSET(CÁLCULO!H$15,ROW($T73)-ROW(T$15),0) -> 3 | U73: 12.65 | V73: BDI 1 | W73: =IF($C73="S",ROUND(IF(TIPOORCAMENTO="Proposto",ORÇAMENTO.CustoUnitario*(1+$AH73),ORÇAMENTO.PrecoUnitarioLicitado),15-13*$AF$10),0) -> 15.22 | X73: 45.66 | Y73: RA | Z73: RA | AA73: =IF($C73="S",IF($Z73="CP",$X73,IF($Z73="RA",(($X73)*QCI!$AA$3),0)),SomaAgrup) -> 45.66 | AB73: 0 | AC73: =IF($N73="","",IF(ORÇAMENTO.Descricao="","DESCRIÇÃO",IF(AND($C73="S",ORÇAMENTO.Unidade=""),"UNIDADE",IF($X73<0,"VALOR NEGATIVO",IF(OR(AND(TIPOORCAMENTO="Proposto",$AG73<>"",$AG73>0,ORÇAMENTO.CustoUnitario>$AG73),AND(TIPOORCAMENTO="LICITADO",ORÇAMENTO.PrecoUnitarioLicitado>$AN73)),"ACIMA REF.",""))))) ->  | AD73: =IF(C73<=CRONO.NivelExibicao,MAX($AD$15:OFFSET(AD73,-1,0))+IF($C73<>1,1,MAX(1,COUNTIF(QCI!$A$13:$A$24,OFFSET($E73,-1,0)))),"") ->  | AE73: =IF(AND($C73="S",ORÇAMENTO.CodBarra<>""),IF(ORÇAMENTO.Fonte="",ORÇAMENTO.CodBarra,CONCATENATE(ORÇAMENTO.Fonte," ",ORÇAMENTO.CodBarra))) -> SINAPI 93654 | AF73: =IF(ISERROR(INDIRECT(ORÇAMENTO.BancoRef)),"(abra o arquivo 'Referência "&Excel_BuiltIn_Database&".xls)",IF(OR($C73<>"S",ORÇAMENTO.CodBarra=""),"(Sem Código)",IF(ISERROR(MATCH($AE73,INDIRECT(ORÇAMENTO.BancoRef),0)),"(Código não identificado nas referências)",MATCH($AE73,INDIRECT(ORÇAMENTO.BancoRef),0)))) -> 2927 | AG73: 12.65 | AH73: 0.2034 | AM73: 45.66 | AN73: 15.22
A74: S | B74: 2 | C74: S | D74: 0 | E74: =IF($C74=1,OFFSET(E74,-1,0)+MAX(1,COUNTIF(QCI!$A$13:$A$24,OFFSET(ORÇAMENTO!E74,-1,0))),OFFSET(E74,-1,0)) -> 1 | F74: 12 | G74: 0 | H74: 0 | I74: 13 | J74: =IF(OR($C74="S",$C74=0),0,MATCH(0,OFFSET($D74,1,$C74,ROW($C$90)-ROW($C74)),0)) -> 0 | K74: =IF(OR($C74="S",$C74=0),0,MATCH(OFFSET($D74,0,$C74)+IF($C74<>1,1,COUNTIF(QCI!$A$13:$A$24,ORÇAMENTO!E74)),OFFSET($D74,1,$C74,ROW($C$90)-ROW($C74)),0)) -> 0 | L74: F | M74: Serviço | N74: Serviço | O74: 1.12.0.13. | P74: SINAPI | Q74: 93658 | R74: =IF($C74="S",REFERENCIA.Descricao,"(digite a descrição aqui)") -> DISJUNTOR MONOPOLAR TIPO DIN, CORRENTE NOMINAL DE 40A - FORNECIMENTO E INSTALAÇÃO. AF_10/2020 | S74: UN | T74: =OFFSET(CÁLCULO!H$15,ROW($T74)-ROW(T$15),0) -> 1 | U74: 22.72 | V74: BDI 1 | W74: =IF($C74="S",ROUND(IF(TIPOORCAMENTO="Proposto",ORÇAMENTO.CustoUnitario*(1+$AH74),ORÇAMENTO.PrecoUnitarioLicitado),15-13*$AF$10),0) -> 27.34 | X74: 27.34 | Y74: RA | Z74: RA | AA74: =IF($C74="S",IF($Z74="CP",$X74,IF($Z74="RA",(($X74)*QCI!$AA$3),0)),SomaAgrup) -> 27.34 | AB74: 0 | AC74: =IF($N74="","",IF(ORÇAMENTO.Descricao="","DESCRIÇÃO",IF(AND($C74="S",ORÇAMENTO.Unidade=""),"UNIDADE",IF($X74<0,"VALOR NEGATIVO",IF(OR(AND(TIPOORCAMENTO="Proposto",$AG74<>"",$AG74>0,ORÇAMENTO.CustoUnitario>$AG74),AND(TIPOORCAMENTO="LICITADO",ORÇAMENTO.PrecoUnitarioLicitado>$AN74)),"ACIMA REF.",""))))) ->  | AD74: =IF(C74<=CRONO.NivelExibicao,MAX($AD$15:OFFSET(AD74,-1,0))+IF($C74<>1,1,MAX(1,COUNTIF(QCI!$A$13:$A$24,OFFSET($E74,-1,0)))),"") ->  | AE74: =IF(AND($C74="S",ORÇAMENTO.CodBarra<>""),IF(ORÇAMENTO.Fonte="",ORÇAMENTO.CodBarra,CONCATENATE(ORÇAMENTO.Fonte," ",ORÇAMENTO.CodBarra))) -> SINAPI 93658 | AF74: =IF(ISERROR(INDIRECT(ORÇAMENTO.BancoRef)),"(abra o arquivo 'Referência "&Excel_BuiltIn_Database&".xls)",IF(OR($C74<>"S",ORÇAMENTO.CodBarra=""),"(Sem Código)",IF(ISERROR(MATCH($AE74,INDIRECT(ORÇAMENTO.BancoRef),0)),"(Código não identificado nas referências)",MATCH($AE74,INDIRECT(ORÇAMENTO.BancoRef),0)))) -> 2931 | AG74: 22.72 | AH74: 0.2034 | AM74: 27.34 | AN74: 27.34
A75: S | B75: 2 | C75: S | D75: 0 | E75: =IF($C75=1,OFFSET(E75,-1,0)+MAX(1,COUNTIF(QCI!$A$13:$A$24,OFFSET(ORÇAMENTO!E75,-1,0))),OFFSET(E75,-1,0)) -> 1 | F75: 12 | G75: 0 | H75: 0 | I75: 14 | J75: =IF(OR($C75="S",$C75=0),0,MATCH(0,OFFSET($D75,1,$C75,ROW($C$90)-ROW($C75)),0)) -> 0 | K75: =IF(OR($C75="S",$C75=0),0,MATCH(OFFSET($D75,0,$C75)+IF($C75<>1,1,COUNTIF(QCI!$A$13:$A$24,ORÇAMENTO!E75)),OFFSET($D75,1,$C75,ROW($C$90)-ROW($C75)),0)) -> 0 | L75: F | M75: Serviço | N75: Serviço | O75: 1.12.0.14. | P75: SINAPI-I | Q75: 39472 | R75: =IF($C75="S",REFERENCIA.Descricao,"(digite a descrição aqui)") -> DISPOSITIVO DPS CLASSE II, 1 POLO, TENSAO MAXIMA DE 275 V, CORRENTE MAXIMA DE *90* KA (TIPO AC) | S75: UN | T75: =OFFSET(CÁLCULO!H$15,ROW($T75)-ROW(T$15),0) -> 2 | U75: 179.3 | V75: BDI 1 | W75: =IF($C75="S",ROUND(IF(TIPOORCAMENTO="Proposto",ORÇAMENTO.CustoUnitario*(1+$AH75),ORÇAMENTO.PrecoUnitarioLicitado),15-13*$AF$10),0) -> 215.77 | X75: 431.54 | Y75: RA | Z75: RA | AA75: =IF($C75="S",IF($Z75="CP",$X75,IF($Z75="RA",(($X75)*QCI!$AA$3),0)),SomaAgrup) -> 431.54 | AB75: 0 | AC75: =IF($N75="","",IF(ORÇAMENTO.Descricao="","DESCRIÇÃO",IF(AND($C75="S",ORÇAMENTO.Unidade=""),"UNIDADE",IF($X75<0,"VALOR NEGATIVO",IF(OR(AND(TIPOORCAMENTO="Proposto",$AG75<>"",$AG75>0,ORÇAMENTO.CustoUnitario>$AG75),AND(TIPOORCAMENTO="LICITADO",ORÇAMENTO.PrecoUnitarioLicitado>$AN75)),"ACIMA REF.",""))))) ->  | AD75: =IF(C75<=CRONO.NivelExibicao,MAX($AD$15:OFFSET(AD75,-1,0))+IF($C75<>1,1,MAX(1,COUNTIF(QCI!$A$13:$A$24,OFFSET($E75,-1,0)))),"") ->  | AE75: =IF(AND($C75="S",ORÇAMENTO.CodBarra<>""),IF(ORÇAMENTO.Fonte="",ORÇAMENTO.CodBarra,CONCATENATE(ORÇAMENTO.Fonte," ",ORÇAMENTO.CodBarra))) -> SINAPI-I 39472 | AF75: =IF(ISERROR(INDIRECT(ORÇAMENTO.BancoRef)),"(abra o arquivo 'Referência "&Excel_BuiltIn_Database&".xls)",IF(OR($C75<>"S",ORÇAMENTO.CodBarra=""),"(Sem Código)",IF(ISERROR(MATCH($AE75,INDIRECT(ORÇAMENTO.BancoRef),0)),"(Código não identificado nas referências)",MATCH($AE75,INDIRECT(ORÇAMENTO.BancoRef),0)))) -> 9063 | AG75: 179.3 | AH75: 0.2034 | AM75: 431.54 | AN75: 215.77
A76: S | B76: 2 | C76: S | D76: 0 | E76: =IF($C76=1,OFFSET(E76,-1,0)+MAX(1,COUNTIF(QCI!$A$13:$A$24,OFFSET(ORÇAMENTO!E76,-1,0))),OFFSET(E76,-1,0)) -> 1 | F76: 12 | G76: 0 | H76: 0 | I76: 15 | J76: =IF(OR($C76="S",$C76=0),0,MATCH(0,OFFSET($D76,1,$C76,ROW($C$90)-ROW($C76)),0)) -> 0 | K76: =IF(OR($C76="S",$C76=0),0,MATCH(OFFSET($D76,0,$C76)+IF($C76<>1,1,COUNTIF(QCI!$A$13:$A$24,ORÇAMENTO!E76)),OFFSET($D76,1,$C76,ROW($C$90)-ROW($C76)),0)) -> 0 | L76: F | M76: Serviço | N76: Serviço | O76: 1.12.0.15. | P76: SINAPI | Q76: 101876 | R76: =IF($C76="S",REFERENCIA.Descricao,"(digite a descrição aqui)") -> QUADRO DE DISTRIBUIÇÃO DE ENERGIA EM PVC, DE EMBUTIR, SEM BARRAMENTO, PARA 6 DISJUNTORES - FORNECIMENTO E INSTALAÇÃO. AF_10/2020 | S76: UN | T76: =OFFSET(CÁLCULO!H$15,ROW($T76)-ROW(T$15),0) -> 1 | U76: 100.08 | V76: BDI 1 | W76: =IF($C76="S",ROUND(IF(TIPOORCAMENTO="Proposto",ORÇAMENTO.CustoUnitario*(1+$AH76),ORÇAMENTO.PrecoUnitarioLicitado),15-13*$AF$10),0) -> 120.44 | X76: 120.44 | Y76: RA | Z76: RA | AA76: =IF($C76="S",IF($Z76="CP",$X76,IF($Z76="RA",(($X76)*QCI!$AA$3),0)),SomaAgrup) -> 120.44 | AB76: 0 | AC76: =IF($N76="","",IF(ORÇAMENTO.Descricao="","DESCRIÇÃO",IF(AND($C76="S",ORÇAMENTO.Unidade=""),"UNIDADE",IF($X76<0,"VALOR NEGATIVO",IF(OR(AND(TIPOORCAMENTO="Proposto",$AG76<>"",$AG76>0,ORÇAMENTO.CustoUnitario>$AG76),AND(TIPOORCAMENTO="LICITADO",ORÇAMENTO.PrecoUnitarioLicitado>$AN76)),"ACIMA REF.",""))))) ->  | AD76: =IF(C76<=CRONO.NivelExibicao,MAX($AD$15:OFFSET(AD76,-1,0))+IF($C76<>1,1,MAX(1,COUNTIF(QCI!$A$13:$A$24,OFFSET($E76,-1,0)))),"") ->  | AE76: =IF(AND($C76="S",ORÇAMENTO.CodBarra<>""),IF(ORÇAMENTO.Fonte="",ORÇAMENTO.CodBarra,CONCATENATE(ORÇAMENTO.Fonte," ",ORÇAMENTO.CodBarra))) -> SINAPI 101876 | AF76: =IF(ISERROR(INDIRECT(ORÇAMENTO.BancoRef)),"(abra o arquivo 'Referência "&Excel_BuiltIn_Database&".xls)",IF(OR($C76<>"S",ORÇAMENTO.CodBarra=""),"(Sem Código)",IF(ISERROR(MATCH($AE76,INDIRECT(ORÇAMENTO.BancoRef),0)),"(Código não identificado nas referências)",MATCH($AE76,INDIRECT(ORÇAMENTO.BancoRef),0)))) -> 2952 | AG76: 100.08 | AH76: 0.2034 | AM76: 120.44 | AN76: 120.44
A77: S | B77: 2 | C77: S | D77: 0 | E77: =IF($C77=1,OFFSET(E77,-1,0)+MAX(1,COUNTIF(QCI!$A$13:$A$24,OFFSET(ORÇAMENTO!E77,-1,0))),OFFSET(E77,-1,0)) -> 1 | F77: 12 | G77: 0 | H77: 0 | I77: 16 | J77: =IF(OR($C77="S",$C77=0),0,MATCH(0,OFFSET($D77,1,$C77,ROW($C$90)-ROW($C77)),0)) -> 0 | K77: =IF(OR($C77="S",$C77=0),0,MATCH(OFFSET($D77,0,$C77)+IF($C77<>1,1,COUNTIF(QCI!$A$13:$A$24,ORÇAMENTO!E77)),OFFSET($D77,1,$C77,ROW($C$90)-ROW($C77)),0)) -> 0 | L77: F | M77: Serviço | N77: Serviço | O77: 1.12.0.16. | P77: SINAPI | Q77: 101938 | R77: =IF($C77="S",REFERENCIA.Descricao,"(digite a descrição aqui)") -> CAIXA DE PROTEÇÃO PARA MEDIDOR MONOFÁSICO DE EMBUTIR - FORNECIMENTO E INSTALAÇÃO. AF_10/2020 | S77: UN | T77: =OFFSET(CÁLCULO!H$15,ROW($T77)-ROW(T$15),0) -> 1 | U77: 133.79 | V77: BDI 1 | W77: =IF($C77="S",ROUND(IF(TIPOORCAMENTO="Proposto",ORÇAMENTO.CustoUnitario*(1+$AH77),ORÇAMENTO.PrecoUnitarioLicitado),15-13*$AF$10),0) -> 161 | X77: 161 | Y77: RA | Z77: RA | AA77: =IF($C77="S",IF($Z77="CP",$X77,IF($Z77="RA",(($X77)*QCI!$AA$3),0)),SomaAgrup) -> 161 | AB77: 0 | AC77: =IF($N77="","",IF(ORÇAMENTO.Descricao="","DESCRIÇÃO",IF(AND($C77="S",ORÇAMENTO.Unidade=""),"UNIDADE",IF($X77<0,"VALOR NEGATIVO",IF(OR(AND(TIPOORCAMENTO="Proposto",$AG77<>"",$AG77>0,ORÇAMENTO.CustoUnitario>$AG77),AND(TIPOORCAMENTO="LICITADO",ORÇAMENTO.PrecoUnitarioLicitado>$AN77)),"ACIMA REF.",""))))) ->  | AD77: =IF(C77<=CRONO.NivelExibicao,MAX($AD$15:OFFSET(AD77,-1,0))+IF($C77<>1,1,MAX(1,COUNTIF(QCI!$A$13:$A$24,OFFSET($E77,-1,0)))),"") ->  | AE77: =IF(AND($C77="S",ORÇAMENTO.CodBarra<>""),IF(ORÇAMENTO.Fonte="",ORÇAMENTO.CodBarra,CONCATENATE(ORÇAMENTO.Fonte," ",ORÇAMENTO.CodBarra))) -> SINAPI 101938 | AF77: =IF(ISERROR(INDIRECT(ORÇAMENTO.BancoRef)),"(abra o arquivo 'Referência "&Excel_BuiltIn_Database&".xls)",IF(OR($C77<>"S",ORÇAMENTO.CodBarra=""),"(Sem Código)",IF(ISERROR(MATCH($AE77,INDIRECT(ORÇAMENTO.BancoRef),0)),"(Código não identificado nas referências)",MATCH($AE77,INDIRECT(ORÇAMENTO.BancoRef),0)))) -> 2975 | AG77: 133.79 | AH77: 0.2034 | AM77: 161 | AN77: 161
A78: 2 | B78: 2 | C78: 2 | D78: 3 | E78: =IF($C78=1,OFFSET(E78,-1,0)+MAX(1,COUNTIF(QCI!$A$13:$A$24,OFFSET(ORÇAMENTO!E78,-1,0))),OFFSET(E78,-1,0)) -> 1 | F78: 13 | G78: 0 | H78: 0 | I78: 0 | J78: =IF(OR($C78="S",$C78=0),0,MATCH(0,OFFSET($D78,1,$C78,ROW($C$90)-ROW($C78)),0)) -> 12 | K78: =IF(OR($C78="S",$C78=0),0,MATCH(OFFSET($D78,0,$C78)+IF($C78<>1,1,COUNTIF(QCI!$A$13:$A$24,ORÇAMENTO!E78)),OFFSET($D78,1,$C78,ROW($C$90)-ROW($C78)),0)) -> 3 | L78: F | M78: Nível 2 | N78: Nível 2 | O78: 1.13. | P78: SINAPI | Q78: 39 | R78: INSTALAÇÕES HIDROSSANITÁRIAS | S78: - | T78: =OFFSET(CÁLCULO!H$15,ROW($T78)-ROW(T$15),0) -> 0 | U78: 0 | V78: BDI 1 | W78: =IF($C78="S",ROUND(IF(TIPOORCAMENTO="Proposto",ORÇAMENTO.CustoUnitario*(1+$AH78),ORÇAMENTO.PrecoUnitarioLicitado),15-13*$AF$10),0) -> 0 | X78: 4413.75 | Y78: RA | AA78: =IF($C78="S",IF($Z78="CP",$X78,IF($Z78="RA",(($X78)*QCI!$AA$3),0)),SomaAgrup) -> 4413.75 | AB78: 0 | AC78: =IF($N78="","",IF(ORÇAMENTO.Descricao="","DESCRIÇÃO",IF(AND($C78="S",ORÇAMENTO.Unidade=""),"UNIDADE",IF($X78<0,"VALOR NEGATIVO",IF(OR(AND(TIPOORCAMENTO="Proposto",$AG78<>"",$AG78>0,ORÇAMENTO.CustoUnitario>$AG78),AND(TIPOORCAMENTO="LICITADO",ORÇAMENTO.PrecoUnitarioLicitado>$AN78)),"ACIMA REF.",""))))) ->  | AD78: =IF(C78<=CRONO.NivelExibicao,MAX($AD$15:OFFSET(AD78,-1,0))+IF($C78<>1,1,MAX(1,COUNTIF(QCI!$A$13:$A$24,OFFSET($E78,-1,0)))),"") -> 14 | AE78: =IF(AND($C78="S",ORÇAMENTO.CodBarra<>""),IF(ORÇAMENTO.Fonte="",ORÇAMENTO.CodBarra,CONCATENATE(ORÇAMENTO.Fonte," ",ORÇAMENTO.CodBarra))) -> FALSE | AF78: =IF(ISERROR(INDIRECT(ORÇAMENTO.BancoRef)),"(abra o arquivo 'Referência "&Excel_BuiltIn_Database&".xls)",IF(OR($C78<>"S",ORÇAMENTO.CodBarra=""),"(Sem Código)",IF(ISERROR(MATCH($AE78,INDIRECT(ORÇAMENTO.BancoRef),0)),"(Código não identificado nas referências)",MATCH($AE78,INDIRECT(ORÇAMENTO.BancoRef),0)))) -> (Sem Código) | AG78: 0 | AH78: 0.2034 | AM78: 4413.75 | AN78: 0
A79: 3 | B79: 3 | C79: 3 | D79: 2 | E79: =IF($C79=1,OFFSET(E79,-1,0)+MAX(1,COUNTIF(QCI!$A$13:$A$24,OFFSET(ORÇAMENTO!E79,-1,0))),OFFSET(E79,-1,0)) -> 1 | F79: 13 | G79: 1 | H79: 0 | I79: 0 | J79: =IF(OR($C79="S",$C79=0),0,MATCH(0,OFFSET($D79,1,$C79,ROW($C$90)-ROW($C79)),0)) -> 2 | K79: =IF(OR($C79="S",$C79=0),0,MATCH(OFFSET($D79,0,$C79)+IF($C79<>1,1,COUNTIF(QCI!$A$13:$A$24,ORÇAMENTO!E79)),OFFSET($D79,1,$C79,ROW($C$90)-ROW($C79)),0)) ->  | L79: F | M79: Nível 3 | N79: Nível 3 | O79: 1.13.1. | P79: SINAPI | Q79: 95635 | R79: Pluvial | S79: - | T79: =OFFSET(CÁLCULO!H$15,ROW($T79)-ROW(T$15),0) -> 0 | U79: 0 | V79: BDI 1 | W79: =IF($C79="S",ROUND(IF(TIPOORCAMENTO="Proposto",ORÇAMENTO.CustoUnitario*(1+$AH79),ORÇAMENTO.PrecoUnitarioLicitado),15-13*$AF$10),0) -> 0 | X79: 4413.75 | Y79: RA | AA79: =IF($C79="S",IF($Z79="CP",$X79,IF($Z79="RA",(($X79)*QCI!$AA$3),0)),SomaAgrup) -> 4413.75 | AB79: 0 | AC79: =IF($N79="","",IF(ORÇAMENTO.Descricao="","DESCRIÇÃO",IF(AND($C79="S",ORÇAMENTO.Unidade=""),"UNIDADE",IF($X79<0,"VALOR NEGATIVO",IF(OR(AND(TIPOORCAMENTO="Proposto",$AG79<>"",$AG79>0,ORÇAMENTO.CustoUnitario>$AG79),AND(TIPOORCAMENTO="LICITADO",ORÇAMENTO.PrecoUnitarioLicitado>$AN79)),"ACIMA REF.",""))))) ->  | AD79: =IF(C79<=CRONO.NivelExibicao,MAX($AD$15:OFFSET(AD79,-1,0))+IF($C79<>1,1,MAX(1,COUNTIF(QCI!$A$13:$A$24,OFFSET($E79,-1,0)))),"") ->  | AE79: =IF(AND($C79="S",ORÇAMENTO.CodBarra<>""),IF(ORÇAMENTO.Fonte="",ORÇAMENTO.CodBarra,CONCATENATE(ORÇAMENTO.Fonte," ",ORÇAMENTO.CodBarra))) -> FALSE | AF79: =IF(ISERROR(INDIRECT(ORÇAMENTO.BancoRef)),"(abra o arquivo 'Referência "&Excel_BuiltIn_Database&".xls)",IF(OR($C79<>"S",ORÇAMENTO.CodBarra=""),"(Sem Código)",IF(ISERROR(MATCH($AE79,INDIRECT(ORÇAMENTO.BancoRef),0)),"(Código não identificado nas referências)",MATCH($AE79,INDIRECT(ORÇAMENTO.BancoRef),0)))) -> (Sem Código) | AG79: 0 | AH79: 0.2034 | AM79: 4413.75 | AN79: 0
A80: S | B80: 3 | C80: S | D80: 0 | E80: =IF($C80=1,OFFSET(E80,-1,0)+MAX(1,COUNTIF(QCI!$A$13:$A$24,OFFSET(ORÇAMENTO!E80,-1,0))),OFFSET(E80,-1,0)) -> 1 | F80: 13 | G80: 1 | H80: 0 | I80: 1 | J80: =IF(OR($C80="S",$C80=0),0,MATCH(0,OFFSET($D80,1,$C80,ROW($C$90)-ROW($C80)),0)) -> 0 | K80: =IF(OR($C80="S",$C80=0),0,MATCH(OFFSET($D80,0,$C80)+IF($C80<>1,1,COUNTIF(QCI!$A$13:$A$24,ORÇAMENTO!E80)),OFFSET($D80,1,$C80,ROW($C$90)-ROW($C80)),0)) -> 0 | L80: F | M80: Serviço | N80: Serviço | O80: 1.13.1.1. | P80: SINAPI | Q80: 89578 | R80: =IF($C80="S",REFERENCIA.Descricao,"(digite a descrição aqui)") -> TUBO PVC, SÉRIE R, ÁGUA PLUVIAL, DN 100 MM, FORNECIDO E INSTALADO EM CONDUTORES VERTICAIS DE ÁGUAS PLUVIAIS. AF_12/2014 | S80: M | T80: =OFFSET(CÁLCULO!H$15,ROW($T80)-ROW(T$15),0) -> 75 | U80: 48.9 | V80: BDI 1 | W80: =IF($C80="S",ROUND(IF(TIPOORCAMENTO="Proposto",ORÇAMENTO.CustoUnitario*(1+$AH80),ORÇAMENTO.PrecoUnitarioLicitado),15-13*$AF$10),0) -> 58.85 | X80: 4413.75 | Y80: RA | Z80: RA | AA80: =IF($C80="S",IF($Z80="CP",$X80,IF($Z80="RA",(($X80)*QCI!$AA$3),0)),SomaAgrup) -> 4413.75 | AB80: 0 | AC80: =IF($N80="","",IF(ORÇAMENTO.Descricao="","DESCRIÇÃO",IF(AND($C80="S",ORÇAMENTO.Unidade=""),"UNIDADE",IF($X80<0,"VALOR NEGATIVO",IF(OR(AND(TIPOORCAMENTO="Proposto",$AG80<>"",$AG80>0,ORÇAMENTO.CustoUnitario>$AG80),AND(TIPOORCAMENTO="LICITADO",ORÇAMENTO.PrecoUnitarioLicitado>$AN80)),"ACIMA REF.",""))))) ->  | AD80: =IF(C80<=CRONO.NivelExibicao,MAX($AD$15:OFFSET(AD80,-1,0))+IF($C80<>1,1,MAX(1,COUNTIF(QCI!$A$13:$A$24,OFFSET($E80,-1,0)))),"") ->  | AE80: =IF(AND($C80="S",ORÇAMENTO.CodBarra<>""),IF(ORÇAMENTO.Fonte="",ORÇAMENTO.CodBarra,CONCATENATE(ORÇAMENTO.Fonte," ",ORÇAMENTO.CodBarra))) -> SINAPI 89578 | AF80: =IF(ISERROR(INDIRECT(ORÇAMENTO.BancoRef)),"(abra o arquivo 'Referência "&Excel_BuiltIn_Database&".xls)",IF(OR($C80<>"S",ORÇAMENTO.CodBarra=""),"(Sem Código)",IF(ISERROR(MATCH($AE80,INDIRECT(ORÇAMENTO.BancoRef),0)),"(Código não identificado nas referências)",MATCH($AE80,INDIRECT(ORÇAMENTO.BancoRef),0)))) -> 3435 | AG80: 48.9 | AH80: 0.2034 | AM80: 4413.75 | AN80: 58.85
A81: 2 | B81: =IF(OR(C81="s",C81=0),OFFSET(B81,-1,0),C81) -> 2 | C81: =IF(OFFSET(C81,-1,0)="L",1,IF(OFFSET(C81,-1,0)=1,2,IF(OR(A81="s",A81=0),"S",IF(AND(OFFSET(C81,-1,0)=2,A81=4),3,IF(AND(OR(OFFSET(C81,-1,0)="s",OFFSET(C81,-1,0)=0),A81<>"s",A81>OFFSET(B81,-1,0)),OFFSET(B81,-1,0),A81))))) -> 2 | D81: =IF(OR(C81="S",C81=0),0,IF(ISERROR(K81),J81,SMALL(J81:K81,1))) -> 7 | E81: =IF($C81=1,OFFSET(E81,-1,0)+MAX(1,COUNTIF(QCI!$A$13:$A$24,OFFSET(ORÇAMENTO!E81,-1,0))),OFFSET(E81,-1,0)) -> 1 | F81: =IF($C81=1,0,IF($C81=2,OFFSET(F81,-1,0)+1,OFFSET(F81,-1,0))) -> 14 | G81: =IF(AND($C81<=2,$C81<>0),0,IF($C81=3,OFFSET(G81,-1,0)+1,OFFSET(G81,-1,0))) -> 0 | H81: =IF(AND($C81<=3,$C81<>0),0,IF($C81=4,OFFSET(H81,-1,0)+1,OFFSET(H81,-1,0))) -> 0 | I81: =IF(AND($C81<=4,$C81<>0),0,IF(AND($C81="S",$X81>0),OFFSET(I81,-1,0)+1,OFFSET(I81,-1,0))) -> 0 | J81: =IF(OR($C81="S",$C81=0),0,MATCH(0,OFFSET($D81,1,$C81,ROW($C$90)-ROW($C81)),0)) -> 9 | K81: =IF(OR($C81="S",$C81=0),0,MATCH(OFFSET($D81,0,$C81)+IF($C81<>1,1,COUNTIF(QCI!$A$13:$A$24,ORÇAMENTO!E81)),OFFSET($D81,1,$C81,ROW($C$90)-ROW($C81)),0)) -> 7 | L81: =IF(OR($X81>0,$C81=1,$C81=2,$C81=3,$C81=4),"F","") -> F | M81: Nível 2 | N81: =CHOOSE(1+LOG(1+2*(C81=1)+4*(C81=2)+8*(C81=3)+16*(C81=4)+32*(C81="S"),2),"","Meta","Nível 2","Nível 3","Nível 4","Serviço") -> Nível 2 | O81: =IF(OR($C81=0,$L81=""),"-",CONCATENATE(E81&".",IF(AND($A$5>=2,$C81>=2),F81&".",""),IF(AND($A$5>=3,$C81>=3),G81&".",""),IF(AND($A$5>=4,$C81>=4),H81&".",""),IF($C81="S",I81&".",""))) -> 1.14. | P81: SINAPI | R81: PINTURA | S81: - | T81: =OFFSET(CÁLCULO!H$15,ROW($T81)-ROW(T$15),0) -> 0 | U81: 0 | V81: BDI 1 | W81: =IF($C81="S",ROUND(IF(TIPOORCAMENTO="Proposto",ORÇAMENTO.CustoUnitario*(1+$AH81),ORÇAMENTO.PrecoUnitarioLicitado),15-13*$AF$10),0) -> 0 | X81: =IF($C81="S",VTOTAL1,IF($C81=0,0,ROUND(SomaAgrup,15-13*$AF$11))) -> 58862.04 | Y81: RA | Z81: =IF(AND($C81="S",$X81>0),IF(ISBLANK($Y81),"RA",LEFT($Y81,2)),"") ->  | AA81: =IF($C81="S",IF($Z81="CP",$X81,IF($Z81="RA",(($X81)*QCI!$AA$3),0)),SomaAgrup) -> 58862.04 | AB81: =IF($C81="S",IF($Z81="OU",ROUND($X81,2),0),SomaAgrup) -> 0 | AC81: =IF($N81="","",IF(ORÇAMENTO.Descricao="","DESCRIÇÃO",IF(AND($C81="S",ORÇAMENTO.Unidade=""),"UNIDADE",IF($X81<0,"VALOR NEGATIVO",IF(OR(AND(TIPOORCAMENTO="Proposto",$AG81<>"",$AG81>0,ORÇAMENTO.CustoUnitario>$AG81),AND(TIPOORCAMENTO="LICITADO",ORÇAMENTO.PrecoUnitarioLicitado>$AN81)),"ACIMA REF.",""))))) ->  | AD81: =IF(C81<=CRONO.NivelExibicao,MAX($AD$15:OFFSET(AD81,-1,0))+IF($C81<>1,1,MAX(1,COUNTIF(QCI!$A$13:$A$24,OFFSET($E81,-1,0)))),"") -> 15 | AE81: =IF(AND($C81="S",ORÇAMENTO.CodBarra<>""),IF(ORÇAMENTO.Fonte="",ORÇAMENTO.CodBarra,CONCATENATE(ORÇAMENTO.Fonte," ",ORÇAMENTO.CodBarra))) -> FALSE | AF81: =IF(ISERROR(INDIRECT(ORÇAMENTO.BancoRef)),"(abra o arquivo 'Referência "&Excel_BuiltIn_Database&".xls)",IF(OR($C81<>"S",ORÇAMENTO.CodBarra=""),"(Sem Código)",IF(ISERROR(MATCH($AE81,INDIRECT(ORÇAMENTO.BancoRef),0)),"(Código não identificado nas referências)",MATCH($AE81,INDIRECT(ORÇAMENTO.BancoRef),0)))) -> (Sem Código) | AG81: 0 | AH81: =ROUND(IF(ISNUMBER(ORÇAMENTO.OpcaoBDI),ORÇAMENTO.OpcaoBDI,IF(LEFT(ORÇAMENTO.OpcaoBDI,3)="BDI",HLOOKUP(ORÇAMENTO.OpcaoBDI,$F$4:$H$5,2,FALSE),0)),15-11*$AF$9) -> 0.2034 | AM81: 58862.04 | AN81: 0
A82: S | B82: 2 | C82: S | D82: 0 | E82: =IF($C82=1,OFFSET(E82,-1,0)+MAX(1,COUNTIF(QCI!$A$13:$A$24,OFFSET(ORÇAMENTO!E82,-1,0))),OFFSET(E82,-1,0)) -> 1 | F82: 14 | G82: 0 | H82: 0 | I82: 1 | J82: =IF(OR($C82="S",$C82=0),0,MATCH(0,OFFSET($D82,1,$C82,ROW($C$90)-ROW($C82)),0)) -> 0 | K82: =IF(OR($C82="S",$C82=0),0,MATCH(OFFSET($D82,0,$C82)+IF($C82<>1,1,COUNTIF(QCI!$A$13:$A$24,ORÇAMENTO!E82)),OFFSET($D82,1,$C82,ROW($C$90)-ROW($C82)),0)) -> 0 | L82: F | M82: Serviço | N82: Serviço | O82: 1.14.0.1. | P82: SINAPI | Q82: 102488 | R82: =IF($C82="S",REFERENCIA.Descricao,"(digite a descrição aqui)") -> PREPARO DO PISO CIMENTADO PARA PINTURA - LIXAMENTO E LIMPEZA. AF_05/2021 | S82: M2 | T82: =OFFSET(CÁLCULO!H$15,ROW($T82)-ROW(T$15),0) -> 521.1 | U82: 3.5 | V82: BDI 1 | W82: =IF($C82="S",ROUND(IF(TIPOORCAMENTO="Proposto",ORÇAMENTO.CustoUnitario*(1+$AH82),ORÇAMENTO.PrecoUnitarioLicitado),15-13*$AF$10),0) -> 4.21 | X82: 2193.83 | Y82: RA | Z82: RA | AA82: =IF($C82="S",IF($Z82="CP",$X82,IF($Z82="RA",(($X82)*QCI!$AA$3),0)),SomaAgrup) -> 2193.83 | AB82: 0 | AC82: =IF($N82="","",IF(ORÇAMENTO.Descricao="","DESCRIÇÃO",IF(AND($C82="S",ORÇAMENTO.Unidade=""),"UNIDADE",IF($X82<0,"VALOR NEGATIVO",IF(OR(AND(TIPOORCAMENTO="Proposto",$AG82<>"",$AG82>0,ORÇAMENTO.CustoUnitario>$AG82),AND(TIPOORCAMENTO="LICITADO",ORÇAMENTO.PrecoUnitarioLicitado>$AN82)),"ACIMA REF.",""))))) ->  | AD82: =IF(C82<=CRONO.NivelExibicao,MAX($AD$15:OFFSET(AD82,-1,0))+IF($C82<>1,1,MAX(1,COUNTIF(QCI!$A$13:$A$24,OFFSET($E82,-1,0)))),"") ->  | AE82: =IF(AND($C82="S",ORÇAMENTO.CodBarra<>""),IF(ORÇAMENTO.Fonte="",ORÇAMENTO.CodBarra,CONCATENATE(ORÇAMENTO.Fonte," ",ORÇAMENTO.CodBarra))) -> SINAPI 102488 | AF82: =IF(ISERROR(INDIRECT(ORÇAMENTO.BancoRef)),"(abra o arquivo 'Referência "&Excel_BuiltIn_Database&".xls)",IF(OR($C82<>"S",ORÇAMENTO.CodBarra=""),"(Sem Código)",IF(ISERROR(MATCH($AE82,INDIRECT(ORÇAMENTO.BancoRef),0)),"(Código não identificado nas referências)",MATCH($AE82,INDIRECT(ORÇAMENTO.BancoRef),0)))) -> 5853 | AG82: 3.5 | AH82: 0.2034 | AM82: 2193.83 | AN82: 4.21
A83: =CHOOSE(1+LOG(1+2*(ORÇAMENTO.Nivel="Meta")+4*(ORÇAMENTO.Nivel="Nível 2")+8*(ORÇAMENTO.Nivel="Nível 3")+16*(ORÇAMENTO.Nivel="Nível 4")+32*(ORÇAMENTO.Nivel="Serviço"),2),0,1,2,3,4,"S") -> S | B83: =IF(OR(C83="s",C83=0),OFFSET(B83,-1,0),C83) -> 2 | C83: =IF(OFFSET(C83,-1,0)="L",1,IF(OFFSET(C83,-1,0)=1,2,IF(OR(A83="s",A83=0),"S",IF(AND(OFFSET(C83,-1,0)=2,A83=4),3,IF(AND(OR(OFFSET(C83,-1,0)="s",OFFSET(C83,-1,0)=0),A83<>"s",A83>OFFSET(B83,-1,0)),OFFSET(B83,-1,0),A83))))) -> S | D83: =IF(OR(C83="S",C83=0),0,IF(ISERROR(K83),J83,SMALL(J83:K83,1))) -> 0 | E83: =IF($C83=1,OFFSET(E83,-1,0)+MAX(1,COUNTIF(QCI!$A$13:$A$24,OFFSET(ORÇAMENTO!E83,-1,0))),OFFSET(E83,-1,0)) -> 1 | F83: =IF($C83=1,0,IF($C83=2,OFFSET(F83,-1,0)+1,OFFSET(F83,-1,0))) -> 14 | G83: =IF(AND($C83<=2,$C83<>0),0,IF($C83=3,OFFSET(G83,-1,0)+1,OFFSET(G83,-1,0))) -> 0 | H83: =IF(AND($C83<=3,$C83<>0),0,IF($C83=4,OFFSET(H83,-1,0)+1,OFFSET(H83,-1,0))) -> 0 | I83: =IF(AND($C83<=4,$C83<>0),0,IF(AND($C83="S",$X83>0),OFFSET(I83,-1,0)+1,OFFSET(I83,-1,0))) -> 2 | J83: =IF(OR($C83="S",$C83=0),0,MATCH(0,OFFSET($D83,1,$C83,ROW($C$90)-ROW($C83)),0)) -> 0 | K83: =IF(OR($C83="S",$C83=0),0,MATCH(OFFSET($D83,0,$C83)+IF($C83<>1,1,COUNTIF(QCI!$A$13:$A$24,ORÇAMENTO!E83)),OFFSET($D83,1,$C83,ROW($C$90)-ROW($C83)),0)) -> 0 | L83: =IF(OR($X83>0,$C83=1,$C83=2,$C83=3,$C83=4),"F","") -> F | M83: Serviço | N83: =CHOOSE(1+LOG(1+2*(C83=1)+4*(C83=2)+8*(C83=3)+16*(C83=4)+32*(C83="S"),2),"","Meta","Nível 2","Nível 3","Nível 4","Serviço") -> Serviço | O83: =IF(OR($C83=0,$L83=""),"-",CONCATENATE(E83&".",IF(AND($A$5>=2,$C83>=2),F83&".",""),IF(AND($A$5>=3,$C83>=3),G83&".",""),IF(AND($A$5>=4,$C83>=4),H83&".",""),IF($C83="S",I83&".",""))) -> 1.14.0.2. | P83: SINAPI | Q83: 102494 | R83: =IF($C83="S",REFERENCIA.Descricao,"(digite a descrição aqui)") -> PINTURA DE PISO COM TINTA EPÓXI, APLICAÇÃO MANUAL, 2 DEMÃOS, INCLUSO PRIMER EPÓXI. AF_05/2021 | S83: =REFERENCIA.Unidade -> M2 | T83: =OFFSET(CÁLCULO!H$15,ROW($T83)-ROW(T$15),0) -> 521.1 | U83: 51.64 | V83: BDI 1 | W83: =IF($C83="S",ROUND(IF(TIPOORCAMENTO="Proposto",ORÇAMENTO.CustoUnitario*(1+$AH83),ORÇAMENTO.PrecoUnitarioLicitado),15-13*$AF$10),0) -> 62.14 | X83: =IF($C83="S",VTOTAL1,IF($C83=0,0,ROUND(SomaAgrup,15-13*$AF$11))) -> 32381.15 | Y83: RA | Z83: =IF(AND($C83="S",$X83>0),IF(ISBLANK($Y83),"RA",LEFT($Y83,2)),"") -> RA | AA83: =IF($C83="S",IF($Z83="CP",$X83,IF($Z83="RA",(($X83)*QCI!$AA$3),0)),SomaAgrup) -> 32381.15 | AB83: =IF($C83="S",IF($Z83="OU",ROUND($X83,2),0),SomaAgrup) -> 0 | AC83: =IF($N83="","",IF(ORÇAMENTO.Descricao="","DESCRIÇÃO",IF(AND($C83="S",ORÇAMENTO.Unidade=""),"UNIDADE",IF($X83<0,"VALOR NEGATIVO",IF(OR(AND(TIPOORCAMENTO="Proposto",$AG83<>"",$AG83>0,ORÇAMENTO.CustoUnitario>$AG83),AND(TIPOORCAMENTO="LICITADO",ORÇAMENTO.PrecoUnitarioLicitado>$AN83)),"ACIMA REF.",""))))) ->  | AD83: =IF(C83<=CRONO.NivelExibicao,MAX($AD$15:OFFSET(AD83,-1,0))+IF($C83<>1,1,MAX(1,COUNTIF(QCI!$A$13:$A$24,OFFSET($E83,-1,0)))),"") ->  | AE83: =IF(AND($C83="S",ORÇAMENTO.CodBarra<>""),IF(ORÇAMENTO.Fonte="",ORÇAMENTO.CodBarra,CONCATENATE(ORÇAMENTO.Fonte," ",ORÇAMENTO.CodBarra))) -> SINAPI 102494 | AF83: =IF(ISERROR(INDIRECT(ORÇAMENTO.BancoRef)),"(abra o arquivo 'Referência "&Excel_BuiltIn_Database&".xls)",IF(OR($C83<>"S",ORÇAMENTO.CodBarra=""),"(Sem Código)",IF(ISERROR(MATCH($AE83,INDIRECT(ORÇAMENTO.BancoRef),0)),"(Código não identificado nas referências)",MATCH($AE83,INDIRECT(ORÇAMENTO.BancoRef),0)))) -> 5857 | AG83: =ROUND(IF(DESONERACAO="sim",REFERENCIA.Desonerado,REFERENCIA.NaoDesonerado),2) -> 51.64 | AH83: =ROUND(IF(ISNUMBER(ORÇAMENTO.OpcaoBDI),ORÇAMENTO.OpcaoBDI,IF(LEFT(ORÇAMENTO.OpcaoBDI,3)="BDI",HLOOKUP(ORÇAMENTO.OpcaoBDI,$F$4:$H$5,2,FALSE),0)),15-11*$AF$9) -> 0.2034 | AM83: 32381.15 | AN83: =ROUND(ORÇAMENTO.CustoUnitario*(1+$AH83),2) -> 62.14
A84: S | B84: 2 | C84: S | D84: 0 | E84: =IF($C84=1,OFFSET(E84,-1,0)+MAX(1,COUNTIF(QCI!$A$13:$A$24,OFFSET(ORÇAMENTO!E84,-1,0))),OFFSET(E84,-1,0)) -> 1 | F84: 14 | G84: 0 | H84: 0 | I84: 3 | J84: =IF(OR($C84="S",$C84=0),0,MATCH(0,OFFSET($D84,1,$C84,ROW($C$90)-ROW($C84)),0)) -> 0 | K84: =IF(OR($C84="S",$C84=0),0,MATCH(OFFSET($D84,0,$C84)+IF($C84<>1,1,COUNTIF(QCI!$A$13:$A$24,ORÇAMENTO!E84)),OFFSET($D84,1,$C84,ROW($C$90)-ROW($C84)),0)) -> 0 | L84: F | M84: Serviço | N84: Serviço | O84: 1.14.0.3. | P84: SINAPI | Q84: 102506 | R84: =IF($C84="S",REFERENCIA.Descricao,"(digite a descrição aqui)") -> PINTURA DE DEMARCAÇÃO DE QUADRA POLIESPORTIVA COM TINTA EPÓXI, E = 5 CM, APLICAÇÃO MANUAL. AF_05/2021 | S84: M | T84: =OFFSET(CÁLCULO!H$15,ROW($T84)-ROW(T$15),0) -> 458.5 | U84: 10.06 | V84: BDI 1 | W84: =IF($C84="S",ROUND(IF(TIPOORCAMENTO="Proposto",ORÇAMENTO.CustoUnitario*(1+$AH84),ORÇAMENTO.PrecoUnitarioLicitado),15-13*$AF$10),0) -> 12.11 | X84: 5552.44 | Y84: RA | Z84: RA | AA84: =IF($C84="S",IF($Z84="CP",$X84,IF($Z84="RA",(($X84)*QCI!$AA$3),0)),SomaAgrup) -> 5552.44 | AB84: 0 | AC84: =IF($N84="","",IF(ORÇAMENTO.Descricao="","DESCRIÇÃO",IF(AND($C84="S",ORÇAMENTO.Unidade=""),"UNIDADE",IF($X84<0,"VALOR NEGATIVO",IF(OR(AND(TIPOORCAMENTO="Proposto",$AG84<>"",$AG84>0,ORÇAMENTO.CustoUnitario>$AG84),AND(TIPOORCAMENTO="LICITADO",ORÇAMENTO.PrecoUnitarioLicitado>$AN84)),"ACIMA REF.",""))))) ->  | AD84: =IF(C84<=CRONO.NivelExibicao,MAX($AD$15:OFFSET(AD84,-1,0))+IF($C84<>1,1,MAX(1,COUNTIF(QCI!$A$13:$A$24,OFFSET($E84,-1,0)))),"") ->  | AE84: =IF(AND($C84="S",ORÇAMENTO.CodBarra<>""),IF(ORÇAMENTO.Fonte="",ORÇAMENTO.CodBarra,CONCATENATE(ORÇAMENTO.Fonte," ",ORÇAMENTO.CodBarra))) -> SINAPI 102506 | AF84: =IF(ISERROR(INDIRECT(ORÇAMENTO.BancoRef)),"(abra o arquivo 'Referência "&Excel_BuiltIn_Database&".xls)",IF(OR($C84<>"S",ORÇAMENTO.CodBarra=""),"(Sem Código)",IF(ISERROR(MATCH($AE84,INDIRECT(ORÇAMENTO.BancoRef),0)),"(Código não identificado nas referências)",MATCH($AE84,INDIRECT(ORÇAMENTO.BancoRef),0)))) -> 5866 | AG84: 10.06 | AH84: 0.2034 | AM84: 5552.44 | AN84: 12.11
A85: S | B85: 2 | C85: S | D85: 0 | E85: =IF($C85=1,OFFSET(E85,-1,0)+MAX(1,COUNTIF(QCI!$A$13:$A$24,OFFSET(ORÇAMENTO!E85,-1,0))),OFFSET(E85,-1,0)) -> 1 | F85: 14 | G85: 0 | H85: 0 | I85: 4 | J85: =IF(OR($C85="S",$C85=0),0,MATCH(0,OFFSET($D85,1,$C85,ROW($C$90)-ROW($C85)),0)) -> 0 | K85: =IF(OR($C85="S",$C85=0),0,MATCH(OFFSET($D85,0,$C85)+IF($C85<>1,1,COUNTIF(QCI!$A$13:$A$24,ORÇAMENTO!E85)),OFFSET($D85,1,$C85,ROW($C$90)-ROW($C85)),0)) -> 0 | L85: F | M85: Serviço | N85: Serviço | O85: 1.14.0.4. | P85: SINAPI | Q85: 100723 | R85: =IF($C85="S",REFERENCIA.Descricao,"(digite a descrição aqui)") -> PINTURA COM TINTA ALQUÍDICA DE FUNDO E ACABAMENTO (ESMALTE SINTÉTICO GRAFITE) PULVERIZADA SOBRE PERFIL METÁLICO EXECUTADO EM FÁBRICA (POR DEMÃO). AF_01/2020_P | S85: M2 | T85: =OFFSET(CÁLCULO!H$15,ROW($T85)-ROW(T$15),0) -> 1414 | U85: 9.54 | V85: BDI 1 | W85: =IF($C85="S",ROUND(IF(TIPOORCAMENTO="Proposto",ORÇAMENTO.CustoUnitario*(1+$AH85),ORÇAMENTO.PrecoUnitarioLicitado),15-13*$AF$10),0) -> 11.48 | X85: 16232.72 | Y85: RA | Z85: RA | AA85: =IF($C85="S",IF($Z85="CP",$X85,IF($Z85="RA",(($X85)*QCI!$AA$3),0)),SomaAgrup) -> 16232.72 | AB85: 0 | AC85: =IF($N85="","",IF(ORÇAMENTO.Descricao="","DESCRIÇÃO",IF(AND($C85="S",ORÇAMENTO.Unidade=""),"UNIDADE",IF($X85<0,"VALOR NEGATIVO",IF(OR(AND(TIPOORCAMENTO="Proposto",$AG85<>"",$AG85>0,ORÇAMENTO.CustoUnitario>$AG85),AND(TIPOORCAMENTO="LICITADO",ORÇAMENTO.PrecoUnitarioLicitado>$AN85)),"ACIMA REF.",""))))) ->  | AD85: =IF(C85<=CRONO.NivelExibicao,MAX($AD$15:OFFSET(AD85,-1,0))+IF($C85<>1,1,MAX(1,COUNTIF(QCI!$A$13:$A$24,OFFSET($E85,-1,0)))),"") ->  | AE85: =IF(AND($C85="S",ORÇAMENTO.CodBarra<>""),IF(ORÇAMENTO.Fonte="",ORÇAMENTO.CodBarra,CONCATENATE(ORÇAMENTO.Fonte," ",ORÇAMENTO.CodBarra))) -> SINAPI 100723 | AF85: =IF(ISERROR(INDIRECT(ORÇAMENTO.BancoRef)),"(abra o arquivo 'Referência "&Excel_BuiltIn_Database&".xls)",IF(OR($C85<>"S",ORÇAMENTO.CodBarra=""),"(Sem Código)",IF(ISERROR(MATCH($AE85,INDIRECT(ORÇAMENTO.BancoRef),0)),"(Código não identificado nas referências)",MATCH($AE85,INDIRECT(ORÇAMENTO.BancoRef),0)))) -> 5819 | AG85: 9.54 | AH85: 0.2034 | AM85: 16232.72 | AN85: 11.48
A86: =CHOOSE(1+LOG(1+2*(ORÇAMENTO.Nivel="Meta")+4*(ORÇAMENTO.Nivel="Nível 2")+8*(ORÇAMENTO.Nivel="Nível 3")+16*(ORÇAMENTO.Nivel="Nível 4")+32*(ORÇAMENTO.Nivel="Serviço"),2),0,1,2,3,4,"S") -> S | B86: =IF(OR(C86="s",C86=0),OFFSET(B86,-1,0),C86) -> 2 | C86: =IF(OFFSET(C86,-1,0)="L",1,IF(OFFSET(C86,-1,0)=1,2,IF(OR(A86="s",A86=0),"S",IF(AND(OFFSET(C86,-1,0)=2,A86=4),3,IF(AND(OR(OFFSET(C86,-1,0)="s",OFFSET(C86,-1,0)=0),A86<>"s",A86>OFFSET(B86,-1,0)),OFFSET(B86,-1,0),A86))))) -> S | D86: =IF(OR(C86="S",C86=0),0,IF(ISERROR(K86),J86,SMALL(J86:K86,1))) -> 0 | E86: =IF($C86=1,OFFSET(E86,-1,0)+MAX(1,COUNTIF(QCI!$A$13:$A$24,OFFSET(ORÇAMENTO!E86,-1,0))),OFFSET(E86,-1,0)) -> 1 | F86: =IF($C86=1,0,IF($C86=2,OFFSET(F86,-1,0)+1,OFFSET(F86,-1,0))) -> 14 | G86: =IF(AND($C86<=2,$C86<>0),0,IF($C86=3,OFFSET(G86,-1,0)+1,OFFSET(G86,-1,0))) -> 0 | H86: =IF(AND($C86<=3,$C86<>0),0,IF($C86=4,OFFSET(H86,-1,0)+1,OFFSET(H86,-1,0))) -> 0 | I86: =IF(AND($C86<=4,$C86<>0),0,IF(AND($C86="S",$X86>0),OFFSET(I86,-1,0)+1,OFFSET(I86,-1,0))) -> 5 | J86: =IF(OR($C86="S",$C86=0),0,MATCH(0,OFFSET($D86,1,$C86,ROW($C$90)-ROW($C86)),0)) -> 0 | K86: =IF(OR($C86="S",$C86=0),0,MATCH(OFFSET($D86,0,$C86)+IF($C86<>1,1,COUNTIF(QCI!$A$13:$A$24,ORÇAMENTO!E86)),OFFSET($D86,1,$C86,ROW($C$90)-ROW($C86)),0)) -> 0 | L86: =IF(OR($X86>0,$C86=1,$C86=2,$C86=3,$C86=4),"F","") -> F | M86: Serviço | N86: =CHOOSE(1+LOG(1+2*(C86=1)+4*(C86=2)+8*(C86=3)+16*(C86=4)+32*(C86="S"),2),"","Meta","Nível 2","Nível 3","Nível 4","Serviço") -> Serviço | O86: =IF(OR($C86=0,$L86=""),"-",CONCATENATE(E86&".",IF(AND($A$5>=2,$C86>=2),F86&".",""),IF(AND($A$5>=3,$C86>=3),G86&".",""),IF(AND($A$5>=4,$C86>=4),H86&".",""),IF($C86="S",I86&".",""))) -> 1.14.0.5. | P86: SINAPI | Q86: 88485 | R86: =IF($C86="S",REFERENCIA.Descricao,"(digite a descrição aqui)") -> APLICAÇÃO DE FUNDO SELADOR ACRÍLICO EM PAREDES, UMA DEMÃO. AF_06/2014 | S86: =REFERENCIA.Unidade -> M2 | T86: =OFFSET(CÁLCULO!H$15,ROW($T86)-ROW(T$15),0) -> 127 | U86: 2.48 | V86: BDI 1 | W86: =IF($C86="S",ROUND(IF(TIPOORCAMENTO="Proposto",ORÇAMENTO.CustoUnitario*(1+$AH86),ORÇAMENTO.PrecoUnitarioLicitado),15-13*$AF$10),0) -> 2.98 | X86: =IF($C86="S",VTOTAL1,IF($C86=0,0,ROUND(SomaAgrup,15-13*$AF$11))) -> 378.46 | Y86: RA | Z86: =IF(AND($C86="S",$X86>0),IF(ISBLANK($Y86),"RA",LEFT($Y86,2)),"") -> RA | AA86: =IF($C86="S",IF($Z86="CP",$X86,IF($Z86="RA",(($X86)*QCI!$AA$3),0)),SomaAgrup) -> 378.46 | AB86: =IF($C86="S",IF($Z86="OU",ROUND($X86,2),0),SomaAgrup) -> 0 | AC86: =IF($N86="","",IF(ORÇAMENTO.Descricao="","DESCRIÇÃO",IF(AND($C86="S",ORÇAMENTO.Unidade=""),"UNIDADE",IF($X86<0,"VALOR NEGATIVO",IF(OR(AND(TIPOORCAMENTO="Proposto",$AG86<>"",$AG86>0,ORÇAMENTO.CustoUnitario>$AG86),AND(TIPOORCAMENTO="LICITADO",ORÇAMENTO.PrecoUnitarioLicitado>$AN86)),"ACIMA REF.",""))))) ->  | AD86: =IF(C86<=CRONO.NivelExibicao,MAX($AD$15:OFFSET(AD86,-1,0))+IF($C86<>1,1,MAX(1,COUNTIF(QCI!$A$13:$A$24,OFFSET($E86,-1,0)))),"") ->  | AE86: =IF(AND($C86="S",ORÇAMENTO.CodBarra<>""),IF(ORÇAMENTO.Fonte="",ORÇAMENTO.CodBarra,CONCATENATE(ORÇAMENTO.Fonte," ",ORÇAMENTO.CodBarra))) -> SINAPI 88485 | AF86: =IF(ISERROR(INDIRECT(ORÇAMENTO.BancoRef)),"(abra o arquivo 'Referência "&Excel_BuiltIn_Database&".xls)",IF(OR($C86<>"S",ORÇAMENTO.CodBarra=""),"(Sem Código)",IF(ISERROR(MATCH($AE86,INDIRECT(ORÇAMENTO.BancoRef),0)),"(Código não identificado nas referências)",MATCH($AE86,INDIRECT(ORÇAMENTO.BancoRef),0)))) -> 5760 | AG86: =ROUND(IF(DESONERACAO="sim",REFERENCIA.Desonerado,REFERENCIA.NaoDesonerado),2) -> 2.48 | AH86: =ROUND(IF(ISNUMBER(ORÇAMENTO.OpcaoBDI),ORÇAMENTO.OpcaoBDI,IF(LEFT(ORÇAMENTO.OpcaoBDI,3)="BDI",HLOOKUP(ORÇAMENTO.OpcaoBDI,$F$4:$H$5,2,FALSE),0)),15-11*$AF$9) -> 0.2034 | AM86: 378.46 | AN86: =ROUND(ORÇAMENTO.CustoUnitario*(1+$AH86),2) -> 2.98
A87: =CHOOSE(1+LOG(1+2*(ORÇAMENTO.Nivel="Meta")+4*(ORÇAMENTO.Nivel="Nível 2")+8*(ORÇAMENTO.Nivel="Nível 3")+16*(ORÇAMENTO.Nivel="Nível 4")+32*(ORÇAMENTO.Nivel="Serviço"),2),0,1,2,3,4,"S") -> S | B87: =IF(OR(C87="s",C87=0),OFFSET(B87,-1,0),C87) -> 2 | C87: =IF(OFFSET(C87,-1,0)="L",1,IF(OFFSET(C87,-1,0)=1,2,IF(OR(A87="s",A87=0),"S",IF(AND(OFFSET(C87,-1,0)=2,A87=4),3,IF(AND(OR(OFFSET(C87,-1,0)="s",OFFSET(C87,-1,0)=0),A87<>"s",A87>OFFSET(B87,-1,0)),OFFSET(B87,-1,0),A87))))) -> S | D87: =IF(OR(C87="S",C87=0),0,IF(ISERROR(K87),J87,SMALL(J87:K87,1))) -> 0 | E87: =IF($C87=1,OFFSET(E87,-1,0)+MAX(1,COUNTIF(QCI!$A$13:$A$24,OFFSET(ORÇAMENTO!E87,-1,0))),OFFSET(E87,-1,0)) -> 1 | F87: =IF($C87=1,0,IF($C87=2,OFFSET(F87,-1,0)+1,OFFSET(F87,-1,0))) -> 14 | G87: =IF(AND($C87<=2,$C87<>0),0,IF($C87=3,OFFSET(G87,-1,0)+1,OFFSET(G87,-1,0))) -> 0 | H87: =IF(AND($C87<=3,$C87<>0),0,IF($C87=4,OFFSET(H87,-1,0)+1,OFFSET(H87,-1,0))) -> 0 | I87: =IF(AND($C87<=4,$C87<>0),0,IF(AND($C87="S",$X87>0),OFFSET(I87,-1,0)+1,OFFSET(I87,-1,0))) -> 6 | J87: =IF(OR($C87="S",$C87=0),0,MATCH(0,OFFSET($D87,1,$C87,ROW($C$90)-ROW($C87)),0)) -> 0 | K87: =IF(OR($C87="S",$C87=0),0,MATCH(OFFSET($D87,0,$C87)+IF($C87<>1,1,COUNTIF(QCI!$A$13:$A$24,ORÇAMENTO!E87)),OFFSET($D87,1,$C87,ROW($C$90)-ROW($C87)),0)) -> 0 | L87: =IF(OR($X87>0,$C87=1,$C87=2,$C87=3,$C87=4),"F","") -> F | M87: Serviço | N87: =CHOOSE(1+LOG(1+2*(C87=1)+4*(C87=2)+8*(C87=3)+16*(C87=4)+32*(C87="S"),2),"","Meta","Nível 2","Nível 3","Nível 4","Serviço") -> Serviço | O87: =IF(OR($C87=0,$L87=""),"-",CONCATENATE(E87&".",IF(AND($A$5>=2,$C87>=2),F87&".",""),IF(AND($A$5>=3,$C87>=3),G87&".",""),IF(AND($A$5>=4,$C87>=4),H87&".",""),IF($C87="S",I87&".",""))) -> 1.14.0.6. | P87: SINAPI | Q87: 88489 | R87: =IF($C87="S",REFERENCIA.Descricao,"(digite a descrição aqui)") -> APLICAÇÃO MANUAL DE PINTURA COM TINTA LÁTEX ACRÍLICA EM PAREDES, DUAS DEMÃOS. AF_06/2014 | S87: =REFERENCIA.Unidade -> M2 | T87: =OFFSET(CÁLCULO!H$15,ROW($T87)-ROW(T$15),0) -> 127 | U87: 13.89 | V87: BDI 1 | W87: =IF($C87="S",ROUND(IF(TIPOORCAMENTO="Proposto",ORÇAMENTO.CustoUnitario*(1+$AH87),ORÇAMENTO.PrecoUnitarioLicitado),15-13*$AF$10),0) -> 16.72 | X87: =IF($C87="S",VTOTAL1,IF($C87=0,0,ROUND(SomaAgrup,15-13*$AF$11))) -> 2123.44 | Y87: RA | Z87: =IF(AND($C87="S",$X87>0),IF(ISBLANK($Y87),"RA",LEFT($Y87,2)),"") -> RA | AA87: =IF($C87="S",IF($Z87="CP",$X87,IF($Z87="RA",(($X87)*QCI!$AA$3),0)),SomaAgrup) -> 2123.44 | AB87: =IF($C87="S",IF($Z87="OU",ROUND($X87,2),0),SomaAgrup) -> 0 | AC87: =IF($N87="","",IF(ORÇAMENTO.Descricao="","DESCRIÇÃO",IF(AND($C87="S",ORÇAMENTO.Unidade=""),"UNIDADE",IF($X87<0,"VALOR NEGATIVO",IF(OR(AND(TIPOORCAMENTO="Proposto",$AG87<>"",$AG87>0,ORÇAMENTO.CustoUnitario>$AG87),AND(TIPOORCAMENTO="LICITADO",ORÇAMENTO.PrecoUnitarioLicitado>$AN87)),"ACIMA REF.",""))))) ->  | AD87: =IF(C87<=CRONO.NivelExibicao,MAX($AD$15:OFFSET(AD87,-1,0))+IF($C87<>1,1,MAX(1,COUNTIF(QCI!$A$13:$A$24,OFFSET($E87,-1,0)))),"") ->  | AE87: =IF(AND($C87="S",ORÇAMENTO.CodBarra<>""),IF(ORÇAMENTO.Fonte="",ORÇAMENTO.CodBarra,CONCATENATE(ORÇAMENTO.Fonte," ",ORÇAMENTO.CodBarra))) -> SINAPI 88489 | AF87: =IF(ISERROR(INDIRECT(ORÇAMENTO.BancoRef)),"(abra o arquivo 'Referência "&Excel_BuiltIn_Database&".xls)",IF(OR($C87<>"S",ORÇAMENTO.CodBarra=""),"(Sem Código)",IF(ISERROR(MATCH($AE87,INDIRECT(ORÇAMENTO.BancoRef),0)),"(Código não identificado nas referências)",MATCH($AE87,INDIRECT(ORÇAMENTO.BancoRef),0)))) -> 5762 | AG87: =ROUND(IF(DESONERACAO="sim",REFERENCIA.Desonerado,REFERENCIA.NaoDesonerado),2) -> 13.89 | AH87: =ROUND(IF(ISNUMBER(ORÇAMENTO.OpcaoBDI),ORÇAMENTO.OpcaoBDI,IF(LEFT(ORÇAMENTO.OpcaoBDI,3)="BDI",HLOOKUP(ORÇAMENTO.OpcaoBDI,$F$4:$H$5,2,FALSE),0)),15-11*$AF$9) -> 0.2034 | AM87: 2123.44 | AN87: =ROUND(ORÇAMENTO.CustoUnitario*(1+$AH87),2) -> 16.72
A88: 2 | B88: 2 | C88: 2 | D88: 2 | E88: =IF($C88=1,OFFSET(E88,-1,0)+MAX(1,COUNTIF(QCI!$A$13:$A$24,OFFSET(ORÇAMENTO!E88,-1,0))),OFFSET(E88,-1,0)) -> 1 | F88: 15 | G88: 0 | H88: 0 | I88: 0 | J88: =IF(OR($C88="S",$C88=0),0,MATCH(0,OFFSET($D88,1,$C88,ROW($C$90)-ROW($C88)),0)) -> 2 | K88: =IF(OR($C88="S",$C88=0),0,MATCH(OFFSET($D88,0,$C88)+IF($C88<>1,1,COUNTIF(QCI!$A$13:$A$24,ORÇAMENTO!E88)),OFFSET($D88,1,$C88,ROW($C$90)-ROW($C88)),0)) ->  | L88: F | M88: Nível 2 | N88: Nível 2 | O88: 1.15. | P88: SINAPI | R88: IMPLANTAÇÃO SERVIÇOS EXTERNOS | S88: - | T88: =OFFSET(CÁLCULO!H$15,ROW($T88)-ROW(T$15),0) -> 0 | U88: 0 | V88: BDI 1 | W88: =IF($C88="S",ROUND(IF(TIPOORCAMENTO="Proposto",ORÇAMENTO.CustoUnitario*(1+$AH88),ORÇAMENTO.PrecoUnitarioLicitado),15-13*$AF$10),0) -> 0 | X88: 9579.41 | Y88: RA | AA88: =IF($C88="S",IF($Z88="CP",$X88,IF($Z88="RA",(($X88)*QCI!$AA$3),0)),SomaAgrup) -> 9579.41 | AB88: 0 | AC88: =IF($N88="","",IF(ORÇAMENTO.Descricao="","DESCRIÇÃO",IF(AND($C88="S",ORÇAMENTO.Unidade=""),"UNIDADE",IF($X88<0,"VALOR NEGATIVO",IF(OR(AND(TIPOORCAMENTO="Proposto",$AG88<>"",$AG88>0,ORÇAMENTO.CustoUnitario>$AG88),AND(TIPOORCAMENTO="LICITADO",ORÇAMENTO.PrecoUnitarioLicitado>$AN88)),"ACIMA REF.",""))))) ->  | AD88: =IF(C88<=CRONO.NivelExibicao,MAX($AD$15:OFFSET(AD88,-1,0))+IF($C88<>1,1,MAX(1,COUNTIF(QCI!$A$13:$A$24,OFFSET($E88,-1,0)))),"") -> 16 | AE88: =IF(AND($C88="S",ORÇAMENTO.CodBarra<>""),IF(ORÇAMENTO.Fonte="",ORÇAMENTO.CodBarra,CONCATENATE(ORÇAMENTO.Fonte," ",ORÇAMENTO.CodBarra))) -> FALSE | AF88: =IF(ISERROR(INDIRECT(ORÇAMENTO.BancoRef)),"(abra o arquivo 'Referência "&Excel_BuiltIn_Database&".xls)",IF(OR($C88<>"S",ORÇAMENTO.CodBarra=""),"(Sem Código)",IF(ISERROR(MATCH($AE88,INDIRECT(ORÇAMENTO.BancoRef),0)),"(Código não identificado nas referências)",MATCH($AE88,INDIRECT(ORÇAMENTO.BancoRef),0)))) -> (Sem Código) | AG88: 0 | AH88: 0.2034 | AM88: 9579.41 | AN88: 0
A89: =CHOOSE(1+LOG(1+2*(ORÇAMENTO.Nivel="Meta")+4*(ORÇAMENTO.Nivel="Nível 2")+8*(ORÇAMENTO.Nivel="Nível 3")+16*(ORÇAMENTO.Nivel="Nível 4")+32*(ORÇAMENTO.Nivel="Serviço"),2),0,1,2,3,4,"S") -> S | B89: =IF(OR(C89="s",C89=0),OFFSET(B89,-1,0),C89) -> 2 | C89: =IF(OFFSET(C89,-1,0)="L",1,IF(OFFSET(C89,-1,0)=1,2,IF(OR(A89="s",A89=0),"S",IF(AND(OFFSET(C89,-1,0)=2,A89=4),3,IF(AND(OR(OFFSET(C89,-1,0)="s",OFFSET(C89,-1,0)=0),A89<>"s",A89>OFFSET(B89,-1,0)),OFFSET(B89,-1,0),A89))))) -> S | D89: =IF(OR(C89="S",C89=0),0,IF(ISERROR(K89),J89,SMALL(J89:K89,1))) -> 0 | E89: =IF($C89=1,OFFSET(E89,-1,0)+MAX(1,COUNTIF(QCI!$A$13:$A$24,OFFSET(ORÇAMENTO!E89,-1,0))),OFFSET(E89,-1,0)) -> 1 | F89: =IF($C89=1,0,IF($C89=2,OFFSET(F89,-1,0)+1,OFFSET(F89,-1,0))) -> 15 | G89: =IF(AND($C89<=2,$C89<>0),0,IF($C89=3,OFFSET(G89,-1,0)+1,OFFSET(G89,-1,0))) -> 0 | H89: =IF(AND($C89<=3,$C89<>0),0,IF($C89=4,OFFSET(H89,-1,0)+1,OFFSET(H89,-1,0))) -> 0 | I89: =IF(AND($C89<=4,$C89<>0),0,IF(AND($C89="S",$X89>0),OFFSET(I89,-1,0)+1,OFFSET(I89,-1,0))) -> 1 | J89: =IF(OR($C89="S",$C89=0),0,MATCH(0,OFFSET($D89,1,$C89,ROW($C$90)-ROW($C89)),0)) -> 0 | K89: =IF(OR($C89="S",$C89=0),0,MATCH(OFFSET($D89,0,$C89)+IF($C89<>1,1,COUNTIF(QCI!$A$13:$A$24,ORÇAMENTO!E89)),OFFSET($D89,1,$C89,ROW($C$90)-ROW($C89)),0)) -> 0 | L89: =IF(OR($X89>0,$C89=1,$C89=2,$C89=3,$C89=4),"F","") -> F | M89: Serviço | N89: =CHOOSE(1+LOG(1+2*(C89=1)+4*(C89=2)+8*(C89=3)+16*(C89=4)+32*(C89="S"),2),"","Meta","Nível 2","Nível 3","Nível 4","Serviço") -> Serviço | O89: =IF(OR($C89=0,$L89=""),"-",CONCATENATE(E89&".",IF(AND($A$5>=2,$C89>=2),F89&".",""),IF(AND($A$5>=3,$C89>=3),G89&".",""),IF(AND($A$5>=4,$C89>=4),H89&".",""),IF($C89="S",I89&".",""))) -> 1.15.0.1. | P89: Composição | Q89: 12 | R89: =IF($C89="S",REFERENCIA.Descricao,"(digite a descrição aqui)") -> BANCOS EM TABUA APARELHADA *2,5 X 30* CM, INCLUSO PINTURA, MÃO DE OBRA E PARAFUSO COM BUCHA PARA FIXAÇÃO | S89: =REFERENCIA.Unidade -> M | T89: =OFFSET(CÁLCULO!H$15,ROW($T89)-ROW(T$15),0) -> 92.51 | U89: 86.05 | V89: BDI 1 | W89: =IF($C89="S",ROUND(IF(TIPOORCAMENTO="Proposto",ORÇAMENTO.CustoUnitario*(1+$AH89),ORÇAMENTO.PrecoUnitarioLicitado),15-13*$AF$10),0) -> 103.55 | X89: =IF($C89="S",VTOTAL1,IF($C89=0,0,ROUND(SomaAgrup,15-13*$AF$11))) -> 9579.41 | Y89: RA | Z89: =IF(AND($C89="S",$X89>0),IF(ISBLANK($Y89),"RA",LEFT($Y89,2)),"") -> RA | AA89: =IF($C89="S",IF($Z89="CP",$X89,IF($Z89="RA",(($X89)*QCI!$AA$3),0)),SomaAgrup) -> 9579.41 | AB89: =IF($C89="S",IF($Z89="OU",ROUND($X89,2),0),SomaAgrup) -> 0 | AC89: =IF($N89="","",IF(ORÇAMENTO.Descricao="","DESCRIÇÃO",IF(AND($C89="S",ORÇAMENTO.Unidade=""),"UNIDADE",IF($X89<0,"VALOR NEGATIVO",IF(OR(AND(TIPOORCAMENTO="Proposto",$AG89<>"",$AG89>0,ORÇAMENTO.CustoUnitario>$AG89),AND(TIPOORCAMENTO="LICITADO",ORÇAMENTO.PrecoUnitarioLicitado>$AN89)),"ACIMA REF.",""))))) ->  | AD89: =IF(C89<=CRONO.NivelExibicao,MAX($AD$15:OFFSET(AD89,-1,0))+IF($C89<>1,1,MAX(1,COUNTIF(QCI!$A$13:$A$24,OFFSET($E89,-1,0)))),"") ->  | AE89: =IF(AND($C89="S",ORÇAMENTO.CodBarra<>""),IF(ORÇAMENTO.Fonte="",ORÇAMENTO.CodBarra,CONCATENATE(ORÇAMENTO.Fonte," ",ORÇAMENTO.CodBarra))) -> Composição 12 | AF89: =IF(ISERROR(INDIRECT(ORÇAMENTO.BancoRef)),"(abra o arquivo 'Referência "&Excel_BuiltIn_Database&".xls)",IF(OR($C89<>"S",ORÇAMENTO.CodBarra=""),"(Sem Código)",IF(ISERROR(MATCH($AE89,INDIRECT(ORÇAMENTO.BancoRef),0)),"(Código não identificado nas referências)",MATCH($AE89,INDIRECT(ORÇAMENTO.BancoRef),0)))) -> 13 | AG89: =ROUND(IF(DESONERACAO="sim",REFERENCIA.Desonerado,REFERENCIA.NaoDesonerado),2) -> 86.05 | AH89: =ROUND(IF(ISNUMBER(ORÇAMENTO.OpcaoBDI),ORÇAMENTO.OpcaoBDI,IF(LEFT(ORÇAMENTO.OpcaoBDI,3)="BDI",HLOOKUP(ORÇAMENTO.OpcaoBDI,$F$4:$H$5,2,FALSE),0)),15-11*$AF$9) -> 0.2034 | AM89: =$X89 -> 9579.41 | AN89: =ROUND(ORÇAMENTO.CustoUnitario*(1+$AH89),2) -> 103.55
A90: -1 | C90: -1 | E90: 0 | F90: 0 | G90: 0 | H90: 0 | I90: 0 | L90: F
O93: Encargos sociais: | Q93: Para elaboração deste orçamento, foram utilizados os encargos sociais do SINAPI para a Unidade da Federação indicada.
O95: Observações:
O96: *O regime de Contribuição Previdenciária adotado é SEM DESONERAÇÂO, pois este é o mais adequado para a Administração Pública. *Os encargos sociais para mão-de-obra horista e mesalista atendem ao estabelecido no SINAPI para SC.
O100: =IF(AND($AF$7=FALSE,$AF$8=FALSE,$AF$9=FALSE,$AF$10=FALSE,$AF$11=FALSE),"Não foi considerado arredondamento nos valores da planilha.",CONCATENATE("Foi considerado arredondamento de duas casas decimais para ",IF($AF$7=TRUE,"Quantidade; ",""),IF($AF$8=TRUE,"Custo Unitário; ",""),IF($AF$9=TRUE,"BDI; ",""),IF($AF$10=TRUE,"Preço Unitário; ",""),IF($AF$11=TRUE,"Preço Total.",""))) -> Foi considerado arredondamento de duas casas decimais para Quantidade; Custo Unitário; BDI; Preço Unitário; Preço Total.
O101: Siglas da Composição do Investimento: RA - Rateio proporcional entre Repasse e Contrapartida; RP - 100% Repasse; CP - 100% Contrapartida; OU - 100% Outros.
O103: =Import.Município -> Balneário Camboriú/SC
O104: Local | S104: Responsável Técnico
S105: Nome: | T105: =Import.RespOrçamento -> Rafael Calistro Borba
O106: =DADOS!$F$25 -> 2022-03-30 | S106: CREA/CAU: | T106: CREA-SC 093.243-9
O107: Data | S107: ART/RRT: | T107: 0

Sheet CÁLCULO
F1: =IF(ACOMPANHAMENTO="BM","MEMÓRIA DE CÁLCULO","PLQ - PLANILHA DE LEVANTAMENTO DE QUANTIDADES") -> PLQ - PLANILHA DE LEVANTAMENTO DE QUANTIDADES | Q1: Grau de Sigilo | Y1: Grau de Sigilo
F2: =IF(ACOMPANHAMENTO="BM","","Memória de Cálculo")&" - "&import.recurso -> Memória de Cálculo - (SELECIONAR) | Q2: #PUBLICO | Y2: #PUBLICO
E4: APELIDO DO EMPREENDIMENTO | G4: Nº SICONV | I4: Nº OPERAÇÃO | K4: PROPONENTE / TOMADOR | S4: Nº OPERAÇÃO | U4: PROPONENTE / TOMADOR
E5: =Import.Apelido -> QUADRA COBERTA - C.E.M. GIOVANIA DE ALMEIDA | G5: =Import.SICONV -> 0 | I5: =Import.CR -> 0 | K5: =Import.Proponente -> Prefeitura Municipal de Balneário Camboriú | S5: =Import.CR -> 0 | U5: =Import.Proponente -> Prefeitura Municipal de Balneário Camboriú
AB6: Preços dos serviços por frente | AM6: Mês do cronograma | AX6: Número da Medição
A12: =IF(OFFSET(EVENTOS!$C$5,1,0)="Automática, conforme os agrupadores Nível 4 do Orçamento",4,IF(OFFSET(EVENTOS!$C$5,1,0)="Automática, conforme os agrupadores Nível 3 do Orçamento",3,IF(OFFSET(EVENTOS!$C$5,1,0)="Definir Manualmente","Manual",2))) -> Manual | B12: Empty | J12: . | K12: Nº AGRUPADOR DE EVENTOS | L12: . | M12: =IF(ACOMPANHAMENTO="BM",0,COUNTIF(M15:M90,0)) -> 1 | N12: FRENTES DE OBRA: | P12: . | Q12: CONSTRUÇÃO | AA12: . | AB12: =OFFSET($P$12,0,AB$13) -> CONSTRUÇÃO | AC12: =OFFSET($P$12,0,AC$13) -> 0 | AD12: 0 | AE12: 0 | AF12: 0 | AG12: 0 | AH12: 0 | AI12: 0 | AJ12: 0 | AK12: 0 | AM12: =OFFSET($P$12,0,AM$13) -> CONSTRUÇÃO | AN12: =OFFSET($P$12,0,AN$13) -> 0 | AO12: 0 | AP12: 0 | AQ12: 0 | AR12: 0 | AS12: 0 | AT12: 0 | AU12: 0 | AV12: 0 | AX12: =OFFSET($P$12,0,AX$13) -> CONSTRUÇÃO | AY12: =OFFSET($P$12,0,AY$13) -> 0 | AZ12: 0 | BA12: 0 | BB12: 0 | BC12: 0 | BD12: 0 | BE12: 0 | BF12: 0 | BG12: 0
A13: AUTOEVENTO | B13: Empty | D13: Nível | E13: Item | F13: Descrição | G13: Unidade | H13: Quantidade | I13: Memória de Cálculo | K13: Nº | M13: # Evento | N13: Agrupador de Eventos | O13: =OFFSET(O13,0,-1)+1 ->  | Q13: =OFFSET(Q13,0,-1)+1 -> 1 | R13: 2 | S13: 3 | T13: 4 | U13: 5 | V13: 6 | W13: 7 | X13: 8 | Y13: 9 | Z13: 10 | AB13: =OFFSET(AB13,0,-1)+1 -> 1 | AC13: 2 | AD13: 3 | AE13: 4 | AF13: 5 | AG13: 6 | AH13: 7 | AI13: 8 | AJ13: 9 | AK13: 10 | AM13: 1 | AN13: 2 | AO13: 3 | AP13: 4 | AQ13: 5 | AR13: 6 | AS13: 7 | AT13: 8 | AU13: 9 | AV13: 10 | AX13: 1 | AY13: 2 | AZ13: 3 | BA13: 4 | BB13: 5 | BC13: 6 | BD13: 7 | BE13: 8 | BF13: 9 | BG13: 10
A14: =IF(AUTOEVENTO="Manual",IF(K14<>"",MIN(VALUE(LEFT(K14,FIND(".",K14)-1)),COUNTA(EVENTOS.Lista)),0),IF(OR($B14>AUTOEVENTO,$B14="S",$B14=0),SUBSTITUTE(OFFSET($A14,-1,0),IF($D14="Serviço",".",""),""),ROW(A14)-ROW($A$15)&".")) -> 0 | B14: =OFFSET(ORÇAMENTO!C$15,ROW(B14)-ROW(B$15),0) -> S | C14: =OFFSET(ORÇAMENTO!L$15,ROW(C14)-ROW(C$15),0) ->  | D14: =OFFSET(ORÇAMENTO!N$15,ROW(D14)-ROW(D$15),0) -> Serviço | E14: =OFFSET(ORÇAMENTO!O$15,ROW(E14)-ROW(E$15),0) -> - | F14: =OFFSET(ORÇAMENTO!R$15,ROW(F14)-ROW(F$15),0) -> (Sem Código) | G14: =IF($D14<>"Serviço","",OFFSET(ORÇAMENTO!S$15,ROW(G14)-ROW(G$15),0)) -> - | H14: =IF($D14<>"Serviço",0,IF(ACOMPANHAMENTO="BM",ROUND(OFFSET(ORÇAMENTO!AJ$15,ROW(H14)-ROW(H$15),0),15-13*ORÇAMENTO!$AF$7),SUMPRODUCT(($Q$12:$AA$12<>"")*ROUND($Q14:$AA14,15-13*ORÇAMENTO!$AF$7)))) -> 0 | L14: . | M14: =IF($D14<>"Serviço","",IF(AUTOEVENTO="manual",$A14,IF(ISERROR(MATCH($A14,$A$15:OFFSET($A14,-1,0),0)),MAX($M$15:OFFSET(M14,-1,0))+1,INDEX($M$15:OFFSET(M14,-1,0),MATCH($A14,$A$15:OFFSET($A14,-1,0),0))))) -> 0 | N14: =IF($D14<>"Serviço","",IF(AUTOEVENTO="Manual",IF($A14=0,"<-- defina o número do agrupador",OFFSET(EVENTOS!$D$14,$A14,0)),OFFSET($F$15,$A14,0))) -> <-- defina o número do agrupador | AB14: =IF(AND($D14="Serviço",AB$12<>0,$H14>0,OR(AUTOEVENTO<>"manual",$M14<>1)),ROUND(OFFSET($P14,0,AB$13),15-13*ORÇAMENTO!$AF$7)/$H14*OFFSET(ORÇAMENTO!$X$15,ROW(AB14)-ROW(AB$15),0),0) -> 0 | AC14: =IF(AND($D14="Serviço",AC$12<>0,$H14>0,OR(AUTOEVENTO<>"manual",$M14<>1)),ROUND(OFFSET($P14,0,AC$13),15-13*ORÇAMENTO!$AF$7)/$H14*OFFSET(ORÇAMENTO!$X$15,ROW(AC14)-ROW(AC$15),0),0) -> 0 | AD14: =IF(AND($D14="Serviço",AD$12<>0,$H14>0,OR(AUTOEVENTO<>"manual",$M14<>1)),ROUND(OFFSET($P14,0,AD$13),15-13*ORÇAMENTO!$AF$7)/$H14*OFFSET(ORÇAMENTO!$X$15,ROW(AD14)-ROW(AD$15),0),0) -> 0 | AE14: =IF(AND($D14="Serviço",AE$12<>0,$H14>0,OR(AUTOEVENTO<>"manual",$M14<>1)),ROUND(OFFSET($P14,0,AE$13),15-13*ORÇAMENTO!$AF$7)/$H14*OFFSET(ORÇAMENTO!$X$15,ROW(AE14)-ROW(AE$15),0),0) -> 0 | AF14: =IF(AND($D14="Serviço",AF$12<>0,$H14>0,OR(AUTOEVENTO<>"manual",$M14<>1)),ROUND(OFFSET($P14,0,AF$13),15-13*ORÇAMENTO!$AF$7)/$H14*OFFSET(ORÇAMENTO!$X$15,ROW(AF14)-ROW(AF$15),0),0) -> 0 | AG14: =IF(AND($D14="Serviço",AG$12<>0,$H14>0,OR(AUTOEVENTO<>"manual",$M14<>1)),ROUND(OFFSET($P14,0,AG$13),15-13*ORÇAMENTO!$AF$7)/$H14*OFFSET(ORÇAMENTO!$X$15,ROW(AG14)-ROW(AG$15),0),0) -> 0 | AH14: =IF(AND($D14="Serviço",AH$12<>0,$H14>0,OR(AUTOEVENTO<>"manual",$M14<>1)),ROUND(OFFSET($P14,0,AH$13),15-13*ORÇAMENTO!$AF$7)/$H14*OFFSET(ORÇAMENTO!$X$15,ROW(AH14)-ROW(AH$15),0),0) -> 0 | AI14: =IF(AND($D14="Serviço",AI$12<>0,$H14>0,OR(AUTOEVENTO<>"manual",$M14<>1)),ROUND(OFFSET($P14,0,AI$13),15-13*ORÇAMENTO!$AF$7)/$H14*OFFSET(ORÇAMENTO!$X$15,ROW(AI14)-ROW(AI$15),0),0) -> 0 | AJ14: =IF(AND($D14="Serviço",AJ$12<>0,$H14>0,OR(AUTOEVENTO<>"manual",$M14<>1)),ROUND(OFFSET($P14,0,AJ$13),15-13*ORÇAMENTO!$AF$7)/$H14*OFFSET(ORÇAMENTO!$X$15,ROW(AJ14)-ROW(AJ$15),0),0) -> 0 | AK14: =IF(AND($D14="Serviço",AK$12<>0,$H14>0,OR(AUTOEVENTO<>"manual",$M14<>1)),ROUND(OFFSET($P14,0,AK$13),15-13*ORÇAMENTO!$AF$7)/$H14*OFFSET(ORÇAMENTO!$X$15,ROW(AK14)-ROW(AK$15),0),0) -> 0 | AM14: =IF($D14<>"Serviço",0,IF(AND(AUTOEVENTO="Manual",$M14=1),0,IF(OFFSET(CRONOPLE!$F$14,$M14,AM$13)="",10^12,OFFSET(CRONOPLE!$F$14,$M14,AM$13)))) -> 1000000000000 | AN14: =IF($D14<>"Serviço",0,IF(AND(AUTOEVENTO="Manual",$M14=1),0,IF(OFFSET(CRONOPLE!$F$14,$M14,AN$13)="",10^12,OFFSET(CRONOPLE!$F$14,$M14,AN$13)))) -> 1000000000000 | AO14: =IF($D14<>"Serviço",0,IF(AND(AUTOEVENTO="Manual",$M14=1),0,IF(OFFSET(CRONOPLE!$F$14,$M14,AO$13)="",10^12,OFFSET(CRONOPLE!$F$14,$M14,AO$13)))) -> 1000000000000 | AP14: =IF($D14<>"Serviço",0,IF(AND(AUTOEVENTO="Manual",$M14=1),0,IF(OFFSET(CRONOPLE!$F$14,$M14,AP$13)="",10^12,OFFSET(CRONOPLE!$F$14,$M14,AP$13)))) -> 1000000000000 | AQ14: =IF($D14<>"Serviço",0,IF(AND(AUTOEVENTO="Manual",$M14=1),0,IF(OFFSET(CRONOPLE!$F$14,$M14,AQ$13)="",10^12,OFFSET(CRONOPLE!$F$14,$M14,AQ$13)))) -> 1000000000000 | AR14: =IF($D14<>"Serviço",0,IF(AND(AUTOEVENTO="Manual",$M14=1),0,IF(OFFSET(CRONOPLE!$F$14,$M14,AR$13)="",10^12,OFFSET(CRONOPLE!$F$14,$M14,AR$13)))) -> 1000000000000 | AS14: =IF($D14<>"Serviço",0,IF(AND(AUTOEVENTO="Manual",$M14=1),0,IF(OFFSET(CRONOPLE!$F$14,$M14,AS$13)="",10^12,OFFSET(CRONOPLE!$F$14,$M14,AS$13)))) -> 1000000000000 | AT14: =IF($D14<>"Serviço",0,IF(AND(AUTOEVENTO="Manual",$M14=1),0,IF(OFFSET(CRONOPLE!$F$14,$M14,AT$13)="",10^12,OFFSET(CRONOPLE!$F$14,$M14,AT$13)))) -> 1000000000000 | AU14: =IF($D14<>"Serviço",0,IF(AND(AUTOEVENTO="Manual",$M14=1),0,IF(OFFSET(CRONOPLE!$F$14,$M14,AU$13)="",10^12,OFFSET(CRONOPLE!$F$14,$M14,AU$13)))) -> 1000000000000 | AV14: =IF($D14<>"Serviço",0,IF(AND(AUTOEVENTO="Manual",$M14=1),0,IF(OFFSET(CRONOPLE!$F$14,$M14,AV$13)="",10^12,OFFSET(CRONOPLE!$F$14,$M14,AV$13)))) -> 1000000000000 | AX14: =IF($D14<>"Serviço",0,IF(OR(AND(AUTOEVENTO="Manual",$M14=1),$M14>(ROW(PLE.lastrow)-ROW(PLE.firstrow))),0,IF(OFFSET(PLE!$G$14,$M14,AX$13)="",10^12,OFFSET(PLE!$G$14,$M14,AX$13)))) -> 1000000000000 | AY14: =IF($D14<>"Serviço",0,IF(OR(AND(AUTOEVENTO="Manual",$M14=1),$M14>(ROW(PLE.lastrow)-ROW(PLE.firstrow))),0,IF(OFFSET(PLE!$G$14,$M14,AY$13)="",10^12,OFFSET(PLE!$G$14,$M14,AY$13)))) -> 1000000000000 | AZ14: =IF($D14<>"Serviço",0,IF(OR(AND(AUTOEVENTO="Manual",$M14=1),$M14>(ROW(PLE.lastrow)-ROW(PLE.firstrow))),0,IF(OFFSET(PLE!$G$14,$M14,AZ$13)="",10^12,OFFSET(PLE!$G$14,$M14,AZ$13)))) -> 1000000000000 | BA14: =IF($D14<>"Serviço",0,IF(OR(AND(AUTOEVENTO="Manual",$M14=1),$M14>(ROW(PLE.lastrow)-ROW(PLE.firstrow))),0,IF(OFFSET(PLE!$G$14,$M14,BA$13)="",10^12,OFFSET(PLE!$G$14,$M14,BA$13)))) -> 1000000000000 | BB14: =IF($D14<>"Serviço",0,IF(OR(AND(AUTOEVENTO="Manual",$M14=1),$M14>(ROW(PLE.lastrow)-ROW(PLE.firstrow))),0,IF(OFFSET(PLE!$G$14,$M14,BB$13)="",10^12,OFFSET(PLE!$G$14,$M14,BB$13)))) -> 1000000000000 | BC14: =IF($D14<>"Serviço",0,IF(OR(AND(AUTOEVENTO="Manual",$M14=1),$M14>(ROW(PLE.lastrow)-ROW(PLE.firstrow))),0,IF(OFFSET(PLE!$G$14,$M14,BC$13)="",10^12,OFFSET(PLE!$G$14,$M14,BC$13)))) -> 1000000000000 | BD14: =IF($D14<>"Serviço",0,IF(OR(AND(AUTOEVENTO="Manual",$M14=1),$M14>(ROW(PLE.lastrow)-ROW(PLE.firstrow))),0,IF(OFFSET(PLE!$G$14,$M14,BD$13)="",10^12,OFFSET(PLE!$G$14,$M14,BD$13)))) -> 1000000000000 | BE14: =IF($D14<>"Serviço",0,IF(OR(AND(AUTOEVENTO="Manual",$M14=1),$M14>(ROW(PLE.lastrow)-ROW(PLE.firstrow))),0,IF(OFFSET(PLE!$G$14,$M14,BE$13)="",10^12,OFFSET(PLE!$G$14,$M14,BE$13)))) -> 1000000000000 | BF14: =IF($D14<>"Serviço",0,IF(OR(AND(AUTOEVENTO="Manual",$M14=1),$M14>(ROW(PLE.lastrow)-ROW(PLE.firstrow))),0,IF(OFFSET(PLE!$G$14,$M14,BF$13)="",10^12,OFFSET(PLE!$G$14,$M14,BF$13)))) -> 1000000000000 | BG14: =IF($D14<>"Serviço",0,IF(OR(AND(AUTOEVENTO="Manual",$M14=1),$M14>(ROW(PLE.lastrow)-ROW(PLE.firstrow))),0,IF(OFFSET(PLE!$G$14,$M14,BG$13)="",10^12,OFFSET(PLE!$G$14,$M14,BG$13)))) -> 1000000000000
B15: =OFFSET(ORÇAMENTO!C$15,ROW(B15)-ROW(B$15),0) -> L | C15: =OFFSET(ORÇAMENTO!L$15,ROW(C15)-ROW(C$15),0) -> F | D15: =IF(TIPOORCAMENTO="LICITADO","CTEF","LOTE") -> LOTE | E15: =Import.DescLote -> Rua: Higino João Pio, S/N - Estaleirinho | L15: . | M15: =IF(AUTOEVENTO="MANUAL",0,1) -> 0 | N15: TOTAL FINANC. POR FRENTE (R$): | O15: =OFFSET($AA$15,0,O$13) ->  | Q15: =OFFSET($AA$15,0,Q$13) -> 1338708.88 | R15: 0 | S15: 0 | T15: 0 | U15: 0 | V15: 0 | W15: 0 | X15: 0 | Y15: 0 | Z15: 0 | AB15: =ROUND(SUM(OFFSET(AB$15,1,0):AB$90),2) -> 1338708.88 | AC15: =SUM(OFFSET(AC$15,1,0):AC$90) -> 0 | AD15: =SUM(OFFSET(AD$15,1,0):AD$90) -> 0 | AE15: =SUM(OFFSET(AE$15,1,0):AE$90) -> 0 | AF15: =SUM(OFFSET(AF$15,1,0):AF$90) -> 0 | AG15: =SUM(OFFSET(AG$15,1,0):AG$90) -> 0 | AH15: =SUM(OFFSET(AH$15,1,0):AH$90) -> 0 | AI15: =SUM(OFFSET(AI$15,1,0):AI$90) -> 0 | AJ15: =SUM(OFFSET(AJ$15,1,0):AJ$90) -> 0 | AK15: =SUM(OFFSET(AK$15,1,0):AK$90) -> 0 | AM15: =10^12 -> 1000000000000 | AN15: =10^12 -> 1000000000000 | AO15: 1000000000000 | AP15: 1000000000000 | AQ15: 1000000000000 | AR15: 1000000000000 | AS15: 1000000000000 | AT15: 1000000000000 | AU15: 1000000000000 | AV15: 1000000000000 | AX15: =10^12 -> 1000000000000 | AY15: 1000000000000 | AZ15: 1000000000000 | BA15: 1000000000000 | BB15: 1000000000000 | BC15: 1000000000000 | BD15: 1000000000000 | BE15: 1000000000000 | BF15: 1000000000000 | BG15: 1000000000000
A16: =IF(AUTOEVENTO="Manual",IF(K16<>"",MIN(VALUE(LEFT(K16,FIND(".",K16)-1)),COUNTA(EVENTOS.Lista)),0),IF(OR($B16>AUTOEVENTO,$B16="S",$B16=0),SUBSTITUTE(OFFSET($A16,-1,0),IF($D16="Serviço",".",""),""),ROW(A16)-ROW($A$15)&".")) -> 0 | B16: =OFFSET(ORÇAMENTO!C$15,ROW(B16)-ROW(B$15),0) -> 1 | C16: =OFFSET(ORÇAMENTO!L$15,ROW(C16)-ROW(C$15),0) -> F | D16: =OFFSET(ORÇAMENTO!N$15,ROW(D16)-ROW(D$15),0) -> Meta | E16: =OFFSET(ORÇAMENTO!O$15,ROW(E16)-ROW(E$15),0) -> 1. | F16: =OFFSET(ORÇAMENTO!R$15,ROW(F16)-ROW(F$15),0) -> SERVIÇOS INICIAIS | G16: =IF($D16<>"Serviço","",OFFSET(ORÇAMENTO!S$15,ROW(G16)-ROW(G$15),0)) ->  | H16: =IF($D16<>"Serviço",0,IF(ACOMPANHAMENTO="BM",ROUND(OFFSET(ORÇAMENTO!AJ$15,ROW(H16)-ROW(H$15),0),15-13*ORÇAMENTO!$AF$7),SUMPRODUCT(($Q$12:$AA$12<>"")*ROUND($Q16:$AA16,15-13*ORÇAMENTO!$AF$7)))) -> 0 | L16: . | M16: =IF($D16<>"Serviço","",IF(AUTOEVENTO="manual",$A16,IF(ISERROR(MATCH($A16,$A$15:OFFSET($A16,-1,0),0)),MAX($M$15:OFFSET(M16,-1,0))+1,INDEX($M$15:OFFSET(M16,-1,0),MATCH($A16,$A$15:OFFSET($A16,-1,0),0))))) ->  | N16: =IF($D16<>"Serviço","",IF(AUTOEVENTO="Manual",IF($A16=0,"<-- defina o número do agrupador",OFFSET(EVENTOS!$D$14,$A16,0)),OFFSET($F$15,$A16,0))) ->  | AB16: =IF(AND($D16="Serviço",AB$12<>0,$H16>0,OR(AUTOEVENTO<>"manual",$M16<>1)),ROUND(OFFSET($P16,0,AB$13),15-13*ORÇAMENTO!$AF$7)/$H16*OFFSET(ORÇAMENTO!$X$15,ROW(AB16)-ROW(AB$15),0),0) -> 0 | AC16: =IF(AND($D16="Serviço",AC$12<>0,$H16>0,OR(AUTOEVENTO<>"manual",$M16<>1)),ROUND(OFFSET($P16,0,AC$13),15-13*ORÇAMENTO!$AF$7)/$H16*OFFSET(ORÇAMENTO!$X$15,ROW(AC16)-ROW(AC$15),0),0) -> 0 | AD16: =IF(AND($D16="Serviço",AD$12<>0,$H16>0,OR(AUTOEVENTO<>"manual",$M16<>1)),ROUND(OFFSET($P16,0,AD$13),15-13*ORÇAMENTO!$AF$7)/$H16*OFFSET(ORÇAMENTO!$X$15,ROW(AD16)-ROW(AD$15),0),0) -> 0 | AE16: =IF(AND($D16="Serviço",AE$12<>0,$H16>0,OR(AUTOEVENTO<>"manual",$M16<>1)),ROUND(OFFSET($P16,0,AE$13),15-13*ORÇAMENTO!$AF$7)/$H16*OFFSET(ORÇAMENTO!$X$15,ROW(AE16)-ROW(AE$15),0),0) -> 0 | AF16: =IF(AND($D16="Serviço",AF$12<>0,$H16>0,OR(AUTOEVENTO<>"manual",$M16<>1)),ROUND(OFFSET($P16,0,AF$13),15-13*ORÇAMENTO!$AF$7)/$H16*OFFSET(ORÇAMENTO!$X$15,ROW(AF16)-ROW(AF$15),0),0) -> 0 | AG16: =IF(AND($D16="Serviço",AG$12<>0,$H16>0,OR(AUTOEVENTO<>"manual",$M16<>1)),ROUND(OFFSET($P16,0,AG$13),15-13*ORÇAMENTO!$AF$7)/$H16*OFFSET(ORÇAMENTO!$X$15,ROW(AG16)-ROW(AG$15),0),0) -> 0 | AH16: =IF(AND($D16="Serviço",AH$12<>0,$H16>0,OR(AUTOEVENTO<>"manual",$M16<>1)),ROUND(OFFSET($P16,0,AH$13),15-13*ORÇAMENTO!$AF$7)/$H16*OFFSET(ORÇAMENTO!$X$15,ROW(AH16)-ROW(AH$15),0),0) -> 0 | AI16: =IF(AND($D16="Serviço",AI$12<>0,$H16>0,OR(AUTOEVENTO<>"manual",$M16<>1)),ROUND(OFFSET($P16,0,AI$13),15-13*ORÇAMENTO!$AF$7)/$H16*OFFSET(ORÇAMENTO!$X$15,ROW(AI16)-ROW(AI$15),0),0) -> 0 | AJ16: =IF(AND($D16="Serviço",AJ$12<>0,$H16>0,OR(AUTOEVENTO<>"manual",$M16<>1)),ROUND(OFFSET($P16,0,AJ$13),15-13*ORÇAMENTO!$AF$7)/$H16*OFFSET(ORÇAMENTO!$X$15,ROW(AJ16)-ROW(AJ$15),0),0) -> 0 | AK16: =IF(AND($D16="Serviço",AK$12<>0,$H16>0,OR(AUTOEVENTO<>"manual",$M16<>1)),ROUND(OFFSET($P16,0,AK$13),15-13*ORÇAMENTO!$AF$7)/$H16*OFFSET(ORÇAMENTO!$X$15,ROW(AK16)-ROW(AK$15),0),0) -> 0 | AM16: =IF($D16<>"Serviço",0,IF(AND(AUTOEVENTO="Manual",$M16=1),0,IF(OFFSET(CRONOPLE!$F$14,$M16,AM$13)="",10^12,OFFSET(CRONOPLE!$F$14,$M16,AM$13)))) -> 0 | AN16: =IF($D16<>"Serviço",0,IF(AND(AUTOEVENTO="Manual",$M16=1),0,IF(OFFSET(CRONOPLE!$F$14,$M16,AN$13)="",10^12,OFFSET(CRONOPLE!$F$14,$M16,AN$13)))) -> 0 | AO16: =IF($D16<>"Serviço",0,IF(AND(AUTOEVENTO="Manual",$M16=1),0,IF(OFFSET(CRONOPLE!$F$14,$M16,AO$13)="",10^12,OFFSET(CRONOPLE!$F$14,$M16,AO$13)))) -> 0 | AP16: =IF($D16<>"Serviço",0,IF(AND(AUTOEVENTO="Manual",$M16=1),0,IF(OFFSET(CRONOPLE!$F$14,$M16,AP$13)="",10^12,OFFSET(CRONOPLE!$F$14,$M16,AP$13)))) -> 0 | AQ16: =IF($D16<>"Serviço",0,IF(AND(AUTOEVENTO="Manual",$M16=1),0,IF(OFFSET(CRONOPLE!$F$14,$M16,AQ$13)="",10^12,OFFSET(CRONOPLE!$F$14,$M16,AQ$13)))) -> 0 | AR16: =IF($D16<>"Serviço",0,IF(AND(AUTOEVENTO="Manual",$M16=1),0,IF(OFFSET(CRONOPLE!$F$14,$M16,AR$13)="",10^12,OFFSET(CRONOPLE!$F$14,$M16,AR$13)))) -> 0 | AS16: =IF($D16<>"Serviço",0,IF(AND(AUTOEVENTO="Manual",$M16=1),0,IF(OFFSET(CRONOPLE!$F$14,$M16,AS$13)="",10^12,OFFSET(CRONOPLE!$F$14,$M16,AS$13)))) -> 0 | AT16: =IF($D16<>"Serviço",0,IF(AND(AUTOEVENTO="Manual",$M16=1),0,IF(OFFSET(CRONOPLE!$F$14,$M16,AT$13)="",10^12,OFFSET(CRONOPLE!$F$14,$M16,AT$13)))) -> 0 | AU16: =IF($D16<>"Serviço",0,IF(AND(AUTOEVENTO="Manual",$M16=1),0,IF(OFFSET(CRONOPLE!$F$14,$M16,AU$13)="",10^12,OFFSET(CRONOPLE!$F$14,$M16,AU$13)))) -> 0 | AV16: =IF($D16<>"Serviço",0,IF(AND(AUTOEVENTO="Manual",$M16=1),0,IF(OFFSET(CRONOPLE!$F$14,$M16,AV$13)="",10^12,OFFSET(CRONOPLE!$F$14,$M16,AV$13)))) -> 0 | AX16: =IF($D16<>"Serviço",0,IF(OR(AND(AUTOEVENTO="Manual",$M16=1),$M16>(ROW(PLE.lastrow)-ROW(PLE.firstrow))),0,IF(OFFSET(PLE!$G$14,$M16,AX$13)="",10^12,OFFSET(PLE!$G$14,$M16,AX$13)))) -> 0 | AY16: =IF($D16<>"Serviço",0,IF(OR(AND(AUTOEVENTO="Manual",$M16=1),$M16>(ROW(PLE.lastrow)-ROW(PLE.firstrow))),0,IF(OFFSET(PLE!$G$14,$M16,AY$13)="",10^12,OFFSET(PLE!$G$14,$M16,AY$13)))) -> 0 | AZ16: =IF($D16<>"Serviço",0,IF(OR(AND(AUTOEVENTO="Manual",$M16=1),$M16>(ROW(PLE.lastrow)-ROW(PLE.firstrow))),0,IF(OFFSET(PLE!$G$14,$M16,AZ$13)="",10^12,OFFSET(PLE!$G$14,$M16,AZ$13)))) -> 0 | BA16: =IF($D16<>"Serviço",0,IF(OR(AND(AUTOEVENTO="Manual",$M16=1),$M16>(ROW(PLE.lastrow)-ROW(PLE.firstrow))),0,IF(OFFSET(PLE!$G$14,$M16,BA$13)="",10^12,OFFSET(PLE!$G$14,$M16,BA$13)))) -> 0 | BB16: =IF($D16<>"Serviço",0,IF(OR(AND(AUTOEVENTO="Manual",$M16=1),$M16>(ROW(PLE.lastrow)-ROW(PLE.firstrow))),0,IF(OFFSET(PLE!$G$14,$M16,BB$13)="",10^12,OFFSET(PLE!$G$14,$M16,BB$13)))) -> 0 | BC16: =IF($D16<>"Serviço",0,IF(OR(AND(AUTOEVENTO="Manual",$M16=1),$M16>(ROW(PLE.lastrow)-ROW(PLE.firstrow))),0,IF(OFFSET(PLE!$G$14,$M16,BC$13)="",10^12,OFFSET(PLE!$G$14,$M16,BC$13)))) -> 0 | BD16: =IF($D16<>"Serviço",0,IF(OR(AND(AUTOEVENTO="Manual",$M16=1),$M16>(ROW(PLE.lastrow)-ROW(PLE.firstrow))),0,IF(OFFSET(PLE!$G$14,$M16,BD$13)="",10^12,OFFSET(PLE!$G$14,$M16,BD$13)))) -> 0 | BE16: =IF($D16<>"Serviço",0,IF(OR(AND(AUTOEVENTO="Manual",$M16=1),$M16>(ROW(PLE.lastrow)-ROW(PLE.firstrow))),0,IF(OFFSET(PLE!$G$14,$M16,BE$13)="",10^12,OFFSET(PLE!$G$14,$M16,BE$13)))) -> 0 | BF16: =IF($D16<>"Serviço",0,IF(OR(AND(AUTOEVENTO="Manual",$M16=1),$M16>(ROW(PLE.lastrow)-ROW(PLE.firstrow))),0,IF(OFFSET(PLE!$G$14,$M16,BF$13)="",10^12,OFFSET(PLE!$G$14,$M16,BF$13)))) -> 0 | BG16: =IF($D16<>"Serviço",0,IF(OR(AND(AUTOEVENTO="Manual",$M16=1),$M16>(ROW(PLE.lastrow)-ROW(PLE.firstrow))),0,IF(OFFSET(PLE!$G$14,$M16,BG$13)="",10^12,OFFSET(PLE!$G$14,$M16,BG$13)))) -> 0
A17: 0 | B17: =OFFSET(ORÇAMENTO!C$15,ROW(B17)-ROW(B$15),0) -> 2 | C17: =OFFSET(ORÇAMENTO!L$15,ROW(C17)-ROW(C$15),0) -> F | D17: =OFFSET(ORÇAMENTO!N$15,ROW(D17)-ROW(D$15),0) -> Nível 2 | E17: =OFFSET(ORÇAMENTO!O$15,ROW(E17)-ROW(E$15),0) -> 1.1. | F17: =OFFSET(ORÇAMENTO!R$15,ROW(F17)-ROW(F$15),0) -> SERVIÇOS INICIAIS | G17: =IF($D17<>"Serviço","",OFFSET(ORÇAMENTO!S$15,ROW(G17)-ROW(G$15),0)) ->  | H17: =IF($D17<>"Serviço",0,IF(ACOMPANHAMENTO="BM",ROUND(OFFSET(ORÇAMENTO!AJ$15,ROW(H17)-ROW(H$15),0),15-13*ORÇAMENTO!$AF$7),SUMPRODUCT(($Q$12:$AA$12<>"")*ROUND($Q17:$AA17,15-13*ORÇAMENTO!$AF$7)))) -> 0 | L17: . | M17: =IF($D17<>"Serviço","",IF(AUTOEVENTO="manual",$A17,IF(ISERROR(MATCH($A17,$A$15:OFFSET($A17,-1,0),0)),MAX($M$15:OFFSET(M17,-1,0))+1,INDEX($M$15:OFFSET(M17,-1,0),MATCH($A17,$A$15:OFFSET($A17,-1,0),0))))) ->  | N17: =IF($D17<>"Serviço","",IF(AUTOEVENTO="Manual",IF($A17=0,"<-- defina o número do agrupador",OFFSET(EVENTOS!$D$14,$A17,0)),OFFSET($F$15,$A17,0))) ->  | AB17: =IF(AND($D17="Serviço",AB$12<>0,$H17>0,OR(AUTOEVENTO<>"manual",$M17<>1)),ROUND(OFFSET($P17,0,AB$13),15-13*ORÇAMENTO!$AF$7)/$H17*OFFSET(ORÇAMENTO!$X$15,ROW(AB17)-ROW(AB$15),0),0) -> 0 | AC17: =IF(AND($D17="Serviço",AC$12<>0,$H17>0,OR(AUTOEVENTO<>"manual",$M17<>1)),ROUND(OFFSET($P17,0,AC$13),15-13*ORÇAMENTO!$AF$7)/$H17*OFFSET(ORÇAMENTO!$X$15,ROW(AC17)-ROW(AC$15),0),0) -> 0 | AD17: =IF(AND($D17="Serviço",AD$12<>0,$H17>0,OR(AUTOEVENTO<>"manual",$M17<>1)),ROUND(OFFSET($P17,0,AD$13),15-13*ORÇAMENTO!$AF$7)/$H17*OFFSET(ORÇAMENTO!$X$15,ROW(AD17)-ROW(AD$15),0),0) -> 0 | AE17: =IF(AND($D17="Serviço",AE$12<>0,$H17>0,OR(AUTOEVENTO<>"manual",$M17<>1)),ROUND(OFFSET($P17,0,AE$13),15-13*ORÇAMENTO!$AF$7)/$H17*OFFSET(ORÇAMENTO!$X$15,ROW(AE17)-ROW(AE$15),0),0) -> 0 | AF17: =IF(AND($D17="Serviço",AF$12<>0,$H17>0,OR(AUTOEVENTO<>"manual",$M17<>1)),ROUND(OFFSET($P17,0,AF$13),15-13*ORÇAMENTO!$AF$7)/$H17*OFFSET(ORÇAMENTO!$X$15,ROW(AF17)-ROW(AF$15),0),0) -> 0 | AG17: =IF(AND($D17="Serviço",AG$12<>0,$H17>0,OR(AUTOEVENTO<>"manual",$M17<>1)),ROUND(OFFSET($P17,0,AG$13),15-13*ORÇAMENTO!$AF$7)/$H17*OFFSET(ORÇAMENTO!$X$15,ROW(AG17)-ROW(AG$15),0),0) -> 0 | AH17: =IF(AND($D17="Serviço",AH$12<>0,$H17>0,OR(AUTOEVENTO<>"manual",$M17<>1)),ROUND(OFFSET($P17,0,AH$13),15-13*ORÇAMENTO!$AF$7)/$H17*OFFSET(ORÇAMENTO!$X$15,ROW(AH17)-ROW(AH$15),0),0) -> 0 | AI17: =IF(AND($D17="Serviço",AI$12<>0,$H17>0,OR(AUTOEVENTO<>"manual",$M17<>1)),ROUND(OFFSET($P17,0,AI$13),15-13*ORÇAMENTO!$AF$7)/$H17*OFFSET(ORÇAMENTO!$X$15,ROW(AI17)-ROW(AI$15),0),0) -> 0 | AJ17: =IF(AND($D17="Serviço",AJ$12<>0,$H17>0,OR(AUTOEVENTO<>"manual",$M17<>1)),ROUND(OFFSET($P17,0,AJ$13),15-13*ORÇAMENTO!$AF$7)/$H17*OFFSET(ORÇAMENTO!$X$15,ROW(AJ17)-ROW(AJ$15),0),0) -> 0 | AK17: =IF(AND($D17="Serviço",AK$12<>0,$H17>0,OR(AUTOEVENTO<>"manual",$M17<>1)),ROUND(OFFSET($P17,0,AK$13),15-13*ORÇAMENTO!$AF$7)/$H17*OFFSET(ORÇAMENTO!$X$15,ROW(AK17)-ROW(AK$15),0),0) -> 0 | AM17: =IF($D17<>"Serviço",0,IF(AND(AUTOEVENTO="Manual",$M17=1),0,IF(OFFSET(CRONOPLE!$F$14,$M17,AM$13)="",10^12,OFFSET(CRONOPLE!$F$14,$M17,AM$13)))) -> 0 | AN17: =IF($D17<>"Serviço",0,IF(AND(AUTOEVENTO="Manual",$M17=1),0,IF(OFFSET(CRONOPLE!$F$14,$M17,AN$13)="",10^12,OFFSET(CRONOPLE!$F$14,$M17,AN$13)))) -> 0 | AO17: =IF($D17<>"Serviço",0,IF(AND(AUTOEVENTO="Manual",$M17=1),0,IF(OFFSET(CRONOPLE!$F$14,$M17,AO$13)="",10^12,OFFSET(CRONOPLE!$F$14,$M17,AO$13)))) -> 0 | AP17: =IF($D17<>"Serviço",0,IF(AND(AUTOEVENTO="Manual",$M17=1),0,IF(OFFSET(CRONOPLE!$F$14,$M17,AP$13)="",10^12,OFFSET(CRONOPLE!$F$14,$M17,AP$13)))) -> 0 | AQ17: =IF($D17<>"Serviço",0,IF(AND(AUTOEVENTO="Manual",$M17=1),0,IF(OFFSET(CRONOPLE!$F$14,$M17,AQ$13)="",10^12,OFFSET(CRONOPLE!$F$14,$M17,AQ$13)))) -> 0 | AR17: =IF($D17<>"Serviço",0,IF(AND(AUTOEVENTO="Manual",$M17=1),0,IF(OFFSET(CRONOPLE!$F$14,$M17,AR$13)="",10^12,OFFSET(CRONOPLE!$F$14,$M17,AR$13)))) -> 0 | AS17: =IF($D17<>"Serviço",0,IF(AND(AUTOEVENTO="Manual",$M17=1),0,IF(OFFSET(CRONOPLE!$F$14,$M17,AS$13)="",10^12,OFFSET(CRONOPLE!$F$14,$M17,AS$13)))) -> 0 | AT17: =IF($D17<>"Serviço",0,IF(AND(AUTOEVENTO="Manual",$M17=1),0,IF(OFFSET(CRONOPLE!$F$14,$M17,AT$13)="",10^12,OFFSET(CRONOPLE!$F$14,$M17,AT$13)))) -> 0 | AU17: =IF($D17<>"Serviço",0,IF(AND(AUTOEVENTO="Manual",$M17=1),0,IF(OFFSET(CRONOPLE!$F$14,$M17,AU$13)="",10^12,OFFSET(CRONOPLE!$F$14,$M17,AU$13)))) -> 0 | AV17: =IF($D17<>"Serviço",0,IF(AND(AUTOEVENTO="Manual",$M17=1),0,IF(OFFSET(CRONOPLE!$F$14,$M17,AV$13)="",10^12,OFFSET(CRONOPLE!$F$14,$M17,AV$13)))) -> 0 | AX17: =IF($D17<>"Serviço",0,IF(OR(AND(AUTOEVENTO="Manual",$M17=1),$M17>(ROW(PLE.lastrow)-ROW(PLE.firstrow))),0,IF(OFFSET(PLE!$G$14,$M17,AX$13)="",10^12,OFFSET(PLE!$G$14,$M17,AX$13)))) -> 0 | AY17: =IF($D17<>"Serviço",0,IF(OR(AND(AUTOEVENTO="Manual",$M17=1),$M17>(ROW(PLE.lastrow)-ROW(PLE.firstrow))),0,IF(OFFSET(PLE!$G$14,$M17,AY$13)="",10^12,OFFSET(PLE!$G$14,$M17,AY$13)))) -> 0 | AZ17: =IF($D17<>"Serviço",0,IF(OR(AND(AUTOEVENTO="Manual",$M17=1),$M17>(ROW(PLE.lastrow)-ROW(PLE.firstrow))),0,IF(OFFSET(PLE!$G$14,$M17,AZ$13)="",10^12,OFFSET(PLE!$G$14,$M17,AZ$13)))) -> 0 | BA17: =IF($D17<>"Serviço",0,IF(OR(AND(AUTOEVENTO="Manual",$M17=1),$M17>(ROW(PLE.lastrow)-ROW(PLE.firstrow))),0,IF(OFFSET(PLE!$G$14,$M17,BA$13)="",10^12,OFFSET(PLE!$G$14,$M17,BA$13)))) -> 0 | BB17: =IF($D17<>"Serviço",0,IF(OR(AND(AUTOEVENTO="Manual",$M17=1),$M17>(ROW(PLE.lastrow)-ROW(PLE.firstrow))),0,IF(OFFSET(PLE!$G$14,$M17,BB$13)="",10^12,OFFSET(PLE!$G$14,$M17,BB$13)))) -> 0 | BC17: =IF($D17<>"Serviço",0,IF(OR(AND(AUTOEVENTO="Manual",$M17=1),$M17>(ROW(PLE.lastrow)-ROW(PLE.firstrow))),0,IF(OFFSET(PLE!$G$14,$M17,BC$13)="",10^12,OFFSET(PLE!$G$14,$M17,BC$13)))) -> 0 | BD17: =IF($D17<>"Serviço",0,IF(OR(AND(AUTOEVENTO="Manual",$M17=1),$M17>(ROW(PLE.lastrow)-ROW(PLE.firstrow))),0,IF(OFFSET(PLE!$G$14,$M17,BD$13)="",10^12,OFFSET(PLE!$G$14,$M17,BD$13)))) -> 0 | BE17: =IF($D17<>"Serviço",0,IF(OR(AND(AUTOEVENTO="Manual",$M17=1),$M17>(ROW(PLE.lastrow)-ROW(PLE.firstrow))),0,IF(OFFSET(PLE!$G$14,$M17,BE$13)="",10^12,OFFSET(PLE!$G$14,$M17,BE$13)))) -> 0 | BF17: =IF($D17<>"Serviço",0,IF(OR(AND(AUTOEVENTO="Manual",$M17=1),$M17>(ROW(PLE.lastrow)-ROW(PLE.firstrow))),0,IF(OFFSET(PLE!$G$14,$M17,BF$13)="",10^12,OFFSET(PLE!$G$14,$M17,BF$13)))) -> 0 | BG17: =IF($D17<>"Serviço",0,IF(OR(AND(AUTOEVENTO="Manual",$M17=1),$M17>(ROW(PLE.lastrow)-ROW(PLE.firstrow))),0,IF(OFFSET(PLE!$G$14,$M17,BG$13)="",10^12,OFFSET(PLE!$G$14,$M17,BG$13)))) -> 0
A18: 2 | B18: =OFFSET(ORÇAMENTO!C$15,ROW(B18)-ROW(B$15),0) -> S | C18: =OFFSET(ORÇAMENTO!L$15,ROW(C18)-ROW(C$15),0) -> F | D18: =OFFSET(ORÇAMENTO!N$15,ROW(D18)-ROW(D$15),0) -> Serviço | E18: =OFFSET(ORÇAMENTO!O$15,ROW(E18)-ROW(E$15),0) -> 1.1.0.1. | F18: =OFFSET(ORÇAMENTO!R$15,ROW(F18)-ROW(F$15),0) -> PLACA DE OBRA EM CHAPA DE AÇO GALVANIZADO (REF. SINAPI-C 74209/14 DE 01/20220) | G18: =IF($D18<>"Serviço","",OFFSET(ORÇAMENTO!S$15,ROW(G18)-ROW(G$15),0)) -> UN | H18: =IF($D18<>"Serviço",0,IF(ACOMPANHAMENTO="BM",ROUND(OFFSET(ORÇAMENTO!AJ$15,ROW(H18)-ROW(H$15),0),15-13*ORÇAMENTO!$AF$7),SUMPRODUCT(($Q$12:$AA$12<>"")*ROUND($Q18:$AA18,15-13*ORÇAMENTO!$AF$7)))) -> 3 | I18: 2,00 m x 1,50 m | K18: 2.SERVIÇOS INICIAIS | L18: . | M18: =IF($D18<>"Serviço","",IF(AUTOEVENTO="manual",$A18,IF(ISERROR(MATCH($A18,$A$15:OFFSET($A18,-1,0),0)),MAX($M$15:OFFSET(M18,-1,0))+1,INDEX($M$15:OFFSET(M18,-1,0),MATCH($A18,$A$15:OFFSET($A18,-1,0),0))))) -> 2 | N18: =IF($D18<>"Serviço","",IF(AUTOEVENTO="Manual",IF($A18=0,"<-- defina o número do agrupador",OFFSET(EVENTOS!$D$14,$A18,0)),OFFSET($F$15,$A18,0))) -> SERVIÇOS INICIAIS | Q18: 3 | AB18: =IF(AND($D18="Serviço",AB$12<>0,$H18>0,OR(AUTOEVENTO<>"manual",$M18<>1)),ROUND(OFFSET($P18,0,AB$13),15-13*ORÇAMENTO!$AF$7)/$H18*OFFSET(ORÇAMENTO!$X$15,ROW(AB18)-ROW(AB$15),0),0) -> 1192.35 | AC18: =IF(AND($D18="Serviço",AC$12<>0,$H18>0,OR(AUTOEVENTO<>"manual",$M18<>1)),ROUND(OFFSET($P18,0,AC$13),15-13*ORÇAMENTO!$AF$7)/$H18*OFFSET(ORÇAMENTO!$X$15,ROW(AC18)-ROW(AC$15),0),0) -> 0 | AD18: =IF(AND($D18="Serviço",AD$12<>0,$H18>0,OR(AUTOEVENTO<>"manual",$M18<>1)),ROUND(OFFSET($P18,0,AD$13),15-13*ORÇAMENTO!$AF$7)/$H18*OFFSET(ORÇAMENTO!$X$15,ROW(AD18)-ROW(AD$15),0),0) -> 0 | AE18: =IF(AND($D18="Serviço",AE$12<>0,$H18>0,OR(AUTOEVENTO<>"manual",$M18<>1)),ROUND(OFFSET($P18,0,AE$13),15-13*ORÇAMENTO!$AF$7)/$H18*OFFSET(ORÇAMENTO!$X$15,ROW(AE18)-ROW(AE$15),0),0) -> 0 | AF18: =IF(AND($D18="Serviço",AF$12<>0,$H18>0,OR(AUTOEVENTO<>"manual",$M18<>1)),ROUND(OFFSET($P18,0,AF$13),15-13*ORÇAMENTO!$AF$7)/$H18*OFFSET(ORÇAMENTO!$X$15,ROW(AF18)-ROW(AF$15),0),0) -> 0 | AG18: =IF(AND($D18="Serviço",AG$12<>0,$H18>0,OR(AUTOEVENTO<>"manual",$M18<>1)),ROUND(OFFSET($P18,0,AG$13),15-13*ORÇAMENTO!$AF$7)/$H18*OFFSET(ORÇAMENTO!$X$15,ROW(AG18)-ROW(AG$15),0),0) -> 0 | AH18: =IF(AND($D18="Serviço",AH$12<>0,$H18>0,OR(AUTOEVENTO<>"manual",$M18<>1)),ROUND(OFFSET($P18,0,AH$13),15-13*ORÇAMENTO!$AF$7)/$H18*OFFSET(ORÇAMENTO!$X$15,ROW(AH18)-ROW(AH$15),0),0) -> 0 | AI18: =IF(AND($D18="Serviço",AI$12<>0,$H18>0,OR(AUTOEVENTO<>"manual",$M18<>1)),ROUND(OFFSET($P18,0,AI$13),15-13*ORÇAMENTO!$AF$7)/$H18*OFFSET(ORÇAMENTO!$X$15,ROW(AI18)-ROW(AI$15),0),0) -> 0 | AJ18: =IF(AND($D18="Serviço",AJ$12<>0,$H18>0,OR(AUTOEVENTO<>"manual",$M18<>1)),ROUND(OFFSET($P18,0,AJ$13),15-13*ORÇAMENTO!$AF$7)/$H18*OFFSET(ORÇAMENTO!$X$15,ROW(AJ18)-ROW(AJ$15),0),0) -> 0 | AK18: =IF(AND($D18="Serviço",AK$12<>0,$H18>0,OR(AUTOEVENTO<>"manual",$M18<>1)),ROUND(OFFSET($P18,0,AK$13),15-13*ORÇAMENTO!$AF$7)/$H18*OFFSET(ORÇAMENTO!$X$15,ROW(AK18)-ROW(AK$15),0),0) -> 0 | AM18: =IF($D18<>"Serviço",0,IF(AND(AUTOEVENTO="Manual",$M18=1),0,IF(OFFSET(CRONOPLE!$F$14,$M18,AM$13)="",10^12,OFFSET(CRONOPLE!$F$14,$M18,AM$13)))) -> 1 | AN18: =IF($D18<>"Serviço",0,IF(AND(AUTOEVENTO="Manual",$M18=1),0,IF(OFFSET(CRONOPLE!$F$14,$M18,AN$13)="",10^12,OFFSET(CRONOPLE!$F$14,$M18,AN$13)))) -> 1000000000000 | AO18: =IF($D18<>"Serviço",0,IF(AND(AUTOEVENTO="Manual",$M18=1),0,IF(OFFSET(CRONOPLE!$F$14,$M18,AO$13)="",10^12,OFFSET(CRONOPLE!$F$14,$M18,AO$13)))) -> 1000000000000 | AP18: =IF($D18<>"Serviço",0,IF(AND(AUTOEVENTO="Manual",$M18=1),0,IF(OFFSET(CRONOPLE!$F$14,$M18,AP$13)="",10^12,OFFSET(CRONOPLE!$F$14,$M18,AP$13)))) -> 1000000000000 | AQ18: =IF($D18<>"Serviço",0,IF(AND(AUTOEVENTO="Manual",$M18=1),0,IF(OFFSET(CRONOPLE!$F$14,$M18,AQ$13)="",10^12,OFFSET(CRONOPLE!$F$14,$M18,AQ$13)))) -> 1000000000000 | AR18: =IF($D18<>"Serviço",0,IF(AND(AUTOEVENTO="Manual",$M18=1),0,IF(OFFSET(CRONOPLE!$F$14,$M18,AR$13)="",10^12,OFFSET(CRONOPLE!$F$14,$M18,AR$13)))) -> 1000000000000 | AS18: =IF($D18<>"Serviço",0,IF(AND(AUTOEVENTO="Manual",$M18=1),0,IF(OFFSET(CRONOPLE!$F$14,$M18,AS$13)="",10^12,OFFSET(CRONOPLE!$F$14,$M18,AS$13)))) -> 1000000000000 | AT18: =IF($D18<>"Serviço",0,IF(AND(AUTOEVENTO="Manual",$M18=1),0,IF(OFFSET(CRONOPLE!$F$14,$M18,AT$13)="",10^12,OFFSET(CRONOPLE!$F$14,$M18,AT$13)))) -> 1000000000000 | AU18: =IF($D18<>"Serviço",0,IF(AND(AUTOEVENTO="Manual",$M18=1),0,IF(OFFSET(CRONOPLE!$F$14,$M18,AU$13)="",10^12,OFFSET(CRONOPLE!$F$14,$M18,AU$13)))) -> 1000000000000 | AV18: =IF($D18<>"Serviço",0,IF(AND(AUTOEVENTO="Manual",$M18=1),0,IF(OFFSET(CRONOPLE!$F$14,$M18,AV$13)="",10^12,OFFSET(CRONOPLE!$F$14,$M18,AV$13)))) -> 1000000000000 | AX18: =IF($D18<>"Serviço",0,IF(OR(AND(AUTOEVENTO="Manual",$M18=1),$M18>(ROW(PLE.lastrow)-ROW(PLE.firstrow))),0,IF(OFFSET(PLE!$G$14,$M18,AX$13)="",10^12,OFFSET(PLE!$G$14,$M18,AX$13)))) -> 1000000000000 | AY18: =IF($D18<>"Serviço",0,IF(OR(AND(AUTOEVENTO="Manual",$M18=1),$M18>(ROW(PLE.lastrow)-ROW(PLE.firstrow))),0,IF(OFFSET(PLE!$G$14,$M18,AY$13)="",10^12,OFFSET(PLE!$G$14,$M18,AY$13)))) -> 1000000000000 | AZ18: =IF($D18<>"Serviço",0,IF(OR(AND(AUTOEVENTO="Manual",$M18=1),$M18>(ROW(PLE.lastrow)-ROW(PLE.firstrow))),0,IF(OFFSET(PLE!$G$14,$M18,AZ$13)="",10^12,OFFSET(PLE!$G$14,$M18,AZ$13)))) -> 1000000000000 | BA18: =IF($D18<>"Serviço",0,IF(OR(AND(AUTOEVENTO="Manual",$M18=1),$M18>(ROW(PLE.lastrow)-ROW(PLE.firstrow))),0,IF(OFFSET(PLE!$G$14,$M18,BA$13)="",10^12,OFFSET(PLE!$G$14,$M18,BA$13)))) -> 1000000000000 | BB18: =IF($D18<>"Serviço",0,IF(OR(AND(AUTOEVENTO="Manual",$M18=1),$M18>(ROW(PLE.lastrow)-ROW(PLE.firstrow))),0,IF(OFFSET(PLE!$G$14,$M18,BB$13)="",10^12,OFFSET(PLE!$G$14,$M18,BB$13)))) -> 1000000000000 | BC18: =IF($D18<>"Serviço",0,IF(OR(AND(AUTOEVENTO="Manual",$M18=1),$M18>(ROW(PLE.lastrow)-ROW(PLE.firstrow))),0,IF(OFFSET(PLE!$G$14,$M18,BC$13)="",10^12,OFFSET(PLE!$G$14,$M18,BC$13)))) -> 1000000000000 | BD18: =IF($D18<>"Serviço",0,IF(OR(AND(AUTOEVENTO="Manual",$M18=1),$M18>(ROW(PLE.lastrow)-ROW(PLE.firstrow))),0,IF(OFFSET(PLE!$G$14,$M18,BD$13)="",10^12,OFFSET(PLE!$G$14,$M18,BD$13)))) -> 1000000000000 | BE18: =IF($D18<>"Serviço",0,IF(OR(AND(AUTOEVENTO="Manual",$M18=1),$M18>(ROW(PLE.lastrow)-ROW(PLE.firstrow))),0,IF(OFFSET(PLE!$G$14,$M18,BE$13)="",10^12,OFFSET(PLE!$G$14,$M18,BE$13)))) -> 1000000000000 | BF18: =IF($D18<>"Serviço",0,IF(OR(AND(AUTOEVENTO="Manual",$M18=1),$M18>(ROW(PLE.lastrow)-ROW(PLE.firstrow))),0,IF(OFFSET(PLE!$G$14,$M18,BF$13)="",10^12,OFFSET(PLE!$G$14,$M18,BF$13)))) -> 1000000000000 | BG18: =IF($D18<>"Serviço",0,IF(OR(AND(AUTOEVENTO="Manual",$M18=1),$M18>(ROW(PLE.lastrow)-ROW(PLE.firstrow))),0,IF(OFFSET(PLE!$G$14,$M18,BG$13)="",10^12,OFFSET(PLE!$G$14,$M18,BG$13)))) -> 1000000000000
A19: =IF(AUTOEVENTO="Manual",IF(K19<>"",MIN(VALUE(LEFT(K19,FIND(".",K19)-1)),COUNTA(EVENTOS.Lista)),0),IF(OR($B19>AUTOEVENTO,$B19="S",$B19=0),SUBSTITUTE(OFFSET($A19,-1,0),IF($D19="Serviço",".",""),""),ROW(A19)-ROW($A$15)&".")) -> 2 | B19: =OFFSET(ORÇAMENTO!C$15,ROW(B19)-ROW(B$15),0) -> S | C19: =OFFSET(ORÇAMENTO!L$15,ROW(C19)-ROW(C$15),0) -> F | D19: =OFFSET(ORÇAMENTO!N$15,ROW(D19)-ROW(D$15),0) -> Serviço | E19: =OFFSET(ORÇAMENTO!O$15,ROW(E19)-ROW(E$15),0) -> 1.1.0.2. | F19: =OFFSET(ORÇAMENTO!R$15,ROW(F19)-ROW(F$15),0) -> SONDAGEM A PERCUSSAO | G19: =IF($D19<>"Serviço","",OFFSET(ORÇAMENTO!S$15,ROW(G19)-ROW(G$15),0)) -> M | H19: =IF($D19<>"Serviço",0,IF(ACOMPANHAMENTO="BM",ROUND(OFFSET(ORÇAMENTO!AJ$15,ROW(H19)-ROW(H$15),0),15-13*ORÇAMENTO!$AF$7),SUMPRODUCT(($Q$12:$AA$12<>"")*ROUND($Q19:$AA19,15-13*ORÇAMENTO!$AF$7)))) -> 60 | I19: 3 pontos de 20 m | K19: 2.SERVIÇOS INICIAIS | L19: . | M19: =IF($D19<>"Serviço","",IF(AUTOEVENTO="manual",$A19,IF(ISERROR(MATCH($A19,$A$15:OFFSET($A19,-1,0),0)),MAX($M$15:OFFSET(M19,-1,0))+1,INDEX($M$15:OFFSET(M19,-1,0),MATCH($A19,$A$15:OFFSET($A19,-1,0),0))))) -> 2 | N19: =IF($D19<>"Serviço","",IF(AUTOEVENTO="Manual",IF($A19=0,"<-- defina o número do agrupador",OFFSET(EVENTOS!$D$14,$A19,0)),OFFSET($F$15,$A19,0))) -> SERVIÇOS INICIAIS | Q19: 60 | AB19: =IF(AND($D19="Serviço",AB$12<>0,$H19>0,OR(AUTOEVENTO<>"manual",$M19<>1)),ROUND(OFFSET($P19,0,AB$13),15-13*ORÇAMENTO!$AF$7)/$H19*OFFSET(ORÇAMENTO!$X$15,ROW(AB19)-ROW(AB$15),0),0) -> 4614 | AC19: =IF(AND($D19="Serviço",AC$12<>0,$H19>0,OR(AUTOEVENTO<>"manual",$M19<>1)),ROUND(OFFSET($P19,0,AC$13),15-13*ORÇAMENTO!$AF$7)/$H19*OFFSET(ORÇAMENTO!$X$15,ROW(AC19)-ROW(AC$15),0),0) -> 0 | AD19: =IF(AND($D19="Serviço",AD$12<>0,$H19>0,OR(AUTOEVENTO<>"manual",$M19<>1)),ROUND(OFFSET($P19,0,AD$13),15-13*ORÇAMENTO!$AF$7)/$H19*OFFSET(ORÇAMENTO!$X$15,ROW(AD19)-ROW(AD$15),0),0) -> 0 | AE19: =IF(AND($D19="Serviço",AE$12<>0,$H19>0,OR(AUTOEVENTO<>"manual",$M19<>1)),ROUND(OFFSET($P19,0,AE$13),15-13*ORÇAMENTO!$AF$7)/$H19*OFFSET(ORÇAMENTO!$X$15,ROW(AE19)-ROW(AE$15),0),0) -> 0 | AF19: =IF(AND($D19="Serviço",AF$12<>0,$H19>0,OR(AUTOEVENTO<>"manual",$M19<>1)),ROUND(OFFSET($P19,0,AF$13),15-13*ORÇAMENTO!$AF$7)/$H19*OFFSET(ORÇAMENTO!$X$15,ROW(AF19)-ROW(AF$15),0),0) -> 0 | AG19: =IF(AND($D19="Serviço",AG$12<>0,$H19>0,OR(AUTOEVENTO<>"manual",$M19<>1)),ROUND(OFFSET($P19,0,AG$13),15-13*ORÇAMENTO!$AF$7)/$H19*OFFSET(ORÇAMENTO!$X$15,ROW(AG19)-ROW(AG$15),0),0) -> 0 | AH19: =IF(AND($D19="Serviço",AH$12<>0,$H19>0,OR(AUTOEVENTO<>"manual",$M19<>1)),ROUND(OFFSET($P19,0,AH$13),15-13*ORÇAMENTO!$AF$7)/$H19*OFFSET(ORÇAMENTO!$X$15,ROW(AH19)-ROW(AH$15),0),0) -> 0 | AI19: =IF(AND($D19="Serviço",AI$12<>0,$H19>0,OR(AUTOEVENTO<>"manual",$M19<>1)),ROUND(OFFSET($P19,0,AI$13),15-13*ORÇAMENTO!$AF$7)/$H19*OFFSET(ORÇAMENTO!$X$15,ROW(AI19)-ROW(AI$15),0),0) -> 0 | AJ19: =IF(AND($D19="Serviço",AJ$12<>0,$H19>0,OR(AUTOEVENTO<>"manual",$M19<>1)),ROUND(OFFSET($P19,0,AJ$13),15-13*ORÇAMENTO!$AF$7)/$H19*OFFSET(ORÇAMENTO!$X$15,ROW(AJ19)-ROW(AJ$15),0),0) -> 0 | AK19: =IF(AND($D19="Serviço",AK$12<>0,$H19>0,OR(AUTOEVENTO<>"manual",$M19<>1)),ROUND(OFFSET($P19,0,AK$13),15-13*ORÇAMENTO!$AF$7)/$H19*OFFSET(ORÇAMENTO!$X$15,ROW(AK19)-ROW(AK$15),0),0) -> 0 | AM19: =IF($D19<>"Serviço",0,IF(AND(AUTOEVENTO="Manual",$M19=1),0,IF(OFFSET(CRONOPLE!$F$14,$M19,AM$13)="",10^12,OFFSET(CRONOPLE!$F$14,$M19,AM$13)))) -> 1 | AN19: =IF($D19<>"Serviço",0,IF(AND(AUTOEVENTO="Manual",$M19=1),0,IF(OFFSET(CRONOPLE!$F$14,$M19,AN$13)="",10^12,OFFSET(CRONOPLE!$F$14,$M19,AN$13)))) -> 1000000000000 | AO19: =IF($D19<>"Serviço",0,IF(AND(AUTOEVENTO="Manual",$M19=1),0,IF(OFFSET(CRONOPLE!$F$14,$M19,AO$13)="",10^12,OFFSET(CRONOPLE!$F$14,$M19,AO$13)))) -> 1000000000000 | AP19: =IF($D19<>"Serviço",0,IF(AND(AUTOEVENTO="Manual",$M19=1),0,IF(OFFSET(CRONOPLE!$F$14,$M19,AP$13)="",10^12,OFFSET(CRONOPLE!$F$14,$M19,AP$13)))) -> 1000000000000 | AQ19: =IF($D19<>"Serviço",0,IF(AND(AUTOEVENTO="Manual",$M19=1),0,IF(OFFSET(CRONOPLE!$F$14,$M19,AQ$13)="",10^12,OFFSET(CRONOPLE!$F$14,$M19,AQ$13)))) -> 1000000000000 | AR19: =IF($D19<>"Serviço",0,IF(AND(AUTOEVENTO="Manual",$M19=1),0,IF(OFFSET(CRONOPLE!$F$14,$M19,AR$13)="",10^12,OFFSET(CRONOPLE!$F$14,$M19,AR$13)))) -> 1000000000000 | AS19: =IF($D19<>"Serviço",0,IF(AND(AUTOEVENTO="Manual",$M19=1),0,IF(OFFSET(CRONOPLE!$F$14,$M19,AS$13)="",10^12,OFFSET(CRONOPLE!$F$14,$M19,AS$13)))) -> 1000000000000 | AT19: =IF($D19<>"Serviço",0,IF(AND(AUTOEVENTO="Manual",$M19=1),0,IF(OFFSET(CRONOPLE!$F$14,$M19,AT$13)="",10^12,OFFSET(CRONOPLE!$F$14,$M19,AT$13)))) -> 1000000000000 | AU19: =IF($D19<>"Serviço",0,IF(AND(AUTOEVENTO="Manual",$M19=1),0,IF(OFFSET(CRONOPLE!$F$14,$M19,AU$13)="",10^12,OFFSET(CRONOPLE!$F$14,$M19,AU$13)))) -> 1000000000000 | AV19: =IF($D19<>"Serviço",0,IF(AND(AUTOEVENTO="Manual",$M19=1),0,IF(OFFSET(CRONOPLE!$F$14,$M19,AV$13)="",10^12,OFFSET(CRONOPLE!$F$14,$M19,AV$13)))) -> 1000000000000 | AX19: =IF($D19<>"Serviço",0,IF(OR(AND(AUTOEVENTO="Manual",$M19=1),$M19>(ROW(PLE.lastrow)-ROW(PLE.firstrow))),0,IF(OFFSET(PLE!$G$14,$M19,AX$13)="",10^12,OFFSET(PLE!$G$14,$M19,AX$13)))) -> 1000000000000 | AY19: =IF($D19<>"Serviço",0,IF(OR(AND(AUTOEVENTO="Manual",$M19=1),$M19>(ROW(PLE.lastrow)-ROW(PLE.firstrow))),0,IF(OFFSET(PLE!$G$14,$M19,AY$13)="",10^12,OFFSET(PLE!$G$14,$M19,AY$13)))) -> 1000000000000 | AZ19: =IF($D19<>"Serviço",0,IF(OR(AND(AUTOEVENTO="Manual",$M19=1),$M19>(ROW(PLE.lastrow)-ROW(PLE.firstrow))),0,IF(OFFSET(PLE!$G$14,$M19,AZ$13)="",10^12,OFFSET(PLE!$G$14,$M19,AZ$13)))) -> 1000000000000 | BA19: =IF($D19<>"Serviço",0,IF(OR(AND(AUTOEVENTO="Manual",$M19=1),$M19>(ROW(PLE.lastrow)-ROW(PLE.firstrow))),0,IF(OFFSET(PLE!$G$14,$M19,BA$13)="",10^12,OFFSET(PLE!$G$14,$M19,BA$13)))) -> 1000000000000 | BB19: =IF($D19<>"Serviço",0,IF(OR(AND(AUTOEVENTO="Manual",$M19=1),$M19>(ROW(PLE.lastrow)-ROW(PLE.firstrow))),0,IF(OFFSET(PLE!$G$14,$M19,BB$13)="",10^12,OFFSET(PLE!$G$14,$M19,BB$13)))) -> 1000000000000 | BC19: =IF($D19<>"Serviço",0,IF(OR(AND(AUTOEVENTO="Manual",$M19=1),$M19>(ROW(PLE.lastrow)-ROW(PLE.firstrow))),0,IF(OFFSET(PLE!$G$14,$M19,BC$13)="",10^12,OFFSET(PLE!$G$14,$M19,BC$13)))) -> 1000000000000 | BD19: =IF($D19<>"Serviço",0,IF(OR(AND(AUTOEVENTO="Manual",$M19=1),$M19>(ROW(PLE.lastrow)-ROW(PLE.firstrow))),0,IF(OFFSET(PLE!$G$14,$M19,BD$13)="",10^12,OFFSET(PLE!$G$14,$M19,BD$13)))) -> 1000000000000 | BE19: =IF($D19<>"Serviço",0,IF(OR(AND(AUTOEVENTO="Manual",$M19=1),$M19>(ROW(PLE.lastrow)-ROW(PLE.firstrow))),0,IF(OFFSET(PLE!$G$14,$M19,BE$13)="",10^12,OFFSET(PLE!$G$14,$M19,BE$13)))) -> 1000000000000 | BF19: =IF($D19<>"Serviço",0,IF(OR(AND(AUTOEVENTO="Manual",$M19=1),$M19>(ROW(PLE.lastrow)-ROW(PLE.firstrow))),0,IF(OFFSET(PLE!$G$14,$M19,BF$13)="",10^12,OFFSET(PLE!$G$14,$M19,BF$13)))) -> 1000000000000 | BG19: =IF($D19<>"Serviço",0,IF(OR(AND(AUTOEVENTO="Manual",$M19=1),$M19>(ROW(PLE.lastrow)-ROW(PLE.firstrow))),0,IF(OFFSET(PLE!$G$14,$M19,BG$13)="",10^12,OFFSET(PLE!$G$14,$M19,BG$13)))) -> 1000000000000
A20: =IF(AUTOEVENTO="Manual",IF(K20<>"",MIN(VALUE(LEFT(K20,FIND(".",K20)-1)),COUNTA(EVENTOS.Lista)),0),IF(OR($B20>AUTOEVENTO,$B20="S",$B20=0),SUBSTITUTE(OFFSET($A20,-1,0),IF($D20="Serviço",".",""),""),ROW(A20)-ROW($A$15)&".")) -> 2 | B20: =OFFSET(ORÇAMENTO!C$15,ROW(B20)-ROW(B$15),0) -> S | C20: =OFFSET(ORÇAMENTO!L$15,ROW(C20)-ROW(C$15),0) -> F | D20: =OFFSET(ORÇAMENTO!N$15,ROW(D20)-ROW(D$15),0) -> Serviço | E20: =OFFSET(ORÇAMENTO!O$15,ROW(E20)-ROW(E$15),0) -> 1.1.0.3. | F20: =OFFSET(ORÇAMENTO!R$15,ROW(F20)-ROW(F$15),0) -> LOCACAO CONVENCIONAL DE OBRA, UTILIZANDO GABARITO DE TÁBUAS CORRIDAS PONTALETADAS A CADA 2,00M - 2 UTILIZAÇÕES. AF_10/2018 | G20: =IF($D20<>"Serviço","",OFFSET(ORÇAMENTO!S$15,ROW(G20)-ROW(G$15),0)) -> M | H20: =IF($D20<>"Serviço",0,IF(ACOMPANHAMENTO="BM",ROUND(OFFSET(ORÇAMENTO!AJ$15,ROW(H20)-ROW(H$15),0),15-13*ORÇAMENTO!$AF$7),SUMPRODUCT(($Q$12:$AA$12<>"")*ROUND($Q20:$AA20,15-13*ORÇAMENTO!$AF$7)))) -> 128 | I20: (42,00+22,00)*2 | K20: 2.SERVIÇOS INICIAIS | L20: . | M20: =IF($D20<>"Serviço","",IF(AUTOEVENTO="manual",$A20,IF(ISERROR(MATCH($A20,$A$15:OFFSET($A20,-1,0),0)),MAX($M$15:OFFSET(M20,-1,0))+1,INDEX($M$15:OFFSET(M20,-1,0),MATCH($A20,$A$15:OFFSET($A20,-1,0),0))))) -> 2 | N20: =IF($D20<>"Serviço","",IF(AUTOEVENTO="Manual",IF($A20=0,"<-- defina o número do agrupador",OFFSET(EVENTOS!$D$14,$A20,0)),OFFSET($F$15,$A20,0))) -> SERVIÇOS INICIAIS | Q20: 128 | AB20: =IF(AND($D20="Serviço",AB$12<>0,$H20>0,OR(AUTOEVENTO<>"manual",$M20<>1)),ROUND(OFFSET($P20,0,AB$13),15-13*ORÇAMENTO!$AF$7)/$H20*OFFSET(ORÇAMENTO!$X$15,ROW(AB20)-ROW(AB$15),0),0) -> 8573.44 | AC20: =IF(AND($D20="Serviço",AC$12<>0,$H20>0,OR(AUTOEVENTO<>"manual",$M20<>1)),ROUND(OFFSET($P20,0,AC$13),15-13*ORÇAMENTO!$AF$7)/$H20*OFFSET(ORÇAMENTO!$X$15,ROW(AC20)-ROW(AC$15),0),0) -> 0 | AD20: =IF(AND($D20="Serviço",AD$12<>0,$H20>0,OR(AUTOEVENTO<>"manual",$M20<>1)),ROUND(OFFSET($P20,0,AD$13),15-13*ORÇAMENTO!$AF$7)/$H20*OFFSET(ORÇAMENTO!$X$15,ROW(AD20)-ROW(AD$15),0),0) -> 0 | AE20: =IF(AND($D20="Serviço",AE$12<>0,$H20>0,OR(AUTOEVENTO<>"manual",$M20<>1)),ROUND(OFFSET($P20,0,AE$13),15-13*ORÇAMENTO!$AF$7)/$H20*OFFSET(ORÇAMENTO!$X$15,ROW(AE20)-ROW(AE$15),0),0) -> 0 | AF20: =IF(AND($D20="Serviço",AF$12<>0,$H20>0,OR(AUTOEVENTO<>"manual",$M20<>1)),ROUND(OFFSET($P20,0,AF$13),15-13*ORÇAMENTO!$AF$7)/$H20*OFFSET(ORÇAMENTO!$X$15,ROW(AF20)-ROW(AF$15),0),0) -> 0 | AG20: =IF(AND($D20="Serviço",AG$12<>0,$H20>0,OR(AUTOEVENTO<>"manual",$M20<>1)),ROUND(OFFSET($P20,0,AG$13),15-13*ORÇAMENTO!$AF$7)/$H20*OFFSET(ORÇAMENTO!$X$15,ROW(AG20)-ROW(AG$15),0),0) -> 0 | AH20: =IF(AND($D20="Serviço",AH$12<>0,$H20>0,OR(AUTOEVENTO<>"manual",$M20<>1)),ROUND(OFFSET($P20,0,AH$13),15-13*ORÇAMENTO!$AF$7)/$H20*OFFSET(ORÇAMENTO!$X$15,ROW(AH20)-ROW(AH$15),0),0) -> 0 | AI20: =IF(AND($D20="Serviço",AI$12<>0,$H20>0,OR(AUTOEVENTO<>"manual",$M20<>1)),ROUND(OFFSET($P20,0,AI$13),15-13*ORÇAMENTO!$AF$7)/$H20*OFFSET(ORÇAMENTO!$X$15,ROW(AI20)-ROW(AI$15),0),0) -> 0 | AJ20: =IF(AND($D20="Serviço",AJ$12<>0,$H20>0,OR(AUTOEVENTO<>"manual",$M20<>1)),ROUND(OFFSET($P20,0,AJ$13),15-13*ORÇAMENTO!$AF$7)/$H20*OFFSET(ORÇAMENTO!$X$15,ROW(AJ20)-ROW(AJ$15),0),0) -> 0 | AK20: =IF(AND($D20="Serviço",AK$12<>0,$H20>0,OR(AUTOEVENTO<>"manual",$M20<>1)),ROUND(OFFSET($P20,0,AK$13),15-13*ORÇAMENTO!$AF$7)/$H20*OFFSET(ORÇAMENTO!$X$15,ROW(AK20)-ROW(AK$15),0),0) -> 0 | AM20: =IF($D20<>"Serviço",0,IF(AND(AUTOEVENTO="Manual",$M20=1),0,IF(OFFSET(CRONOPLE!$F$14,$M20,AM$13)="",10^12,OFFSET(CRONOPLE!$F$14,$M20,AM$13)))) -> 1 | AN20: =IF($D20<>"Serviço",0,IF(AND(AUTOEVENTO="Manual",$M20=1),0,IF(OFFSET(CRONOPLE!$F$14,$M20,AN$13)="",10^12,OFFSET(CRONOPLE!$F$14,$M20,AN$13)))) -> 1000000000000 | AO20: =IF($D20<>"Serviço",0,IF(AND(AUTOEVENTO="Manual",$M20=1),0,IF(OFFSET(CRONOPLE!$F$14,$M20,AO$13)="",10^12,OFFSET(CRONOPLE!$F$14,$M20,AO$13)))) -> 1000000000000 | AP20: =IF($D20<>"Serviço",0,IF(AND(AUTOEVENTO="Manual",$M20=1),0,IF(OFFSET(CRONOPLE!$F$14,$M20,AP$13)="",10^12,OFFSET(CRONOPLE!$F$14,$M20,AP$13)))) -> 1000000000000 | AQ20: =IF($D20<>"Serviço",0,IF(AND(AUTOEVENTO="Manual",$M20=1),0,IF(OFFSET(CRONOPLE!$F$14,$M20,AQ$13)="",10^12,OFFSET(CRONOPLE!$F$14,$M20,AQ$13)))) -> 1000000000000 | AR20: =IF($D20<>"Serviço",0,IF(AND(AUTOEVENTO="Manual",$M20=1),0,IF(OFFSET(CRONOPLE!$F$14,$M20,AR$13)="",10^12,OFFSET(CRONOPLE!$F$14,$M20,AR$13)))) -> 1000000000000 | AS20: =IF($D20<>"Serviço",0,IF(AND(AUTOEVENTO="Manual",$M20=1),0,IF(OFFSET(CRONOPLE!$F$14,$M20,AS$13)="",10^12,OFFSET(CRONOPLE!$F$14,$M20,AS$13)))) -> 1000000000000 | AT20: =IF($D20<>"Serviço",0,IF(AND(AUTOEVENTO="Manual",$M20=1),0,IF(OFFSET(CRONOPLE!$F$14,$M20,AT$13)="",10^12,OFFSET(CRONOPLE!$F$14,$M20,AT$13)))) -> 1000000000000 | AU20: =IF($D20<>"Serviço",0,IF(AND(AUTOEVENTO="Manual",$M20=1),0,IF(OFFSET(CRONOPLE!$F$14,$M20,AU$13)="",10^12,OFFSET(CRONOPLE!$F$14,$M20,AU$13)))) -> 1000000000000 | AV20: =IF($D20<>"Serviço",0,IF(AND(AUTOEVENTO="Manual",$M20=1),0,IF(OFFSET(CRONOPLE!$F$14,$M20,AV$13)="",10^12,OFFSET(CRONOPLE!$F$14,$M20,AV$13)))) -> 1000000000000 | AX20: =IF($D20<>"Serviço",0,IF(OR(AND(AUTOEVENTO="Manual",$M20=1),$M20>(ROW(PLE.lastrow)-ROW(PLE.firstrow))),0,IF(OFFSET(PLE!$G$14,$M20,AX$13)="",10^12,OFFSET(PLE!$G$14,$M20,AX$13)))) -> 1000000000000 | AY20: =IF($D20<>"Serviço",0,IF(OR(AND(AUTOEVENTO="Manual",$M20=1),$M20>(ROW(PLE.lastrow)-ROW(PLE.firstrow))),0,IF(OFFSET(PLE!$G$14,$M20,AY$13)="",10^12,OFFSET(PLE!$G$14,$M20,AY$13)))) -> 1000000000000 | AZ20: =IF($D20<>"Serviço",0,IF(OR(AND(AUTOEVENTO="Manual",$M20=1),$M20>(ROW(PLE.lastrow)-ROW(PLE.firstrow))),0,IF(OFFSET(PLE!$G$14,$M20,AZ$13)="",10^12,OFFSET(PLE!$G$14,$M20,AZ$13)))) -> 1000000000000 | BA20: =IF($D20<>"Serviço",0,IF(OR(AND(AUTOEVENTO="Manual",$M20=1),$M20>(ROW(PLE.lastrow)-ROW(PLE.firstrow))),0,IF(OFFSET(PLE!$G$14,$M20,BA$13)="",10^12,OFFSET(PLE!$G$14,$M20,BA$13)))) -> 1000000000000 | BB20: =IF($D20<>"Serviço",0,IF(OR(AND(AUTOEVENTO="Manual",$M20=1),$M20>(ROW(PLE.lastrow)-ROW(PLE.firstrow))),0,IF(OFFSET(PLE!$G$14,$M20,BB$13)="",10^12,OFFSET(PLE!$G$14,$M20,BB$13)))) -> 1000000000000 | BC20: =IF($D20<>"Serviço",0,IF(OR(AND(AUTOEVENTO="Manual",$M20=1),$M20>(ROW(PLE.lastrow)-ROW(PLE.firstrow))),0,IF(OFFSET(PLE!$G$14,$M20,BC$13)="",10^12,OFFSET(PLE!$G$14,$M20,BC$13)))) -> 1000000000000 | BD20: =IF($D20<>"Serviço",0,IF(OR(AND(AUTOEVENTO="Manual",$M20=1),$M20>(ROW(PLE.lastrow)-ROW(PLE.firstrow))),0,IF(OFFSET(PLE!$G$14,$M20,BD$13)="",10^12,OFFSET(PLE!$G$14,$M20,BD$13)))) -> 1000000000000 | BE20: =IF($D20<>"Serviço",0,IF(OR(AND(AUTOEVENTO="Manual",$M20=1),$M20>(ROW(PLE.lastrow)-ROW(PLE.firstrow))),0,IF(OFFSET(PLE!$G$14,$M20,BE$13)="",10^12,OFFSET(PLE!$G$14,$M20,BE$13)))) -> 1000000000000 | BF20: =IF($D20<>"Serviço",0,IF(OR(AND(AUTOEVENTO="Manual",$M20=1),$M20>(ROW(PLE.lastrow)-ROW(PLE.firstrow))),0,IF(OFFSET(PLE!$G$14,$M20,BF$13)="",10^12,OFFSET(PLE!$G$14,$M20,BF$13)))) -> 1000000000000 | BG20: =IF($D20<>"Serviço",0,IF(OR(AND(AUTOEVENTO="Manual",$M20=1),$M20>(ROW(PLE.lastrow)-ROW(PLE.firstrow))),0,IF(OFFSET(PLE!$G$14,$M20,BG$13)="",10^12,OFFSET(PLE!$G$14,$M20,BG$13)))) -> 1000000000000
A21: =IF(AUTOEVENTO="Manual",IF(K21<>"",MIN(VALUE(LEFT(K21,FIND(".",K21)-1)),COUNTA(EVENTOS.Lista)),0),IF(OR($B21>AUTOEVENTO,$B21="S",$B21=0),SUBSTITUTE(OFFSET($A21,-1,0),IF($D21="Serviço",".",""),""),ROW(A21)-ROW($A$15)&".")) -> 0 | B21: =OFFSET(ORÇAMENTO!C$15,ROW(B21)-ROW(B$15),0) -> 2 | C21: =OFFSET(ORÇAMENTO!L$15,ROW(C21)-ROW(C$15),0) -> F | D21: =OFFSET(ORÇAMENTO!N$15,ROW(D21)-ROW(D$15),0) -> Nível 2 | E21: =OFFSET(ORÇAMENTO!O$15,ROW(E21)-ROW(E$15),0) -> 1.2. | F21: =OFFSET(ORÇAMENTO!R$15,ROW(F21)-ROW(F$15),0) -> DEMOLIÇÃO | G21: =IF($D21<>"Serviço","",OFFSET(ORÇAMENTO!S$15,ROW(G21)-ROW(G$15),0)) ->  | H21: =IF($D21<>"Serviço",0,IF(ACOMPANHAMENTO="BM",ROUND(OFFSET(ORÇAMENTO!AJ$15,ROW(H21)-ROW(H$15),0),15-13*ORÇAMENTO!$AF$7),SUMPRODUCT(($Q$12:$AA$12<>"")*ROUND($Q21:$AA21,15-13*ORÇAMENTO!$AF$7)))) -> 0 | L21: . | M21: =IF($D21<>"Serviço","",IF(AUTOEVENTO="manual",$A21,IF(ISERROR(MATCH($A21,$A$15:OFFSET($A21,-1,0),0)),MAX($M$15:OFFSET(M21,-1,0))+1,INDEX($M$15:OFFSET(M21,-1,0),MATCH($A21,$A$15:OFFSET($A21,-1,0),0))))) ->  | N21: =IF($D21<>"Serviço","",IF(AUTOEVENTO="Manual",IF($A21=0,"<-- defina o número do agrupador",OFFSET(EVENTOS!$D$14,$A21,0)),OFFSET($F$15,$A21,0))) ->  | AB21: =IF(AND($D21="Serviço",AB$12<>0,$H21>0,OR(AUTOEVENTO<>"manual",$M21<>1)),ROUND(OFFSET($P21,0,AB$13),15-13*ORÇAMENTO!$AF$7)/$H21*OFFSET(ORÇAMENTO!$X$15,ROW(AB21)-ROW(AB$15),0),0) -> 0 | AC21: =IF(AND($D21="Serviço",AC$12<>0,$H21>0,OR(AUTOEVENTO<>"manual",$M21<>1)),ROUND(OFFSET($P21,0,AC$13),15-13*ORÇAMENTO!$AF$7)/$H21*OFFSET(ORÇAMENTO!$X$15,ROW(AC21)-ROW(AC$15),0),0) -> 0 | AD21: =IF(AND($D21="Serviço",AD$12<>0,$H21>0,OR(AUTOEVENTO<>"manual",$M21<>1)),ROUND(OFFSET($P21,0,AD$13),15-13*ORÇAMENTO!$AF$7)/$H21*OFFSET(ORÇAMENTO!$X$15,ROW(AD21)-ROW(AD$15),0),0) -> 0 | AE21: =IF(AND($D21="Serviço",AE$12<>0,$H21>0,OR(AUTOEVENTO<>"manual",$M21<>1)),ROUND(OFFSET($P21,0,AE$13),15-13*ORÇAMENTO!$AF$7)/$H21*OFFSET(ORÇAMENTO!$X$15,ROW(AE21)-ROW(AE$15),0),0) -> 0 | AF21: =IF(AND($D21="Serviço",AF$12<>0,$H21>0,OR(AUTOEVENTO<>"manual",$M21<>1)),ROUND(OFFSET($P21,0,AF$13),15-13*ORÇAMENTO!$AF$7)/$H21*OFFSET(ORÇAMENTO!$X$15,ROW(AF21)-ROW(AF$15),0),0) -> 0 | AG21: =IF(AND($D21="Serviço",AG$12<>0,$H21>0,OR(AUTOEVENTO<>"manual",$M21<>1)),ROUND(OFFSET($P21,0,AG$13),15-13*ORÇAMENTO!$AF$7)/$H21*OFFSET(ORÇAMENTO!$X$15,ROW(AG21)-ROW(AG$15),0),0) -> 0 | AH21: =IF(AND($D21="Serviço",AH$12<>0,$H21>0,OR(AUTOEVENTO<>"manual",$M21<>1)),ROUND(OFFSET($P21,0,AH$13),15-13*ORÇAMENTO!$AF$7)/$H21*OFFSET(ORÇAMENTO!$X$15,ROW(AH21)-ROW(AH$15),0),0) -> 0 | AI21: =IF(AND($D21="Serviço",AI$12<>0,$H21>0,OR(AUTOEVENTO<>"manual",$M21<>1)),ROUND(OFFSET($P21,0,AI$13),15-13*ORÇAMENTO!$AF$7)/$H21*OFFSET(ORÇAMENTO!$X$15,ROW(AI21)-ROW(AI$15),0),0) -> 0 | AJ21: =IF(AND($D21="Serviço",AJ$12<>0,$H21>0,OR(AUTOEVENTO<>"manual",$M21<>1)),ROUND(OFFSET($P21,0,AJ$13),15-13*ORÇAMENTO!$AF$7)/$H21*OFFSET(ORÇAMENTO!$X$15,ROW(AJ21)-ROW(AJ$15),0),0) -> 0 | AK21: =IF(AND($D21="Serviço",AK$12<>0,$H21>0,OR(AUTOEVENTO<>"manual",$M21<>1)),ROUND(OFFSET($P21,0,AK$13),15-13*ORÇAMENTO!$AF$7)/$H21*OFFSET(ORÇAMENTO!$X$15,ROW(AK21)-ROW(AK$15),0),0) -> 0 | AM21: =IF($D21<>"Serviço",0,IF(AND(AUTOEVENTO="Manual",$M21=1),0,IF(OFFSET(CRONOPLE!$F$14,$M21,AM$13)="",10^12,OFFSET(CRONOPLE!$F$14,$M21,AM$13)))) -> 0 | AN21: =IF($D21<>"Serviço",0,IF(AND(AUTOEVENTO="Manual",$M21=1),0,IF(OFFSET(CRONOPLE!$F$14,$M21,AN$13)="",10^12,OFFSET(CRONOPLE!$F$14,$M21,AN$13)))) -> 0 | AO21: =IF($D21<>"Serviço",0,IF(AND(AUTOEVENTO="Manual",$M21=1),0,IF(OFFSET(CRONOPLE!$F$14,$M21,AO$13)="",10^12,OFFSET(CRONOPLE!$F$14,$M21,AO$13)))) -> 0 | AP21: =IF($D21<>"Serviço",0,IF(AND(AUTOEVENTO="Manual",$M21=1),0,IF(OFFSET(CRONOPLE!$F$14,$M21,AP$13)="",10^12,OFFSET(CRONOPLE!$F$14,$M21,AP$13)))) -> 0 | AQ21: =IF($D21<>"Serviço",0,IF(AND(AUTOEVENTO="Manual",$M21=1),0,IF(OFFSET(CRONOPLE!$F$14,$M21,AQ$13)="",10^12,OFFSET(CRONOPLE!$F$14,$M21,AQ$13)))) -> 0 | AR21: =IF($D21<>"Serviço",0,IF(AND(AUTOEVENTO="Manual",$M21=1),0,IF(OFFSET(CRONOPLE!$F$14,$M21,AR$13)="",10^12,OFFSET(CRONOPLE!$F$14,$M21,AR$13)))) -> 0 | AS21: =IF($D21<>"Serviço",0,IF(AND(AUTOEVENTO="Manual",$M21=1),0,IF(OFFSET(CRONOPLE!$F$14,$M21,AS$13)="",10^12,OFFSET(CRONOPLE!$F$14,$M21,AS$13)))) -> 0 | AT21: =IF($D21<>"Serviço",0,IF(AND(AUTOEVENTO="Manual",$M21=1),0,IF(OFFSET(CRONOPLE!$F$14,$M21,AT$13)="",10^12,OFFSET(CRONOPLE!$F$14,$M21,AT$13)))) -> 0 | AU21: =IF($D21<>"Serviço",0,IF(AND(AUTOEVENTO="Manual",$M21=1),0,IF(OFFSET(CRONOPLE!$F$14,$M21,AU$13)="",10^12,OFFSET(CRONOPLE!$F$14,$M21,AU$13)))) -> 0 | AV21: =IF($D21<>"Serviço",0,IF(AND(AUTOEVENTO="Manual",$M21=1),0,IF(OFFSET(CRONOPLE!$F$14,$M21,AV$13)="",10^12,OFFSET(CRONOPLE!$F$14,$M21,AV$13)))) -> 0 | AX21: =IF($D21<>"Serviço",0,IF(OR(AND(AUTOEVENTO="Manual",$M21=1),$M21>(ROW(PLE.lastrow)-ROW(PLE.firstrow))),0,IF(OFFSET(PLE!$G$14,$M21,AX$13)="",10^12,OFFSET(PLE!$G$14,$M21,AX$13)))) -> 0 | AY21: =IF($D21<>"Serviço",0,IF(OR(AND(AUTOEVENTO="Manual",$M21=1),$M21>(ROW(PLE.lastrow)-ROW(PLE.firstrow))),0,IF(OFFSET(PLE!$G$14,$M21,AY$13)="",10^12,OFFSET(PLE!$G$14,$M21,AY$13)))) -> 0 | AZ21: =IF($D21<>"Serviço",0,IF(OR(AND(AUTOEVENTO="Manual",$M21=1),$M21>(ROW(PLE.lastrow)-ROW(PLE.firstrow))),0,IF(OFFSET(PLE!$G$14,$M21,AZ$13)="",10^12,OFFSET(PLE!$G$14,$M21,AZ$13)))) -> 0 | BA21: =IF($D21<>"Serviço",0,IF(OR(AND(AUTOEVENTO="Manual",$M21=1),$M21>(ROW(PLE.lastrow)-ROW(PLE.firstrow))),0,IF(OFFSET(PLE!$G$14,$M21,BA$13)="",10^12,OFFSET(PLE!$G$14,$M21,BA$13)))) -> 0 | BB21: =IF($D21<>"Serviço",0,IF(OR(AND(AUTOEVENTO="Manual",$M21=1),$M21>(ROW(PLE.lastrow)-ROW(PLE.firstrow))),0,IF(OFFSET(PLE!$G$14,$M21,BB$13)="",10^12,OFFSET(PLE!$G$14,$M21,BB$13)))) -> 0 | BC21: =IF($D21<>"Serviço",0,IF(OR(AND(AUTOEVENTO="Manual",$M21=1),$M21>(ROW(PLE.lastrow)-ROW(PLE.firstrow))),0,IF(OFFSET(PLE!$G$14,$M21,BC$13)="",10^12,OFFSET(PLE!$G$14,$M21,BC$13)))) -> 0 | BD21: =IF($D21<>"Serviço",0,IF(OR(AND(AUTOEVENTO="Manual",$M21=1),$M21>(ROW(PLE.lastrow)-ROW(PLE.firstrow))),0,IF(OFFSET(PLE!$G$14,$M21,BD$13)="",10^12,OFFSET(PLE!$G$14,$M21,BD$13)))) -> 0 | BE21: =IF($D21<>"Serviço",0,IF(OR(AND(AUTOEVENTO="Manual",$M21=1),$M21>(ROW(PLE.lastrow)-ROW(PLE.firstrow))),0,IF(OFFSET(PLE!$G$14,$M21,BE$13)="",10^12,OFFSET(PLE!$G$14,$M21,BE$13)))) -> 0 | BF21: =IF($D21<>"Serviço",0,IF(OR(AND(AUTOEVENTO="Manual",$M21=1),$M21>(ROW(PLE.lastrow)-ROW(PLE.firstrow))),0,IF(OFFSET(PLE!$G$14,$M21,BF$13)="",10^12,OFFSET(PLE!$G$14,$M21,BF$13)))) -> 0 | BG21: =IF($D21<>"Serviço",0,IF(OR(AND(AUTOEVENTO="Manual",$M21=1),$M21>(ROW(PLE.lastrow)-ROW(PLE.firstrow))),0,IF(OFFSET(PLE!$G$14,$M21,BG$13)="",10^12,OFFSET(PLE!$G$14,$M21,BG$13)))) -> 0
A22: =IF(AUTOEVENTO="Manual",IF(K22<>"",MIN(VALUE(LEFT(K22,FIND(".",K22)-1)),COUNTA(EVENTOS.Lista)),0),IF(OR($B22>AUTOEVENTO,$B22="S",$B22=0),SUBSTITUTE(OFFSET($A22,-1,0),IF($D22="Serviço",".",""),""),ROW(A22)-ROW($A$15)&".")) -> 3 | B22: =OFFSET(ORÇAMENTO!C$15,ROW(B22)-ROW(B$15),0) -> S | C22: =OFFSET(ORÇAMENTO!L$15,ROW(C22)-ROW(C$15),0) -> F | D22: =OFFSET(ORÇAMENTO!N$15,ROW(D22)-ROW(D$15),0) -> Serviço | E22: =OFFSET(ORÇAMENTO!O$15,ROW(E22)-ROW(E$15),0) -> 1.2.0.1. | F22: =OFFSET(ORÇAMENTO!R$15,ROW(F22)-ROW(F$15),0) -> DEMOLIÇÃO DE LAJES, DE FORMA MECANIZADA COM MARTELETE, SEM REAPROVEITAMENTO. AF_12/2017 | G22: =IF($D22<>"Serviço","",OFFSET(ORÇAMENTO!S$15,ROW(G22)-ROW(G$15),0)) -> M3 | H22: =IF($D22<>"Serviço",0,IF(ACOMPANHAMENTO="BM",ROUND(OFFSET(ORÇAMENTO!AJ$15,ROW(H22)-ROW(H$15),0),15-13*ORÇAMENTO!$AF$7),SUMPRODUCT(($Q$12:$AA$12<>"")*ROUND($Q22:$AA22,15-13*ORÇAMENTO!$AF$7)))) -> 5.83 | I22: vigas (4,03*0,20*0,50+8,34*0,20*0,45) + sapatas (0,90*1,30*0,20*20) | K22: 3.MOVIMENTAÇÃO DE TERRA | L22: . | M22: =IF($D22<>"Serviço","",IF(AUTOEVENTO="manual",$A22,IF(ISERROR(MATCH($A22,$A$15:OFFSET($A22,-1,0),0)),MAX($M$15:OFFSET(M22,-1,0))+1,INDEX($M$15:OFFSET(M22,-1,0),MATCH($A22,$A$15:OFFSET($A22,-1,0),0))))) -> 3 | N22: =IF($D22<>"Serviço","",IF(AUTOEVENTO="Manual",IF($A22=0,"<-- defina o número do agrupador",OFFSET(EVENTOS!$D$14,$A22,0)),OFFSET($F$15,$A22,0))) -> DEMOLIÇÃO | Q22: =(4.03*0.2*0.5+8.34*0.2*0.45)+(0.9*1.3*0.2*20) -> 5.8336 | AB22: =IF(AND($D22="Serviço",AB$12<>0,$H22>0,OR(AUTOEVENTO<>"manual",$M22<>1)),ROUND(OFFSET($P22,0,AB$13),15-13*ORÇAMENTO!$AF$7)/$H22*OFFSET(ORÇAMENTO!$X$15,ROW(AB22)-ROW(AB$15),0),0) -> 848.09 | AC22: =IF(AND($D22="Serviço",AC$12<>0,$H22>0,OR(AUTOEVENTO<>"manual",$M22<>1)),ROUND(OFFSET($P22,0,AC$13),15-13*ORÇAMENTO!$AF$7)/$H22*OFFSET(ORÇAMENTO!$X$15,ROW(AC22)-ROW(AC$15),0),0) -> 0 | AD22: =IF(AND($D22="Serviço",AD$12<>0,$H22>0,OR(AUTOEVENTO<>"manual",$M22<>1)),ROUND(OFFSET($P22,0,AD$13),15-13*ORÇAMENTO!$AF$7)/$H22*OFFSET(ORÇAMENTO!$X$15,ROW(AD22)-ROW(AD$15),0),0) -> 0 | AE22: =IF(AND($D22="Serviço",AE$12<>0,$H22>0,OR(AUTOEVENTO<>"manual",$M22<>1)),ROUND(OFFSET($P22,0,AE$13),15-13*ORÇAMENTO!$AF$7)/$H22*OFFSET(ORÇAMENTO!$X$15,ROW(AE22)-ROW(AE$15),0),0) -> 0 | AF22: =IF(AND($D22="Serviço",AF$12<>0,$H22>0,OR(AUTOEVENTO<>"manual",$M22<>1)),ROUND(OFFSET($P22,0,AF$13),15-13*ORÇAMENTO!$AF$7)/$H22*OFFSET(ORÇAMENTO!$X$15,ROW(AF22)-ROW(AF$15),0),0) -> 0 | AG22: =IF(AND($D22="Serviço",AG$12<>0,$H22>0,OR(AUTOEVENTO<>"manual",$M22<>1)),ROUND(OFFSET($P22,0,AG$13),15-13*ORÇAMENTO!$AF$7)/$H22*OFFSET(ORÇAMENTO!$X$15,ROW(AG22)-ROW(AG$15),0),0) -> 0 | AH22: =IF(AND($D22="Serviço",AH$12<>0,$H22>0,OR(AUTOEVENTO<>"manual",$M22<>1)),ROUND(OFFSET($P22,0,AH$13),15-13*ORÇAMENTO!$AF$7)/$H22*OFFSET(ORÇAMENTO!$X$15,ROW(AH22)-ROW(AH$15),0),0) -> 0 | AI22: =IF(AND($D22="Serviço",AI$12<>0,$H22>0,OR(AUTOEVENTO<>"manual",$M22<>1)),ROUND(OFFSET($P22,0,AI$13),15-13*ORÇAMENTO!$AF$7)/$H22*OFFSET(ORÇAMENTO!$X$15,ROW(AI22)-ROW(AI$15),0),0) -> 0 | AJ22: =IF(AND($D22="Serviço",AJ$12<>0,$H22>0,OR(AUTOEVENTO<>"manual",$M22<>1)),ROUND(OFFSET($P22,0,AJ$13),15-13*ORÇAMENTO!$AF$7)/$H22*OFFSET(ORÇAMENTO!$X$15,ROW(AJ22)-ROW(AJ$15),0),0) -> 0 | AK22: =IF(AND($D22="Serviço",AK$12<>0,$H22>0,OR(AUTOEVENTO<>"manual",$M22<>1)),ROUND(OFFSET($P22,0,AK$13),15-13*ORÇAMENTO!$AF$7)/$H22*OFFSET(ORÇAMENTO!$X$15,ROW(AK22)-ROW(AK$15),0),0) -> 0 | AM22: =IF($D22<>"Serviço",0,IF(AND(AUTOEVENTO="Manual",$M22=1),0,IF(OFFSET(CRONOPLE!$F$14,$M22,AM$13)="",10^12,OFFSET(CRONOPLE!$F$14,$M22,AM$13)))) -> 1 | AN22: =IF($D22<>"Serviço",0,IF(AND(AUTOEVENTO="Manual",$M22=1),0,IF(OFFSET(CRONOPLE!$F$14,$M22,AN$13)="",10^12,OFFSET(CRONOPLE!$F$14,$M22,AN$13)))) -> 1000000000000 | AO22: =IF($D22<>"Serviço",0,IF(AND(AUTOEVENTO="Manual",$M22=1),0,IF(OFFSET(CRONOPLE!$F$14,$M22,AO$13)="",10^12,OFFSET(CRONOPLE!$F$14,$M22,AO$13)))) -> 1000000000000 | AP22: =IF($D22<>"Serviço",0,IF(AND(AUTOEVENTO="Manual",$M22=1),0,IF(OFFSET(CRONOPLE!$F$14,$M22,AP$13)="",10^12,OFFSET(CRONOPLE!$F$14,$M22,AP$13)))) -> 1000000000000 | AQ22: =IF($D22<>"Serviço",0,IF(AND(AUTOEVENTO="Manual",$M22=1),0,IF(OFFSET(CRONOPLE!$F$14,$M22,AQ$13)="",10^12,OFFSET(CRONOPLE!$F$14,$M22,AQ$13)))) -> 1000000000000 | AR22: =IF($D22<>"Serviço",0,IF(AND(AUTOEVENTO="Manual",$M22=1),0,IF(OFFSET(CRONOPLE!$F$14,$M22,AR$13)="",10^12,OFFSET(CRONOPLE!$F$14,$M22,AR$13)))) -> 1000000000000 | AS22: =IF($D22<>"Serviço",0,IF(AND(AUTOEVENTO="Manual",$M22=1),0,IF(OFFSET(CRONOPLE!$F$14,$M22,AS$13)="",10^12,OFFSET(CRONOPLE!$F$14,$M22,AS$13)))) -> 1000000000000 | AT22: =IF($D22<>"Serviço",0,IF(AND(AUTOEVENTO="Manual",$M22=1),0,IF(OFFSET(CRONOPLE!$F$14,$M22,AT$13)="",10^12,OFFSET(CRONOPLE!$F$14,$M22,AT$13)))) -> 1000000000000 | AU22: =IF($D22<>"Serviço",0,IF(AND(AUTOEVENTO="Manual",$M22=1),0,IF(OFFSET(CRONOPLE!$F$14,$M22,AU$13)="",10^12,OFFSET(CRONOPLE!$F$14,$M22,AU$13)))) -> 1000000000000 | AV22: =IF($D22<>"Serviço",0,IF(AND(AUTOEVENTO="Manual",$M22=1),0,IF(OFFSET(CRONOPLE!$F$14,$M22,AV$13)="",10^12,OFFSET(CRONOPLE!$F$14,$M22,AV$13)))) -> 1000000000000 | AX22: =IF($D22<>"Serviço",0,IF(OR(AND(AUTOEVENTO="Manual",$M22=1),$M22>(ROW(PLE.lastrow)-ROW(PLE.firstrow))),0,IF(OFFSET(PLE!$G$14,$M22,AX$13)="",10^12,OFFSET(PLE!$G$14,$M22,AX$13)))) -> 1000000000000 | AY22: =IF($D22<>"Serviço",0,IF(OR(AND(AUTOEVENTO="Manual",$M22=1),$M22>(ROW(PLE.lastrow)-ROW(PLE.firstrow))),0,IF(OFFSET(PLE!$G$14,$M22,AY$13)="",10^12,OFFSET(PLE!$G$14,$M22,AY$13)))) -> 1000000000000 | AZ22: =IF($D22<>"Serviço",0,IF(OR(AND(AUTOEVENTO="Manual",$M22=1),$M22>(ROW(PLE.lastrow)-ROW(PLE.firstrow))),0,IF(OFFSET(PLE!$G$14,$M22,AZ$13)="",10^12,OFFSET(PLE!$G$14,$M22,AZ$13)))) -> 1000000000000 | BA22: =IF($D22<>"Serviço",0,IF(OR(AND(AUTOEVENTO="Manual",$M22=1),$M22>(ROW(PLE.lastrow)-ROW(PLE.firstrow))),0,IF(OFFSET(PLE!$G$14,$M22,BA$13)="",10^12,OFFSET(PLE!$G$14,$M22,BA$13)))) -> 1000000000000 | BB22: =IF($D22<>"Serviço",0,IF(OR(AND(AUTOEVENTO="Manual",$M22=1),$M22>(ROW(PLE.lastrow)-ROW(PLE.firstrow))),0,IF(OFFSET(PLE!$G$14,$M22,BB$13)="",10^12,OFFSET(PLE!$G$14,$M22,BB$13)))) -> 1000000000000 | BC22: =IF($D22<>"Serviço",0,IF(OR(AND(AUTOEVENTO="Manual",$M22=1),$M22>(ROW(PLE.lastrow)-ROW(PLE.firstrow))),0,IF(OFFSET(PLE!$G$14,$M22,BC$13)="",10^12,OFFSET(PLE!$G$14,$M22,BC$13)))) -> 1000000000000 | BD22: =IF($D22<>"Serviço",0,IF(OR(AND(AUTOEVENTO="Manual",$M22=1),$M22>(ROW(PLE.lastrow)-ROW(PLE.firstrow))),0,IF(OFFSET(PLE!$G$14,$M22,BD$13)="",10^12,OFFSET(PLE!$G$14,$M22,BD$13)))) -> 1000000000000 | BE22: =IF($D22<>"Serviço",0,IF(OR(AND(AUTOEVENTO="Manual",$M22=1),$M22>(ROW(PLE.lastrow)-ROW(PLE.firstrow))),0,IF(OFFSET(PLE!$G$14,$M22,BE$13)="",10^12,OFFSET(PLE!$G$14,$M22,BE$13)))) -> 1000000000000 | BF22: =IF($D22<>"Serviço",0,IF(OR(AND(AUTOEVENTO="Manual",$M22=1),$M22>(ROW(PLE.lastrow)-ROW(PLE.firstrow))),0,IF(OFFSET(PLE!$G$14,$M22,BF$13)="",10^12,OFFSET(PLE!$G$14,$M22,BF$13)))) -> 1000000000000 | BG22: =IF($D22<>"Serviço",0,IF(OR(AND(AUTOEVENTO="Manual",$M22=1),$M22>(ROW(PLE.lastrow)-ROW(PLE.firstrow))),0,IF(OFFSET(PLE!$G$14,$M22,BG$13)="",10^12,OFFSET(PLE!$G$14,$M22,BG$13)))) -> 1000000000000
A23: =IF(AUTOEVENTO="Manual",IF(K23<>"",MIN(VALUE(LEFT(K23,FIND(".",K23)-1)),COUNTA(EVENTOS.Lista)),0),IF(OR($B23>AUTOEVENTO,$B23="S",$B23=0),SUBSTITUTE(OFFSET($A23,-1,0),IF($D23="Serviço",".",""),""),ROW(A23)-ROW($A$15)&".")) -> 3 | B23: =OFFSET(ORÇAMENTO!C$15,ROW(B23)-ROW(B$15),0) -> S | C23: =OFFSET(ORÇAMENTO!L$15,ROW(C23)-ROW(C$15),0) -> F | D23: =OFFSET(ORÇAMENTO!N$15,ROW(D23)-ROW(D$15),0) -> Serviço | E23: =OFFSET(ORÇAMENTO!O$15,ROW(E23)-ROW(E$15),0) -> 1.2.0.2. | F23: =OFFSET(ORÇAMENTO!R$15,ROW(F23)-ROW(F$15),0) -> CARGA, MANOBRA E DESCARGA DE ENTULHO EM CAMINHÃO BASCULANTE 10 M³ - CARGA COM ESCAVADEIRA HIDRÁULICA (CAÇAMBA DE 0,80 M³ / 111 HP) E DESCARGA LIVRE (UNIDADE: M3). AF_07/2020 | G23: =IF($D23<>"Serviço","",OFFSET(ORÇAMENTO!S$15,ROW(G23)-ROW(G$15),0)) -> M3 | H23: =IF($D23<>"Serviço",0,IF(ACOMPANHAMENTO="BM",ROUND(OFFSET(ORÇAMENTO!AJ$15,ROW(H23)-ROW(H$15),0),15-13*ORÇAMENTO!$AF$7),SUMPRODUCT(($Q$12:$AA$12<>"")*ROUND($Q23:$AA23,15-13*ORÇAMENTO!$AF$7)))) -> 5.83 | I23: vigas (4,03*0,20*0,50+8,34*0,20*0,45) + sapatas (0,90*1,30*0,20*20) | K23: 3.MOVIMENTAÇÃO DE TERRA | L23: . | M23: =IF($D23<>"Serviço","",IF(AUTOEVENTO="manual",$A23,IF(ISERROR(MATCH($A23,$A$15:OFFSET($A23,-1,0),0)),MAX($M$15:OFFSET(M23,-1,0))+1,INDEX($M$15:OFFSET(M23,-1,0),MATCH($A23,$A$15:OFFSET($A23,-1,0),0))))) -> 3 | N23: =IF($D23<>"Serviço","",IF(AUTOEVENTO="Manual",IF($A23=0,"<-- defina o número do agrupador",OFFSET(EVENTOS!$D$14,$A23,0)),OFFSET($F$15,$A23,0))) -> DEMOLIÇÃO | Q23: =(4.03*0.2*0.5+8.34*0.2*0.45)+(0.9*1.3*0.2*20) -> 5.8336 | AB23: =IF(AND($D23="Serviço",AB$12<>0,$H23>0,OR(AUTOEVENTO<>"manual",$M23<>1)),ROUND(OFFSET($P23,0,AB$13),15-13*ORÇAMENTO!$AF$7)/$H23*OFFSET(ORÇAMENTO!$X$15,ROW(AB23)-ROW(AB$15),0),0) -> 45.53 | AC23: =IF(AND($D23="Serviço",AC$12<>0,$H23>0,OR(AUTOEVENTO<>"manual",$M23<>1)),ROUND(OFFSET($P23,0,AC$13),15-13*ORÇAMENTO!$AF$7)/$H23*OFFSET(ORÇAMENTO!$X$15,ROW(AC23)-ROW(AC$15),0),0) -> 0 | AD23: =IF(AND($D23="Serviço",AD$12<>0,$H23>0,OR(AUTOEVENTO<>"manual",$M23<>1)),ROUND(OFFSET($P23,0,AD$13),15-13*ORÇAMENTO!$AF$7)/$H23*OFFSET(ORÇAMENTO!$X$15,ROW(AD23)-ROW(AD$15),0),0) -> 0 | AE23: =IF(AND($D23="Serviço",AE$12<>0,$H23>0,OR(AUTOEVENTO<>"manual",$M23<>1)),ROUND(OFFSET($P23,0,AE$13),15-13*ORÇAMENTO!$AF$7)/$H23*OFFSET(ORÇAMENTO!$X$15,ROW(AE23)-ROW(AE$15),0),0) -> 0 | AF23: =IF(AND($D23="Serviço",AF$12<>0,$H23>0,OR(AUTOEVENTO<>"manual",$M23<>1)),ROUND(OFFSET($P23,0,AF$13),15-13*ORÇAMENTO!$AF$7)/$H23*OFFSET(ORÇAMENTO!$X$15,ROW(AF23)-ROW(AF$15),0),0) -> 0 | AG23: =IF(AND($D23="Serviço",AG$12<>0,$H23>0,OR(AUTOEVENTO<>"manual",$M23<>1)),ROUND(OFFSET($P23,0,AG$13),15-13*ORÇAMENTO!$AF$7)/$H23*OFFSET(ORÇAMENTO!$X$15,ROW(AG23)-ROW(AG$15),0),0) -> 0 | AH23: =IF(AND($D23="Serviço",AH$12<>0,$H23>0,OR(AUTOEVENTO<>"manual",$M23<>1)),ROUND(OFFSET($P23,0,AH$13),15-13*ORÇAMENTO!$AF$7)/$H23*OFFSET(ORÇAMENTO!$X$15,ROW(AH23)-ROW(AH$15),0),0) -> 0 | AI23: =IF(AND($D23="Serviço",AI$12<>0,$H23>0,OR(AUTOEVENTO<>"manual",$M23<>1)),ROUND(OFFSET($P23,0,AI$13),15-13*ORÇAMENTO!$AF$7)/$H23*OFFSET(ORÇAMENTO!$X$15,ROW(AI23)-ROW(AI$15),0),0) -> 0 | AJ23: =IF(AND($D23="Serviço",AJ$12<>0,$H23>0,OR(AUTOEVENTO<>"manual",$M23<>1)),ROUND(OFFSET($P23,0,AJ$13),15-13*ORÇAMENTO!$AF$7)/$H23*OFFSET(ORÇAMENTO!$X$15,ROW(AJ23)-ROW(AJ$15),0),0) -> 0 | AK23: =IF(AND($D23="Serviço",AK$12<>0,$H23>0,OR(AUTOEVENTO<>"manual",$M23<>1)),ROUND(OFFSET($P23,0,AK$13),15-13*ORÇAMENTO!$AF$7)/$H23*OFFSET(ORÇAMENTO!$X$15,ROW(AK23)-ROW(AK$15),0),0) -> 0 | AM23: =IF($D23<>"Serviço",0,IF(AND(AUTOEVENTO="Manual",$M23=1),0,IF(OFFSET(CRONOPLE!$F$14,$M23,AM$13)="",10^12,OFFSET(CRONOPLE!$F$14,$M23,AM$13)))) -> 1 | AN23: =IF($D23<>"Serviço",0,IF(AND(AUTOEVENTO="Manual",$M23=1),0,IF(OFFSET(CRONOPLE!$F$14,$M23,AN$13)="",10^12,OFFSET(CRONOPLE!$F$14,$M23,AN$13)))) -> 1000000000000 | AO23: =IF($D23<>"Serviço",0,IF(AND(AUTOEVENTO="Manual",$M23=1),0,IF(OFFSET(CRONOPLE!$F$14,$M23,AO$13)="",10^12,OFFSET(CRONOPLE!$F$14,$M23,AO$13)))) -> 1000000000000 | AP23: =IF($D23<>"Serviço",0,IF(AND(AUTOEVENTO="Manual",$M23=1),0,IF(OFFSET(CRONOPLE!$F$14,$M23,AP$13)="",10^12,OFFSET(CRONOPLE!$F$14,$M23,AP$13)))) -> 1000000000000 | AQ23: =IF($D23<>"Serviço",0,IF(AND(AUTOEVENTO="Manual",$M23=1),0,IF(OFFSET(CRONOPLE!$F$14,$M23,AQ$13)="",10^12,OFFSET(CRONOPLE!$F$14,$M23,AQ$13)))) -> 1000000000000 | AR23: =IF($D23<>"Serviço",0,IF(AND(AUTOEVENTO="Manual",$M23=1),0,IF(OFFSET(CRONOPLE!$F$14,$M23,AR$13)="",10^12,OFFSET(CRONOPLE!$F$14,$M23,AR$13)))) -> 1000000000000 | AS23: =IF($D23<>"Serviço",0,IF(AND(AUTOEVENTO="Manual",$M23=1),0,IF(OFFSET(CRONOPLE!$F$14,$M23,AS$13)="",10^12,OFFSET(CRONOPLE!$F$14,$M23,AS$13)))) -> 1000000000000 | AT23: =IF($D23<>"Serviço",0,IF(AND(AUTOEVENTO="Manual",$M23=1),0,IF(OFFSET(CRONOPLE!$F$14,$M23,AT$13)="",10^12,OFFSET(CRONOPLE!$F$14,$M23,AT$13)))) -> 1000000000000 | AU23: =IF($D23<>"Serviço",0,IF(AND(AUTOEVENTO="Manual",$M23=1),0,IF(OFFSET(CRONOPLE!$F$14,$M23,AU$13)="",10^12,OFFSET(CRONOPLE!$F$14,$M23,AU$13)))) -> 1000000000000 | AV23: =IF($D23<>"Serviço",0,IF(AND(AUTOEVENTO="Manual",$M23=1),0,IF(OFFSET(CRONOPLE!$F$14,$M23,AV$13)="",10^12,OFFSET(CRONOPLE!$F$14,$M23,AV$13)))) -> 1000000000000 | AX23: =IF($D23<>"Serviço",0,IF(OR(AND(AUTOEVENTO="Manual",$M23=1),$M23>(ROW(PLE.lastrow)-ROW(PLE.firstrow))),0,IF(OFFSET(PLE!$G$14,$M23,AX$13)="",10^12,OFFSET(PLE!$G$14,$M23,AX$13)))) -> 1000000000000 | AY23: =IF($D23<>"Serviço",0,IF(OR(AND(AUTOEVENTO="Manual",$M23=1),$M23>(ROW(PLE.lastrow)-ROW(PLE.firstrow))),0,IF(OFFSET(PLE!$G$14,$M23,AY$13)="",10^12,OFFSET(PLE!$G$14,$M23,AY$13)))) -> 1000000000000 | AZ23: =IF($D23<>"Serviço",0,IF(OR(AND(AUTOEVENTO="Manual",$M23=1),$M23>(ROW(PLE.lastrow)-ROW(PLE.firstrow))),0,IF(OFFSET(PLE!$G$14,$M23,AZ$13)="",10^12,OFFSET(PLE!$G$14,$M23,AZ$13)))) -> 1000000000000 | BA23: =IF($D23<>"Serviço",0,IF(OR(AND(AUTOEVENTO="Manual",$M23=1),$M23>(ROW(PLE.lastrow)-ROW(PLE.firstrow))),0,IF(OFFSET(PLE!$G$14,$M23,BA$13)="",10^12,OFFSET(PLE!$G$14,$M23,BA$13)))) -> 1000000000000 | BB23: =IF($D23<>"Serviço",0,IF(OR(AND(AUTOEVENTO="Manual",$M23=1),$M23>(ROW(PLE.lastrow)-ROW(PLE.firstrow))),0,IF(OFFSET(PLE!$G$14,$M23,BB$13)="",10^12,OFFSET(PLE!$G$14,$M23,BB$13)))) -> 1000000000000 | BC23: =IF($D23<>"Serviço",0,IF(OR(AND(AUTOEVENTO="Manual",$M23=1),$M23>(ROW(PLE.lastrow)-ROW(PLE.firstrow))),0,IF(OFFSET(PLE!$G$14,$M23,BC$13)="",10^12,OFFSET(PLE!$G$14,$M23,BC$13)))) -> 1000000000000 | BD23: =IF($D23<>"Serviço",0,IF(OR(AND(AUTOEVENTO="Manual",$M23=1),$M23>(ROW(PLE.lastrow)-ROW(PLE.firstrow))),0,IF(OFFSET(PLE!$G$14,$M23,BD$13)="",10^12,OFFSET(PLE!$G$14,$M23,BD$13)))) -> 1000000000000 | BE23: =IF($D23<>"Serviço",0,IF(OR(AND(AUTOEVENTO="Manual",$M23=1),$M23>(ROW(PLE.lastrow)-ROW(PLE.firstrow))),0,IF(OFFSET(PLE!$G$14,$M23,BE$13)="",10^12,OFFSET(PLE!$G$14,$M23,BE$13)))) -> 1000000000000 | BF23: =IF($D23<>"Serviço",0,IF(OR(AND(AUTOEVENTO="Manual",$M23=1),$M23>(ROW(PLE.lastrow)-ROW(PLE.firstrow))),0,IF(OFFSET(PLE!$G$14,$M23,BF$13)="",10^12,OFFSET(PLE!$G$14,$M23,BF$13)))) -> 1000000000000 | BG23: =IF($D23<>"Serviço",0,IF(OR(AND(AUTOEVENTO="Manual",$M23=1),$M23>(ROW(PLE.lastrow)-ROW(PLE.firstrow))),0,IF(OFFSET(PLE!$G$14,$M23,BG$13)="",10^12,OFFSET(PLE!$G$14,$M23,BG$13)))) -> 1000000000000
A24: 0 | B24: =OFFSET(ORÇAMENTO!C$15,ROW(B24)-ROW(B$15),0) -> 2 | C24: =OFFSET(ORÇAMENTO!L$15,ROW(C24)-ROW(C$15),0) -> F | D24: =OFFSET(ORÇAMENTO!N$15,ROW(D24)-ROW(D$15),0) -> Nível 2 | E24: =OFFSET(ORÇAMENTO!O$15,ROW(E24)-ROW(E$15),0) -> 1.3. | F24: =OFFSET(ORÇAMENTO!R$15,ROW(F24)-ROW(F$15),0) -> MOVIMENTAÇÃO DE TERRA | G24: =IF($D24<>"Serviço","",OFFSET(ORÇAMENTO!S$15,ROW(G24)-ROW(G$15),0)) ->  | H24: =IF($D24<>"Serviço",0,IF(ACOMPANHAMENTO="BM",ROUND(OFFSET(ORÇAMENTO!AJ$15,ROW(H24)-ROW(H$15),0),15-13*ORÇAMENTO!$AF$7),SUMPRODUCT(($Q$12:$AA$12<>"")*ROUND($Q24:$AA24,15-13*ORÇAMENTO!$AF$7)))) -> 0 | L24: . | M24: =IF($D24<>"Serviço","",IF(AUTOEVENTO="manual",$A24,IF(ISERROR(MATCH($A24,$A$15:OFFSET($A24,-1,0),0)),MAX($M$15:OFFSET(M24,-1,0))+1,INDEX($M$15:OFFSET(M24,-1,0),MATCH($A24,$A$15:OFFSET($A24,-1,0),0))))) ->  | N24: =IF($D24<>"Serviço","",IF(AUTOEVENTO="Manual",IF($A24=0,"<-- defina o número do agrupador",OFFSET(EVENTOS!$D$14,$A24,0)),OFFSET($F$15,$A24,0))) ->  | AB24: =IF(AND($D24="Serviço",AB$12<>0,$H24>0,OR(AUTOEVENTO<>"manual",$M24<>1)),ROUND(OFFSET($P24,0,AB$13),15-13*ORÇAMENTO!$AF$7)/$H24*OFFSET(ORÇAMENTO!$X$15,ROW(AB24)-ROW(AB$15),0),0) -> 0 | AC24: =IF(AND($D24="Serviço",AC$12<>0,$H24>0,OR(AUTOEVENTO<>"manual",$M24<>1)),ROUND(OFFSET($P24,0,AC$13),15-13*ORÇAMENTO!$AF$7)/$H24*OFFSET(ORÇAMENTO!$X$15,ROW(AC24)-ROW(AC$15),0),0) -> 0 | AD24: =IF(AND($D24="Serviço",AD$12<>0,$H24>0,OR(AUTOEVENTO<>"manual",$M24<>1)),ROUND(OFFSET($P24,0,AD$13),15-13*ORÇAMENTO!$AF$7)/$H24*OFFSET(ORÇAMENTO!$X$15,ROW(AD24)-ROW(AD$15),0),0) -> 0 | AE24: =IF(AND($D24="Serviço",AE$12<>0,$H24>0,OR(AUTOEVENTO<>"manual",$M24<>1)),ROUND(OFFSET($P24,0,AE$13),15-13*ORÇAMENTO!$AF$7)/$H24*OFFSET(ORÇAMENTO!$X$15,ROW(AE24)-ROW(AE$15),0),0) -> 0 | AF24: =IF(AND($D24="Serviço",AF$12<>0,$H24>0,OR(AUTOEVENTO<>"manual",$M24<>1)),ROUND(OFFSET($P24,0,AF$13),15-13*ORÇAMENTO!$AF$7)/$H24*OFFSET(ORÇAMENTO!$X$15,ROW(AF24)-ROW(AF$15),0),0) -> 0 | AG24: =IF(AND($D24="Serviço",AG$12<>0,$H24>0,OR(AUTOEVENTO<>"manual",$M24<>1)),ROUND(OFFSET($P24,0,AG$13),15-13*ORÇAMENTO!$AF$7)/$H24*OFFSET(ORÇAMENTO!$X$15,ROW(AG24)-ROW(AG$15),0),0) -> 0 | AH24: =IF(AND($D24="Serviço",AH$12<>0,$H24>0,OR(AUTOEVENTO<>"manual",$M24<>1)),ROUND(OFFSET($P24,0,AH$13),15-13*ORÇAMENTO!$AF$7)/$H24*OFFSET(ORÇAMENTO!$X$15,ROW(AH24)-ROW(AH$15),0),0) -> 0 | AI24: =IF(AND($D24="Serviço",AI$12<>0,$H24>0,OR(AUTOEVENTO<>"manual",$M24<>1)),ROUND(OFFSET($P24,0,AI$13),15-13*ORÇAMENTO!$AF$7)/$H24*OFFSET(ORÇAMENTO!$X$15,ROW(AI24)-ROW(AI$15),0),0) -> 0 | AJ24: =IF(AND($D24="Serviço",AJ$12<>0,$H24>0,OR(AUTOEVENTO<>"manual",$M24<>1)),ROUND(OFFSET($P24,0,AJ$13),15-13*ORÇAMENTO!$AF$7)/$H24*OFFSET(ORÇAMENTO!$X$15,ROW(AJ24)-ROW(AJ$15),0),0) -> 0 | AK24: =IF(AND($D24="Serviço",AK$12<>0,$H24>0,OR(AUTOEVENTO<>"manual",$M24<>1)),ROUND(OFFSET($P24,0,AK$13),15-13*ORÇAMENTO!$AF$7)/$H24*OFFSET(ORÇAMENTO!$X$15,ROW(AK24)-ROW(AK$15),0),0) -> 0 | AM24: =IF($D24<>"Serviço",0,IF(AND(AUTOEVENTO="Manual",$M24=1),0,IF(OFFSET(CRONOPLE!$F$14,$M24,AM$13)="",10^12,OFFSET(CRONOPLE!$F$14,$M24,AM$13)))) -> 0 | AN24: =IF($D24<>"Serviço",0,IF(AND(AUTOEVENTO="Manual",$M24=1),0,IF(OFFSET(CRONOPLE!$F$14,$M24,AN$13)="",10^12,OFFSET(CRONOPLE!$F$14,$M24,AN$13)))) -> 0 | AO24: =IF($D24<>"Serviço",0,IF(AND(AUTOEVENTO="Manual",$M24=1),0,IF(OFFSET(CRONOPLE!$F$14,$M24,AO$13)="",10^12,OFFSET(CRONOPLE!$F$14,$M24,AO$13)))) -> 0 | AP24: =IF($D24<>"Serviço",0,IF(AND(AUTOEVENTO="Manual",$M24=1),0,IF(OFFSET(CRONOPLE!$F$14,$M24,AP$13)="",10^12,OFFSET(CRONOPLE!$F$14,$M24,AP$13)))) -> 0 | AQ24: =IF($D24<>"Serviço",0,IF(AND(AUTOEVENTO="Manual",$M24=1),0,IF(OFFSET(CRONOPLE!$F$14,$M24,AQ$13)="",10^12,OFFSET(CRONOPLE!$F$14,$M24,AQ$13)))) -> 0 | AR24: =IF($D24<>"Serviço",0,IF(AND(AUTOEVENTO="Manual",$M24=1),0,IF(OFFSET(CRONOPLE!$F$14,$M24,AR$13)="",10^12,OFFSET(CRONOPLE!$F$14,$M24,AR$13)))) -> 0 | AS24: =IF($D24<>"Serviço",0,IF(AND(AUTOEVENTO="Manual",$M24=1),0,IF(OFFSET(CRONOPLE!$F$14,$M24,AS$13)="",10^12,OFFSET(CRONOPLE!$F$14,$M24,AS$13)))) -> 0 | AT24: =IF($D24<>"Serviço",0,IF(AND(AUTOEVENTO="Manual",$M24=1),0,IF(OFFSET(CRONOPLE!$F$14,$M24,AT$13)="",10^12,OFFSET(CRONOPLE!$F$14,$M24,AT$13)))) -> 0 | AU24: =IF($D24<>"Serviço",0,IF(AND(AUTOEVENTO="Manual",$M24=1),0,IF(OFFSET(CRONOPLE!$F$14,$M24,AU$13)="",10^12,OFFSET(CRONOPLE!$F$14,$M24,AU$13)))) -> 0 | AV24: =IF($D24<>"Serviço",0,IF(AND(AUTOEVENTO="Manual",$M24=1),0,IF(OFFSET(CRONOPLE!$F$14,$M24,AV$13)="",10^12,OFFSET(CRONOPLE!$F$14,$M24,AV$13)))) -> 0 | AX24: =IF($D24<>"Serviço",0,IF(OR(AND(AUTOEVENTO="Manual",$M24=1),$M24>(ROW(PLE.lastrow)-ROW(PLE.firstrow))),0,IF(OFFSET(PLE!$G$14,$M24,AX$13)="",10^12,OFFSET(PLE!$G$14,$M24,AX$13)))) -> 0 | AY24: =IF($D24<>"Serviço",0,IF(OR(AND(AUTOEVENTO="Manual",$M24=1),$M24>(ROW(PLE.lastrow)-ROW(PLE.firstrow))),0,IF(OFFSET(PLE!$G$14,$M24,AY$13)="",10^12,OFFSET(PLE!$G$14,$M24,AY$13)))) -> 0 | AZ24: =IF($D24<>"Serviço",0,IF(OR(AND(AUTOEVENTO="Manual",$M24=1),$M24>(ROW(PLE.lastrow)-ROW(PLE.firstrow))),0,IF(OFFSET(PLE!$G$14,$M24,AZ$13)="",10^12,OFFSET(PLE!$G$14,$M24,AZ$13)))) -> 0 | BA24: =IF($D24<>"Serviço",0,IF(OR(AND(AUTOEVENTO="Manual",$M24=1),$M24>(ROW(PLE.lastrow)-ROW(PLE.firstrow))),0,IF(OFFSET(PLE!$G$14,$M24,BA$13)="",10^12,OFFSET(PLE!$G$14,$M24,BA$13)))) -> 0 | BB24: =IF($D24<>"Serviço",0,IF(OR(AND(AUTOEVENTO="Manual",$M24=1),$M24>(ROW(PLE.lastrow)-ROW(PLE.firstrow))),0,IF(OFFSET(PLE!$G$14,$M24,BB$13)="",10^12,OFFSET(PLE!$G$14,$M24,BB$13)))) -> 0 | BC24: =IF($D24<>"Serviço",0,IF(OR(AND(AUTOEVENTO="Manual",$M24=1),$M24>(ROW(PLE.lastrow)-ROW(PLE.firstrow))),0,IF(OFFSET(PLE!$G$14,$M24,BC$13)="",10^12,OFFSET(PLE!$G$14,$M24,BC$13)))) -> 0 | BD24: =IF($D24<>"Serviço",0,IF(OR(AND(AUTOEVENTO="Manual",$M24=1),$M24>(ROW(PLE.lastrow)-ROW(PLE.firstrow))),0,IF(OFFSET(PLE!$G$14,$M24,BD$13)="",10^12,OFFSET(PLE!$G$14,$M24,BD$13)))) -> 0 | BE24: =IF($D24<>"Serviço",0,IF(OR(AND(AUTOEVENTO="Manual",$M24=1),$M24>(ROW(PLE.lastrow)-ROW(PLE.firstrow))),0,IF(OFFSET(PLE!$G$14,$M24,BE$13)="",10^12,OFFSET(PLE!$G$14,$M24,BE$13)))) -> 0 | BF24: =IF($D24<>"Serviço",0,IF(OR(AND(AUTOEVENTO="Manual",$M24=1),$M24>(ROW(PLE.lastrow)-ROW(PLE.firstrow))),0,IF(OFFSET(PLE!$G$14,$M24,BF$13)="",10^12,OFFSET(PLE!$G$14,$M24,BF$13)))) -> 0 | BG24: =IF($D24<>"Serviço",0,IF(OR(AND(AUTOEVENTO="Manual",$M24=1),$M24>(ROW(PLE.lastrow)-ROW(PLE.firstrow))),0,IF(OFFSET(PLE!$G$14,$M24,BG$13)="",10^12,OFFSET(PLE!$G$14,$M24,BG$13)))) -> 0
